Workbook

Sheet zaavar suutgan
F2: НИЙГМИЙН ДААТГАЛЫН САЙТААС ХУУЛАХАД Л БҮХ ТООЦООЛОЛ ЯВАГДАНА
F3: ТИН ДУГААРАА ЭНЭ ДЭЭР ОРУУЛЖ ӨГНӨ ҮҮ | J3: 888
F5: НИЙГМИЙН ДААТГАЛААС ХУУЛАХДАА УЛСЫН КОД 2 СОНГОСОН ТОХИОЛДОЛД ГАДААД УЛСЫН ИРГЭН ГЭЖ ҮЗЭЖ НДШ ХӨНГӨЛӨЛТ ЭДЛҮҮЛЭХГҮЙ ХАСНА
H6: хоосон нүд орхисон ч хамаагүй тооцолол явагдана
B7: importloh гэсэн ногоон өнгөтэй SHEET ээ шинэ эксел файл нээж хуулаад л уг файлаа нэр өгч хадгалаад илүү гарсан мөрүүдийг delete хийж устгасаны дараа импортлоно
G8: ХҮНИЙ ОВОГ НЭРТЭЙ МЭДЭЭЛЛЭЭС ДООШ ЯМАРВАА НЭГЭН ТЭМДЭГТ 0 ГЭСЭН ТОО БАЙХГҮЙ БАЙЖ ИМПОРТЛОНО.
H10: НИЙГМИЙН ДААТГАЛЫН САЙТНААС ХУУЛАХ ХЭЛБЭР
D13: ЭХНИЙ ХҮНИЙ ЭХНИЙ ҮСГЭЭС
D14: СОНГООД
N21: Сүүлийн хүний сүүлийн тоо хүртэл сонгож хуулна
H24: ХЭДЭН НҮҮР БАЙНА ТЭР НҮҮРИЙН ТООГООРОО ХУУЛНА ЗАРИМ 1 2 3 ХҮРТЭЛ БАЙЖ БОЛНО
F25: ХЭДИЙГЭЭР ТООНУУД НЬ БОДИТ ЦАЛИНГААС 10.000 р ИХ, ТООН БИШ ФОРМАТТАЙ БИШ БАЙХ БОЛОВЧ ХУУЛААД ТАВИХАД ТООЦООЛОЛ ХИЙГДЭНЭ
F26: зарим пс хуулж тавихад 10.000 р үржэгдэхгүй байх юм уу
F27: хоёроос дээш нүүртэй хүмүүстэй байвал
G28: ND8 с ХӨРВҮҮЛЭХ ЗАГВАР АШИГЛААД ХУУЛЖ БОЛНО. САЙТ НЬ ДЭЭР ҮНЭГҮЙ БАЙГАА УГ ЗАГВАР - чатаар холбогдоод авсан ч болно
B30: НИЙГМИЙН ДААТГАЛЫН САЙТНААС ХУУЛАХГҮЙ ЭСВЭЛ ГАРААР МЭДЭЭЛЭЛ ОРУУЛАХ ШААРДЛАГАТАЙ БОЛ саарал өнгөтэй тухайн сар дээрээ очоод өөрчлөлт оруулах боломжтой
F32: Cut хийхгүй, мөр, багана устгахгүй, буруу мэдээлэл оруулсан бол зөвхөн clear content юм уу, delete товч дарж арилгана.
F33: Хүний тоо давхардсан байдлаар 100 гаас дээш бол өөр загвар авж гаргана.
F35: Сар сарын хуулсан дүнгээ хөлийн дүнгээр нь шалгах хэрэгтэй. Хэрвээ зөрүүтэй бол НД 8 с хуулах загвар ашиглаж болно.
F36: Бусдад дамжуулсан загвар дээр тооцоолол хийхэд алдаа гарж, тооцоолол худлаа болж болзошгүй тул зөвхөн Баттүвшин Энхтулга гэсэн фб чатаар холбогдон авна уу
D38: СУУТГАН | G38: negtgel sheet ний А буюу эхний багананд улаан тэмдэглээтэй сонголт байгаа уг улаан дотор 1, 2, 3 гэсэн сонголттой байгаа бөгөөд
D39: ТОХИРУУЛГА | H39: 1 сонгосон тохиолдолд гадаад хүн гэж үзэн ХХОАТ 4-9 сарын чөлөөлөлт тооцохгүй,
H40: 2 сонгосон тохиолдолд ХХОАТ чөлөөлөлт тооцохгүй, энэ нь 22 кодтой буюу тэтгэвэрт гарсан хүн давхар ажил хийж байгаа тохиолдолд хөнгөлөлт тооцохгүй сонголт болно.
H41: 3 сонгосон тохиолдолд ХХОАТ чөлөөлөлт, хөнгөлөлт аль алиныг нь тооцохгүй, хөдөлмөрийн чадвар алдалттай 22 кодоор тайлагнаж байгаа хүн энэ дагуу тайлагнаж, ХМ_11(2) хасагдаж тайлагнана.
G42: Оюуны хичээл зүтгэлийг үнэлэн бусдад тараахгүй зөвхөн өөрийн хэрэгцээндээ ашиглана уу.
G43: Баярлалаа :0
F46: Хөдөлмөрийн чадвар алдалтай нь улмаас ХХОАТ суутгахгүй хүмүүс энэ загварт орж 3 дугаараар тайлагнаад хөдөлмөрийн чадвар алдалтын тайлан уруу орж хасагдуулга хийгдэнэ.
F47: Хүүхдээ харж байгаа эх, цалин аваагүй сул зогсолттой хүмүүс суутгах орлого олоогүй учраас Нийгмийн даатгалын тайланд орох боловч суутганы тайланд орохгүй.

Sheet TAILAN
F1: МӨР ХООРОНДЫН ЗАЙГ ТОХИРУУЛЖ БОЛНО
D2: НЭГТГЭЛ ТАЙЛАН
B3: 7.1.1.ажил олгогчтой байгуулсан хөдөлмөрийн гэрээнд заасны дагуу авч байгаа үндсэн цалин, нэмэгдэл хөлс, нэмэгдэл, шагнал, урамшуулал, амралтын олговор, тэтгэвэр, тэтгэмж, тэдгээртэй адилтгах бусад орлого; | C3: 7.1.2.ажил олгогчоос ажилтан, түүний гэр бүлийн гишүүнд олгосон тэтгэмж болон түүнтэй адилтгах орлого; | D3: 7.1.3.ажил олгогчоос ажилтан, түүний гэр бүлийн гишүүнд өгсөн бэлэг; | E3: 7.1.4.төлөөлөн удирдах зөвлөл, хяналтын зөвлөл, орон тооны бус зөвлөл болон бусад зөвлөл, хороо, ажлын хэсгийн гишүүний цалин хөлс, шагнал, урамшуулал, тэдгээртэй адилтгах орлого; | F3: 7.1.5.гадаад, дотоодын аж ахуйн нэгж, байгууллага, иргэн болон бусад этгээдээс өгсөн бүх төрлийн шагнал, урамшуулал, тэдгээртэй адилтгах орлого; | G3: 7.1.6.үндсэн БУС ажлын газар хуулийн этгээд болон хувь хүнтэй байгуулсан гэрээний үндсэн дээр ажил, үүрэг гүйцэтгэж авсан хөдөлмөрийн хөлс, шагнал, нэмэгдэл, тэтгэмж, тэдгээртэй адилтгах бусад орлого; | H3: 7.1.7.хоол, унааны мөнгө. | I3: Цалин, хөдөлмөрийн хөлс, шагнал, урамшуулал болон тэдгээртэй адилтгах хөдөлмөр эрхлэлтийн орлого | J3: үндсэн бусаас цалингаас тооцсон ЭМ ба НДШ | K3: үндсэн цалингаас тооцсон ЭМ ба НДШ | L3: Нийт татвар ногдуулах орлого | M3: үндсэн бус орлогоос тооцсон татвар | N3: ҮНДСЭН ОРЛОГООС ТООЦСОН ТАТВАР | T3: Жилийн эцсийн тохируулга | U3: Жилийн эцсийн тохируулга | V3: Жилийн эцсийн тохируулга | W3: Жилийн эцсийн тохируулга
A4: САРУУД | B4: хуулийн 7.1.1 | C4: хуулийн 7.1.2 | D4: хуулийн 7.1.3 | E4: хуулийн 7.1.4 | F4: хуулийн 7.1.5 | G4: хуулийн 7.1.6 | H4: хуулийн 7.1.7 | I4: Дүн (5+…+11) | J4: 7.1.6-д заасан орлогод | K4: Бусад орлогод | L4: Татвар ногдуулах орлого (12-(13+14)) | M4: 7.1.6-рх орлогод (10-13)*10% | N4: Бусад орлогод ((12-10)-14)*10% | O4: давхардаагүй ажилласан хүн | P4: Хөнгөлөх татвар | Q4: Суутгасан албан татварын дүн (17-18)+16 | R4: Албан татвараас чөлөөлөх /2020.04.01 - 2020.10.01/(16+17) | S4: Татвар төлөх | T4: Хөнгөлөх татвар | U4: Суутгасан албан татварын дүн (17-18)+16 | V4: Албан татвараас чөлөөлөх /2020.04.01 - 2020.10.01/(16+17) | W4: Татвар төлөх
A5: 1 | B5: =+'1 r sar'!E4 -> 3880320 | C5: =+'1 r sar'!F4 -> 0 | D5: =+'1 r sar'!G4 -> 0 | E5: =+'1 r sar'!H4 -> 0 | F5: =+'1 r sar'!I4 -> 0 | G5: =+'1 r sar'!J4 -> 1000000 | H5: =+'1 r sar'!K4 -> 0 | I5: =+'1 r sar'!L4 -> 4880320 | J5: =+'1 r sar'!M4 -> 113000 | K5: =+'1 r sar'!N4 -> 446236.8 | L5: =+'1 r sar'!O4 -> 4321083.2 | M5: =+'1 r sar'!P4 -> 88700 | N5: =+'1 r sar'!Q4 -> 343408.32 | O5: =+'1 r sar'!R4 -> 0 | P5: =+'1 r sar'!S4 -> 28000 | Q5: =+'1 r sar'!T4 -> 404108.32 | R5: =+'1 r sar'!U4 -> 0 | S5: =+Q5-R5 -> 404108.32
A6: 2 | B6: =+'2-r sar'!E4 -> 3876000 | C6: =+'2-r sar'!F4 -> 0 | D6: =+'2-r sar'!G4 -> 0 | E6: =+'2-r sar'!H4 -> 0 | F6: =+'2-r sar'!I4 -> 0 | G6: =+'2-r sar'!J4 -> 1000000 | H6: =+'2-r sar'!K4 -> 0 | I6: =+'2-r sar'!L4 -> 4876000 | J6: =+'2-r sar'!M4 -> 113000 | K6: =+'2-r sar'!N4 -> 445740 | L6: =+'2-r sar'!O4 -> 4317260 | M6: =+'2-r sar'!P4 -> 88700 | N6: =+'2-r sar'!Q4 -> 343026 | O6: =+'2-r sar'!R4 -> 0 | P6: =+'2-r sar'!S4 -> 28000 | Q6: =+'2-r sar'!T4 -> 403726 | R6: =+'2-r sar'!U4 -> 0 | S6: =+Q6-R6 -> 403726
A7: 3 | B7: =+'3-r sar'!E4 -> 3884160 | C7: =+'3-r sar'!F4 -> 0 | D7: =+'3-r sar'!G4 -> 0 | E7: =+'3-r sar'!H4 -> 0 | F7: =+'3-r sar'!I4 -> 0 | G7: =+'3-r sar'!J4 -> 1000000 | H7: =+'3-r sar'!K4 -> 0 | I7: =+'3-r sar'!L4 -> 4884160 | J7: =+'3-r sar'!M4 -> 113000 | K7: =+'3-r sar'!N4 -> 446678.4 | L7: =+'3-r sar'!O4 -> 4324481.6 | M7: =+'3-r sar'!P4 -> 88700 | N7: =+'3-r sar'!Q4 -> 343748.16 | O7: =+'3-r sar'!R4 -> 0 | P7: =+'3-r sar'!S4 -> 28000 | Q7: =+'3-r sar'!T4 -> 404448.16 | R7: =+'3-r sar'!U4 -> 0 | S7: 404448.16
A8: 4 | B8: =+'4-r sar'!E4 -> 3884160 | C8: =+'4-r sar'!F4 -> 0 | D8: =+'4-r sar'!G4 -> 0 | E8: =+'4-r sar'!H4 -> 0 | F8: =+'4-r sar'!I4 -> 0 | G8: =+'4-r sar'!J4 -> 1000000 | H8: =+'4-r sar'!K4 -> 0 | I8: =+'4-r sar'!L4 -> 4884160 | J8: =+'4-r sar'!M4 -> 113000 | K8: =+'4-r sar'!N4 -> 446678.4 | L8: =+'4-r sar'!O4 -> 4324481.6 | M8: =+'4-r sar'!P4 -> 88700 | N8: =+'4-r sar'!Q4 -> 343748.16 | O8: =+'4-r sar'!R4 -> 0 | P8: =+'4-r sar'!S4 -> 28000 | Q8: =+'4-r sar'!T4 -> 404448.16 | R8: =+'4-r sar'!U5 -> 0 | S8: 404448.16
A9: 5 | B9: =+'5-r sar'!E4 -> 3884160 | C9: =+'5-r sar'!F4 -> 0 | D9: =+'5-r sar'!G4 -> 0 | E9: =+'5-r sar'!H4 -> 0 | F9: =+'5-r sar'!I4 -> 0 | G9: =+'5-r sar'!J4 -> 1000000 | H9: =+'5-r sar'!K4 -> 0 | I9: =+'5-r sar'!L4 -> 4884160 | J9: =+'5-r sar'!M4 -> 113000 | K9: =+'5-r sar'!N4 -> 446678.4 | L9: =+'5-r sar'!O4 -> 4324481.6 | M9: =+'5-r sar'!P4 -> 88700 | N9: =+'5-r sar'!Q4 -> 343748.16 | O9: =+'5-r sar'!R4 -> 0 | P9: =+'5-r sar'!S4 -> 28000 | Q9: =+'5-r sar'!T4 -> 404448.16 | R9: =+'5-r sar'!U6 -> 0 | S9: 404448.16
A10: 6 | B10: ='6-r sar'!E4 -> 3880320 | C10: ='6-r sar'!F4 -> 0 | D10: ='6-r sar'!G4 -> 0 | E10: ='6-r sar'!H4 -> 0 | F10: ='6-r sar'!I4 -> 0 | G10: ='6-r sar'!J4 -> 1000000 | H10: ='6-r sar'!K4 -> 0 | I10: ='6-r sar'!L4 -> 4880320 | J10: ='6-r sar'!M4 -> 113000 | K10: ='6-r sar'!N4 -> 446236.8 | L10: ='6-r sar'!O4 -> 4321083.2 | M10: ='6-r sar'!P4 -> 88700 | N10: ='6-r sar'!Q4 -> 343408.32 | O10: ='6-r sar'!R4 -> 0 | P10: ='6-r sar'!S4 -> 28000 | Q10: ='6-r sar'!T4 -> 404108.32 | R10: ='6-r sar'!U7 -> 0 | S10: 404108.32
A11: 7 | B11: ='7-r sar'!E4 -> 3864064 | C11: ='7-r sar'!F4 -> 0 | D11: ='7-r sar'!G4 -> 0 | E11: ='7-r sar'!H4 -> 0 | F11: ='7-r sar'!I4 -> 0 | G11: ='7-r sar'!J4 -> 1000000 | H11: ='7-r sar'!K4 -> 0 | I11: ='7-r sar'!L4 -> 4864064 | J11: ='7-r sar'!M4 -> 113000 | K11: ='7-r sar'!N4 -> 444367.36 | L11: ='7-r sar'!O4 -> 4306696.64 | M11: ='7-r sar'!P4 -> 88700 | N11: ='7-r sar'!Q4 -> 341969.664 | O11: ='7-r sar'!R4 -> 0 | P11: ='7-r sar'!S4 -> 28000 | Q11: ='7-r sar'!T4 -> 402669.664 | R11: ='7-r sar'!U7 -> 0 | S11: 402669.664
A12: 8 | B12: ='8-r sar'!E4 -> 3888192 | C12: ='8-r sar'!F4 -> 0 | D12: ='8-r sar'!G4 -> 0 | E12: ='8-r sar'!H4 -> 0 | F12: ='8-r sar'!I4 -> 0 | G12: ='8-r sar'!J4 -> 1000000 | H12: ='8-r sar'!K4 -> 0 | I12: ='8-r sar'!L4 -> 4888192 | J12: ='8-r sar'!M4 -> 113000 | K12: ='8-r sar'!N4 -> 447142.08 | L12: ='8-r sar'!O4 -> 4328049.92 | M12: ='8-r sar'!P4 -> 88700 | N12: ='8-r sar'!Q4 -> 344104.992 | O12: ='8-r sar'!R4 -> 0 | P12: ='8-r sar'!S4 -> 28000 | Q12: ='8-r sar'!T4 -> 404804.992 | R12: ='8-r sar'!U7 -> 0 | S12: 404804.992
A13: 9 | B13: =+'9-r sar'!E4 -> 3888192 | C13: ='9-r sar'!F4 -> 0 | D13: ='9-r sar'!G4 -> 0 | E13: ='9-r sar'!H4 -> 0 | F13: ='9-r sar'!I4 -> 0 | G13: ='9-r sar'!J4 -> 1000000 | H13: ='9-r sar'!K4 -> 0 | I13: ='9-r sar'!L4 -> 4888192 | J13: ='9-r sar'!M4 -> 113000 | K13: ='9-r sar'!N4 -> 447142.08 | L13: ='9-r sar'!O4 -> 4328049.92 | M13: ='9-r sar'!P4 -> 88700 | N13: ='9-r sar'!Q4 -> 344104.992 | O13: ='9-r sar'!R4 -> 0 | P13: ='9-r sar'!S4 -> 28000 | Q13: ='9-r sar'!T4 -> 404804.992 | R13: ='9-r sar'!U7 -> 0 | S13: 404804.992
A14: 10 | B14: =+'10-r sar'!E4 -> 3880320 | C14: =+'10-r sar'!F4 -> 0 | D14: =+'10-r sar'!G4 -> 0 | E14: =+'10-r sar'!H4 -> 0 | F14: =+'10-r sar'!I4 -> 0 | G14: =+'10-r sar'!J4 -> 1000000 | H14: =+'10-r sar'!K4 -> 0 | I14: =+'10-r sar'!L4 -> 4880320 | J14: =+'10-r sar'!M4 -> 113000 | K14: =+'10-r sar'!N4 -> 446236.8 | L14: =+'10-r sar'!O4 -> 4321083.2 | M14: =+'10-r sar'!P4 -> 88700 | N14: =+'10-r sar'!Q4 -> 343408.32 | O14: =+'10-r sar'!R4 -> 0 | P14: =+'10-r sar'!S4 -> 28000 | Q14: =+'10-r sar'!T4 -> 404108.32 | R14: =+'10-r sar'!U4 -> 0 | S14: 404108.32
A15: 11 | B15: =+'11-r sar'!E4 -> 3884160 | C15: =+'11-r sar'!F4 -> 0 | D15: =+'11-r sar'!G4 -> 0 | E15: =+'11-r sar'!H4 -> 0 | F15: =+'11-r sar'!I4 -> 0 | G15: =+'11-r sar'!J4 -> 1000000 | H15: =+'11-r sar'!K4 -> 0 | I15: =+'11-r sar'!L4 -> 4884160 | J15: =+'11-r sar'!M4 -> 113000 | K15: =+'11-r sar'!N4 -> 446678.4 | L15: =+'11-r sar'!O4 -> 4324481.6 | M15: =+'11-r sar'!P4 -> 88700 | N15: =+'11-r sar'!Q4 -> 343748.16 | O15: =+'11-r sar'!R4 -> 0 | P15: =+'11-r sar'!S4 -> 28000 | Q15: =+'11-r sar'!T4 -> 404448.16 | R15: =+'11-r sar'!U4 -> 0 | S15: 404448.16
A16: 12 | B16: =+'12-r sar'!E4 -> 3888192 | C16: =+'12-r sar'!F4 -> 0 | D16: =+'12-r sar'!G4 -> 0 | E16: =+'12-r sar'!H4 -> 0 | F16: =+'12-r sar'!I4 -> 0 | G16: =+'12-r sar'!J4 -> 1000000 | H16: =+'12-r sar'!K4 -> 0 | I16: =+'12-r sar'!L4 -> 4888192 | J16: =+'12-r sar'!M4 -> 113000 | K16: =+'12-r sar'!N4 -> 447142.08 | L16: =+'12-r sar'!O4 -> 4328049.92 | M16: =+'12-r sar'!P4 -> 88700 | N16: =+'12-r sar'!Q4 -> 344104.992 | O16: =+'12-r sar'!R4 -> 0 | P16: =+'12-r sar'!S4 -> 28000 | Q16: =+'12-r sar'!T4 -> 404804.992 | R16: =+'12-r sar'!U4 -> 0 | S16: 404804.992
A17: НИЙТ | B17: =+SUM(B5:B16) -> 46582240 | C17: 0 | D17: 0 | E17: 0 | F17: 0 | G17: 12000000 | H17: 0 | I17: 58582240 | J17: 1356000 | K17: 5356957.6 | L17: 51869282.4 | M17: 1064400 | N17: 4122528.24 | P17: =+SUM(P5:P16) -> 336000 | Q17: =+SUM(Q5:Q16) -> 4850928.24 | R17: =+SUM(R5:R16) -> 0 | S17: =+SUM(S5:S16) -> 4850928.24 | T17: =+negtgel!X6 -> 336000 | U17: =+negtgel!Y6 -> 4850928.24 | V17: =+negtgel!Z6 -> 0 | W17: =+negtgel!AA6 -> 4850928.24
E18: 12-сарын гүйлгээний тохируулга хийгдсэний дараа
U19: тохируулах бичилт | W19: =+S17-W17 -> 0
A21: НЭГТГЭЛ | B21: =+negtgel!F6 -> 46582240 | C21: =+negtgel!G6 -> 0 | D21: =+negtgel!H6 -> 0 | E21: =+negtgel!I6 -> 0 | F21: =+negtgel!J6 -> 0 | G21: =+negtgel!K6 -> 12000000 | H21: =+negtgel!L6 -> 0 | I21: =+negtgel!M6 -> 58582240 | J21: =+negtgel!N6 -> 1356000 | K21: =+negtgel!O6 -> 5356957.6 | L21: =+negtgel!P6 -> 51869282.4 | M21: =+negtgel!Q6 -> 1064400 | N21: =+negtgel!R6 -> 4122528.24 | O21: =+negtgel!S6 -> 0 | P21: =+negtgel!T6 -> 336000 | Q21: =+negtgel!U6 -> 4850928.24 | R21: =+negtgel!V6 -> 0 | S21: =+negtgel!W6 -> 4850928.24
B22: =+B17-B21 -> 0 | C22: 0 | D22: 0 | E22: =+E17-E21 -> 0 | F22: 0 | G22: 0 | H22: 0 | I22: 0 | J22: 0 | K22: 0 | L22: 0 | M22: 0 | N22: =+N17-N21 -> 0 | O22: =+O17-O21 -> 0 | P22: =+P17-P21 -> 0 | Q22: =+Q17-Q21 -> 0 | R22: 0 | S22: 0

Sheet negtgel NIIGMIIN DAATGAL
C1: НД сайтнаас хуулсан | F1: Энэ хуудас дээр засвар хийхэд пасс байхгүй / unprotect дараад л болно | S1: ЧӨЛӨӨЛӨГДӨХӨӨС ӨМНӨ | W1: НДШЧАДСДОТХ-ийг дагуу чөлөөлөгдөх | AA1: ТООЦСОН НДШ
C2: ЦАЛИН | D2: ДТ-ШИМТГЭЛ | E2: АО-ШИМТГЭЛ | F2: Нийт-ШИМТГЭЛ | I2: огноо | J2: 1. ЦАЛИН | K2: 2. НД шимтгэл | L2: 3.татвар тооцох орлого (1-2) | M2: 4.ХХОАТ хөнгөлөлт | N2: 5.ХХОАТ чөлөөлөлт | O2: 6.гарт олгох (3-4-5) | Q2: 7. ХХОАТ тайлагнах | S2: ДТ-ШИМТГЭЛ | T2: АО-ШИМТГЭЛ | U2: Нийт-ШИМТГЭЛ | V2: огноо | W2: ДТ-ШИМТГЭЛ | X2: АО-ШИМТГЭЛ | Y2: Нийт-ШИМТГЭЛ | Z2: огноо | AA2: ДТ-ШИМТГЭЛ | AB2: АО-ШИМТГЭЛ | AC2: Нийт-ШИМТГЭЛ | AG2: ххоат | AI2: НИЙТ ДҮН | AJ2: ДТ-ШИМТГЭЛ | AK2: АО-ШИМТГЭЛ
B3: 202101 | C3: ='202101'!J4 -> 48803200000 | D3: ='202101'!K4 -> 5592368000 | E3: ='202101'!L4 -> 6080400000 | F3: ='202101'!M4 -> 11672768000 | I3: 202101 | J3: ='202101'!O4 -> 4880320 | K3: ='202101'!P4 -> 559236.8 | L3: ='202101'!Q4 -> 4321083.2 | M3: ='202101'!R4 -> 28000 | N3: ='202101'!S4 -> 0 | O3: ='202101'!T4 -> 3916974.88 | Q3: ='202101'!V4 -> 404108.32 | S3: ='202101'!X4 -> 559236.8 | T3: ='202101'!Y4 -> 608040 | U3: ='202101'!Z4 -> 1167276.8 | V3: 202101 | W3: ='202101'!AB4 -> 0 | X3: ='202101'!AC4 -> 0 | Y3: ='202101'!AD4 -> 0 | Z3: 202101 | AA3: ='202101'!AF4 -> 559236.8 | AB3: ='202101'!AG4 -> 608040 | AC3: ='202101'!AH4 -> 1167276.8 | AG3: =+SUMIF('202101'!$C$6:$C$305,$B3,'202101'!AO$6:AO$321) -> 0 | AI3: =+SUMIF('202101'!$C$6:$C$305,$B3,'202101'!AQ$6:AQ$321) -> 0 | AJ3: =+SUMIF('202101'!$C$6:$C$305,$B3,'202101'!AR$6:AR$321) -> 0 | AK3: =+SUMIF('202101'!$C$6:$C$305,$B3,'202101'!AS$6:AS$321) -> 0
B4: 202102 | C4: ='202102'!J4 -> 48760000000 | D4: ='202102'!K4 -> 5587400000 | E4: ='202102'!L4 -> 6075000000 | F4: ='202102'!M4 -> 11662400000 | I4: 202102 | J4: ='202102'!O4 -> 4876000 | K4: ='202102'!P4 -> 558740 | L4: ='202102'!Q4 -> 4317260 | M4: ='202102'!R4 -> 28000 | N4: ='202102'!S4 -> 0 | O4: ='202102'!T4 -> 3913534 | Q4: ='202102'!V4 -> 403726 | R4: ='202102'!W4 -> 0 | S4: ='202102'!X4 -> 558740 | T4: ='202102'!Y4 -> 607500 | U4: ='202102'!Z4 -> 1166240 | V4: 202102 | W4: ='202102'!AB4 -> 0 | X4: ='202102'!AC4 -> 0 | Y4: ='202102'!AD4 -> 0 | Z4: 202102 | AA4: ='202102'!AF4 -> 558740 | AB4: ='202102'!AG4 -> 607500 | AC4: ='202102'!AH4 -> 1166240 | AG4: =+SUMIF('202101'!$C$6:$C$305,$B4,'202101'!AO$6:AO$321) -> 0 | AI4: =+SUMIF('202101'!$C$6:$C$305,$B4,'202101'!AQ$6:AQ$321) -> 0 | AJ4: =+SUMIF('202101'!$C$6:$C$305,$B4,'202101'!AR$6:AR$321) -> 0 | AK4: =+SUMIF('202101'!$C$6:$C$305,$B4,'202101'!AS$6:AS$321) -> 0
B5: 202103 | C5: ='202103'!J4 -> 48841600000 | D5: ='202103'!K4 -> 5596784000 | E5: ='202103'!L4 -> 6085200000 | F5: ='202103'!M4 -> 11681984000 | I5: 202103 | J5: ='202103'!O4 -> 4884160 | K5: ='202103'!P4 -> 559678.4 | L5: ='202103'!Q4 -> 4324481.6 | M5: ='202103'!R4 -> 28000 | N5: ='202103'!S4 -> 0 | O5: ='202103'!T4 -> 3920033.44 | Q5: ='202103'!V4 -> 404448.16 | S5: ='202103'!X4 -> 559678.4 | T5: ='202103'!Y4 -> 608520 | U5: ='202103'!Z4 -> 1168198.4 | V5: 202103 | W5: ='202103'!AB4 -> 0 | X5: ='202103'!AC4 -> 0 | Y5: ='202103'!AD4 -> 0 | Z5: 202103 | AA5: ='202103'!AF4 -> 559678.4 | AB5: ='202103'!AG4 -> 608520 | AC5: ='202103'!AH4 -> 1168198.4 | AG5: =+SUMIF('202101'!$C$6:$C$305,$B5,'202101'!AO$6:AO$321) -> 0 | AI5: =+SUMIF('202101'!$C$6:$C$305,$B5,'202101'!AQ$6:AQ$321) -> 0 | AJ5: =+SUMIF('202101'!$C$6:$C$305,$B5,'202101'!AR$6:AR$321) -> 0 | AK5: =+SUMIF('202101'!$C$6:$C$305,$B5,'202101'!AS$6:AS$321) -> 0
B6: 202104 | C6: ='202104'!J4 -> 48841600000 | D6: ='202104'!K4 -> 5596784000 | E6: ='202104'!L4 -> 6085200000 | F6: ='202104'!M4 -> 11681984000 | I6: 202104 | J6: ='202104'!O4 -> 4884160 | K6: ='202104'!P4 -> 559678.4 | L6: ='202104'!Q4 -> 4324481.6 | M6: ='202104'!R4 -> 28000 | N6: ='202104'!S4 -> 0 | O6: ='202104'!T4 -> 3920033.44 | Q6: ='202104'!V4 -> 404448.16 | R6: ='202104'!W4 -> 0 | S6: ='202104'!X4 -> 559678.4 | T6: ='202104'!Y4 -> 608520 | U6: ='202104'!Z4 -> 1168198.4 | V6: 202104 | W6: ='202104'!AB4 -> 0 | X6: ='202104'!AC4 -> 0 | Y6: ='202104'!AD4 -> 0 | Z6: 202104 | AA6: ='202104'!AF4 -> 559678.4 | AB6: ='202104'!AG4 -> 608520 | AC6: ='202104'!AH4 -> 1168198.4 | AG6: =+SUMIF('202101'!$C$6:$C$305,$B6,'202101'!AO$6:AO$321) -> 0 | AI6: =+SUMIF('202101'!$C$6:$C$305,$B6,'202101'!AQ$6:AQ$321) -> 0 | AJ6: =+SUMIF('202101'!$C$6:$C$305,$B6,'202101'!AR$6:AR$321) -> 0 | AK6: =+SUMIF('202101'!$C$6:$C$305,$B6,'202101'!AS$6:AS$321) -> 0
B7: 202105 | C7: ='202105'!J4 -> 48841600000 | D7: ='202105'!K4 -> 5596784000 | E7: ='202105'!L4 -> 6085200000 | F7: ='202105'!M4 -> 11681984000 | I7: 202105 | J7: ='202105'!O4 -> 4884160 | K7: ='202105'!P4 -> 559678.4 | L7: ='202105'!Q4 -> 4324481.6 | M7: ='202105'!R4 -> 28000 | N7: ='202105'!S4 -> 0 | O7: ='202105'!T4 -> 3920033.44 | Q7: ='202105'!V4 -> 404448.16 | R7: ='202105'!W4 -> 0 | S7: ='202105'!X4 -> 559678.4 | T7: ='202105'!Y4 -> 608520 | U7: ='202105'!Z4 -> 1168198.4 | V7: 202105 | W7: ='202105'!AB4 -> 0 | X7: ='202105'!AC4 -> 0 | Y7: ='202105'!AD4 -> 0 | Z7: 202105 | AA7: ='202105'!AF4 -> 559678.4 | AB7: ='202105'!AG4 -> 608520 | AC7: ='202105'!AH4 -> 1168198.4 | AG7: =+SUMIF('202101'!$C$6:$C$305,$B7,'202101'!AO$6:AO$321) -> 0 | AI7: =+SUMIF('202101'!$C$6:$C$305,$B7,'202101'!AQ$6:AQ$321) -> 0 | AJ7: =+SUMIF('202101'!$C$6:$C$305,$B7,'202101'!AR$6:AR$321) -> 0 | AK7: =+SUMIF('202101'!$C$6:$C$305,$B7,'202101'!AS$6:AS$321) -> 0
B8: 202106 | C8: ='202106'!J4 -> 48803200000 | D8: ='202106'!K4 -> 5592368000 | E8: ='202106'!L4 -> 6080400000 | F8: ='202106'!M4 -> 11672768000 | I8: 202106 | J8: ='202106'!O4 -> 4880320 | K8: ='202106'!P4 -> 559236.8 | L8: ='202106'!Q4 -> 4321083.2 | M8: ='202106'!R4 -> 28000 | N8: ='202106'!S4 -> 0 | O8: ='202106'!T4 -> 3916974.88 | Q8: ='202106'!V4 -> 404108.32 | R8: ='202106'!W4 -> 0 | S8: ='202106'!X4 -> 559236.8 | T8: ='202106'!Y4 -> 608040 | U8: ='202106'!Z4 -> 1167276.8 | V8: 202106 | W8: ='202106'!AB4 -> 0 | X8: ='202106'!AC4 -> 0 | Y8: ='202106'!AD4 -> 0 | Z8: 202106 | AA8: ='202106'!AF4 -> 559236.8 | AB8: ='202106'!AG4 -> 608040 | AC8: ='202106'!AH4 -> 1167276.8 | AG8: =+SUMIF('202101'!$C$6:$C$305,$B8,'202101'!AO$6:AO$321) -> 0 | AI8: =+SUMIF('202101'!$C$6:$C$305,$B8,'202101'!AQ$6:AQ$321) -> 0 | AJ8: =+SUMIF('202101'!$C$6:$C$305,$B8,'202101'!AR$6:AR$321) -> 0 | AK8: =+SUMIF('202101'!$C$6:$C$305,$B8,'202101'!AS$6:AS$321) -> 0
B9: 202107 | C9: ='202107'!J4 -> 48640640000 | D9: ='202107'!K4 -> 5573673600 | E9: ='202107'!L4 -> 6060080000 | F9: ='202107'!M4 -> 11633753600 | I9: 202107 | J9: ='202107'!O4 -> 4864064 | K9: ='202107'!P4 -> 557367.36 | L9: ='202107'!Q4 -> 4306696.64 | M9: ='202107'!R4 -> 28000 | N9: ='202107'!S4 -> 0 | O9: ='202107'!T4 -> 3904026.976 | Q9: ='202107'!V4 -> 402669.664 | R9: ='202107'!W4 -> 0 | S9: ='202107'!X4 -> 557367.36 | T9: ='202107'!Y4 -> 606008 | U9: ='202107'!Z4 -> 1163375.36 | V9: 202107 | W9: ='202107'!AB4 -> 0 | X9: ='202107'!AC4 -> 0 | Y9: ='202107'!AD4 -> 0 | Z9: 202107 | AA9: ='202107'!AF4 -> 557367.36 | AB9: ='202107'!AG4 -> 606008 | AC9: ='202107'!AH4 -> 1163375.36
B10: 202108 | C10: ='202108'!J4 -> 48881920000 | D10: ='202108'!K4 -> 5601420800 | E10: ='202108'!L4 -> 6090240000 | F10: ='202108'!M4 -> 11691660800 | I10: 202108 | J10: ='202108'!O4 -> 4888192 | K10: ='202108'!P4 -> 560142.08 | L10: ='202108'!Q4 -> 4328049.92 | M10: ='202108'!R4 -> 28000 | N10: ='202108'!S4 -> 0 | O10: ='202108'!T4 -> 3923244.928 | Q10: ='202108'!V4 -> 404804.992 | R10: ='202108'!W4 -> 0 | S10: ='202108'!X4 -> 560142.08 | T10: ='202108'!Y4 -> 609024 | U10: ='202108'!Z4 -> 1169166.08 | V10: 202108 | W10: ='202108'!AB4 -> 0 | X10: ='202108'!AC4 -> 0 | Y10: ='202108'!AD4 -> 0 | Z10: 202108 | AA10: ='202108'!AF4 -> 560142.08 | AB10: ='202108'!AG4 -> 609024 | AC10: ='202108'!AH4 -> 1169166.08
B11: 202109 | C11: ='202109'!J4 -> 48881920000 | D11: ='202109'!K4 -> 5601420800 | E11: ='202109'!L4 -> 6090240000 | F11: ='202109'!M4 -> 11691660800 | I11: 202109 | J11: ='202109'!O4 -> 4888192 | K11: ='202109'!P4 -> 560142.08 | L11: ='202109'!Q4 -> 4328049.92 | M11: ='202109'!R4 -> 28000 | N11: ='202109'!S4 -> 0 | O11: ='202109'!T4 -> 3923244.928 | Q11: ='202109'!V4 -> 404804.992 | R11: ='202109'!W4 -> 0 | S11: ='202109'!X4 -> 560142.08 | T11: ='202109'!Y4 -> 609024 | U11: ='202109'!Z4 -> 1169166.08 | V11: 202109 | W11: ='202109'!AB4 -> 0 | X11: ='202109'!AC4 -> 0 | Y11: ='202109'!AD4 -> 0 | Z11: 202109 | AA11: ='202109'!AF4 -> 560142.08 | AB11: ='202109'!AG4 -> 609024 | AC11: ='202109'!AH4 -> 1169166.08 | AG11: =+SUMIF('202101'!$C$6:$C$305,$B11,'202101'!AO$6:AO$321) -> 0 | AI11: =+SUMIF('202101'!$C$6:$C$305,$B11,'202101'!AQ$6:AQ$321) -> 0 | AJ11: =+SUMIF('202101'!$C$6:$C$305,$B11,'202101'!AR$6:AR$321) -> 0 | AK11: =+SUMIF('202101'!$C$6:$C$305,$B11,'202101'!AS$6:AS$321) -> 0
B12: 202110 | C12: ='202110'!J4 -> 48803200000 | D12: ='202110'!K4 -> 5592368000 | E12: ='202110'!L4 -> 6080400000 | F12: ='202110'!M4 -> 11672768000 | I12: 202110 | J12: ='202110'!O4 -> 4880320 | K12: ='202110'!P4 -> 559236.8 | L12: ='202110'!Q4 -> 4321083.2 | M12: ='202110'!R4 -> 28000 | N12: ='202110'!S4 -> 0 | O12: ='202110'!T4 -> 3916974.88 | Q12: ='202110'!V4 -> 404108.32 | R12: ='202110'!W4 -> 0 | S12: ='202110'!X4 -> 559236.8 | T12: ='202110'!Y4 -> 608040 | U12: ='202110'!Z4 -> 1167276.8 | V12: 202110 | W12: ='202110'!AB4 -> 0 | X12: ='202110'!AC4 -> 0 | Y12: ='202110'!AD4 -> 0 | Z12: 202110 | AA12: ='202110'!AF4 -> 559236.8 | AB12: ='202110'!AG4 -> 608040 | AC12: ='202110'!AH4 -> 1167276.8
B13: 202111 | C13: ='202111'!J4 -> 48841600000 | D13: ='202111'!K4 -> 5596784000 | E13: ='202111'!L4 -> 6085200000 | F13: ='202111'!M4 -> 11681984000 | I13: 202111 | J13: ='202111'!O4 -> 4884160 | K13: ='202111'!P4 -> 559678.4 | L13: ='202111'!Q4 -> 4324481.6 | M13: ='202111'!R4 -> 28000 | N13: ='202111'!S4 -> 0 | O13: ='202111'!T4 -> 3920033.44 | Q13: ='202111'!V4 -> 404448.16 | R13: ='202111'!W4 -> 0 | S13: ='202111'!X4 -> 559678.4 | T13: ='202111'!Y4 -> 608520 | U13: ='202111'!Z4 -> 1168198.4 | V13: 202111 | W13: ='202111'!AB4 -> 0 | X13: ='202111'!AC4 -> 0 | Y13: ='202111'!AD4 -> 0 | Z13: 202111 | AA13: ='202111'!AF4 -> 559678.4 | AB13: ='202111'!AG4 -> 608520 | AC13: ='202111'!AH4 -> 1168198.4
B14: 202112 | C14: ='202112'!J4 -> 48881920000 | D14: ='202112'!K4 -> 5601420800 | E14: ='202112'!L4 -> 6090240000 | F14: ='202112'!M4 -> 11691660800 | I14: 202112 | J14: ='202112'!O4 -> 4888192 | K14: ='202112'!P4 -> 560142.08 | L14: ='202112'!Q4 -> 4328049.92 | M14: ='202112'!R4 -> 28000 | N14: ='202112'!S4 -> 0 | O14: ='202112'!T4 -> 3923244.928 | Q14: ='202112'!V4 -> 404804.992 | R14: ='202112'!W4 -> 0 | S14: ='202112'!X4 -> 560142.08 | T14: ='202112'!Y4 -> 609024 | U14: ='202112'!Z4 -> 1169166.08 | V14: 202112 | W14: ='202112'!AB4 -> 0 | X14: ='202112'!AC4 -> 0 | Y14: ='202112'!AD4 -> 0 | Z14: 202112 | AA14: ='202112'!AF4 -> 560142.08 | AB14: ='202112'!AG4 -> 609024 | AC14: ='202112'!AH4 -> 1169166.08
B15: нэгтгэл SUM | C15: =SUM(C3:C14) -> 585822400000 | D15: =SUM(D3:D14) -> 67129576000 | E15: =SUM(E3:E14) -> 72987800000 | F15: =SUM(F3:F14) -> 140117376000 | J15: =SUM(J3:J14) -> 58582240 | K15: 6712957.6 | L15: 51869282.4 | M15: 336000 | N15: 0 | O15: 47018354.16 | Q15: =SUM(Q3:Q14) -> 4850928.24 | S15: =SUM(S3:S14) -> 6712957.6 | T15: =SUM(T3:T14) -> 7298780 | U15: =SUM(U3:U14) -> 14011737.6 | W15: =SUM(W3:W14) -> 0 | X15: =SUM(X3:X14) -> 0 | Y15: =SUM(Y3:Y14) -> 0 | AA15: =SUM(AA3:AA14) -> 6712957.6 | AB15: =SUM(AB3:AB14) -> 7298780 | AC15: =SUM(AC3:AC14) -> 14011737.6 | AG15: =SUM(AG3:AG14) -> 0 | AI15: =SUM(AI3:AI14) -> 0 | AJ15: =SUM(AJ3:AJ14) -> 0 | AK15: =SUM(AK3:AK14) -> 0
Q16: =+Q15+N15 -> 4850928.24
J17: СУУТГАН ГАРГАХ ФАЙЛ УРУУ ХУУЛАХ
B18: огноо | C18: Хүүхэд асрах чөлөөтэй байгаа аж ахуйн нэгж, байгууллагын ажилтан эх / КОД 6 | D18: Жирэмсний, амаржсаны амралттай байгаа ажилтан эх / КОД 17 | E18: Нэг сараас дээш хугацаагаар хөдөлмөрийн чадвараа алдсан ажилтан / КОД 21 | F18: хөдөлмөрийн гэрээгээр ажиллагч /сул зогссон үед/ / КОД 25 | G18: Нийт суутгаын тооцоололд орохгүй | I18: огноо | J18: 1. ЦАЛИН | K18: 2. НД шимтгэл | L18: 3.татвар тооцох орлого (1-2) | M18: 4.ХХОАТ хөнгөлөлт | N18: 5.ХХОАТ тайлагнах
B19: 202101 | C19: =+SUMIF('202101'!$I$6:$I$305,6,'202101'!$J$6:$J$305)/10000 -> 0 | D19: =+SUMIF('202101'!$I$6:$I$305,17,'202101'!$J$6:$J$305)/10000 -> 0 | E19: =+SUMIF('202101'!$I$6:$I$305,21,'202101'!$J$6:$J$305)/10000 -> 0 | F19: =+SUMIF('202101'!$I$6:$I$305,25,'202101'!$J$6:$J$305)/10000 -> 0 | G19: =+SUM(C19:F19) -> 0 | I19: 202101 | J19: =+'1 r sar'!L4 -> 4880320 | K19: =+'1 r sar'!N4+'1 r sar'!M4 -> 559236.8 | L19: =+'1 r sar'!O4 -> 4321083.2 | M19: =+'1 r sar'!S4 -> 28000 | N19: =+'1 r sar'!$T$4 -> 404108.32 | O19: =+L19-L3 -> 0
B20: 202102 | C20: =+SUMIF('202102'!$I$6:$I$305,6,'202102'!$J$6:$J$305)/10000 -> 0 | D20: =+SUMIF('202102'!$I$6:$I$305,17,'202102'!$J$6:$J$305)/10000 -> 0 | E20: =+SUMIF('202102'!$I$6:$I$305,21,'202102'!$J$6:$J$305)/10000 -> 0 | F20: =+SUMIF('202102'!$I$6:$I$305,25,'202102'!$J$6:$J$305)/10000 -> 0 | G20: 0 | I20: 202102 | J20: =+'2-r sar'!L4 -> 4876000 | K20: =+'2-r sar'!$N$4+'2-r sar'!$M$4 -> 558740 | L20: =+'2-r sar'!$O$4 -> 4317260 | M20: =+'2-r sar'!$S$4 -> 28000 | N20: =+'2-r sar'!$T$4 -> 403726 | O20: 0
B21: 202103 | C21: =+SUMIF('202103'!$I$6:$I$305,6,'202103'!$J$6:$J$305)/10000 -> 0 | D21: =+SUMIF('202103'!$I$6:$I$305,17,'202103'!$J$6:$J$305)/10000 -> 0 | E21: =+SUMIF('202103'!$I$6:$I$305,21,'202103'!$J$6:$J$305)/10000 -> 0 | F21: =+SUMIF('202103'!$I$6:$I$305,25,'202103'!$J$6:$J$305)/10000 -> 0 | G21: 0 | I21: 202103 | J21: =+'3-r sar'!$L$4 -> 4884160 | K21: =+'3-r sar'!$N$4+'3-r sar'!$M$4 -> 559678.4 | L21: =+'3-r sar'!$O$4 -> 4324481.6 | M21: =+'3-r sar'!$S$4 -> 28000 | N21: =+'3-r sar'!$T$4 -> 404448.16 | O21: 0
B22: 202104 | C22: =+SUMIF('202104'!$I$6:$I$305,6,'202104'!$J$6:$J$305)/10000 -> 0 | D22: =+SUMIF('202104'!$I$6:$I$305,17,'202104'!$J$6:$J$305)/10000 -> 0 | E22: =+SUMIF('202104'!$I$6:$I$305,21,'202104'!$J$6:$J$305)/10000 -> 0 | F22: =+SUMIF('202104'!$I$6:$I$305,25,'202104'!$J$6:$J$305)/10000 -> 0 | G22: 0 | I22: 202104 | J22: =+'4-r sar'!$L$4 -> 4884160 | K22: =+'4-r sar'!$N$4+'4-r sar'!$M$4 -> 559678.4 | L22: =+'4-r sar'!$O$4 -> 4324481.6 | M22: =+'4-r sar'!$S$4 -> 28000 | N22: =+'4-r sar'!$T$4 -> 404448.16 | O22: 0
B23: 202105 | C23: =SUMIF('202105'!$I$6:$I$305,6,'202105'!$J$6:$J$305)/10000 -> 0 | D23: =SUMIF('202105'!$I$6:$I$305,17,'202105'!$J$6:$J$305)/10000 -> 0 | E23: =SUMIF('202105'!$I$6:$I$305,21,'202105'!$J$6:$J$305)/10000 -> 0 | F23: =SUMIF('202105'!$I$6:$I$305,25,'202105'!$J$6:$J$305)/10000 -> 0 | G23: 0 | I23: 202105 | J23: =+'5-r sar'!$L$4 -> 4884160 | K23: =+'5-r sar'!$N$4+'5-r sar'!$M$4 -> 559678.4 | L23: =+'5-r sar'!$O$4 -> 4324481.6 | M23: =+'5-r sar'!$S$4 -> 28000 | N23: =+'5-r sar'!$T$4 -> 404448.16 | O23: 0
B24: 202106 | C24: =SUMIF('202106'!$I$6:$I$305,6,'202106'!$J$6:$J$305)/10000 -> 0 | D24: =SUMIF('202106'!$I$6:$I$305,17,'202106'!$J$6:$J$305)/10000 -> 0 | E24: =SUMIF('202106'!$I$6:$I$305,21,'202106'!$J$6:$J$305)/10000 -> 0 | F24: =SUMIF('202106'!$I$6:$I$305,25,'202106'!$J$6:$J$305)/10000 -> 0 | G24: 0 | I24: 202106 | J24: =+'6-r sar'!$L$4 -> 4880320 | K24: =+'6-r sar'!$N$4+'6-r sar'!$M$4 -> 559236.8 | L24: =+'6-r sar'!$O$4 -> 4321083.2 | M24: =+'6-r sar'!$S$4 -> 28000 | N24: =+'6-r sar'!$T$4 -> 404108.32 | O24: 0
B25: 202107 | C25: =SUMIF('202107'!$I$6:$I$305,6,'202107'!$J$6:$J$305)/10000 -> 0 | D25: =SUMIF('202107'!$I$6:$I$305,17,'202107'!$J$6:$J$305)/10000 -> 0 | E25: =SUMIF('202107'!$I$6:$I$305,21,'202107'!$J$6:$J$305)/10000 -> 0 | F25: =SUMIF('202107'!$I$6:$I$305,25,'202107'!$J$6:$J$305)/10000 -> 0 | G25: 0 | I25: 202107 | J25: =+'7-r sar'!$L$4 -> 4864064 | K25: =+'7-r sar'!$N$4+'7-r sar'!$M$4 -> 557367.36 | L25: =+'7-r sar'!$O$4 -> 4306696.64 | M25: =+'7-r sar'!$S$4 -> 28000 | N25: =+'7-r sar'!$T$4 -> 402669.664 | O25: 0
B26: 202108 | C26: =SUMIF('202108'!$I$6:$I$305,6,'202108'!$J$6:$J$305)/10000 -> 0 | D26: =SUMIF('202108'!$I$6:$I$305,17,'202108'!$J$6:$J$305)/10000 -> 0 | E26: =SUMIF('202108'!$I$6:$I$305,21,'202108'!$J$6:$J$305)/10000 -> 0 | F26: =SUMIF('202108'!$I$6:$I$305,25,'202108'!$J$6:$J$305)/10000 -> 0 | G26: 0 | I26: 202108 | J26: =+'8-r sar'!$L$4 -> 4888192 | K26: =+'8-r sar'!$N$4+'8-r sar'!$M$4 -> 560142.08 | L26: =+'8-r sar'!$O$4 -> 4328049.92 | M26: =+'8-r sar'!$S$4 -> 28000 | N26: =+'8-r sar'!$T$4 -> 404804.992 | O26: 0
B27: 202109 | C27: =SUMIF('202109'!$I$6:$I$305,6,'202109'!$J$6:$J$305)/10000 -> 0 | D27: =SUMIF('202109'!$I$6:$I$305,17,'202109'!$J$6:$J$305)/10000 -> 0 | E27: =SUMIF('202109'!$I$6:$I$305,21,'202109'!$J$6:$J$305)/10000 -> 0 | F27: =SUMIF('202109'!$I$6:$I$305,25,'202109'!$J$6:$J$305)/10000 -> 0 | G27: 0 | I27: 202109 | J27: ='9-r sar'!$L$4 -> 4888192 | K27: ='9-r sar'!$N$4+'9-r sar'!$M$4 -> 560142.08 | L27: ='9-r sar'!$O$4 -> 4328049.92 | M27: ='9-r sar'!$S$4 -> 28000 | N27: ='9-r sar'!$T$4 -> 404804.992 | O27: 0
B28: 202110 | C28: =SUMIF('202110'!$I$6:$I$305,6,'202110'!$J$6:$J$305)/10000 -> 0 | D28: =SUMIF('202110'!$I$6:$I$305,17,'202110'!$J$6:$J$305)/10000 -> 0 | E28: =SUMIF('202110'!$I$6:$I$305,21,'202110'!$J$6:$J$305)/10000 -> 0 | F28: =SUMIF('202110'!$I$6:$I$305,25,'202110'!$J$6:$J$305)/10000 -> 0 | G28: 0 | I28: 202110 | J28: ='10-r sar'!$L$4 -> 4880320 | K28: ='10-r sar'!$N$4+'10-r sar'!$M$4 -> 559236.8 | L28: ='10-r sar'!$O$4 -> 4321083.2 | M28: ='10-r sar'!$S$4 -> 28000 | N28: ='10-r sar'!$T$4 -> 404108.32 | O28: 0
B29: 202111 | C29: =SUMIF('202111'!$I$6:$I$305,6,'202111'!$J$6:$J$305)/10000 -> 0 | D29: =SUMIF('202111'!$I$6:$I$305,17,'202111'!$J$6:$J$305)/10000 -> 0 | E29: =SUMIF('202111'!$I$6:$I$305,21,'202111'!$J$6:$J$305)/10000 -> 0 | F29: =SUMIF('202111'!$I$6:$I$305,25,'202111'!$J$6:$J$305)/10000 -> 0 | G29: 0 | I29: 202111 | J29: ='11-r sar'!$L$4 -> 4884160 | K29: ='11-r sar'!$N$4+'11-r sar'!$M$4 -> 559678.4 | L29: ='11-r sar'!$O$4 -> 4324481.6 | M29: ='11-r sar'!$S$4 -> 28000 | N29: ='11-r sar'!$T$4 -> 404448.16 | O29: 0
B30: 202112 | C30: =SUMIF('202112'!$I$6:$I$305,6,'202112'!$J$6:$J$305)/10000 -> 0 | D30: =SUMIF('202112'!$I$6:$I$305,17,'202112'!$J$6:$J$305)/10000 -> 0 | E30: =SUMIF('202112'!$I$6:$I$305,21,'202112'!$J$6:$J$305)/10000 -> 0 | F30: =SUMIF('202112'!$I$6:$I$305,25,'202112'!$J$6:$J$305)/10000 -> 0 | G30: 0 | I30: 202112 | J30: ='12-r sar'!$L$4 -> 4888192 | K30: ='12-r sar'!$N$4+'12-r sar'!$M$4 -> 560142.08 | L30: ='12-r sar'!$O$4 -> 4328049.92 | M30: ='12-r sar'!$S$4 -> 28000 | N30: ='12-r sar'!$T$4 -> 404804.992 | O30: 0
B31: НИЙТ | C31: =+SUM(C19:C30) -> 0 | D31: =+SUM(D19:D30) -> 0 | E31: =+SUM(E19:E30) -> 0 | F31: =+SUM(F19:F30) -> 0 | G31: =+SUM(G19:G30) -> 0 | J31: =SUM(J19:J30) -> 58582240 | K31: =SUM(K19:K30) -> 6712957.6 | L31: =SUM(L19:L30) -> 51869282.4 | M31: =SUM(M19:M30) -> 336000 | N31: =SUM(N19:N30) -> 4850928.24 | O31: =SUM(O19:O29) -> 0
I32: зөрүү | J32: =+J15-J31 -> 0 | K32: =+K15-K31 -> 0 | L32: =+L15-L31 -> 0 | M32: =+M15-M31 -> 0 | N32: =+Q16-N31 -> 0
H36: НИЙТ ДҮН | J36: ЦАЛИН
H37: НД с хуулсан | J37: =+C15/10000 -> 58582240
H38: Суутган файл уруу хуулсан | J38: =+J31 -> 58582240
H39: Суутганд орохгүй | J39: =+J37-J38 -> 0
H40: зөрүү | J40: =+J37-J38-J39 -> 0
C51: нд код | D51: тайлбар | F51: автоматаар хийх өөрчлөлтүүд | K51: хөнгөлттэй хугацаанд буюу 4-9 сард
C52: 17 | D52: жирэмсний амаржсны амралттай байгаа | F52: гарт цалин олгохгүй, байгууллагаас НД тооцно, | K52: байгууллага, хүнээс нд тооцохгүй, ххоат хөнгөлөлт, чөлөөлөлт байхгүй , гарт олгох цалин байхгүй
C53: 22 | D53: тэтгэвэрт гарсан хүн | F53: ХХОАТ хуулийн дагуу суутгана, НДШ хуулийн дагуу | K53: байгууллага, хүнээс нд төлөхгүй 100 хувь чөлөөлнө, ХХОАТ чөлөөлнө
C54: 6 | D54: хүүхдээ асарч байгаа эх | F54: гарт цалин олгохгүй, байгууллагаас НД тооцно, | K54: байгууллага, хүнээс нд тооцохгүй, ххоат хөнгөлөлт, чөлөөлөлт байхгүй , гарт олгох цалин байхгүй
C55: 40 | D55: үндсэн ажлаас гадуур ажил хийгч | F55: ХХОАТ хөнгөлөлт эдлэхгүй, давхардуулж эдлэхгүй | K55: ХХОАТ чөлөөлөлт хийгдэнэ, НДШ байгууллага болон төлөгчөөс 2 хувиар тооцно
C56: 1 | D56: энгийн ажилтан | F56: ХХОАТ хуулийн дагуу суутгана, НДШ хуулийн дагуу | K56: ХХОАТ чөлөөлөлт хийгдэнэ, НДШ байгууллага болон төлөгчөөс 2 хувиар тооцно
D57: Улсын код 2 | K57: Улсын код 2 тохиолдолд ХХОАТ хөнгөлөлт тооцно, НДШ чөлөөлөлт байхгүй, ХХОАТ чөлөөлөлт байхгүй

Sheet importloh
A1: ТИН ДУГААР | B1: Регистрийн дугаар | C1: Овог | D1: Нэр | E1: Хуулийн 7.1.1 | F1: Хуулийн 7.1.2, 7.1.3, 7.1.4, 7.1.5, 7.1.7 | G1: Хуулийн 7.1.6 | H1: Нийт (1+2+3) | I1: ЭМД, НДШ Хувь | J1: ЭМД, НДШ Дүн | K1: Татвар ногдуулах орлого | L1: Ногдуулсан татвар | M1: Орлого хүлээн авсан сарын тоо /ажилласан сар/ | N1: Хуулийн 23.1-т заасан хөнгөлөлт сард ногдох | O1: Хуулийн 23.1-т заасан хөнгөлөлт нийт | P1: Хөнгөлөлтийн дараах татварын дүн | Q1: Хуулийн 7.1.6-д заасан орлогод ногдуулсан дүн | R1: Нийт суутгуулсан албан татварын дүн
A2: =+'zaavar suutgan'!J3 -> 888 | B2: =+negtgel!C7 -> НТ87102816 | C2: =+negtgel!D7 -> ЦАГААНЦООЖ | D2: =+negtgel!E7 -> НАЦАГДОРЖ | E2: =+negtgel!F7 -> 23291120 | F2: =+negtgel!G7+negtgel!H7+negtgel!I7+negtgel!J7+negtgel!L7 -> 0 | G2: =+negtgel!K7 -> 0 | H2: =+E2+F2+G2 -> 23291120 | I2: =IF(A2=" ","",IF(H2=0,0,J2/H2*100)) -> 11.5 | J2: =+negtgel!N7+negtgel!O7 -> 2678478.8 | K2: =+H2-J2 -> 20612641.2 | L2: =+((E2+F2)-(E2+F2)*I2/100)*0.1 -> 2061264.12 | M2: =+negtgel!S7 -> 12 | N2: =IF(A2=" ","",IF(M2=0,0,999)) -> 999 | O2: =IF(A2=" ","",negtgel!X7) -> 168000 | P2: =IF(A2=" ","",L2-O2) -> 1893264.12 | Q2: =+(G2-(G2*I2/100))*0.1 -> 0 | R2: =+P2+Q2 -> 1893264.12
A3: =+IF(negtgel!B8=""," ",importloh!$A$2) -> 888 | B3: =+negtgel!C8 -> ХА73102679 | C3: =+negtgel!D8 -> БЯМБАДОРЖ | D3: =+negtgel!E8 -> БАТЗУЛ | E3: =IF(A3=" ","",negtgel!F8) -> 23291120 | F3: =+negtgel!G8+negtgel!H8+negtgel!I8+negtgel!J8+negtgel!L8 -> 0 | G3: =IF(A3=" ","",negtgel!K8) -> 0 | H3: =IF(A3=" ","",negtgel!M8) -> 23291120 | I3: =IF(A3=" ","",IF(H3=0,0,J3/H3*100)) -> 11.5 | J3: =IF(A3=" ","",negtgel!N8+negtgel!O8) -> 2678478.8 | K3: =IF(A3=" ","",H3-J3) -> 20612641.2 | L3: =IF(A3=" ","",((E3+F3)-(E3+F3)*I3/100)*0.1) -> 2061264.12 | M3: =IF(A3=" ","",negtgel!S8) -> 12 | N3: =IF(A3=" ","",IF(M3=0,0,999)) -> 999 | O3: =IF(A3=" ","",negtgel!X8) -> 168000 | P3: =IF(A3=" ","",L3-O3) -> 1893264.12 | Q3: =IF(A3=" ","",(G3-(G3*I3/100))*0.1) -> 0 | R3: =IF(A3=" ","",P3+Q3) -> 1893264.12
A4: =+IF(negtgel!B9=""," ",importloh!$A$2) -> 888 | B4: =+negtgel!C9 -> УШ95060738 | C4: =+negtgel!D9 -> САНДАГДОРЖ | D4: =+negtgel!E9 -> ЛХАГВАС?РЭН | E4: =IF(A4=" ","",negtgel!F9) -> 0 | F4: =+negtgel!G9+negtgel!H9+negtgel!I9+negtgel!J9+negtgel!L9 -> 0 | G4: =IF(A4=" ","",negtgel!K9) -> 12000000 | H4: =IF(A4=" ","",negtgel!M9) -> 12000000 | I4: 11.3 | J4: =IF(A4=" ","",negtgel!N9+negtgel!O9) -> 1356000 | K4: =IF(A4=" ","",H4-J4) -> 10644000 | L4: =IF(A4=" ","",((E4+F4)-(E4+F4)*I4/100)*0.1) -> 0 | M4: =IF(A4=" ","",negtgel!S9) -> 12 | N4: 999 | O4: =IF(A4=" ","",negtgel!X9) -> 0 | P4: =IF(A4=" ","",L4-O4) -> 0 | Q4: =IF(A4=" ","",(G4-(G4*I4/100))*0.1) -> 1064400 | R4: =IF(A4=" ","",P4+Q4) -> 1064400
A5: =+IF(negtgel!B10=""," ",importloh!$A$2) ->  | B5: =+negtgel!C10 ->  | C5: =+negtgel!D10 ->  | D5: =+negtgel!E10 ->  | E5: =IF(A5=" ","",negtgel!F10) ->  | F5: =+negtgel!G10+negtgel!H10+negtgel!I10+negtgel!J10+negtgel!L10 -> 0 | G5: =IF(A5=" ","",negtgel!K10) ->  | H5: =IF(A5=" ","",negtgel!M10) ->  | J5: =IF(A5=" ","",negtgel!N10+negtgel!O10) ->  | M5: =IF(A5=" ","",negtgel!S10) ->  | O5: =IF(A5=" ","",negtgel!X10) -> 
A6: =+IF(negtgel!B11=""," ",importloh!$A$2) ->  | B6: =+negtgel!C11 ->  | C6: =+negtgel!D11 ->  | D6: =+negtgel!E11 ->  | E6: =IF(A6=" ","",negtgel!F11) ->  | F6: =+negtgel!G11+negtgel!H11+negtgel!I11+negtgel!J11+negtgel!L11 -> 0 | G6: =IF(A6=" ","",negtgel!K11) ->  | H6: =IF(A6=" ","",negtgel!M11) ->  | J6: =IF(A6=" ","",negtgel!N11+negtgel!O11) ->  | M6: =IF(A6=" ","",negtgel!S11) ->  | O6: =IF(A6=" ","",negtgel!X11) -> 
A7: =+IF(negtgel!B12=""," ",importloh!$A$2) ->  | B7: =+negtgel!C12 ->  | C7: =+negtgel!D12 ->  | D7: =+negtgel!E12 ->  | E7: =IF(A7=" ","",negtgel!F12) ->  | F7: =+negtgel!G12+negtgel!H12+negtgel!I12+negtgel!J12+negtgel!L12 -> 0 | G7: =IF(A7=" ","",negtgel!K12) ->  | H7: =IF(A7=" ","",negtgel!M12) ->  | J7: =IF(A7=" ","",negtgel!N12+negtgel!O12) ->  | M7: =IF(A7=" ","",negtgel!S12) ->  | O7: =IF(A7=" ","",negtgel!X12) -> 
A8: =+IF(negtgel!B13=""," ",importloh!$A$2) ->  | B8: =+negtgel!C13 ->  | C8: =+negtgel!D13 ->  | D8: =+negtgel!E13 ->  | E8: =IF(A8=" ","",negtgel!F13) ->  | F8: =+negtgel!G13+negtgel!H13+negtgel!I13+negtgel!J13+negtgel!L13 -> 0 | G8: =IF(A8=" ","",negtgel!K13) ->  | H8: =IF(A8=" ","",negtgel!M13) ->  | J8: =IF(A8=" ","",negtgel!N13+negtgel!O13) ->  | M8: =IF(A8=" ","",negtgel!S13) ->  | O8: =IF(A8=" ","",negtgel!X13) -> 
A9: =+IF(negtgel!B14=""," ",importloh!$A$2) ->  | B9: =+negtgel!C14 ->  | C9: =+negtgel!D14 ->  | D9: =+negtgel!E14 ->  | E9: =IF(A9=" ","",negtgel!F14) ->  | F9: =+negtgel!G14+negtgel!H14+negtgel!I14+negtgel!J14+negtgel!L14 -> 0 | G9: =IF(A9=" ","",negtgel!K14) ->  | H9: =IF(A9=" ","",negtgel!M14) ->  | J9: =IF(A9=" ","",negtgel!N14+negtgel!O14) ->  | M9: =IF(A9=" ","",negtgel!S14) ->  | O9: =IF(A9=" ","",negtgel!X14) -> 
A10: =+IF(negtgel!B15=""," ",importloh!$A$2) ->  | B10: =+negtgel!C15 ->  | C10: =+negtgel!D15 ->  | D10: =+negtgel!E15 ->  | E10: =IF(A10=" ","",negtgel!F15) ->  | F10: =+negtgel!G15+negtgel!H15+negtgel!I15+negtgel!J15+negtgel!L15 -> 0 | G10: =IF(A10=" ","",negtgel!K15) ->  | H10: =IF(A10=" ","",negtgel!M15) ->  | J10: =IF(A10=" ","",negtgel!N15+negtgel!O15) ->  | M10: =IF(A10=" ","",negtgel!S15) ->  | O10: =IF(A10=" ","",negtgel!X15) -> 
A11: =+IF(negtgel!B16=""," ",importloh!$A$2) ->  | B11: =+negtgel!C16 ->  | C11: =+negtgel!D16 ->  | D11: =+negtgel!E16 ->  | E11: =IF(A11=" ","",negtgel!F16) ->  | F11: =+negtgel!G16+negtgel!H16+negtgel!I16+negtgel!J16+negtgel!L16 -> 0 | G11: =IF(A11=" ","",negtgel!K16) ->  | H11: =IF(A11=" ","",negtgel!M16) ->  | J11: =IF(A11=" ","",negtgel!N16+negtgel!O16) ->  | M11: =IF(A11=" ","",negtgel!S16) ->  | O11: =IF(A11=" ","",negtgel!X16) -> 
A12: =+IF(negtgel!B17=""," ",importloh!$A$2) ->  | B12: =+negtgel!C17 ->  | C12: =+negtgel!D17 ->  | D12: =+negtgel!E17 ->  | E12: =IF(A12=" ","",negtgel!F17) ->  | F12: =+negtgel!G17+negtgel!H17+negtgel!I17+negtgel!J17+negtgel!L17 -> 0 | G12: =IF(A12=" ","",negtgel!K17) ->  | H12: =IF(A12=" ","",negtgel!M17) ->  | J12: =IF(A12=" ","",negtgel!N17+negtgel!O17) ->  | M12: =IF(A12=" ","",negtgel!S17) ->  | O12: =IF(A12=" ","",negtgel!X17) -> 
A13: =+IF(negtgel!B18=""," ",importloh!$A$2) ->  | B13: =+negtgel!C18 ->  | C13: =+negtgel!D18 ->  | D13: =+negtgel!E18 ->  | E13: =IF(A13=" ","",negtgel!F18) ->  | F13: =+negtgel!G18+negtgel!H18+negtgel!I18+negtgel!J18+negtgel!L18 -> 0 | G13: =IF(A13=" ","",negtgel!K18) ->  | H13: =IF(A13=" ","",negtgel!M18) ->  | J13: =IF(A13=" ","",negtgel!N18+negtgel!O18) ->  | M13: =IF(A13=" ","",negtgel!S18) ->  | O13: =IF(A13=" ","",negtgel!X18) -> 
A14: =+IF(negtgel!B19=""," ",importloh!$A$2) ->  | B14: =+negtgel!C19 ->  | C14: =+negtgel!D19 ->  | D14: =+negtgel!E19 ->  | E14: =IF(A14=" ","",negtgel!F19) ->  | F14: =+negtgel!G19+negtgel!H19+negtgel!I19+negtgel!J19+negtgel!L19 -> 0 | G14: =IF(A14=" ","",negtgel!K19) ->  | H14: =IF(A14=" ","",negtgel!M19) ->  | J14: =IF(A14=" ","",negtgel!N19+negtgel!O19) ->  | M14: =IF(A14=" ","",negtgel!S19) ->  | O14: =IF(A14=" ","",negtgel!X19) -> 
A15: =+IF(negtgel!B20=""," ",importloh!$A$2) ->  | B15: =+negtgel!C20 ->  | C15: =+negtgel!D20 ->  | D15: =+negtgel!E20 ->  | E15: =IF(A15=" ","",negtgel!F20) ->  | F15: =+negtgel!G20+negtgel!H20+negtgel!I20+negtgel!J20+negtgel!L20 -> 0 | G15: =IF(A15=" ","",negtgel!K20) ->  | H15: =IF(A15=" ","",negtgel!M20) ->  | J15: =IF(A15=" ","",negtgel!N20+negtgel!O20) ->  | M15: =IF(A15=" ","",negtgel!S20) ->  | O15: =IF(A15=" ","",negtgel!X20) -> 
A16: =+IF(negtgel!B21=""," ",importloh!$A$2) ->  | B16: =+negtgel!C21 ->  | C16: =+negtgel!D21 ->  | D16: =+negtgel!E21 ->  | E16: =IF(A16=" ","",negtgel!F21) ->  | F16: =+negtgel!G21+negtgel!H21+negtgel!I21+negtgel!J21+negtgel!L21 -> 0 | G16: =IF(A16=" ","",negtgel!K21) ->  | H16: =IF(A16=" ","",negtgel!M21) ->  | J16: =IF(A16=" ","",negtgel!N21+negtgel!O21) ->  | M16: =IF(A16=" ","",negtgel!S21) ->  | O16: =IF(A16=" ","",negtgel!X21) -> 
A17: =+IF(negtgel!B22=""," ",importloh!$A$2) ->  | B17: =+negtgel!C22 ->  | C17: =+negtgel!D22 ->  | D17: =+negtgel!E22 ->  | E17: =IF(A17=" ","",negtgel!F22) ->  | F17: =+negtgel!G22+negtgel!H22+negtgel!I22+negtgel!J22+negtgel!L22 -> 0 | G17: =IF(A17=" ","",negtgel!K22) ->  | H17: =IF(A17=" ","",negtgel!M22) ->  | J17: =IF(A17=" ","",negtgel!N22+negtgel!O22) ->  | M17: =IF(A17=" ","",negtgel!S22) ->  | O17: =IF(A17=" ","",negtgel!X22) -> 
A18: =+IF(negtgel!B23=""," ",importloh!$A$2) ->  | B18: =+negtgel!C23 ->  | C18: =+negtgel!D23 ->  | D18: =+negtgel!E23 ->  | E18: =IF(A18=" ","",negtgel!F23) ->  | F18: =+negtgel!G23+negtgel!H23+negtgel!I23+negtgel!J23+negtgel!L23 -> 0 | G18: =IF(A18=" ","",negtgel!K23) ->  | H18: =IF(A18=" ","",negtgel!M23) ->  | J18: =IF(A18=" ","",negtgel!N23+negtgel!O23) ->  | M18: =IF(A18=" ","",negtgel!S23) ->  | O18: =IF(A18=" ","",negtgel!X23) -> 
A19: =+IF(negtgel!B24=""," ",importloh!$A$2) ->  | B19: =+negtgel!C24 ->  | C19: =+negtgel!D24 ->  | D19: =+negtgel!E24 ->  | E19: =IF(A19=" ","",negtgel!F24) ->  | F19: =+negtgel!G24+negtgel!H24+negtgel!I24+negtgel!J24+negtgel!L24 -> 0 | G19: =IF(A19=" ","",negtgel!K24) ->  | H19: =IF(A19=" ","",negtgel!M24) ->  | J19: =IF(A19=" ","",negtgel!N24+negtgel!O24) ->  | M19: =IF(A19=" ","",negtgel!S24) ->  | O19: =IF(A19=" ","",negtgel!X24) -> 
A20: =+IF(negtgel!B25=""," ",importloh!$A$2) ->  | B20: =+negtgel!C25 ->  | C20: =+negtgel!D25 ->  | D20: =+negtgel!E25 ->  | E20: =IF(A20=" ","",negtgel!F25) ->  | F20: =+negtgel!G25+negtgel!H25+negtgel!I25+negtgel!J25+negtgel!L25 -> 0 | G20: =IF(A20=" ","",negtgel!K25) ->  | H20: =IF(A20=" ","",negtgel!M25) ->  | J20: =IF(A20=" ","",negtgel!N25+negtgel!O25) ->  | M20: =IF(A20=" ","",negtgel!S25) ->  | O20: =IF(A20=" ","",negtgel!X25) -> 
A21: =+IF(negtgel!B26=""," ",importloh!$A$2) ->  | B21: =+negtgel!C26 ->  | C21: =+negtgel!D26 ->  | D21: =+negtgel!E26 ->  | E21: =IF(A21=" ","",negtgel!F26) ->  | F21: =+negtgel!G26+negtgel!H26+negtgel!I26+negtgel!J26+negtgel!L26 -> 0 | G21: =IF(A21=" ","",negtgel!K26) ->  | H21: =IF(A21=" ","",negtgel!M26) ->  | J21: =IF(A21=" ","",negtgel!N26+negtgel!O26) ->  | M21: =IF(A21=" ","",negtgel!S26) ->  | O21: =IF(A21=" ","",negtgel!X26) -> 
A22: =+IF(negtgel!B27=""," ",importloh!$A$2) ->  | B22: =+negtgel!C27 ->  | C22: =+negtgel!D27 ->  | D22: =+negtgel!E27 ->  | E22: =IF(A22=" ","",negtgel!F27) ->  | F22: =+negtgel!G27+negtgel!H27+negtgel!I27+negtgel!J27+negtgel!L27 -> 0 | G22: =IF(A22=" ","",negtgel!K27) ->  | H22: =IF(A22=" ","",negtgel!M27) ->  | J22: =IF(A22=" ","",negtgel!N27+negtgel!O27) ->  | M22: =IF(A22=" ","",negtgel!S27) ->  | O22: =IF(A22=" ","",negtgel!X27) -> 
A23: =+IF(negtgel!B28=""," ",importloh!$A$2) ->  | B23: =+negtgel!C28 ->  | C23: =+negtgel!D28 ->  | D23: =+negtgel!E28 ->  | E23: =IF(A23=" ","",negtgel!F28) ->  | F23: =+negtgel!G28+negtgel!H28+negtgel!I28+negtgel!J28+negtgel!L28 -> 0 | G23: =IF(A23=" ","",negtgel!K28) ->  | H23: =IF(A23=" ","",negtgel!M28) ->  | J23: =IF(A23=" ","",negtgel!N28+negtgel!O28) ->  | M23: =IF(A23=" ","",negtgel!S28) ->  | O23: =IF(A23=" ","",negtgel!X28) -> 
A24: =+IF(negtgel!B29=""," ",importloh!$A$2) ->  | B24: =+negtgel!C29 ->  | C24: =+negtgel!D29 ->  | D24: =+negtgel!E29 ->  | E24: =IF(A24=" ","",negtgel!F29) ->  | F24: =+negtgel!G29+negtgel!H29+negtgel!I29+negtgel!J29+negtgel!L29 -> 0 | G24: =IF(A24=" ","",negtgel!K29) ->  | H24: =IF(A24=" ","",negtgel!M29) ->  | J24: =IF(A24=" ","",negtgel!N29+negtgel!O29) ->  | M24: =IF(A24=" ","",negtgel!S29) ->  | O24: =IF(A24=" ","",negtgel!X29) -> 
A25: =+IF(negtgel!B30=""," ",importloh!$A$2) ->  | B25: =+negtgel!C30 ->  | C25: =+negtgel!D30 ->  | D25: =+negtgel!E30 ->  | E25: =IF(A25=" ","",negtgel!F30) ->  | F25: =+negtgel!G30+negtgel!H30+negtgel!I30+negtgel!J30+negtgel!L30 -> 0 | G25: =IF(A25=" ","",negtgel!K30) ->  | H25: =IF(A25=" ","",negtgel!M30) ->  | J25: =IF(A25=" ","",negtgel!N30+negtgel!O30) ->  | M25: =IF(A25=" ","",negtgel!S30) ->  | O25: =IF(A25=" ","",negtgel!X30) -> 
A26: =+IF(negtgel!B31=""," ",importloh!$A$2) ->  | B26: =+negtgel!C31 ->  | C26: =+negtgel!D31 ->  | D26: =+negtgel!E31 ->  | E26: =IF(A26=" ","",negtgel!F31) ->  | F26: =+negtgel!G31+negtgel!H31+negtgel!I31+negtgel!J31+negtgel!L31 -> 0 | G26: =IF(A26=" ","",negtgel!K31) ->  | H26: =IF(A26=" ","",negtgel!M31) ->  | J26: =IF(A26=" ","",negtgel!N31+negtgel!O31) ->  | M26: =IF(A26=" ","",negtgel!S31) ->  | O26: =IF(A26=" ","",negtgel!X31) -> 
A27: =+IF(negtgel!B32=""," ",importloh!$A$2) ->  | B27: =+negtgel!C32 ->  | C27: =+negtgel!D32 ->  | D27: =+negtgel!E32 ->  | E27: =IF(A27=" ","",negtgel!F32) ->  | F27: =+negtgel!G32+negtgel!H32+negtgel!I32+negtgel!J32+negtgel!L32 -> 0 | G27: =IF(A27=" ","",negtgel!K32) ->  | H27: =IF(A27=" ","",negtgel!M32) ->  | J27: =IF(A27=" ","",negtgel!N32+negtgel!O32) ->  | M27: =IF(A27=" ","",negtgel!S32) ->  | O27: =IF(A27=" ","",negtgel!X32) -> 
A28: =+IF(negtgel!B33=""," ",importloh!$A$2) ->  | B28: =+negtgel!C33 ->  | C28: =+negtgel!D33 ->  | D28: =+negtgel!E33 ->  | E28: =IF(A28=" ","",negtgel!F33) ->  | F28: =+negtgel!G33+negtgel!H33+negtgel!I33+negtgel!J33+negtgel!L33 -> 0 | G28: =IF(A28=" ","",negtgel!K33) ->  | H28: =IF(A28=" ","",negtgel!M33) ->  | J28: =IF(A28=" ","",negtgel!N33+negtgel!O33) ->  | M28: =IF(A28=" ","",negtgel!S33) ->  | O28: =IF(A28=" ","",negtgel!X33) -> 
A29: =+IF(negtgel!B34=""," ",importloh!$A$2) ->  | B29: =+negtgel!C34 ->  | C29: =+negtgel!D34 ->  | D29: =+negtgel!E34 ->  | E29: =IF(A29=" ","",negtgel!F34) ->  | F29: =+negtgel!G34+negtgel!H34+negtgel!I34+negtgel!J34+negtgel!L34 -> 0 | G29: =IF(A29=" ","",negtgel!K34) ->  | H29: =IF(A29=" ","",negtgel!M34) ->  | J29: =IF(A29=" ","",negtgel!N34+negtgel!O34) ->  | K29: =IF(A29=" ","",H29-J29) ->  | L29: =IF(A29=" ","",((E29+F29)-(E29+F29)*I29/100)*0.1) ->  | M29: =IF(A29=" ","",negtgel!S34) ->  | O29: =IF(A29=" ","",negtgel!X34) ->  | Q29: =IF(A29=" ","",(G29-(G29*I29/100))*0.1) ->  | R29: =IF(A29=" ","",P29+Q29) -> 
A30: =+IF(negtgel!B35=""," ",importloh!$A$2) ->  | B30: =+negtgel!C35 ->  | C30: =+negtgel!D35 ->  | D30: =+negtgel!E35 ->  | E30: =IF(A30=" ","",negtgel!F35) ->  | F30: =+negtgel!G35+negtgel!H35+negtgel!I35+negtgel!J35+negtgel!L35 -> 0 | G30: =IF(A30=" ","",negtgel!K35) ->  | H30: =IF(A30=" ","",negtgel!M35) ->  | J30: =IF(A30=" ","",negtgel!N35+negtgel!O35) ->  | M30: =IF(A30=" ","",negtgel!S35) ->  | O30: =IF(A30=" ","",negtgel!X35) -> 
A31: =+IF(negtgel!B36=""," ",importloh!$A$2) ->  | B31: =+negtgel!C36 ->  | C31: =+negtgel!D36 ->  | D31: =+negtgel!E36 ->  | E31: =IF(A31=" ","",negtgel!F36) ->  | F31: =+negtgel!G36+negtgel!H36+negtgel!I36+negtgel!J36+negtgel!L36 -> 0 | G31: =IF(A31=" ","",negtgel!K36) ->  | H31: =IF(A31=" ","",negtgel!M36) ->  | J31: =IF(A31=" ","",negtgel!N36+negtgel!O36) ->  | M31: =IF(A31=" ","",negtgel!S36) ->  | O31: =IF(A31=" ","",negtgel!X36) -> 
A32: =+IF(negtgel!B37=""," ",importloh!$A$2) ->  | B32: =+negtgel!C37 ->  | C32: =+negtgel!D37 ->  | D32: =+negtgel!E37 ->  | E32: =IF(A32=" ","",negtgel!F37) ->  | F32: =+negtgel!G37+negtgel!H37+negtgel!I37+negtgel!J37+negtgel!L37 -> 0 | G32: =IF(A32=" ","",negtgel!K37) ->  | H32: =IF(A32=" ","",negtgel!M37) ->  | J32: =IF(A32=" ","",negtgel!N37+negtgel!O37) ->  | M32: =IF(A32=" ","",negtgel!S37) ->  | O32: =IF(A32=" ","",negtgel!X37) -> 
A33: =+IF(negtgel!B38=""," ",importloh!$A$2) ->  | B33: =+negtgel!C38 ->  | C33: =+negtgel!D38 ->  | D33: =+negtgel!E38 ->  | E33: =IF(A33=" ","",negtgel!F38) ->  | F33: =+negtgel!G38+negtgel!H38+negtgel!I38+negtgel!J38+negtgel!L38 -> 0 | G33: =IF(A33=" ","",negtgel!K38) ->  | H33: =IF(A33=" ","",negtgel!M38) ->  | J33: =IF(A33=" ","",negtgel!N38+negtgel!O38) ->  | K33: =IF(A33=" ","",H33-J33) ->  | L33: =IF(A33=" ","",((E33+F33)-(E33+F33)*I33/100)*0.1) ->  | M33: =IF(A33=" ","",negtgel!S38) ->  | O33: =IF(A33=" ","",negtgel!X38) ->  | Q33: =IF(A33=" ","",(G33-(G33*I33/100))*0.1) ->  | R33: =IF(A33=" ","",P33+Q33) -> 
A34: =+IF(negtgel!B39=""," ",importloh!$A$2) ->  | B34: =+negtgel!C39 ->  | C34: =+negtgel!D39 ->  | D34: =+negtgel!E39 ->  | E34: =IF(A34=" ","",negtgel!F39) ->  | F34: =+negtgel!G39+negtgel!H39+negtgel!I39+negtgel!J39+negtgel!L39 -> 0 | G34: =IF(A34=" ","",negtgel!K39) ->  | H34: =IF(A34=" ","",negtgel!M39) ->  | J34: =IF(A34=" ","",negtgel!N39+negtgel!O39) ->  | M34: =IF(A34=" ","",negtgel!S39) ->  | O34: =IF(A34=" ","",negtgel!X39) -> 
A35: =+IF(negtgel!B40=""," ",importloh!$A$2) ->  | B35: =+negtgel!C40 ->  | C35: =+negtgel!D40 ->  | D35: =+negtgel!E40 ->  | E35: =IF(A35=" ","",negtgel!F40) ->  | F35: =+negtgel!G40+negtgel!H40+negtgel!I40+negtgel!J40+negtgel!L40 -> 0 | G35: =IF(A35=" ","",negtgel!K40) ->  | H35: =IF(A35=" ","",negtgel!M40) ->  | J35: =IF(A35=" ","",negtgel!N40+negtgel!O40) ->  | M35: =IF(A35=" ","",negtgel!S40) ->  | O35: =IF(A35=" ","",negtgel!X40) -> 
A36: =+IF(negtgel!B41=""," ",importloh!$A$2) ->  | B36: =+negtgel!C41 ->  | C36: =+negtgel!D41 ->  | D36: =+negtgel!E41 ->  | E36: =IF(A36=" ","",negtgel!F41) ->  | F36: =+negtgel!G41+negtgel!H41+negtgel!I41+negtgel!J41+negtgel!L41 -> 0 | G36: =IF(A36=" ","",negtgel!K41) ->  | H36: =IF(A36=" ","",negtgel!M41) ->  | J36: =IF(A36=" ","",negtgel!N41+negtgel!O41) ->  | M36: =IF(A36=" ","",negtgel!S41) ->  | O36: =IF(A36=" ","",negtgel!X41) -> 
A37: =+IF(negtgel!B42=""," ",importloh!$A$2) ->  | B37: =+negtgel!C42 ->  | C37: =+negtgel!D42 ->  | D37: =+negtgel!E42 ->  | E37: =IF(A37=" ","",negtgel!F42) ->  | F37: =+negtgel!G42+negtgel!H42+negtgel!I42+negtgel!J42+negtgel!L42 -> 0 | G37: =IF(A37=" ","",negtgel!K42) ->  | H37: =IF(A37=" ","",negtgel!M42) ->  | J37: =IF(A37=" ","",negtgel!N42+negtgel!O42) ->  | M37: =IF(A37=" ","",negtgel!S42) ->  | O37: =IF(A37=" ","",negtgel!X42) -> 
A38: =+IF(negtgel!B43=""," ",importloh!$A$2) ->  | B38: =+negtgel!C43 ->  | C38: =+negtgel!D43 ->  | D38: =+negtgel!E43 ->  | E38: =IF(A38=" ","",negtgel!F43) ->  | F38: =+negtgel!G43+negtgel!H43+negtgel!I43+negtgel!J43+negtgel!L43 -> 0 | G38: =IF(A38=" ","",negtgel!K43) ->  | H38: =IF(A38=" ","",negtgel!M43) ->  | J38: =IF(A38=" ","",negtgel!N43+negtgel!O43) ->  | M38: =IF(A38=" ","",negtgel!S43) ->  | O38: =IF(A38=" ","",negtgel!X43) -> 
A39: =+IF(negtgel!B44=""," ",importloh!$A$2) ->  | B39: =+negtgel!C44 ->  | C39: =+negtgel!D44 ->  | D39: =+negtgel!E44 ->  | E39: =IF(A39=" ","",negtgel!F44) ->  | F39: =+negtgel!G44+negtgel!H44+negtgel!I44+negtgel!J44+negtgel!L44 -> 0 | G39: =IF(A39=" ","",negtgel!K44) ->  | H39: =IF(A39=" ","",negtgel!M44) ->  | J39: =IF(A39=" ","",negtgel!N44+negtgel!O44) ->  | M39: =IF(A39=" ","",negtgel!S44) ->  | O39: =IF(A39=" ","",negtgel!X44) -> 
A40: =+IF(negtgel!B45=""," ",importloh!$A$2) ->  | B40: =+negtgel!C45 ->  | C40: =+negtgel!D45 ->  | D40: =+negtgel!E45 ->  | E40: =IF(A40=" ","",negtgel!F45) ->  | F40: =+negtgel!G45+negtgel!H45+negtgel!I45+negtgel!J45+negtgel!L45 -> 0 | G40: =IF(A40=" ","",negtgel!K45) ->  | H40: =IF(A40=" ","",negtgel!M45) ->  | J40: =IF(A40=" ","",negtgel!N45+negtgel!O45) ->  | M40: =IF(A40=" ","",negtgel!S45) ->  | O40: =IF(A40=" ","",negtgel!X45) -> 
A41: =+IF(negtgel!B46=""," ",importloh!$A$2) ->  | B41: =+negtgel!C46 ->  | C41: =+negtgel!D46 ->  | D41: =+negtgel!E46 ->  | E41: =IF(A41=" ","",negtgel!F46) ->  | F41: =+negtgel!G46+negtgel!H46+negtgel!I46+negtgel!J46+negtgel!L46 -> 0 | G41: =IF(A41=" ","",negtgel!K46) ->  | H41: =IF(A41=" ","",negtgel!M46) ->  | J41: =IF(A41=" ","",negtgel!N46+negtgel!O46) ->  | M41: =IF(A41=" ","",negtgel!S46) ->  | O41: =IF(A41=" ","",negtgel!X46) -> 
A42: =+IF(negtgel!B47=""," ",importloh!$A$2) ->  | B42: =+negtgel!C47 ->  | C42: =+negtgel!D47 ->  | D42: =+negtgel!E47 ->  | E42: =IF(A42=" ","",negtgel!F47) ->  | F42: =+negtgel!G47+negtgel!H47+negtgel!I47+negtgel!J47+negtgel!L47 -> 0 | G42: =IF(A42=" ","",negtgel!K47) ->  | H42: =IF(A42=" ","",negtgel!M47) ->  | J42: =IF(A42=" ","",negtgel!N47+negtgel!O47) ->  | M42: =IF(A42=" ","",negtgel!S47) ->  | O42: =IF(A42=" ","",negtgel!X47) -> 
A43: =+IF(negtgel!B48=""," ",importloh!$A$2) ->  | B43: =+negtgel!C48 ->  | C43: =+negtgel!D48 ->  | D43: =+negtgel!E48 ->  | E43: =IF(A43=" ","",negtgel!F48) ->  | F43: =+negtgel!G48+negtgel!H48+negtgel!I48+negtgel!J48+negtgel!L48 -> 0 | G43: =IF(A43=" ","",negtgel!K48) ->  | H43: =IF(A43=" ","",negtgel!M48) ->  | J43: =IF(A43=" ","",negtgel!N48+negtgel!O48) ->  | M43: =IF(A43=" ","",negtgel!S48) ->  | O43: =IF(A43=" ","",negtgel!X48) -> 
A44: =+IF(negtgel!B49=""," ",importloh!$A$2) ->  | B44: =+negtgel!C49 ->  | C44: =+negtgel!D49 ->  | D44: =+negtgel!E49 ->  | E44: =IF(A44=" ","",negtgel!F49) ->  | F44: =+negtgel!G49+negtgel!H49+negtgel!I49+negtgel!J49+negtgel!L49 -> 0 | G44: =IF(A44=" ","",negtgel!K49) ->  | H44: =IF(A44=" ","",negtgel!M49) ->  | J44: =IF(A44=" ","",negtgel!N49+negtgel!O49) ->  | M44: =IF(A44=" ","",negtgel!S49) ->  | O44: =IF(A44=" ","",negtgel!X49) -> 
A45: =+IF(negtgel!B50=""," ",importloh!$A$2) ->  | B45: =+negtgel!C50 ->  | C45: =+negtgel!D50 ->  | D45: =+negtgel!E50 ->  | E45: =IF(A45=" ","",negtgel!F50) ->  | F45: =+negtgel!G50+negtgel!H50+negtgel!I50+negtgel!J50+negtgel!L50 -> 0 | G45: =IF(A45=" ","",negtgel!K50) ->  | H45: =IF(A45=" ","",negtgel!M50) ->  | J45: =IF(A45=" ","",negtgel!N50+negtgel!O50) ->  | M45: =IF(A45=" ","",negtgel!S50) ->  | O45: =IF(A45=" ","",negtgel!X50) -> 
A46: =+IF(negtgel!B51=""," ",importloh!$A$2) ->  | B46: =+negtgel!C51 ->  | C46: =+negtgel!D51 ->  | D46: =+negtgel!E51 ->  | E46: =IF(A46=" ","",negtgel!F51) ->  | F46: =+negtgel!G51+negtgel!H51+negtgel!I51+negtgel!J51+negtgel!L51 -> 0 | G46: =IF(A46=" ","",negtgel!K51) ->  | H46: =IF(A46=" ","",negtgel!M51) ->  | J46: =IF(A46=" ","",negtgel!N51+negtgel!O51) ->  | M46: =IF(A46=" ","",negtgel!S51) ->  | O46: =IF(A46=" ","",negtgel!X51) -> 
A47: =+IF(negtgel!B52=""," ",importloh!$A$2) ->  | B47: =+negtgel!C52 ->  | C47: =+negtgel!D52 ->  | D47: =+negtgel!E52 ->  | E47: =IF(A47=" ","",negtgel!F52) ->  | F47: =+negtgel!G52+negtgel!H52+negtgel!I52+negtgel!J52+negtgel!L52 -> 0 | G47: =IF(A47=" ","",negtgel!K52) ->  | H47: =IF(A47=" ","",negtgel!M52) ->  | J47: =IF(A47=" ","",negtgel!N52+negtgel!O52) ->  | M47: =IF(A47=" ","",negtgel!S52) ->  | O47: =IF(A47=" ","",negtgel!X52) -> 
A48: =+IF(negtgel!B53=""," ",importloh!$A$2) ->  | B48: =+negtgel!C53 ->  | C48: =+negtgel!D53 ->  | D48: =+negtgel!E53 ->  | E48: =IF(A48=" ","",negtgel!F53) ->  | F48: =+negtgel!G53+negtgel!H53+negtgel!I53+negtgel!J53+negtgel!L53 -> 0 | G48: =IF(A48=" ","",negtgel!K53) ->  | H48: =IF(A48=" ","",negtgel!M53) ->  | J48: =IF(A48=" ","",negtgel!N53+negtgel!O53) ->  | M48: =IF(A48=" ","",negtgel!S53) ->  | O48: =IF(A48=" ","",negtgel!X53) -> 
A49: =+IF(negtgel!B54=""," ",importloh!$A$2) ->  | B49: =+negtgel!C54 ->  | C49: =+negtgel!D54 ->  | D49: =+negtgel!E54 ->  | E49: =IF(A49=" ","",negtgel!F54) ->  | F49: =+negtgel!G54+negtgel!H54+negtgel!I54+negtgel!J54+negtgel!L54 -> 0 | G49: =IF(A49=" ","",negtgel!K54) ->  | H49: =IF(A49=" ","",negtgel!M54) ->  | J49: =IF(A49=" ","",negtgel!N54+negtgel!O54) ->  | M49: =IF(A49=" ","",negtgel!S54) ->  | O49: =IF(A49=" ","",negtgel!X54) -> 
A50: =+IF(negtgel!B55=""," ",importloh!$A$2) ->  | B50: =+negtgel!C55 ->  | C50: =+negtgel!D55 ->  | D50: =+negtgel!E55 ->  | E50: =IF(A50=" ","",negtgel!F55) ->  | F50: =+negtgel!G55+negtgel!H55+negtgel!I55+negtgel!J55+negtgel!L55 -> 0 | G50: =IF(A50=" ","",negtgel!K55) ->  | H50: =IF(A50=" ","",negtgel!M55) ->  | J50: =IF(A50=" ","",negtgel!N55+negtgel!O55) ->  | M50: =IF(A50=" ","",negtgel!S55) ->  | O50: =IF(A50=" ","",negtgel!X55) -> 
A51: =+IF(negtgel!B56=""," ",importloh!$A$2) ->  | B51: =+negtgel!C56 ->  | C51: =+negtgel!D56 ->  | D51: =+negtgel!E56 ->  | E51: =IF(A51=" ","",negtgel!F56) ->  | F51: =+negtgel!G56+negtgel!H56+negtgel!I56+negtgel!J56+negtgel!L56 -> 0 | G51: =IF(A51=" ","",negtgel!K56) ->  | H51: =IF(A51=" ","",negtgel!M56) ->  | J51: =IF(A51=" ","",negtgel!N56+negtgel!O56) ->  | M51: =IF(A51=" ","",negtgel!S56) ->  | O51: =IF(A51=" ","",negtgel!X56) -> 
A52: =+IF(negtgel!B57=""," ",importloh!$A$2) ->  | B52: =+negtgel!C57 ->  | C52: =+negtgel!D57 ->  | D52: =+negtgel!E57 ->  | E52: =IF(A52=" ","",negtgel!F57) ->  | F52: =+negtgel!G57+negtgel!H57+negtgel!I57+negtgel!J57+negtgel!L57 -> 0 | G52: =IF(A52=" ","",negtgel!K57) ->  | H52: =IF(A52=" ","",negtgel!M57) ->  | J52: =IF(A52=" ","",negtgel!N57+negtgel!O57) ->  | M52: =IF(A52=" ","",negtgel!S57) ->  | O52: =IF(A52=" ","",negtgel!X57) -> 
A53: =+IF(negtgel!B58=""," ",importloh!$A$2) ->  | B53: =+negtgel!C58 ->  | C53: =+negtgel!D58 ->  | D53: =+negtgel!E58 ->  | E53: =IF(A53=" ","",negtgel!F58) ->  | F53: =+negtgel!G58+negtgel!H58+negtgel!I58+negtgel!J58+negtgel!L58 -> 0 | G53: =IF(A53=" ","",negtgel!K58) ->  | H53: =IF(A53=" ","",negtgel!M58) ->  | J53: =IF(A53=" ","",negtgel!N58+negtgel!O58) ->  | M53: =IF(A53=" ","",negtgel!S58) ->  | O53: =IF(A53=" ","",negtgel!X58) -> 
A54: =+IF(negtgel!B59=""," ",importloh!$A$2) ->  | B54: =+negtgel!C59 ->  | C54: =+negtgel!D59 ->  | D54: =+negtgel!E59 ->  | E54: =IF(A54=" ","",negtgel!F59) ->  | F54: =+negtgel!G59+negtgel!H59+negtgel!I59+negtgel!J59+negtgel!L59 -> 0 | G54: =IF(A54=" ","",negtgel!K59) ->  | H54: =IF(A54=" ","",negtgel!M59) ->  | J54: =IF(A54=" ","",negtgel!N59+negtgel!O59) ->  | M54: =IF(A54=" ","",negtgel!S59) ->  | O54: =IF(A54=" ","",negtgel!X59) -> 
A55: =+IF(negtgel!B60=""," ",importloh!$A$2) ->  | B55: =+negtgel!C60 ->  | C55: =+negtgel!D60 ->  | D55: =+negtgel!E60 ->  | E55: =IF(A55=" ","",negtgel!F60) ->  | F55: =+negtgel!G60+negtgel!H60+negtgel!I60+negtgel!J60+negtgel!L60 -> 0 | G55: =IF(A55=" ","",negtgel!K60) ->  | H55: =IF(A55=" ","",negtgel!M60) ->  | J55: =IF(A55=" ","",negtgel!N60+negtgel!O60) ->  | M55: =IF(A55=" ","",negtgel!S60) ->  | O55: =IF(A55=" ","",negtgel!X60) -> 
A56: =+IF(negtgel!B61=""," ",importloh!$A$2) ->  | B56: =+negtgel!C61 ->  | C56: =+negtgel!D61 ->  | D56: =+negtgel!E61 ->  | E56: =IF(A56=" ","",negtgel!F61) ->  | F56: =+negtgel!G61+negtgel!H61+negtgel!I61+negtgel!J61+negtgel!L61 -> 0 | G56: =IF(A56=" ","",negtgel!K61) ->  | H56: =IF(A56=" ","",negtgel!M61) ->  | J56: =IF(A56=" ","",negtgel!N61+negtgel!O61) ->  | M56: =IF(A56=" ","",negtgel!S61) ->  | O56: =IF(A56=" ","",negtgel!X61) -> 
A57: =+IF(negtgel!B62=""," ",importloh!$A$2) ->  | B57: =+negtgel!C62 ->  | C57: =+negtgel!D62 ->  | D57: =+negtgel!E62 ->  | E57: =IF(A57=" ","",negtgel!F62) ->  | F57: =+negtgel!G62+negtgel!H62+negtgel!I62+negtgel!J62+negtgel!L62 -> 0 | G57: =IF(A57=" ","",negtgel!K62) ->  | H57: =IF(A57=" ","",negtgel!M62) ->  | J57: =IF(A57=" ","",negtgel!N62+negtgel!O62) ->  | M57: =IF(A57=" ","",negtgel!S62) ->  | O57: =IF(A57=" ","",negtgel!X62) -> 
A58: =+IF(negtgel!B63=""," ",importloh!$A$2) ->  | B58: =+negtgel!C63 ->  | C58: =+negtgel!D63 ->  | D58: =+negtgel!E63 ->  | E58: =IF(A58=" ","",negtgel!F63) ->  | F58: =+negtgel!G63+negtgel!H63+negtgel!I63+negtgel!J63+negtgel!L63 -> 0 | G58: =IF(A58=" ","",negtgel!K63) ->  | H58: =IF(A58=" ","",negtgel!M63) ->  | J58: =IF(A58=" ","",negtgel!N63+negtgel!O63) ->  | M58: =IF(A58=" ","",negtgel!S63) ->  | O58: =IF(A58=" ","",negtgel!X63) -> 
A59: =+IF(negtgel!B64=""," ",importloh!$A$2) ->  | B59: =+negtgel!C64 ->  | C59: =+negtgel!D64 ->  | D59: =+negtgel!E64 ->  | E59: =IF(A59=" ","",negtgel!F64) ->  | F59: =+negtgel!G64+negtgel!H64+negtgel!I64+negtgel!J64+negtgel!L64 -> 0 | G59: =IF(A59=" ","",negtgel!K64) ->  | H59: =IF(A59=" ","",negtgel!M64) ->  | J59: =IF(A59=" ","",negtgel!N64+negtgel!O64) ->  | M59: =IF(A59=" ","",negtgel!S64) ->  | O59: =IF(A59=" ","",negtgel!X64) -> 
A60: =+IF(negtgel!B65=""," ",importloh!$A$2) ->  | B60: =+negtgel!C65 ->  | C60: =+negtgel!D65 ->  | D60: =+negtgel!E65 ->  | E60: =IF(A60=" ","",negtgel!F65) ->  | F60: =+negtgel!G65+negtgel!H65+negtgel!I65+negtgel!J65+negtgel!L65 -> 0 | G60: =IF(A60=" ","",negtgel!K65) ->  | H60: =IF(A60=" ","",negtgel!M65) ->  | J60: =IF(A60=" ","",negtgel!N65+negtgel!O65) ->  | M60: =IF(A60=" ","",negtgel!S65) ->  | O60: =IF(A60=" ","",negtgel!X65) -> 
A61: =+IF(negtgel!B66=""," ",importloh!$A$2) ->  | B61: =+negtgel!C66 ->  | C61: =+negtgel!D66 ->  | D61: =+negtgel!E66 ->  | E61: =IF(A61=" ","",negtgel!F66) ->  | F61: =+negtgel!G66+negtgel!H66+negtgel!I66+negtgel!J66+negtgel!L66 -> 0 | G61: =IF(A61=" ","",negtgel!K66) ->  | H61: =IF(A61=" ","",negtgel!M66) ->  | J61: =IF(A61=" ","",negtgel!N66+negtgel!O66) ->  | M61: =IF(A61=" ","",negtgel!S66) ->  | O61: =IF(A61=" ","",negtgel!X66) -> 
A62: =+IF(negtgel!B67=""," ",importloh!$A$2) ->  | B62: =+negtgel!C67 ->  | C62: =+negtgel!D67 ->  | D62: =+negtgel!E67 ->  | E62: =IF(A62=" ","",negtgel!F67) ->  | F62: =+negtgel!G67+negtgel!H67+negtgel!I67+negtgel!J67+negtgel!L67 -> 0 | G62: =IF(A62=" ","",negtgel!K67) ->  | H62: =IF(A62=" ","",negtgel!M67) ->  | J62: =IF(A62=" ","",negtgel!N67+negtgel!O67) ->  | M62: =IF(A62=" ","",negtgel!S67) ->  | O62: =IF(A62=" ","",negtgel!X67) -> 
A63: =+IF(negtgel!B68=""," ",importloh!$A$2) ->  | B63: =+negtgel!C68 ->  | C63: =+negtgel!D68 ->  | D63: =+negtgel!E68 ->  | E63: =IF(A63=" ","",negtgel!F68) ->  | F63: =+negtgel!G68+negtgel!H68+negtgel!I68+negtgel!J68+negtgel!L68 -> 0 | G63: =IF(A63=" ","",negtgel!K68) ->  | H63: =IF(A63=" ","",negtgel!M68) ->  | J63: =IF(A63=" ","",negtgel!N68+negtgel!O68) ->  | M63: =IF(A63=" ","",negtgel!S68) ->  | O63: =IF(A63=" ","",negtgel!X68) -> 
A64: =+IF(negtgel!B69=""," ",importloh!$A$2) ->  | B64: =+negtgel!C69 ->  | C64: =+negtgel!D69 ->  | D64: =+negtgel!E69 ->  | E64: =IF(A64=" ","",negtgel!F69) ->  | F64: =+negtgel!G69+negtgel!H69+negtgel!I69+negtgel!J69+negtgel!L69 -> 0 | G64: =IF(A64=" ","",negtgel!K69) ->  | H64: =IF(A64=" ","",negtgel!M69) ->  | J64: =IF(A64=" ","",negtgel!N69+negtgel!O69) ->  | M64: =IF(A64=" ","",negtgel!S69) ->  | O64: =IF(A64=" ","",negtgel!X69) -> 
A65: =+IF(negtgel!B70=""," ",importloh!$A$2) ->  | B65: =+negtgel!C70 ->  | C65: =+negtgel!D70 ->  | D65: =+negtgel!E70 ->  | E65: =IF(A65=" ","",negtgel!F70) ->  | F65: =+negtgel!G70+negtgel!H70+negtgel!I70+negtgel!J70+negtgel!L70 -> 0 | G65: =IF(A65=" ","",negtgel!K70) ->  | H65: =IF(A65=" ","",negtgel!M70) ->  | J65: =IF(A65=" ","",negtgel!N70+negtgel!O70) ->  | M65: =IF(A65=" ","",negtgel!S70) ->  | O65: =IF(A65=" ","",negtgel!X70) -> 
A66: =+IF(negtgel!B71=""," ",importloh!$A$2) ->  | B66: =+negtgel!C71 ->  | C66: =+negtgel!D71 ->  | D66: =+negtgel!E71 ->  | E66: =IF(A66=" ","",negtgel!F71) ->  | F66: =+negtgel!G71+negtgel!H71+negtgel!I71+negtgel!J71+negtgel!L71 -> 0 | G66: =IF(A66=" ","",negtgel!K71) ->  | H66: =IF(A66=" ","",negtgel!M71) ->  | J66: =IF(A66=" ","",negtgel!N71+negtgel!O71) ->  | M66: =IF(A66=" ","",negtgel!S71) ->  | O66: =IF(A66=" ","",negtgel!X71) -> 
A67: =+IF(negtgel!B72=""," ",importloh!$A$2) ->  | B67: =+negtgel!C72 ->  | C67: =+negtgel!D72 ->  | D67: =+negtgel!E72 ->  | E67: =IF(A67=" ","",negtgel!F72) ->  | F67: =+negtgel!G72+negtgel!H72+negtgel!I72+negtgel!J72+negtgel!L72 -> 0 | G67: =IF(A67=" ","",negtgel!K72) ->  | H67: =IF(A67=" ","",negtgel!M72) ->  | I67: =IF(A67=" ","",IF(H67=0,0,J67/H67*100)) ->  | J67: =IF(A67=" ","",negtgel!N72+negtgel!O72) ->  | M67: =IF(A67=" ","",negtgel!S72) ->  | N67: =IF(A67=" ","",IF(M67=0,0,999)) ->  | O67: =IF(A67=" ","",negtgel!X72) ->  | P67: =IF(A67=" ","",L67-O67) -> 
A68: =+IF(negtgel!B73=""," ",importloh!$A$2) ->  | B68: =+negtgel!C73 ->  | C68: =+negtgel!D73 ->  | D68: =+negtgel!E73 ->  | E68: =IF(A68=" ","",negtgel!F73) ->  | F68: =+negtgel!G73+negtgel!H73+negtgel!I73+negtgel!J73+negtgel!L73 -> 0 | G68: =IF(A68=" ","",negtgel!K73) ->  | H68: =IF(A68=" ","",negtgel!M73) ->  | J68: =IF(A68=" ","",negtgel!N73+negtgel!O73) ->  | M68: =IF(A68=" ","",negtgel!S73) ->  | O68: =IF(A68=" ","",negtgel!X73) -> 
A69: =+IF(negtgel!B74=""," ",importloh!$A$2) ->  | B69: =+negtgel!C74 ->  | C69: =+negtgel!D74 ->  | D69: =+negtgel!E74 ->  | E69: =IF(A69=" ","",negtgel!F74) ->  | F69: =+negtgel!G74+negtgel!H74+negtgel!I74+negtgel!J74+negtgel!L74 -> 0 | G69: =IF(A69=" ","",negtgel!K74) ->  | H69: =IF(A69=" ","",negtgel!M74) ->  | J69: =IF(A69=" ","",negtgel!N74+negtgel!O74) ->  | M69: =IF(A69=" ","",negtgel!S74) ->  | O69: =IF(A69=" ","",negtgel!X74) -> 
A70: =+IF(negtgel!B75=""," ",importloh!$A$2) ->  | B70: =+negtgel!C75 ->  | C70: =+negtgel!D75 ->  | D70: =+negtgel!E75 ->  | E70: =IF(A70=" ","",negtgel!F75) ->  | F70: =+negtgel!G75+negtgel!H75+negtgel!I75+negtgel!J75+negtgel!L75 -> 0 | G70: =IF(A70=" ","",negtgel!K75) ->  | H70: =IF(A70=" ","",negtgel!M75) ->  | J70: =IF(A70=" ","",negtgel!N75+negtgel!O75) ->  | M70: =IF(A70=" ","",negtgel!S75) ->  | O70: =IF(A70=" ","",negtgel!X75) -> 
A71: =+IF(negtgel!B76=""," ",importloh!$A$2) ->  | B71: =+negtgel!C76 ->  | C71: =+negtgel!D76 ->  | D71: =+negtgel!E76 ->  | E71: =IF(A71=" ","",negtgel!F76) ->  | F71: =+negtgel!G76+negtgel!H76+negtgel!I76+negtgel!J76+negtgel!L76 -> 0 | G71: =IF(A71=" ","",negtgel!K76) ->  | H71: =IF(A71=" ","",negtgel!M76) ->  | J71: =IF(A71=" ","",negtgel!N76+negtgel!O76) ->  | M71: =IF(A71=" ","",negtgel!S76) ->  | O71: =IF(A71=" ","",negtgel!X76) -> 
A72: =+IF(negtgel!B77=""," ",importloh!$A$2) ->  | B72: =+negtgel!C77 ->  | C72: =+negtgel!D77 ->  | D72: =+negtgel!E77 ->  | E72: =IF(A72=" ","",negtgel!F77) ->  | F72: =+negtgel!G77+negtgel!H77+negtgel!I77+negtgel!J77+negtgel!L77 -> 0 | G72: =IF(A72=" ","",negtgel!K77) ->  | H72: =IF(A72=" ","",negtgel!M77) ->  | J72: =IF(A72=" ","",negtgel!N77+negtgel!O77) ->  | M72: =IF(A72=" ","",negtgel!S77) ->  | O72: =IF(A72=" ","",negtgel!X77) -> 
A73: =+IF(negtgel!B78=""," ",importloh!$A$2) ->  | B73: =+negtgel!C78 ->  | C73: =+negtgel!D78 ->  | D73: =+negtgel!E78 ->  | E73: =IF(A73=" ","",negtgel!F78) ->  | F73: =+negtgel!G78+negtgel!H78+negtgel!I78+negtgel!J78+negtgel!L78 -> 0 | G73: =IF(A73=" ","",negtgel!K78) ->  | H73: =IF(A73=" ","",negtgel!M78) ->  | J73: =IF(A73=" ","",negtgel!N78+negtgel!O78) ->  | M73: =IF(A73=" ","",negtgel!S78) ->  | O73: =IF(A73=" ","",negtgel!X78) -> 
A74: =+IF(negtgel!B79=""," ",importloh!$A$2) ->  | B74: =+negtgel!C79 ->  | C74: =+negtgel!D79 ->  | D74: =+negtgel!E79 ->  | E74: =IF(A74=" ","",negtgel!F79) ->  | F74: =+negtgel!G79+negtgel!H79+negtgel!I79+negtgel!J79+negtgel!L79 -> 0 | G74: =IF(A74=" ","",negtgel!K79) ->  | H74: =IF(A74=" ","",negtgel!M79) ->  | J74: =IF(A74=" ","",negtgel!N79+negtgel!O79) ->  | M74: =IF(A74=" ","",negtgel!S79) ->  | O74: =IF(A74=" ","",negtgel!X79) -> 
A75: =+IF(negtgel!B80=""," ",importloh!$A$2) ->  | B75: =+negtgel!C80 ->  | C75: =+negtgel!D80 ->  | D75: =+negtgel!E80 ->  | E75: =IF(A75=" ","",negtgel!F80) ->  | F75: =+negtgel!G80+negtgel!H80+negtgel!I80+negtgel!J80+negtgel!L80 -> 0 | G75: =IF(A75=" ","",negtgel!K80) ->  | H75: =IF(A75=" ","",negtgel!M80) ->  | J75: =IF(A75=" ","",negtgel!N80+negtgel!O80) ->  | M75: =IF(A75=" ","",negtgel!S80) ->  | O75: =IF(A75=" ","",negtgel!X80) -> 
A76: =+IF(negtgel!B81=""," ",importloh!$A$2) ->  | B76: =+negtgel!C81 ->  | C76: =+negtgel!D81 ->  | D76: =+negtgel!E81 ->  | E76: =IF(A76=" ","",negtgel!F81) ->  | F76: =+negtgel!G81+negtgel!H81+negtgel!I81+negtgel!J81+negtgel!L81 -> 0 | G76: =IF(A76=" ","",negtgel!K81) ->  | H76: =IF(A76=" ","",negtgel!M81) ->  | J76: =IF(A76=" ","",negtgel!N81+negtgel!O81) ->  | M76: =IF(A76=" ","",negtgel!S81) ->  | O76: =IF(A76=" ","",negtgel!X81) -> 
A77: =+IF(negtgel!B82=""," ",importloh!$A$2) ->  | B77: =+negtgel!C82 ->  | C77: =+negtgel!D82 ->  | D77: =+negtgel!E82 ->  | E77: =IF(A77=" ","",negtgel!F82) ->  | F77: =+negtgel!G82+negtgel!H82+negtgel!I82+negtgel!J82+negtgel!L82 -> 0 | G77: =IF(A77=" ","",negtgel!K82) ->  | H77: =IF(A77=" ","",negtgel!M82) ->  | J77: =IF(A77=" ","",negtgel!N82+negtgel!O82) ->  | M77: =IF(A77=" ","",negtgel!S82) ->  | O77: =IF(A77=" ","",negtgel!X82) -> 
A78: =+IF(negtgel!B83=""," ",importloh!$A$2) ->  | B78: =+negtgel!C83 ->  | C78: =+negtgel!D83 ->  | D78: =+negtgel!E83 ->  | E78: =IF(A78=" ","",negtgel!F83) ->  | F78: =+negtgel!G83+negtgel!H83+negtgel!I83+negtgel!J83+negtgel!L83 -> 0 | G78: =IF(A78=" ","",negtgel!K83) ->  | H78: =IF(A78=" ","",negtgel!M83) ->  | J78: =IF(A78=" ","",negtgel!N83+negtgel!O83) ->  | M78: =IF(A78=" ","",negtgel!S83) ->  | O78: =IF(A78=" ","",negtgel!X83) -> 
A79: =+IF(negtgel!B84=""," ",importloh!$A$2) ->  | B79: =+negtgel!C84 ->  | C79: =+negtgel!D84 ->  | D79: =+negtgel!E84 ->  | E79: =IF(A79=" ","",negtgel!F84) ->  | F79: =+negtgel!G84+negtgel!H84+negtgel!I84+negtgel!J84+negtgel!L84 -> 0 | G79: =IF(A79=" ","",negtgel!K84) ->  | H79: =IF(A79=" ","",negtgel!M84) ->  | J79: =IF(A79=" ","",negtgel!N84+negtgel!O84) ->  | M79: =IF(A79=" ","",negtgel!S84) ->  | O79: =IF(A79=" ","",negtgel!X84) -> 
A80: =+IF(negtgel!B85=""," ",importloh!$A$2) ->  | B80: =+negtgel!C85 ->  | C80: =+negtgel!D85 ->  | D80: =+negtgel!E85 ->  | E80: =IF(A80=" ","",negtgel!F85) ->  | F80: =+negtgel!G85+negtgel!H85+negtgel!I85+negtgel!J85+negtgel!L85 -> 0 | G80: =IF(A80=" ","",negtgel!K85) ->  | H80: =IF(A80=" ","",negtgel!M85) ->  | J80: =IF(A80=" ","",negtgel!N85+negtgel!O85) ->  | M80: =IF(A80=" ","",negtgel!S85) ->  | O80: =IF(A80=" ","",negtgel!X85) -> 
A81: =+IF(negtgel!B86=""," ",importloh!$A$2) ->  | B81: =+negtgel!C86 ->  | C81: =+negtgel!D86 ->  | D81: =+negtgel!E86 ->  | E81: =IF(A81=" ","",negtgel!F86) ->  | F81: =+negtgel!G86+negtgel!H86+negtgel!I86+negtgel!J86+negtgel!L86 -> 0 | G81: =IF(A81=" ","",negtgel!K86) ->  | H81: =IF(A81=" ","",negtgel!M86) ->  | J81: =IF(A81=" ","",negtgel!N86+negtgel!O86) ->  | M81: =IF(A81=" ","",negtgel!S86) ->  | O81: =IF(A81=" ","",negtgel!X86) -> 
A82: =+IF(negtgel!B87=""," ",importloh!$A$2) ->  | B82: =+negtgel!C87 ->  | C82: =+negtgel!D87 ->  | D82: =+negtgel!E87 ->  | E82: =IF(A82=" ","",negtgel!F87) ->  | F82: =+negtgel!G87+negtgel!H87+negtgel!I87+negtgel!J87+negtgel!L87 -> 0 | G82: =IF(A82=" ","",negtgel!K87) ->  | H82: =IF(A82=" ","",negtgel!M87) ->  | J82: =IF(A82=" ","",negtgel!N87+negtgel!O87) ->  | M82: =IF(A82=" ","",negtgel!S87) ->  | O82: =IF(A82=" ","",negtgel!X87) -> 
A83: =+IF(negtgel!B88=""," ",importloh!$A$2) ->  | B83: =+negtgel!C88 ->  | C83: =+negtgel!D88 ->  | D83: =+negtgel!E88 ->  | E83: =IF(A83=" ","",negtgel!F88) ->  | F83: =+negtgel!G88+negtgel!H88+negtgel!I88+negtgel!J88+negtgel!L88 -> 0 | G83: =IF(A83=" ","",negtgel!K88) ->  | H83: =IF(A83=" ","",negtgel!M88) ->  | J83: =IF(A83=" ","",negtgel!N88+negtgel!O88) ->  | M83: =IF(A83=" ","",negtgel!S88) ->  | O83: =IF(A83=" ","",negtgel!X88) -> 
A84: =+IF(negtgel!B89=""," ",importloh!$A$2) ->  | B84: =+negtgel!C89 ->  | C84: =+negtgel!D89 ->  | D84: =+negtgel!E89 ->  | E84: =IF(A84=" ","",negtgel!F89) ->  | F84: =+negtgel!G89+negtgel!H89+negtgel!I89+negtgel!J89+negtgel!L89 -> 0 | G84: =IF(A84=" ","",negtgel!K89) ->  | H84: =IF(A84=" ","",negtgel!M89) ->  | J84: =IF(A84=" ","",negtgel!N89+negtgel!O89) ->  | M84: =IF(A84=" ","",negtgel!S89) ->  | O84: =IF(A84=" ","",negtgel!X89) -> 
A85: =+IF(negtgel!B90=""," ",importloh!$A$2) ->  | B85: =+negtgel!C90 ->  | C85: =+negtgel!D90 ->  | D85: =+negtgel!E90 ->  | E85: =IF(A85=" ","",negtgel!F90) ->  | F85: =+negtgel!G90+negtgel!H90+negtgel!I90+negtgel!J90+negtgel!L90 -> 0 | G85: =IF(A85=" ","",negtgel!K90) ->  | H85: =IF(A85=" ","",negtgel!M90) ->  | J85: =IF(A85=" ","",negtgel!N90+negtgel!O90) ->  | M85: =IF(A85=" ","",negtgel!S90) ->  | O85: =IF(A85=" ","",negtgel!X90) -> 
A86: =+IF(negtgel!B91=""," ",importloh!$A$2) ->  | B86: =+negtgel!C91 ->  | C86: =+negtgel!D91 ->  | D86: =+negtgel!E91 ->  | E86: =IF(A86=" ","",negtgel!F91) ->  | F86: =+negtgel!G91+negtgel!H91+negtgel!I91+negtgel!J91+negtgel!L91 -> 0 | G86: =IF(A86=" ","",negtgel!K91) ->  | H86: =IF(A86=" ","",negtgel!M91) ->  | J86: =IF(A86=" ","",negtgel!N91+negtgel!O91) ->  | M86: =IF(A86=" ","",negtgel!S91) ->  | O86: =IF(A86=" ","",negtgel!X91) -> 
A87: =+IF(negtgel!B92=""," ",importloh!$A$2) ->  | B87: =+negtgel!C92 ->  | C87: =+negtgel!D92 ->  | D87: =+negtgel!E92 ->  | E87: =IF(A87=" ","",negtgel!F92) ->  | F87: =+negtgel!G92+negtgel!H92+negtgel!I92+negtgel!J92+negtgel!L92 -> 0 | G87: =IF(A87=" ","",negtgel!K92) ->  | H87: =IF(A87=" ","",negtgel!M92) ->  | J87: =IF(A87=" ","",negtgel!N92+negtgel!O92) ->  | M87: =IF(A87=" ","",negtgel!S92) ->  | O87: =IF(A87=" ","",negtgel!X92) -> 
A88: =+IF(negtgel!B93=""," ",importloh!$A$2) ->  | B88: =+negtgel!C93 ->  | C88: =+negtgel!D93 ->  | D88: =+negtgel!E93 ->  | E88: =IF(A88=" ","",negtgel!F93) ->  | F88: =+negtgel!G93+negtgel!H93+negtgel!I93+negtgel!J93+negtgel!L93 -> 0 | G88: =IF(A88=" ","",negtgel!K93) ->  | H88: =IF(A88=" ","",negtgel!M93) ->  | J88: =IF(A88=" ","",negtgel!N93+negtgel!O93) ->  | M88: =IF(A88=" ","",negtgel!S93) ->  | O88: =IF(A88=" ","",negtgel!X93) -> 
A89: =+IF(negtgel!B94=""," ",importloh!$A$2) ->  | B89: =+negtgel!C94 ->  | C89: =+negtgel!D94 ->  | D89: =+negtgel!E94 ->  | E89: =IF(A89=" ","",negtgel!F94) ->  | F89: =+negtgel!G94+negtgel!H94+negtgel!I94+negtgel!J94+negtgel!L94 -> 0 | G89: =IF(A89=" ","",negtgel!K94) ->  | H89: =IF(A89=" ","",negtgel!M94) ->  | J89: =IF(A89=" ","",negtgel!N94+negtgel!O94) ->  | M89: =IF(A89=" ","",negtgel!S94) ->  | O89: =IF(A89=" ","",negtgel!X94) -> 
A90: =+IF(negtgel!B95=""," ",importloh!$A$2) ->  | B90: =+negtgel!C95 ->  | C90: =+negtgel!D95 ->  | D90: =+negtgel!E95 ->  | E90: =IF(A90=" ","",negtgel!F95) ->  | F90: =+negtgel!G95+negtgel!H95+negtgel!I95+negtgel!J95+negtgel!L95 -> 0 | G90: =IF(A90=" ","",negtgel!K95) ->  | H90: =IF(A90=" ","",negtgel!M95) ->  | J90: =IF(A90=" ","",negtgel!N95+negtgel!O95) ->  | M90: =IF(A90=" ","",negtgel!S95) ->  | O90: =IF(A90=" ","",negtgel!X95) -> 
A91: =+IF(negtgel!B96=""," ",importloh!$A$2) ->  | B91: =+negtgel!C96 ->  | C91: =+negtgel!D96 ->  | D91: =+negtgel!E96 ->  | E91: =IF(A91=" ","",negtgel!F96) ->  | F91: =+negtgel!G96+negtgel!H96+negtgel!I96+negtgel!J96+negtgel!L96 -> 0 | G91: =IF(A91=" ","",negtgel!K96) ->  | H91: =IF(A91=" ","",negtgel!M96) ->  | J91: =IF(A91=" ","",negtgel!N96+negtgel!O96) ->  | K91: =IF(A91=" ","",H91-J91) ->  | L91: =IF(A91=" ","",((E91+F91)-(E91+F91)*I91/100)*0.1) ->  | M91: =IF(A91=" ","",negtgel!S96) ->  | O91: =IF(A91=" ","",negtgel!X96) ->  | Q91: =IF(A91=" ","",(G91-(G91*I91/100))*0.1) ->  | R91: =IF(A91=" ","",P91+Q91) -> 
A92: =+IF(negtgel!B97=""," ",importloh!$A$2) ->  | B92: =+negtgel!C97 ->  | C92: =+negtgel!D97 ->  | D92: =+negtgel!E97 ->  | E92: =IF(A92=" ","",negtgel!F97) ->  | F92: =+negtgel!G97+negtgel!H97+negtgel!I97+negtgel!J97+negtgel!L97 -> 0 | G92: =IF(A92=" ","",negtgel!K97) ->  | H92: =IF(A92=" ","",negtgel!M97) ->  | J92: =IF(A92=" ","",negtgel!N97+negtgel!O97) ->  | M92: =IF(A92=" ","",negtgel!S97) ->  | O92: =IF(A92=" ","",negtgel!X97) -> 
A93: =+IF(negtgel!B98=""," ",importloh!$A$2) ->  | B93: =+negtgel!C98 ->  | C93: =+negtgel!D98 ->  | D93: =+negtgel!E98 ->  | E93: =IF(A93=" ","",negtgel!F98) ->  | F93: =+negtgel!G98+negtgel!H98+negtgel!I98+negtgel!J98+negtgel!L98 -> 0 | G93: =IF(A93=" ","",negtgel!K98) ->  | H93: =IF(A93=" ","",negtgel!M98) ->  | J93: =IF(A93=" ","",negtgel!N98+negtgel!O98) ->  | M93: =IF(A93=" ","",negtgel!S98) ->  | O93: =IF(A93=" ","",negtgel!X98) -> 
A94: =+IF(negtgel!B99=""," ",importloh!$A$2) ->  | B94: =+negtgel!C99 ->  | C94: =+negtgel!D99 ->  | D94: =+negtgel!E99 ->  | E94: =IF(A94=" ","",negtgel!F99) ->  | F94: =+negtgel!G99+negtgel!H99+negtgel!I99+negtgel!J99+negtgel!L99 -> 0 | G94: =IF(A94=" ","",negtgel!K99) ->  | H94: =IF(A94=" ","",negtgel!M99) ->  | J94: =IF(A94=" ","",negtgel!N99+negtgel!O99) ->  | M94: =IF(A94=" ","",negtgel!S99) ->  | O94: =IF(A94=" ","",negtgel!X99) -> 
A95: =+IF(negtgel!B100=""," ",importloh!$A$2) ->  | B95: =+negtgel!C100 ->  | C95: =+negtgel!D100 ->  | D95: =+negtgel!E100 ->  | E95: =IF(A95=" ","",negtgel!F100) ->  | F95: =+negtgel!G100+negtgel!H100+negtgel!I100+negtgel!J100+negtgel!L100 -> 0 | G95: =IF(A95=" ","",negtgel!K100) ->  | H95: =IF(A95=" ","",negtgel!M100) ->  | J95: =IF(A95=" ","",negtgel!N100+negtgel!O100) ->  | M95: =IF(A95=" ","",negtgel!S100) ->  | O95: =IF(A95=" ","",negtgel!X100) -> 
A96: =+IF(negtgel!B101=""," ",importloh!$A$2) ->  | B96: =+negtgel!C101 ->  | C96: =+negtgel!D101 ->  | D96: =+negtgel!E101 ->  | E96: =IF(A96=" ","",negtgel!F101) ->  | F96: =+negtgel!G101+negtgel!H101+negtgel!I101+negtgel!J101+negtgel!L101 -> 0 | G96: =IF(A96=" ","",negtgel!K101) ->  | H96: =IF(A96=" ","",negtgel!M101) ->  | J96: =IF(A96=" ","",negtgel!N101+negtgel!O101) ->  | M96: =IF(A96=" ","",negtgel!S101) ->  | O96: =IF(A96=" ","",negtgel!X101) -> 
A97: =+IF(negtgel!B102=""," ",importloh!$A$2) ->  | B97: =+negtgel!C102 ->  | C97: =+negtgel!D102 ->  | D97: =+negtgel!E102 ->  | E97: =IF(A97=" ","",negtgel!F102) ->  | F97: =+negtgel!G102+negtgel!H102+negtgel!I102+negtgel!J102+negtgel!L102 -> 0 | G97: =IF(A97=" ","",negtgel!K102) ->  | H97: =IF(A97=" ","",negtgel!M102) ->  | J97: =IF(A97=" ","",negtgel!N102+negtgel!O102) ->  | M97: =IF(A97=" ","",negtgel!S102) ->  | O97: =IF(A97=" ","",negtgel!X102) -> 
A98: =+IF(negtgel!B103=""," ",importloh!$A$2) ->  | B98: =+negtgel!C103 ->  | C98: =+negtgel!D103 ->  | D98: =+negtgel!E103 ->  | E98: =IF(A98=" ","",negtgel!F103) ->  | F98: =+negtgel!G103+negtgel!H103+negtgel!I103+negtgel!J103+negtgel!L103 -> 0 | G98: =IF(A98=" ","",negtgel!K103) ->  | H98: =IF(A98=" ","",negtgel!M103) ->  | J98: =IF(A98=" ","",negtgel!N103+negtgel!O103) ->  | M98: =IF(A98=" ","",negtgel!S103) ->  | O98: =IF(A98=" ","",negtgel!X103) -> 
A99: =+IF(negtgel!B104=""," ",importloh!$A$2) ->  | B99: =+negtgel!C104 ->  | C99: =+negtgel!D104 ->  | D99: =+negtgel!E104 ->  | E99: =IF(A99=" ","",negtgel!F104) ->  | F99: =+negtgel!G104+negtgel!H104+negtgel!I104+negtgel!J104+negtgel!L104 -> 0 | G99: =IF(A99=" ","",negtgel!K104) ->  | H99: =IF(A99=" ","",negtgel!M104) ->  | J99: =IF(A99=" ","",negtgel!N104+negtgel!O104) ->  | M99: =IF(A99=" ","",negtgel!S104) ->  | O99: =IF(A99=" ","",negtgel!X104) -> 
A100: =+IF(negtgel!B105=""," ",importloh!$A$2) ->  | B100: =+negtgel!C105 ->  | C100: =+negtgel!D105 ->  | D100: =+negtgel!E105 ->  | E100: =IF(A100=" ","",negtgel!F105) ->  | F100: =+negtgel!G105+negtgel!H105+negtgel!I105+negtgel!J105+negtgel!L105 -> 0 | G100: =IF(A100=" ","",negtgel!K105) ->  | H100: =IF(A100=" ","",negtgel!M105) ->  | J100: =IF(A100=" ","",negtgel!N105+negtgel!O105) ->  | M100: =IF(A100=" ","",negtgel!S105) ->  | O100: =IF(A100=" ","",negtgel!X105) -> 
A101: =+IF(negtgel!B106=""," ",importloh!$A$2) ->  | B101: =+negtgel!C106 ->  | C101: =+negtgel!D106 ->  | D101: =+negtgel!E106 ->  | E101: =IF(A101=" ","",negtgel!F106) ->  | F101: =+negtgel!G106+negtgel!H106+negtgel!I106+negtgel!J106+negtgel!L106 -> 0 | G101: =IF(A101=" ","",negtgel!K106) ->  | H101: =IF(A101=" ","",negtgel!M106) ->  | J101: =IF(A101=" ","",negtgel!N106+negtgel!O106) ->  | M101: =IF(A101=" ","",negtgel!S106) ->  | O101: =IF(A101=" ","",negtgel!X106) -> 
A102: =+IF(negtgel!B107=""," ",importloh!$A$2) ->  | B102: =+negtgel!C107 ->  | C102: =+negtgel!D107 ->  | D102: =+negtgel!E107 ->  | E102: =IF(A102=" ","",negtgel!F107) ->  | F102: =+negtgel!G107+negtgel!H107+negtgel!I107+negtgel!J107+negtgel!L107 -> 0 | G102: =IF(A102=" ","",negtgel!K107) ->  | H102: =IF(A102=" ","",negtgel!M107) ->  | I102: =IF(A102=" ","",IF(H102=0,0,J102/H102*100)) ->  | J102: =IF(A102=" ","",negtgel!N107+negtgel!O107) ->  | K102: =IF(A102=" ","",H102-J102) ->  | L102: =IF(A102=" ","",((E102+F102)-(E102+F102)*I102/100)*0.1) ->  | M102: =IF(A102=" ","",negtgel!S107) ->  | N102: =IF(A102=" ","",IF(M102=0,0,999)) ->  | O102: =IF(A102=" ","",negtgel!X107) ->  | P102: =IF(A102=" ","",L102-O102) ->  | Q102: =IF(A102=" ","",(G102-(G102*I102/100))*0.1) ->  | R102: =IF(A102=" ","",P102+Q102) -> 
A103: =+IF(negtgel!B108=""," ",importloh!$A$2) ->  | B103: =+negtgel!C108 ->  | C103: =+negtgel!D108 ->  | D103: =+negtgel!E108 ->  | E103: =IF(A103=" ","",negtgel!F108) ->  | F103: =+negtgel!G108+negtgel!H108+negtgel!I108+negtgel!J108+negtgel!L108 -> 0 | G103: =IF(A103=" ","",negtgel!K108) ->  | H103: =IF(A103=" ","",negtgel!M108) ->  | J103: =IF(A103=" ","",negtgel!N108+negtgel!O108) ->  | M103: =IF(A103=" ","",negtgel!S108) ->  | O103: =IF(A103=" ","",negtgel!X108) -> 
A104: =+IF(negtgel!B109=""," ",importloh!$A$2) ->  | B104: =+negtgel!C109 ->  | C104: =+negtgel!D109 ->  | D104: =+negtgel!E109 ->  | E104: =IF(A104=" ","",negtgel!F109) ->  | F104: =+negtgel!G109+negtgel!H109+negtgel!I109+negtgel!J109+negtgel!L109 -> 0 | G104: =IF(A104=" ","",negtgel!K109) ->  | H104: =IF(A104=" ","",negtgel!M109) ->  | J104: =IF(A104=" ","",negtgel!N109+negtgel!O109) ->  | M104: =IF(A104=" ","",negtgel!S109) ->  | O104: =IF(A104=" ","",negtgel!X109) -> 
A105: =+IF(negtgel!B110=""," ",importloh!$A$2) ->  | B105: =+negtgel!C110 ->  | C105: =+negtgel!D110 ->  | D105: =+negtgel!E110 ->  | E105: =IF(A105=" ","",negtgel!F110) ->  | F105: =+negtgel!G110+negtgel!H110+negtgel!I110+negtgel!J110+negtgel!L110 -> 0 | G105: =IF(A105=" ","",negtgel!K110) ->  | H105: =IF(A105=" ","",negtgel!M110) ->  | J105: =IF(A105=" ","",negtgel!N110+negtgel!O110) ->  | M105: =IF(A105=" ","",negtgel!S110) ->  | O105: =IF(A105=" ","",negtgel!X110) -> 
A106: =+IF(negtgel!B111=""," ",importloh!$A$2) ->  | B106: =+negtgel!C111 ->  | C106: =+negtgel!D111 ->  | D106: =+negtgel!E111 ->  | E106: =IF(A106=" ","",negtgel!F111) ->  | F106: =+negtgel!G111+negtgel!H111+negtgel!I111+negtgel!J111+negtgel!L111 -> 0 | G106: =IF(A106=" ","",negtgel!K111) ->  | H106: =IF(A106=" ","",negtgel!M111) ->  | J106: =IF(A106=" ","",negtgel!N111+negtgel!O111) ->  | M106: =IF(A106=" ","",negtgel!S111) ->  | O106: =IF(A106=" ","",negtgel!X111) -> 
A107: =+IF(negtgel!B112=""," ",importloh!$A$2) ->  | B107: =+negtgel!C112 ->  | C107: =+negtgel!D112 ->  | D107: =+negtgel!E112 ->  | E107: =IF(A107=" ","",negtgel!F112) ->  | F107: =+negtgel!G112+negtgel!H112+negtgel!I112+negtgel!J112+negtgel!L112 -> 0 | G107: =IF(A107=" ","",negtgel!K112) ->  | H107: =IF(A107=" ","",negtgel!M112) ->  | J107: =IF(A107=" ","",negtgel!N112+negtgel!O112) ->  | M107: =IF(A107=" ","",negtgel!S112) ->  | O107: =IF(A107=" ","",negtgel!X112) -> 
A108: =+IF(negtgel!B113=""," ",importloh!$A$2) ->  | B108: =+negtgel!C113 ->  | C108: =+negtgel!D113 ->  | D108: =+negtgel!E113 ->  | E108: =IF(A108=" ","",negtgel!F113) ->  | F108: =+negtgel!G113+negtgel!H113+negtgel!I113+negtgel!J113+negtgel!L113 -> 0 | G108: =IF(A108=" ","",negtgel!K113) ->  | H108: =IF(A108=" ","",negtgel!M113) ->  | J108: =IF(A108=" ","",negtgel!N113+negtgel!O113) ->  | M108: =IF(A108=" ","",negtgel!S113) ->  | O108: =IF(A108=" ","",negtgel!X113) -> 
A109: =+IF(negtgel!B114=""," ",importloh!$A$2) ->  | B109: =+negtgel!C114 ->  | C109: =+negtgel!D114 ->  | D109: =+negtgel!E114 ->  | E109: =IF(A109=" ","",negtgel!F114) ->  | F109: =+negtgel!G114+negtgel!H114+negtgel!I114+negtgel!J114+negtgel!L114 -> 0 | G109: =IF(A109=" ","",negtgel!K114) ->  | H109: =IF(A109=" ","",negtgel!M114) ->  | J109: =IF(A109=" ","",negtgel!N114+negtgel!O114) ->  | M109: =IF(A109=" ","",negtgel!S114) ->  | O109: =IF(A109=" ","",negtgel!X114) -> 
A110: =+IF(negtgel!B115=""," ",importloh!$A$2) ->  | B110: =+negtgel!C115 ->  | C110: =+negtgel!D115 ->  | D110: =+negtgel!E115 ->  | E110: =IF(A110=" ","",negtgel!F115) ->  | F110: =+negtgel!G115+negtgel!H115+negtgel!I115+negtgel!J115+negtgel!L115 -> 0 | G110: =IF(A110=" ","",negtgel!K115) ->  | H110: =IF(A110=" ","",negtgel!M115) ->  | J110: =IF(A110=" ","",negtgel!N115+negtgel!O115) ->  | M110: =IF(A110=" ","",negtgel!S115) ->  | O110: =IF(A110=" ","",negtgel!X115) -> 
A111: =+IF(negtgel!B116=""," ",importloh!$A$2) ->  | B111: =+negtgel!C116 ->  | C111: =+negtgel!D116 ->  | D111: =+negtgel!E116 ->  | E111: =IF(A111=" ","",negtgel!F116) ->  | F111: =+negtgel!G116+negtgel!H116+negtgel!I116+negtgel!J116+negtgel!L116 -> 0 | G111: =IF(A111=" ","",negtgel!K116) ->  | H111: =IF(A111=" ","",negtgel!M116) ->  | J111: =IF(A111=" ","",negtgel!N116+negtgel!O116) ->  | M111: =IF(A111=" ","",negtgel!S116) ->  | O111: =IF(A111=" ","",negtgel!X116) -> 
A112: =+IF(negtgel!B117=""," ",importloh!$A$2) ->  | B112: =+negtgel!C117 ->  | C112: =+negtgel!D117 ->  | D112: =+negtgel!E117 ->  | E112: =IF(A112=" ","",negtgel!F117) ->  | F112: =+negtgel!G117+negtgel!H117+negtgel!I117+negtgel!J117+negtgel!L117 -> 0 | G112: =IF(A112=" ","",negtgel!K117) ->  | H112: =IF(A112=" ","",negtgel!M117) ->  | J112: =IF(A112=" ","",negtgel!N117+negtgel!O117) ->  | M112: =IF(A112=" ","",negtgel!S117) ->  | O112: =IF(A112=" ","",negtgel!X117) -> 
A113: =+IF(negtgel!B118=""," ",importloh!$A$2) ->  | B113: =+negtgel!C118 ->  | C113: =+negtgel!D118 ->  | D113: =+negtgel!E118 ->  | E113: =IF(A113=" ","",negtgel!F118) ->  | F113: =+negtgel!G118+negtgel!H118+negtgel!I118+negtgel!J118+negtgel!L118 -> 0 | G113: =IF(A113=" ","",negtgel!K118) ->  | H113: =IF(A113=" ","",negtgel!M118) ->  | J113: =IF(A113=" ","",negtgel!N118+negtgel!O118) ->  | M113: =IF(A113=" ","",negtgel!S118) ->  | O113: =IF(A113=" ","",negtgel!X118) -> 
A114: =+IF(negtgel!B119=""," ",importloh!$A$2) ->  | B114: =+negtgel!C119 ->  | C114: =+negtgel!D119 ->  | D114: =+negtgel!E119 ->  | E114: =IF(A114=" ","",negtgel!F119) ->  | F114: =+negtgel!G119+negtgel!H119+negtgel!I119+negtgel!J119+negtgel!L119 -> 0 | G114: =IF(A114=" ","",negtgel!K119) ->  | H114: =IF(A114=" ","",negtgel!M119) ->  | J114: =IF(A114=" ","",negtgel!N119+negtgel!O119) ->  | M114: =IF(A114=" ","",negtgel!S119) ->  | O114: =IF(A114=" ","",negtgel!X119) -> 
A115: =+IF(negtgel!B120=""," ",importloh!$A$2) ->  | B115: =+negtgel!C120 ->  | C115: =+negtgel!D120 ->  | D115: =+negtgel!E120 ->  | E115: =IF(A115=" ","",negtgel!F120) ->  | F115: =+negtgel!G120+negtgel!H120+negtgel!I120+negtgel!J120+negtgel!L120 -> 0 | G115: =IF(A115=" ","",negtgel!K120) ->  | H115: =IF(A115=" ","",negtgel!M120) ->  | J115: =IF(A115=" ","",negtgel!N120+negtgel!O120) ->  | M115: =IF(A115=" ","",negtgel!S120) ->  | O115: =IF(A115=" ","",negtgel!X120) -> 
A116: =+IF(negtgel!B121=""," ",importloh!$A$2) ->  | B116: =+negtgel!C121 ->  | C116: =+negtgel!D121 ->  | D116: =+negtgel!E121 ->  | E116: =IF(A116=" ","",negtgel!F121) ->  | F116: =+negtgel!G121+negtgel!H121+negtgel!I121+negtgel!J121+negtgel!L121 -> 0 | G116: =IF(A116=" ","",negtgel!K121) ->  | H116: =IF(A116=" ","",negtgel!M121) ->  | J116: =IF(A116=" ","",negtgel!N121+negtgel!O121) ->  | M116: =IF(A116=" ","",negtgel!S121) ->  | O116: =IF(A116=" ","",negtgel!X121) -> 
A117: =+IF(negtgel!B122=""," ",importloh!$A$2) ->  | B117: =+negtgel!C122 ->  | C117: =+negtgel!D122 ->  | D117: =+negtgel!E122 ->  | E117: =IF(A117=" ","",negtgel!F122) ->  | F117: =+negtgel!G122+negtgel!H122+negtgel!I122+negtgel!J122+negtgel!L122 -> 0 | G117: =IF(A117=" ","",negtgel!K122) ->  | H117: =IF(A117=" ","",negtgel!M122) ->  | J117: =IF(A117=" ","",negtgel!N122+negtgel!O122) ->  | M117: =IF(A117=" ","",negtgel!S122) ->  | O117: =IF(A117=" ","",negtgel!X122) -> 
A118: =+IF(negtgel!B123=""," ",importloh!$A$2) ->  | B118: =+negtgel!C123 ->  | C118: =+negtgel!D123 ->  | D118: =+negtgel!E123 ->  | E118: =IF(A118=" ","",negtgel!F123) ->  | F118: =+negtgel!G123+negtgel!H123+negtgel!I123+negtgel!J123+negtgel!L123 -> 0 | G118: =IF(A118=" ","",negtgel!K123) ->  | H118: =IF(A118=" ","",negtgel!M123) ->  | J118: =IF(A118=" ","",negtgel!N123+negtgel!O123) ->  | M118: =IF(A118=" ","",negtgel!S123) ->  | O118: =IF(A118=" ","",negtgel!X123) -> 
A119: =+IF(negtgel!B124=""," ",importloh!$A$2) ->  | B119: =+negtgel!C124 ->  | C119: =+negtgel!D124 ->  | D119: =+negtgel!E124 ->  | E119: =IF(A119=" ","",negtgel!F124) ->  | F119: =+negtgel!G124+negtgel!H124+negtgel!I124+negtgel!J124+negtgel!L124 -> 0 | G119: =IF(A119=" ","",negtgel!K124) ->  | H119: =IF(A119=" ","",negtgel!M124) ->  | J119: =IF(A119=" ","",negtgel!N124+negtgel!O124) ->  | M119: =IF(A119=" ","",negtgel!S124) ->  | O119: =IF(A119=" ","",negtgel!X124) -> 
A120: =+IF(negtgel!B125=""," ",importloh!$A$2) ->  | B120: =+negtgel!C125 ->  | C120: =+negtgel!D125 ->  | D120: =+negtgel!E125 ->  | E120: =IF(A120=" ","",negtgel!F125) ->  | F120: =+negtgel!G125+negtgel!H125+negtgel!I125+negtgel!J125+negtgel!L125 -> 0 | G120: =IF(A120=" ","",negtgel!K125) ->  | H120: =IF(A120=" ","",negtgel!M125) ->  | I120: =IF(A120=" ","",IF(H120=0,0,J120/H120*100)) ->  | J120: =IF(A120=" ","",negtgel!N125+negtgel!O125) ->  | K120: =IF(A120=" ","",H120-J120) ->  | L120: =IF(A120=" ","",((E120+F120)-(E120+F120)*I120/100)*0.1) ->  | M120: =IF(A120=" ","",negtgel!S125) ->  | N120: =IF(A120=" ","",IF(M120=0,0,999)) ->  | O120: =IF(A120=" ","",negtgel!X125) ->  | P120: =IF(A120=" ","",L120-O120) ->  | Q120: =IF(A120=" ","",(G120-(G120*I120/100))*0.1) ->  | R120: =IF(A120=" ","",P120+Q120) -> 
A121: =+IF(negtgel!B126=""," ",importloh!$A$2) ->  | B121: =+negtgel!C126 ->  | C121: =+negtgel!D126 ->  | D121: =+negtgel!E126 ->  | E121: =IF(A121=" ","",negtgel!F126) ->  | F121: =+negtgel!G126+negtgel!H126+negtgel!I126+negtgel!J126+negtgel!L126 -> 0 | G121: =IF(A121=" ","",negtgel!K126) ->  | H121: =IF(A121=" ","",negtgel!M126) ->  | J121: =IF(A121=" ","",negtgel!N126+negtgel!O126) ->  | M121: =IF(A121=" ","",negtgel!S126) ->  | O121: =IF(A121=" ","",negtgel!X126) -> 
A122: =+IF(negtgel!B127=""," ",importloh!$A$2) ->  | B122: =+negtgel!C127 ->  | C122: =+negtgel!D127 ->  | D122: =+negtgel!E127 ->  | E122: =IF(A122=" ","",negtgel!F127) ->  | F122: =+negtgel!G127+negtgel!H127+negtgel!I127+negtgel!J127+negtgel!L127 -> 0 | G122: =IF(A122=" ","",negtgel!K127) ->  | H122: =IF(A122=" ","",negtgel!M127) ->  | J122: =IF(A122=" ","",negtgel!N127+negtgel!O127) ->  | M122: =IF(A122=" ","",negtgel!S127) ->  | O122: =IF(A122=" ","",negtgel!X127) -> 
A123: =+IF(negtgel!B128=""," ",importloh!$A$2) ->  | B123: =+negtgel!C128 ->  | C123: =+negtgel!D128 ->  | D123: =+negtgel!E128 ->  | E123: =IF(A123=" ","",negtgel!F128) ->  | F123: =+negtgel!G128+negtgel!H128+negtgel!I128+negtgel!J128+negtgel!L128 -> 0 | G123: =IF(A123=" ","",negtgel!K128) ->  | H123: =IF(A123=" ","",negtgel!M128) ->  | J123: =IF(A123=" ","",negtgel!N128+negtgel!O128) ->  | M123: =IF(A123=" ","",negtgel!S128) ->  | O123: =IF(A123=" ","",negtgel!X128) -> 
A124: =+IF(negtgel!B129=""," ",importloh!$A$2) ->  | B124: =+negtgel!C129 ->  | C124: =+negtgel!D129 ->  | D124: =+negtgel!E129 ->  | E124: =IF(A124=" ","",negtgel!F129) ->  | F124: =+negtgel!G129+negtgel!H129+negtgel!I129+negtgel!J129+negtgel!L129 -> 0 | G124: =IF(A124=" ","",negtgel!K129) ->  | H124: =IF(A124=" ","",negtgel!M129) ->  | J124: =IF(A124=" ","",negtgel!N129+negtgel!O129) ->  | M124: =IF(A124=" ","",negtgel!S129) ->  | O124: =IF(A124=" ","",negtgel!X129) -> 
A125: =+IF(negtgel!B130=""," ",importloh!$A$2) ->  | B125: =+negtgel!C130 ->  | C125: =+negtgel!D130 ->  | D125: =+negtgel!E130 ->  | E125: =IF(A125=" ","",negtgel!F130) ->  | F125: =+negtgel!G130+negtgel!H130+negtgel!I130+negtgel!J130+negtgel!L130 -> 0 | G125: =IF(A125=" ","",negtgel!K130) ->  | H125: =IF(A125=" ","",negtgel!M130) ->  | J125: =IF(A125=" ","",negtgel!N130+negtgel!O130) ->  | M125: =IF(A125=" ","",negtgel!S130) ->  | O125: =IF(A125=" ","",negtgel!X130) -> 
A126: =+IF(negtgel!B131=""," ",importloh!$A$2) ->  | B126: =+negtgel!C131 ->  | C126: =+negtgel!D131 ->  | D126: =+negtgel!E131 ->  | E126: =IF(A126=" ","",negtgel!F131) ->  | F126: =+negtgel!G131+negtgel!H131+negtgel!I131+negtgel!J131+negtgel!L131 -> 0 | G126: =IF(A126=" ","",negtgel!K131) ->  | H126: =IF(A126=" ","",negtgel!M131) ->  | J126: =IF(A126=" ","",negtgel!N131+negtgel!O131) ->  | M126: =IF(A126=" ","",negtgel!S131) ->  | O126: =IF(A126=" ","",negtgel!X131) -> 
A127: =+IF(negtgel!B132=""," ",importloh!$A$2) ->  | B127: =+negtgel!C132 ->  | C127: =+negtgel!D132 ->  | D127: =+negtgel!E132 ->  | E127: =IF(A127=" ","",negtgel!F132) ->  | F127: =+negtgel!G132+negtgel!H132+negtgel!I132+negtgel!J132+negtgel!L132 -> 0 | G127: =IF(A127=" ","",negtgel!K132) ->  | H127: =IF(A127=" ","",negtgel!M132) ->  | J127: =IF(A127=" ","",negtgel!N132+negtgel!O132) ->  | M127: =IF(A127=" ","",negtgel!S132) ->  | O127: =IF(A127=" ","",negtgel!X132) -> 
A128: =+IF(negtgel!B133=""," ",importloh!$A$2) ->  | B128: =+negtgel!C133 ->  | C128: =+negtgel!D133 ->  | D128: =+negtgel!E133 ->  | E128: =IF(A128=" ","",negtgel!F133) ->  | F128: =+negtgel!G133+negtgel!H133+negtgel!I133+negtgel!J133+negtgel!L133 -> 0 | G128: =IF(A128=" ","",negtgel!K133) ->  | H128: =IF(A128=" ","",negtgel!M133) ->  | J128: =IF(A128=" ","",negtgel!N133+negtgel!O133) ->  | M128: =IF(A128=" ","",negtgel!S133) ->  | O128: =IF(A128=" ","",negtgel!X133) -> 
A129: =+IF(negtgel!B134=""," ",importloh!$A$2) ->  | B129: =+negtgel!C134 ->  | C129: =+negtgel!D134 ->  | D129: =+negtgel!E134 ->  | E129: =IF(A129=" ","",negtgel!F134) ->  | F129: =+negtgel!G134+negtgel!H134+negtgel!I134+negtgel!J134+negtgel!L134 -> 0 | G129: =IF(A129=" ","",negtgel!K134) ->  | H129: =IF(A129=" ","",negtgel!M134) ->  | J129: =IF(A129=" ","",negtgel!N134+negtgel!O134) ->  | M129: =IF(A129=" ","",negtgel!S134) ->  | O129: =IF(A129=" ","",negtgel!X134) -> 
A130: =+IF(negtgel!B135=""," ",importloh!$A$2) ->  | B130: =+negtgel!C135 ->  | C130: =+negtgel!D135 ->  | D130: =+negtgel!E135 ->  | E130: =IF(A130=" ","",negtgel!F135) ->  | F130: =+negtgel!G135+negtgel!H135+negtgel!I135+negtgel!J135+negtgel!L135 -> 0 | G130: =IF(A130=" ","",negtgel!K135) ->  | H130: =IF(A130=" ","",negtgel!M135) ->  | J130: =IF(A130=" ","",negtgel!N135+negtgel!O135) ->  | M130: =IF(A130=" ","",negtgel!S135) ->  | O130: =IF(A130=" ","",negtgel!X135) -> 
A131: =+IF(negtgel!B136=""," ",importloh!$A$2) ->  | B131: =+negtgel!C136 ->  | C131: =+negtgel!D136 ->  | D131: =+negtgel!E136 ->  | E131: =IF(A131=" ","",negtgel!F136) ->  | F131: =+negtgel!G136+negtgel!H136+negtgel!I136+negtgel!J136+negtgel!L136 -> 0 | G131: =IF(A131=" ","",negtgel!K136) ->  | H131: =IF(A131=" ","",negtgel!M136) ->  | J131: =IF(A131=" ","",negtgel!N136+negtgel!O136) ->  | M131: =IF(A131=" ","",negtgel!S136) ->  | O131: =IF(A131=" ","",negtgel!X136) -> 
A132: =+IF(negtgel!B137=""," ",importloh!$A$2) ->  | B132: =+negtgel!C137 ->  | C132: =+negtgel!D137 ->  | D132: =+negtgel!E137 ->  | E132: =IF(A132=" ","",negtgel!F137) ->  | F132: =+negtgel!G137+negtgel!H137+negtgel!I137+negtgel!J137+negtgel!L137 -> 0 | G132: =IF(A132=" ","",negtgel!K137) ->  | H132: =IF(A132=" ","",negtgel!M137) ->  | J132: =IF(A132=" ","",negtgel!N137+negtgel!O137) ->  | M132: =IF(A132=" ","",negtgel!S137) ->  | O132: =IF(A132=" ","",negtgel!X137) -> 
A133: =+IF(negtgel!B138=""," ",importloh!$A$2) ->  | B133: =+negtgel!C138 ->  | C133: =+negtgel!D138 ->  | D133: =+negtgel!E138 ->  | E133: =IF(A133=" ","",negtgel!F138) ->  | F133: =+negtgel!G138+negtgel!H138+negtgel!I138+negtgel!J138+negtgel!L138 -> 0 | G133: =IF(A133=" ","",negtgel!K138) ->  | H133: =IF(A133=" ","",negtgel!M138) ->  | J133: =IF(A133=" ","",negtgel!N138+negtgel!O138) ->  | M133: =IF(A133=" ","",negtgel!S138) ->  | O133: =IF(A133=" ","",negtgel!X138) -> 
A134: =+IF(negtgel!B139=""," ",importloh!$A$2) ->  | B134: =+negtgel!C139 ->  | C134: =+negtgel!D139 ->  | D134: =+negtgel!E139 ->  | E134: =IF(A134=" ","",negtgel!F139) ->  | F134: =+negtgel!G139+negtgel!H139+negtgel!I139+negtgel!J139+negtgel!L139 -> 0 | G134: =IF(A134=" ","",negtgel!K139) ->  | H134: =IF(A134=" ","",negtgel!M139) ->  | J134: =IF(A134=" ","",negtgel!N139+negtgel!O139) ->  | M134: =IF(A134=" ","",negtgel!S139) ->  | O134: =IF(A134=" ","",negtgel!X139) -> 
A135: =+IF(negtgel!B140=""," ",importloh!$A$2) ->  | B135: =+negtgel!C140 ->  | C135: =+negtgel!D140 ->  | D135: =+negtgel!E140 ->  | E135: =IF(A135=" ","",negtgel!F140) ->  | F135: =+negtgel!G140+negtgel!H140+negtgel!I140+negtgel!J140+negtgel!L140 -> 0 | G135: =IF(A135=" ","",negtgel!K140) ->  | H135: =IF(A135=" ","",negtgel!M140) ->  | J135: =IF(A135=" ","",negtgel!N140+negtgel!O140) ->  | M135: =IF(A135=" ","",negtgel!S140) ->  | O135: =IF(A135=" ","",negtgel!X140) -> 
A136: =+IF(negtgel!B141=""," ",importloh!$A$2) ->  | B136: =+negtgel!C141 ->  | C136: =+negtgel!D141 ->  | D136: =+negtgel!E141 ->  | E136: =IF(A136=" ","",negtgel!F141) ->  | F136: =+negtgel!G141+negtgel!H141+negtgel!I141+negtgel!J141+negtgel!L141 -> 0 | G136: =IF(A136=" ","",negtgel!K141) ->  | H136: =IF(A136=" ","",negtgel!M141) ->  | J136: =IF(A136=" ","",negtgel!N141+negtgel!O141) ->  | M136: =IF(A136=" ","",negtgel!S141) ->  | O136: =IF(A136=" ","",negtgel!X141) -> 
A137: =+IF(negtgel!B142=""," ",importloh!$A$2) ->  | B137: =+negtgel!C142 ->  | C137: =+negtgel!D142 ->  | D137: =+negtgel!E142 ->  | E137: =IF(A137=" ","",negtgel!F142) ->  | F137: =+negtgel!G142+negtgel!H142+negtgel!I142+negtgel!J142+negtgel!L142 -> 0 | G137: =IF(A137=" ","",negtgel!K142) ->  | H137: =IF(A137=" ","",negtgel!M142) ->  | J137: =IF(A137=" ","",negtgel!N142+negtgel!O142) ->  | M137: =IF(A137=" ","",negtgel!S142) ->  | O137: =IF(A137=" ","",negtgel!X142) -> 
A138: =+IF(negtgel!B143=""," ",importloh!$A$2) ->  | B138: =+negtgel!C143 ->  | C138: =+negtgel!D143 ->  | D138: =+negtgel!E143 ->  | E138: =IF(A138=" ","",negtgel!F143) ->  | F138: =+negtgel!G143+negtgel!H143+negtgel!I143+negtgel!J143+negtgel!L143 -> 0 | G138: =IF(A138=" ","",negtgel!K143) ->  | H138: =IF(A138=" ","",negtgel!M143) ->  | J138: =IF(A138=" ","",negtgel!N143+negtgel!O143) ->  | M138: =IF(A138=" ","",negtgel!S143) ->  | O138: =IF(A138=" ","",negtgel!X143) -> 
A139: =+IF(negtgel!B144=""," ",importloh!$A$2) ->  | B139: =+negtgel!C144 ->  | C139: =+negtgel!D144 ->  | D139: =+negtgel!E144 ->  | E139: =IF(A139=" ","",negtgel!F144) ->  | F139: =+negtgel!G144+negtgel!H144+negtgel!I144+negtgel!J144+negtgel!L144 -> 0 | G139: =IF(A139=" ","",negtgel!K144) ->  | H139: =IF(A139=" ","",negtgel!M144) ->  | J139: =IF(A139=" ","",negtgel!N144+negtgel!O144) ->  | M139: =IF(A139=" ","",negtgel!S144) ->  | O139: =IF(A139=" ","",negtgel!X144) -> 
A140: =+IF(negtgel!B145=""," ",importloh!$A$2) ->  | B140: =+negtgel!C145 ->  | C140: =+negtgel!D145 ->  | D140: =+negtgel!E145 ->  | E140: =IF(A140=" ","",negtgel!F145) ->  | F140: =+negtgel!G145+negtgel!H145+negtgel!I145+negtgel!J145+negtgel!L145 -> 0 | G140: =IF(A140=" ","",negtgel!K145) ->  | H140: =IF(A140=" ","",negtgel!M145) ->  | J140: =IF(A140=" ","",negtgel!N145+negtgel!O145) ->  | M140: =IF(A140=" ","",negtgel!S145) ->  | O140: =IF(A140=" ","",negtgel!X145) -> 
A141: =+IF(negtgel!B146=""," ",importloh!$A$2) ->  | B141: =+negtgel!C146 ->  | C141: =+negtgel!D146 ->  | D141: =+negtgel!E146 ->  | E141: =IF(A141=" ","",negtgel!F146) ->  | F141: =+negtgel!G146+negtgel!H146+negtgel!I146+negtgel!J146+negtgel!L146 -> 0 | G141: =IF(A141=" ","",negtgel!K146) ->  | H141: =IF(A141=" ","",negtgel!M146) ->  | J141: =IF(A141=" ","",negtgel!N146+negtgel!O146) ->  | M141: =IF(A141=" ","",negtgel!S146) ->  | O141: =IF(A141=" ","",negtgel!X146) -> 
A142: =+IF(negtgel!B147=""," ",importloh!$A$2) ->  | B142: =+negtgel!C147 ->  | C142: =+negtgel!D147 ->  | D142: =+negtgel!E147 ->  | E142: =IF(A142=" ","",negtgel!F147) ->  | F142: =+negtgel!G147+negtgel!H147+negtgel!I147+negtgel!J147+negtgel!L147 -> 0 | G142: =IF(A142=" ","",negtgel!K147) ->  | H142: =IF(A142=" ","",negtgel!M147) ->  | J142: =IF(A142=" ","",negtgel!N147+negtgel!O147) ->  | M142: =IF(A142=" ","",negtgel!S147) ->  | O142: =IF(A142=" ","",negtgel!X147) -> 
A143: =+IF(negtgel!B148=""," ",importloh!$A$2) ->  | B143: =+negtgel!C148 ->  | C143: =+negtgel!D148 ->  | D143: =+negtgel!E148 ->  | E143: =IF(A143=" ","",negtgel!F148) ->  | F143: =+negtgel!G148+negtgel!H148+negtgel!I148+negtgel!J148+negtgel!L148 -> 0 | G143: =IF(A143=" ","",negtgel!K148) ->  | H143: =IF(A143=" ","",negtgel!M148) ->  | J143: =IF(A143=" ","",negtgel!N148+negtgel!O148) ->  | M143: =IF(A143=" ","",negtgel!S148) ->  | O143: =IF(A143=" ","",negtgel!X148) -> 
A144: =+IF(negtgel!B149=""," ",importloh!$A$2) ->  | B144: =+negtgel!C149 ->  | C144: =+negtgel!D149 ->  | D144: =+negtgel!E149 ->  | E144: =IF(A144=" ","",negtgel!F149) ->  | F144: =+negtgel!G149+negtgel!H149+negtgel!I149+negtgel!J149+negtgel!L149 -> 0 | G144: =IF(A144=" ","",negtgel!K149) ->  | H144: =IF(A144=" ","",negtgel!M149) ->  | J144: =IF(A144=" ","",negtgel!N149+negtgel!O149) ->  | M144: =IF(A144=" ","",negtgel!S149) ->  | O144: =IF(A144=" ","",negtgel!X149) -> 
A145: =+IF(negtgel!B150=""," ",importloh!$A$2) ->  | B145: =+negtgel!C150 ->  | C145: =+negtgel!D150 ->  | D145: =+negtgel!E150 ->  | E145: =IF(A145=" ","",negtgel!F150) ->  | F145: =+negtgel!G150+negtgel!H150+negtgel!I150+negtgel!J150+negtgel!L150 -> 0 | G145: =IF(A145=" ","",negtgel!K150) ->  | H145: =IF(A145=" ","",negtgel!M150) ->  | J145: =IF(A145=" ","",negtgel!N150+negtgel!O150) ->  | M145: =IF(A145=" ","",negtgel!S150) ->  | O145: =IF(A145=" ","",negtgel!X150) -> 
A146: =+IF(negtgel!B151=""," ",importloh!$A$2) ->  | B146: =+negtgel!C151 ->  | C146: =+negtgel!D151 ->  | D146: =+negtgel!E151 ->  | E146: =IF(A146=" ","",negtgel!F151) ->  | F146: =+negtgel!G151+negtgel!H151+negtgel!I151+negtgel!J151+negtgel!L151 -> 0 | G146: =IF(A146=" ","",negtgel!K151) ->  | H146: =IF(A146=" ","",negtgel!M151) ->  | J146: =IF(A146=" ","",negtgel!N151+negtgel!O151) ->  | M146: =IF(A146=" ","",negtgel!S151) ->  | O146: =IF(A146=" ","",negtgel!X151) -> 
A147: =+IF(negtgel!B152=""," ",importloh!$A$2) ->  | B147: =+negtgel!C152 ->  | C147: =+negtgel!D152 ->  | D147: =+negtgel!E152 ->  | E147: =IF(A147=" ","",negtgel!F152) ->  | F147: =+negtgel!G152+negtgel!H152+negtgel!I152+negtgel!J152+negtgel!L152 -> 0 | G147: =IF(A147=" ","",negtgel!K152) ->  | H147: =IF(A147=" ","",negtgel!M152) ->  | J147: =IF(A147=" ","",negtgel!N152+negtgel!O152) ->  | M147: =IF(A147=" ","",negtgel!S152) ->  | O147: =IF(A147=" ","",negtgel!X152) -> 
A148: =+IF(negtgel!B153=""," ",importloh!$A$2) ->  | B148: =+negtgel!C153 ->  | C148: =+negtgel!D153 ->  | D148: =+negtgel!E153 ->  | E148: =IF(A148=" ","",negtgel!F153) ->  | F148: =+negtgel!G153+negtgel!H153+negtgel!I153+negtgel!J153+negtgel!L153 -> 0 | G148: =IF(A148=" ","",negtgel!K153) ->  | H148: =IF(A148=" ","",negtgel!M153) ->  | J148: =IF(A148=" ","",negtgel!N153+negtgel!O153) ->  | M148: =IF(A148=" ","",negtgel!S153) ->  | O148: =IF(A148=" ","",negtgel!X153) -> 
A149: =+IF(negtgel!B154=""," ",importloh!$A$2) ->  | B149: =+negtgel!C154 ->  | C149: =+negtgel!D154 ->  | D149: =+negtgel!E154 ->  | E149: =IF(A149=" ","",negtgel!F154) ->  | F149: =+negtgel!G154+negtgel!H154+negtgel!I154+negtgel!J154+negtgel!L154 -> 0 | G149: =IF(A149=" ","",negtgel!K154) ->  | H149: =IF(A149=" ","",negtgel!M154) ->  | J149: =IF(A149=" ","",negtgel!N154+negtgel!O154) ->  | M149: =IF(A149=" ","",negtgel!S154) ->  | O149: =IF(A149=" ","",negtgel!X154) -> 
A150: =+IF(negtgel!B155=""," ",importloh!$A$2) ->  | B150: =+negtgel!C155 ->  | C150: =+negtgel!D155 ->  | D150: =+negtgel!E155 ->  | E150: =IF(A150=" ","",negtgel!F155) ->  | F150: =+negtgel!G155+negtgel!H155+negtgel!I155+negtgel!J155+negtgel!L155 -> 0 | G150: =IF(A150=" ","",negtgel!K155) ->  | H150: =IF(A150=" ","",negtgel!M155) ->  | J150: =IF(A150=" ","",negtgel!N155+negtgel!O155) ->  | M150: =IF(A150=" ","",negtgel!S155) ->  | O150: =IF(A150=" ","",negtgel!X155) -> 
A151: =+IF(negtgel!B156=""," ",importloh!$A$2) ->  | B151: =+negtgel!C156 ->  | C151: =+negtgel!D156 ->  | D151: =+negtgel!E156 ->  | E151: =IF(A151=" ","",negtgel!F156) ->  | F151: =+negtgel!G156+negtgel!H156+negtgel!I156+negtgel!J156+negtgel!L156 -> 0 | G151: =IF(A151=" ","",negtgel!K156) ->  | H151: =IF(A151=" ","",negtgel!M156) ->  | J151: =IF(A151=" ","",negtgel!N156+negtgel!O156) ->  | M151: =IF(A151=" ","",negtgel!S156) ->  | O151: =IF(A151=" ","",negtgel!X156) -> 
A152: =+IF(negtgel!B157=""," ",importloh!$A$2) ->  | B152: =+negtgel!C157 ->  | C152: =+negtgel!D157 ->  | D152: =+negtgel!E157 ->  | E152: =IF(A152=" ","",negtgel!F157) ->  | F152: =+negtgel!G157+negtgel!H157+negtgel!I157+negtgel!J157+negtgel!L157 -> 0 | G152: =IF(A152=" ","",negtgel!K157) ->  | H152: =IF(A152=" ","",negtgel!M157) ->  | J152: =IF(A152=" ","",negtgel!N157+negtgel!O157) ->  | M152: =IF(A152=" ","",negtgel!S157) ->  | O152: =IF(A152=" ","",negtgel!X157) -> 
A153: =+IF(negtgel!B158=""," ",importloh!$A$2) ->  | B153: =+negtgel!C158 ->  | C153: =+negtgel!D158 ->  | D153: =+negtgel!E158 ->  | E153: =IF(A153=" ","",negtgel!F158) ->  | F153: =+negtgel!G158+negtgel!H158+negtgel!I158+negtgel!J158+negtgel!L158 -> 0 | G153: =IF(A153=" ","",negtgel!K158) ->  | H153: =IF(A153=" ","",negtgel!M158) ->  | J153: =IF(A153=" ","",negtgel!N158+negtgel!O158) ->  | M153: =IF(A153=" ","",negtgel!S158) ->  | O153: =IF(A153=" ","",negtgel!X158) -> 
A154: =+IF(negtgel!B159=""," ",importloh!$A$2) ->  | B154: =+negtgel!C159 ->  | C154: =+negtgel!D159 ->  | D154: =+negtgel!E159 ->  | E154: =IF(A154=" ","",negtgel!F159) ->  | F154: =+negtgel!G159+negtgel!H159+negtgel!I159+negtgel!J159+negtgel!L159 -> 0 | G154: =IF(A154=" ","",negtgel!K159) ->  | H154: =IF(A154=" ","",negtgel!M159) ->  | J154: =IF(A154=" ","",negtgel!N159+negtgel!O159) ->  | M154: =IF(A154=" ","",negtgel!S159) ->  | O154: =IF(A154=" ","",negtgel!X159) -> 
A155: =+IF(negtgel!B160=""," ",importloh!$A$2) ->  | B155: =+negtgel!C160 ->  | C155: =+negtgel!D160 ->  | D155: =+negtgel!E160 ->  | E155: =IF(A155=" ","",negtgel!F160) ->  | F155: =+negtgel!G160+negtgel!H160+negtgel!I160+negtgel!J160+negtgel!L160 -> 0 | G155: =IF(A155=" ","",negtgel!K160) ->  | H155: =IF(A155=" ","",negtgel!M160) ->  | J155: =IF(A155=" ","",negtgel!N160+negtgel!O160) ->  | M155: =IF(A155=" ","",negtgel!S160) ->  | O155: =IF(A155=" ","",negtgel!X160) -> 
A156: =+IF(negtgel!B161=""," ",importloh!$A$2) ->  | B156: =+negtgel!C161 ->  | C156: =+negtgel!D161 ->  | D156: =+negtgel!E161 ->  | E156: =IF(A156=" ","",negtgel!F161) ->  | F156: =+negtgel!G161+negtgel!H161+negtgel!I161+negtgel!J161+negtgel!L161 -> 0 | G156: =IF(A156=" ","",negtgel!K161) ->  | H156: =IF(A156=" ","",negtgel!M161) ->  | J156: =IF(A156=" ","",negtgel!N161+negtgel!O161) ->  | M156: =IF(A156=" ","",negtgel!S161) ->  | O156: =IF(A156=" ","",negtgel!X161) -> 
A157: =+IF(negtgel!B162=""," ",importloh!$A$2) ->  | B157: =+negtgel!C162 ->  | C157: =+negtgel!D162 ->  | D157: =+negtgel!E162 ->  | E157: =IF(A157=" ","",negtgel!F162) ->  | F157: =+negtgel!G162+negtgel!H162+negtgel!I162+negtgel!J162+negtgel!L162 -> 0 | G157: =IF(A157=" ","",negtgel!K162) ->  | H157: =IF(A157=" ","",negtgel!M162) ->  | J157: =IF(A157=" ","",negtgel!N162+negtgel!O162) ->  | M157: =IF(A157=" ","",negtgel!S162) ->  | O157: =IF(A157=" ","",negtgel!X162) -> 
A158: =+IF(negtgel!B163=""," ",importloh!$A$2) ->  | B158: =+negtgel!C163 ->  | C158: =+negtgel!D163 ->  | D158: =+negtgel!E163 ->  | E158: =IF(A158=" ","",negtgel!F163) ->  | F158: =+negtgel!G163+negtgel!H163+negtgel!I163+negtgel!J163+negtgel!L163 -> 0 | G158: =IF(A158=" ","",negtgel!K163) ->  | H158: =IF(A158=" ","",negtgel!M163) ->  | J158: =IF(A158=" ","",negtgel!N163+negtgel!O163) ->  | M158: =IF(A158=" ","",negtgel!S163) ->  | O158: =IF(A158=" ","",negtgel!X163) -> 
A159: =+IF(negtgel!B164=""," ",importloh!$A$2) ->  | B159: =+negtgel!C164 ->  | C159: =+negtgel!D164 ->  | D159: =+negtgel!E164 ->  | E159: =IF(A159=" ","",negtgel!F164) ->  | F159: =+negtgel!G164+negtgel!H164+negtgel!I164+negtgel!J164+negtgel!L164 -> 0 | G159: =IF(A159=" ","",negtgel!K164) ->  | H159: =IF(A159=" ","",negtgel!M164) ->  | J159: =IF(A159=" ","",negtgel!N164+negtgel!O164) ->  | M159: =IF(A159=" ","",negtgel!S164) ->  | O159: =IF(A159=" ","",negtgel!X164) -> 
A160: =+IF(negtgel!B165=""," ",importloh!$A$2) ->  | B160: =+negtgel!C165 ->  | C160: =+negtgel!D165 ->  | D160: =+negtgel!E165 ->  | E160: =IF(A160=" ","",negtgel!F165) ->  | F160: =+negtgel!G165+negtgel!H165+negtgel!I165+negtgel!J165+negtgel!L165 -> 0 | G160: =IF(A160=" ","",negtgel!K165) ->  | H160: =IF(A160=" ","",negtgel!M165) ->  | J160: =IF(A160=" ","",negtgel!N165+negtgel!O165) ->  | M160: =IF(A160=" ","",negtgel!S165) ->  | O160: =IF(A160=" ","",negtgel!X165) -> 
A161: =+IF(negtgel!B166=""," ",importloh!$A$2) ->  | B161: =+negtgel!C166 ->  | C161: =+negtgel!D166 ->  | D161: =+negtgel!E166 ->  | E161: =IF(A161=" ","",negtgel!F166) ->  | F161: =+negtgel!G166+negtgel!H166+negtgel!I166+negtgel!J166+negtgel!L166 -> 0 | G161: =IF(A161=" ","",negtgel!K166) ->  | H161: =IF(A161=" ","",negtgel!M166) ->  | J161: =IF(A161=" ","",negtgel!N166+negtgel!O166) ->  | M161: =IF(A161=" ","",negtgel!S166) ->  | O161: =IF(A161=" ","",negtgel!X166) -> 
A162: =+IF(negtgel!B167=""," ",importloh!$A$2) ->  | B162: =+negtgel!C167 ->  | C162: =+negtgel!D167 ->  | D162: =+negtgel!E167 ->  | E162: =IF(A162=" ","",negtgel!F167) ->  | F162: =+negtgel!G167+negtgel!H167+negtgel!I167+negtgel!J167+negtgel!L167 -> 0 | G162: =IF(A162=" ","",negtgel!K167) ->  | H162: =IF(A162=" ","",negtgel!M167) ->  | J162: =IF(A162=" ","",negtgel!N167+negtgel!O167) ->  | M162: =IF(A162=" ","",negtgel!S167) ->  | O162: =IF(A162=" ","",negtgel!X167) -> 
A163: =+IF(negtgel!B168=""," ",importloh!$A$2) ->  | B163: =+negtgel!C168 ->  | C163: =+negtgel!D168 ->  | D163: =+negtgel!E168 ->  | E163: =IF(A163=" ","",negtgel!F168) ->  | F163: =+negtgel!G168+negtgel!H168+negtgel!I168+negtgel!J168+negtgel!L168 -> 0 | G163: =IF(A163=" ","",negtgel!K168) ->  | H163: =IF(A163=" ","",negtgel!M168) ->  | J163: =IF(A163=" ","",negtgel!N168+negtgel!O168) ->  | M163: =IF(A163=" ","",negtgel!S168) ->  | O163: =IF(A163=" ","",negtgel!X168) -> 
A164: =+IF(negtgel!B169=""," ",importloh!$A$2) ->  | B164: =+negtgel!C169 ->  | C164: =+negtgel!D169 ->  | D164: =+negtgel!E169 ->  | E164: =IF(A164=" ","",negtgel!F169) ->  | F164: =+negtgel!G169+negtgel!H169+negtgel!I169+negtgel!J169+negtgel!L169 -> 0 | G164: =IF(A164=" ","",negtgel!K169) ->  | H164: =IF(A164=" ","",negtgel!M169) ->  | J164: =IF(A164=" ","",negtgel!N169+negtgel!O169) ->  | M164: =IF(A164=" ","",negtgel!S169) ->  | O164: =IF(A164=" ","",negtgel!X169) -> 
A165: =+IF(negtgel!B170=""," ",importloh!$A$2) ->  | B165: =+negtgel!C170 ->  | C165: =+negtgel!D170 ->  | D165: =+negtgel!E170 ->  | E165: =IF(A165=" ","",negtgel!F170) ->  | F165: =+negtgel!G170+negtgel!H170+negtgel!I170+negtgel!J170+negtgel!L170 -> 0 | G165: =IF(A165=" ","",negtgel!K170) ->  | H165: =IF(A165=" ","",negtgel!M170) ->  | J165: =IF(A165=" ","",negtgel!N170+negtgel!O170) ->  | M165: =IF(A165=" ","",negtgel!S170) ->  | O165: =IF(A165=" ","",negtgel!X170) -> 
A166: =+IF(negtgel!B171=""," ",importloh!$A$2) ->  | B166: =+negtgel!C171 ->  | C166: =+negtgel!D171 ->  | D166: =+negtgel!E171 ->  | E166: =IF(A166=" ","",negtgel!F171) ->  | F166: =+negtgel!G171+negtgel!H171+negtgel!I171+negtgel!J171+negtgel!L171 -> 0 | G166: =IF(A166=" ","",negtgel!K171) ->  | H166: =IF(A166=" ","",negtgel!M171) ->  | J166: =IF(A166=" ","",negtgel!N171+negtgel!O171) ->  | M166: =IF(A166=" ","",negtgel!S171) ->  | O166: =IF(A166=" ","",negtgel!X171) -> 
A167: =+IF(negtgel!B172=""," ",importloh!$A$2) ->  | B167: =+negtgel!C172 ->  | C167: =+negtgel!D172 ->  | D167: =+negtgel!E172 ->  | E167: =IF(A167=" ","",negtgel!F172) ->  | F167: =+negtgel!G172+negtgel!H172+negtgel!I172+negtgel!J172+negtgel!L172 -> 0 | G167: =IF(A167=" ","",negtgel!K172) ->  | H167: =IF(A167=" ","",negtgel!M172) ->  | J167: =IF(A167=" ","",negtgel!N172+negtgel!O172) ->  | M167: =IF(A167=" ","",negtgel!S172) ->  | O167: =IF(A167=" ","",negtgel!X172) -> 
A168: =+IF(negtgel!B173=""," ",importloh!$A$2) ->  | B168: =+negtgel!C173 ->  | C168: =+negtgel!D173 ->  | D168: =+negtgel!E173 ->  | E168: =IF(A168=" ","",negtgel!F173) ->  | F168: =+negtgel!G173+negtgel!H173+negtgel!I173+negtgel!J173+negtgel!L173 -> 0 | G168: =IF(A168=" ","",negtgel!K173) ->  | H168: =IF(A168=" ","",negtgel!M173) ->  | J168: =IF(A168=" ","",negtgel!N173+negtgel!O173) ->  | M168: =IF(A168=" ","",negtgel!S173) ->  | O168: =IF(A168=" ","",negtgel!X173) -> 
A169: =+IF(negtgel!B174=""," ",importloh!$A$2) ->  | B169: =+negtgel!C174 ->  | C169: =+negtgel!D174 ->  | D169: =+negtgel!E174 ->  | E169: =IF(A169=" ","",negtgel!F174) ->  | F169: =+negtgel!G174+negtgel!H174+negtgel!I174+negtgel!J174+negtgel!L174 -> 0 | G169: =IF(A169=" ","",negtgel!K174) ->  | H169: =IF(A169=" ","",negtgel!M174) ->  | J169: =IF(A169=" ","",negtgel!N174+negtgel!O174) ->  | M169: =IF(A169=" ","",negtgel!S174) ->  | O169: =IF(A169=" ","",negtgel!X174) -> 
A170: =+IF(negtgel!B175=""," ",importloh!$A$2) ->  | B170: =+negtgel!C175 ->  | C170: =+negtgel!D175 ->  | D170: =+negtgel!E175 ->  | E170: =IF(A170=" ","",negtgel!F175) ->  | F170: =+negtgel!G175+negtgel!H175+negtgel!I175+negtgel!J175+negtgel!L175 -> 0 | G170: =IF(A170=" ","",negtgel!K175) ->  | H170: =IF(A170=" ","",negtgel!M175) ->  | J170: =IF(A170=" ","",negtgel!N175+negtgel!O175) ->  | M170: =IF(A170=" ","",negtgel!S175) ->  | O170: =IF(A170=" ","",negtgel!X175) -> 
A171: =+IF(negtgel!B176=""," ",importloh!$A$2) ->  | B171: =+negtgel!C176 ->  | C171: =+negtgel!D176 ->  | D171: =+negtgel!E176 ->  | E171: =IF(A171=" ","",negtgel!F176) ->  | F171: =+negtgel!G176+negtgel!H176+negtgel!I176+negtgel!J176+negtgel!L176 -> 0 | G171: =IF(A171=" ","",negtgel!K176) ->  | H171: =IF(A171=" ","",negtgel!M176) ->  | J171: =IF(A171=" ","",negtgel!N176+negtgel!O176) ->  | M171: =IF(A171=" ","",negtgel!S176) ->  | O171: =IF(A171=" ","",negtgel!X176) -> 
A172: =+IF(negtgel!B177=""," ",importloh!$A$2) ->  | B172: =+negtgel!C177 ->  | C172: =+negtgel!D177 ->  | D172: =+negtgel!E177 ->  | E172: =IF(A172=" ","",negtgel!F177) ->  | F172: =+negtgel!G177+negtgel!H177+negtgel!I177+negtgel!J177+negtgel!L177 -> 0 | G172: =IF(A172=" ","",negtgel!K177) ->  | H172: =IF(A172=" ","",negtgel!M177) ->  | J172: =IF(A172=" ","",negtgel!N177+negtgel!O177) ->  | M172: =IF(A172=" ","",negtgel!S177) ->  | O172: =IF(A172=" ","",negtgel!X177) -> 
A173: =+IF(negtgel!B178=""," ",importloh!$A$2) ->  | B173: =+negtgel!C178 ->  | C173: =+negtgel!D178 ->  | D173: =+negtgel!E178 ->  | E173: =IF(A173=" ","",negtgel!F178) ->  | F173: =+negtgel!G178+negtgel!H178+negtgel!I178+negtgel!J178+negtgel!L178 -> 0 | G173: =IF(A173=" ","",negtgel!K178) ->  | H173: =IF(A173=" ","",negtgel!M178) ->  | J173: =IF(A173=" ","",negtgel!N178+negtgel!O178) ->  | M173: =IF(A173=" ","",negtgel!S178) ->  | O173: =IF(A173=" ","",negtgel!X178) -> 
A174: =+IF(negtgel!B179=""," ",importloh!$A$2) ->  | B174: =+negtgel!C179 ->  | C174: =+negtgel!D179 ->  | D174: =+negtgel!E179 ->  | E174: =IF(A174=" ","",negtgel!F179) ->  | F174: =+negtgel!G179+negtgel!H179+negtgel!I179+negtgel!J179+negtgel!L179 -> 0 | G174: =IF(A174=" ","",negtgel!K179) ->  | H174: =IF(A174=" ","",negtgel!M179) ->  | J174: =IF(A174=" ","",negtgel!N179+negtgel!O179) ->  | M174: =IF(A174=" ","",negtgel!S179) ->  | O174: =IF(A174=" ","",negtgel!X179) -> 
A175: =+IF(negtgel!B180=""," ",importloh!$A$2) ->  | B175: =+negtgel!C180 ->  | C175: =+negtgel!D180 ->  | D175: =+negtgel!E180 ->  | E175: =IF(A175=" ","",negtgel!F180) ->  | F175: =+negtgel!G180+negtgel!H180+negtgel!I180+negtgel!J180+negtgel!L180 -> 0 | G175: =IF(A175=" ","",negtgel!K180) ->  | H175: =IF(A175=" ","",negtgel!M180) ->  | J175: =IF(A175=" ","",negtgel!N180+negtgel!O180) ->  | M175: =IF(A175=" ","",negtgel!S180) ->  | O175: =IF(A175=" ","",negtgel!X180) -> 
A176: =+IF(negtgel!B181=""," ",importloh!$A$2) ->  | B176: =+negtgel!C181 ->  | C176: =+negtgel!D181 ->  | D176: =+negtgel!E181 ->  | E176: =IF(A176=" ","",negtgel!F181) ->  | F176: =+negtgel!G181+negtgel!H181+negtgel!I181+negtgel!J181+negtgel!L181 -> 0 | G176: =IF(A176=" ","",negtgel!K181) ->  | H176: =IF(A176=" ","",negtgel!M181) ->  | J176: =IF(A176=" ","",negtgel!N181+negtgel!O181) ->  | M176: =IF(A176=" ","",negtgel!S181) ->  | O176: =IF(A176=" ","",negtgel!X181) -> 
A177: =+IF(negtgel!B182=""," ",importloh!$A$2) ->  | B177: =+negtgel!C182 ->  | C177: =+negtgel!D182 ->  | D177: =+negtgel!E182 ->  | E177: =IF(A177=" ","",negtgel!F182) ->  | F177: =+negtgel!G182+negtgel!H182+negtgel!I182+negtgel!J182+negtgel!L182 -> 0 | G177: =IF(A177=" ","",negtgel!K182) ->  | H177: =IF(A177=" ","",negtgel!M182) ->  | J177: =IF(A177=" ","",negtgel!N182+negtgel!O182) ->  | M177: =IF(A177=" ","",negtgel!S182) ->  | O177: =IF(A177=" ","",negtgel!X182) -> 
A178: =+IF(negtgel!B183=""," ",importloh!$A$2) ->  | B178: =+negtgel!C183 ->  | C178: =+negtgel!D183 ->  | D178: =+negtgel!E183 ->  | E178: =IF(A178=" ","",negtgel!F183) ->  | F178: =+negtgel!G183+negtgel!H183+negtgel!I183+negtgel!J183+negtgel!L183 -> 0 | G178: =IF(A178=" ","",negtgel!K183) ->  | H178: =IF(A178=" ","",negtgel!M183) ->  | J178: =IF(A178=" ","",negtgel!N183+negtgel!O183) ->  | M178: =IF(A178=" ","",negtgel!S183) ->  | O178: =IF(A178=" ","",negtgel!X183) -> 
A179: =+IF(negtgel!B184=""," ",importloh!$A$2) ->  | B179: =+negtgel!C184 ->  | C179: =+negtgel!D184 ->  | D179: =+negtgel!E184 ->  | E179: =IF(A179=" ","",negtgel!F184) ->  | F179: =+negtgel!G184+negtgel!H184+negtgel!I184+negtgel!J184+negtgel!L184 -> 0 | G179: =IF(A179=" ","",negtgel!K184) ->  | H179: =IF(A179=" ","",negtgel!M184) ->  | J179: =IF(A179=" ","",negtgel!N184+negtgel!O184) ->  | M179: =IF(A179=" ","",negtgel!S184) ->  | O179: =IF(A179=" ","",negtgel!X184) -> 
A180: =+IF(negtgel!B185=""," ",importloh!$A$2) ->  | B180: =+negtgel!C185 ->  | C180: =+negtgel!D185 ->  | D180: =+negtgel!E185 ->  | E180: =IF(A180=" ","",negtgel!F185) ->  | F180: =+negtgel!G185+negtgel!H185+negtgel!I185+negtgel!J185+negtgel!L185 -> 0 | G180: =IF(A180=" ","",negtgel!K185) ->  | H180: =IF(A180=" ","",negtgel!M185) ->  | J180: =IF(A180=" ","",negtgel!N185+negtgel!O185) ->  | M180: =IF(A180=" ","",negtgel!S185) ->  | O180: =IF(A180=" ","",negtgel!X185) -> 
A181: =+IF(negtgel!B186=""," ",importloh!$A$2) ->  | B181: =+negtgel!C186 ->  | C181: =+negtgel!D186 ->  | D181: =+negtgel!E186 ->  | E181: =IF(A181=" ","",negtgel!F186) ->  | F181: =+negtgel!G186+negtgel!H186+negtgel!I186+negtgel!J186+negtgel!L186 -> 0 | G181: =IF(A181=" ","",negtgel!K186) ->  | H181: =IF(A181=" ","",negtgel!M186) ->  | J181: =IF(A181=" ","",negtgel!N186+negtgel!O186) ->  | M181: =IF(A181=" ","",negtgel!S186) ->  | O181: =IF(A181=" ","",negtgel!X186) -> 
A182: =+IF(negtgel!B187=""," ",importloh!$A$2) ->  | B182: =+negtgel!C187 ->  | C182: =+negtgel!D187 ->  | D182: =+negtgel!E187 ->  | E182: =IF(A182=" ","",negtgel!F187) ->  | F182: =+negtgel!G187+negtgel!H187+negtgel!I187+negtgel!J187+negtgel!L187 -> 0 | G182: =IF(A182=" ","",negtgel!K187) ->  | H182: =IF(A182=" ","",negtgel!M187) ->  | J182: =IF(A182=" ","",negtgel!N187+negtgel!O187) ->  | M182: =IF(A182=" ","",negtgel!S187) ->  | O182: =IF(A182=" ","",negtgel!X187) -> 
A183: =+IF(negtgel!B188=""," ",importloh!$A$2) ->  | B183: =+negtgel!C188 ->  | C183: =+negtgel!D188 ->  | D183: =+negtgel!E188 ->  | E183: =IF(A183=" ","",negtgel!F188) ->  | F183: =+negtgel!G188+negtgel!H188+negtgel!I188+negtgel!J188+negtgel!L188 -> 0 | G183: =IF(A183=" ","",negtgel!K188) ->  | H183: =IF(A183=" ","",negtgel!M188) ->  | J183: =IF(A183=" ","",negtgel!N188+negtgel!O188) ->  | M183: =IF(A183=" ","",negtgel!S188) ->  | O183: =IF(A183=" ","",negtgel!X188) -> 
A184: =+IF(negtgel!B189=""," ",importloh!$A$2) ->  | B184: =+negtgel!C189 ->  | C184: =+negtgel!D189 ->  | D184: =+negtgel!E189 ->  | E184: =IF(A184=" ","",negtgel!F189) ->  | F184: =+negtgel!G189+negtgel!H189+negtgel!I189+negtgel!J189+negtgel!L189 -> 0 | G184: =IF(A184=" ","",negtgel!K189) ->  | H184: =IF(A184=" ","",negtgel!M189) ->  | I184: =IF(A184=" ","",IF(H184=0,0,J184/H184*100)) ->  | J184: =IF(A184=" ","",negtgel!N189+negtgel!O189) ->  | K184: =IF(A184=" ","",H184-J184) ->  | L184: =IF(A184=" ","",((E184+F184)-(E184+F184)*I184/100)*0.1) ->  | M184: =IF(A184=" ","",negtgel!S189) ->  | N184: =IF(A184=" ","",IF(M184=0,0,999)) ->  | O184: =IF(A184=" ","",negtgel!X189) ->  | P184: =IF(A184=" ","",L184-O184) ->  | Q184: =IF(A184=" ","",(G184-(G184*I184/100))*0.1) ->  | R184: =IF(A184=" ","",P184+Q184) -> 
A185: =+IF(negtgel!B190=""," ",importloh!$A$2) ->  | B185: =+negtgel!C190 ->  | C185: =+negtgel!D190 ->  | D185: =+negtgel!E190 ->  | E185: =IF(A185=" ","",negtgel!F190) ->  | F185: =+negtgel!G190+negtgel!H190+negtgel!I190+negtgel!J190+negtgel!L190 -> 0 | G185: =IF(A185=" ","",negtgel!K190) ->  | H185: =IF(A185=" ","",negtgel!M190) ->  | J185: =IF(A185=" ","",negtgel!N190+negtgel!O190) ->  | M185: =IF(A185=" ","",negtgel!S190) ->  | O185: =IF(A185=" ","",negtgel!X190) -> 
A186: =+IF(negtgel!B191=""," ",importloh!$A$2) ->  | B186: =+negtgel!C191 ->  | C186: =+negtgel!D191 ->  | D186: =+negtgel!E191 ->  | E186: =IF(A186=" ","",negtgel!F191) ->  | F186: =+negtgel!G191+negtgel!H191+negtgel!I191+negtgel!J191+negtgel!L191 -> 0 | G186: =IF(A186=" ","",negtgel!K191) ->  | H186: =IF(A186=" ","",negtgel!M191) ->  | J186: =IF(A186=" ","",negtgel!N191+negtgel!O191) ->  | M186: =IF(A186=" ","",negtgel!S191) ->  | O186: =IF(A186=" ","",negtgel!X191) -> 
A187: =+IF(negtgel!B192=""," ",importloh!$A$2) ->  | B187: =+negtgel!C192 ->  | C187: =+negtgel!D192 ->  | D187: =+negtgel!E192 ->  | E187: =IF(A187=" ","",negtgel!F192) ->  | F187: =+negtgel!G192+negtgel!H192+negtgel!I192+negtgel!J192+negtgel!L192 -> 0 | G187: =IF(A187=" ","",negtgel!K192) ->  | H187: =IF(A187=" ","",negtgel!M192) ->  | J187: =IF(A187=" ","",negtgel!N192+negtgel!O192) ->  | M187: =IF(A187=" ","",negtgel!S192) ->  | O187: =IF(A187=" ","",negtgel!X192) -> 
A188: =+IF(negtgel!B193=""," ",importloh!$A$2) ->  | B188: =+negtgel!C193 ->  | C188: =+negtgel!D193 ->  | D188: =+negtgel!E193 ->  | E188: =IF(A188=" ","",negtgel!F193) ->  | F188: =+negtgel!G193+negtgel!H193+negtgel!I193+negtgel!J193+negtgel!L193 -> 0 | G188: =IF(A188=" ","",negtgel!K193) ->  | H188: =IF(A188=" ","",negtgel!M193) ->  | J188: =IF(A188=" ","",negtgel!N193+negtgel!O193) ->  | M188: =IF(A188=" ","",negtgel!S193) ->  | O188: =IF(A188=" ","",negtgel!X193) -> 
A189: =+IF(negtgel!B194=""," ",importloh!$A$2) ->  | B189: =+negtgel!C194 ->  | C189: =+negtgel!D194 ->  | D189: =+negtgel!E194 ->  | E189: =IF(A189=" ","",negtgel!F194) ->  | F189: =+negtgel!G194+negtgel!H194+negtgel!I194+negtgel!J194+negtgel!L194 -> 0 | G189: =IF(A189=" ","",negtgel!K194) ->  | H189: =IF(A189=" ","",negtgel!M194) ->  | J189: =IF(A189=" ","",negtgel!N194+negtgel!O194) ->  | M189: =IF(A189=" ","",negtgel!S194) ->  | O189: =IF(A189=" ","",negtgel!X194) -> 
A190: =+IF(negtgel!B195=""," ",importloh!$A$2) ->  | B190: =+negtgel!C195 ->  | C190: =+negtgel!D195 ->  | D190: =+negtgel!E195 ->  | E190: =IF(A190=" ","",negtgel!F195) ->  | F190: =+negtgel!G195+negtgel!H195+negtgel!I195+negtgel!J195+negtgel!L195 -> 0 | G190: =IF(A190=" ","",negtgel!K195) ->  | H190: =IF(A190=" ","",negtgel!M195) ->  | J190: =IF(A190=" ","",negtgel!N195+negtgel!O195) ->  | M190: =IF(A190=" ","",negtgel!S195) ->  | O190: =IF(A190=" ","",negtgel!X195) -> 
A191: =+IF(negtgel!B196=""," ",importloh!$A$2) ->  | B191: =+negtgel!C196 ->  | C191: =+negtgel!D196 ->  | D191: =+negtgel!E196 ->  | E191: =IF(A191=" ","",negtgel!F196) ->  | F191: =+negtgel!G196+negtgel!H196+negtgel!I196+negtgel!J196+negtgel!L196 -> 0 | G191: =IF(A191=" ","",negtgel!K196) ->  | H191: =IF(A191=" ","",negtgel!M196) ->  | J191: =IF(A191=" ","",negtgel!N196+negtgel!O196) ->  | M191: =IF(A191=" ","",negtgel!S196) ->  | O191: =IF(A191=" ","",negtgel!X196) -> 
A192: =+IF(negtgel!B197=""," ",importloh!$A$2) ->  | B192: =+negtgel!C197 ->  | C192: =+negtgel!D197 ->  | D192: =+negtgel!E197 ->  | E192: =IF(A192=" ","",negtgel!F197) ->  | F192: =+negtgel!G197+negtgel!H197+negtgel!I197+negtgel!J197+negtgel!L197 -> 0 | G192: =IF(A192=" ","",negtgel!K197) ->  | H192: =IF(A192=" ","",negtgel!M197) ->  | J192: =IF(A192=" ","",negtgel!N197+negtgel!O197) ->  | M192: =IF(A192=" ","",negtgel!S197) ->  | O192: =IF(A192=" ","",negtgel!X197) -> 
A193: =+IF(negtgel!B198=""," ",importloh!$A$2) ->  | B193: =+negtgel!C198 ->  | C193: =+negtgel!D198 ->  | D193: =+negtgel!E198 ->  | E193: =IF(A193=" ","",negtgel!F198) ->  | F193: =+negtgel!G198+negtgel!H198+negtgel!I198+negtgel!J198+negtgel!L198 -> 0 | G193: =IF(A193=" ","",negtgel!K198) ->  | H193: =IF(A193=" ","",negtgel!M198) ->  | J193: =IF(A193=" ","",negtgel!N198+negtgel!O198) ->  | M193: =IF(A193=" ","",negtgel!S198) ->  | O193: =IF(A193=" ","",negtgel!X198) -> 
A194: =+IF(negtgel!B199=""," ",importloh!$A$2) ->  | B194: =+negtgel!C199 ->  | C194: =+negtgel!D199 ->  | D194: =+negtgel!E199 ->  | E194: =IF(A194=" ","",negtgel!F199) ->  | F194: =+negtgel!G199+negtgel!H199+negtgel!I199+negtgel!J199+negtgel!L199 -> 0 | G194: =IF(A194=" ","",negtgel!K199) ->  | H194: =IF(A194=" ","",negtgel!M199) ->  | J194: =IF(A194=" ","",negtgel!N199+negtgel!O199) ->  | M194: =IF(A194=" ","",negtgel!S199) ->  | O194: =IF(A194=" ","",negtgel!X199) -> 
A195: =+IF(negtgel!B200=""," ",importloh!$A$2) ->  | B195: =+negtgel!C200 ->  | C195: =+negtgel!D200 ->  | D195: =+negtgel!E200 ->  | E195: =IF(A195=" ","",negtgel!F200) ->  | F195: =+negtgel!G200+negtgel!H200+negtgel!I200+negtgel!J200+negtgel!L200 -> 0 | G195: =IF(A195=" ","",negtgel!K200) ->  | H195: =IF(A195=" ","",negtgel!M200) ->  | J195: =IF(A195=" ","",negtgel!N200+negtgel!O200) ->  | M195: =IF(A195=" ","",negtgel!S200) ->  | O195: =IF(A195=" ","",negtgel!X200) -> 
A196: =+IF(negtgel!B201=""," ",importloh!$A$2) ->  | B196: =+negtgel!C201 ->  | C196: =+negtgel!D201 ->  | D196: =+negtgel!E201 ->  | E196: =IF(A196=" ","",negtgel!F201) ->  | F196: =+negtgel!G201+negtgel!H201+negtgel!I201+negtgel!J201+negtgel!L201 -> 0 | G196: =IF(A196=" ","",negtgel!K201) ->  | H196: =IF(A196=" ","",negtgel!M201) ->  | J196: =IF(A196=" ","",negtgel!N201+negtgel!O201) ->  | M196: =IF(A196=" ","",negtgel!S201) ->  | O196: =IF(A196=" ","",negtgel!X201) -> 
A197: =+IF(negtgel!B202=""," ",importloh!$A$2) ->  | B197: =+negtgel!C202 ->  | C197: =+negtgel!D202 ->  | D197: =+negtgel!E202 ->  | E197: =IF(A197=" ","",negtgel!F202) ->  | F197: =+negtgel!G202+negtgel!H202+negtgel!I202+negtgel!J202+negtgel!L202 -> 0 | G197: =IF(A197=" ","",negtgel!K202) ->  | H197: =IF(A197=" ","",negtgel!M202) ->  | J197: =IF(A197=" ","",negtgel!N202+negtgel!O202) ->  | M197: =IF(A197=" ","",negtgel!S202) ->  | O197: =IF(A197=" ","",negtgel!X202) -> 
A198: =+IF(negtgel!B203=""," ",importloh!$A$2) ->  | B198: =+negtgel!C203 ->  | C198: =+negtgel!D203 ->  | D198: =+negtgel!E203 ->  | E198: =IF(A198=" ","",negtgel!F203) ->  | F198: =+negtgel!G203+negtgel!H203+negtgel!I203+negtgel!J203+negtgel!L203 -> 0 | G198: =IF(A198=" ","",negtgel!K203) ->  | H198: =IF(A198=" ","",negtgel!M203) ->  | J198: =IF(A198=" ","",negtgel!N203+negtgel!O203) ->  | M198: =IF(A198=" ","",negtgel!S203) ->  | O198: =IF(A198=" ","",negtgel!X203) -> 
A199: =+IF(negtgel!B204=""," ",importloh!$A$2) ->  | B199: =+negtgel!C204 ->  | C199: =+negtgel!D204 ->  | D199: =+negtgel!E204 ->  | E199: =IF(A199=" ","",negtgel!F204) ->  | F199: =+negtgel!G204+negtgel!H204+negtgel!I204+negtgel!J204+negtgel!L204 -> 0 | G199: =IF(A199=" ","",negtgel!K204) ->  | H199: =IF(A199=" ","",negtgel!M204) ->  | J199: =IF(A199=" ","",negtgel!N204+negtgel!O204) ->  | M199: =IF(A199=" ","",negtgel!S204) ->  | O199: =IF(A199=" ","",negtgel!X204) -> 
A200: =+IF(negtgel!B205=""," ",importloh!$A$2) ->  | B200: =+negtgel!C205 ->  | C200: =+negtgel!D205 ->  | D200: =+negtgel!E205 ->  | E200: =IF(A200=" ","",negtgel!F205) ->  | F200: =+negtgel!G205+negtgel!H205+negtgel!I205+negtgel!J205+negtgel!L205 -> 0 | G200: =IF(A200=" ","",negtgel!K205) ->  | H200: =IF(A200=" ","",negtgel!M205) ->  | J200: =IF(A200=" ","",negtgel!N205+negtgel!O205) ->  | M200: =IF(A200=" ","",negtgel!S205) ->  | O200: =IF(A200=" ","",negtgel!X205) -> 
... 302 more rows

Sheet negtgel
B1: 1 | C1: 2 | D1: 3 | E1: 4 | F1: 5 | G1: 6 | H1: 7 | I1: 8 | J1: 9 | K1: 10 | L1: 11 | M1: 12 | N1: 13 | O1: 14 | P1: 15 | Q1: 16 | R1: 17 | S1: 18 | T1: 19 | U1: 20 | V1: 21 | W1: 22 | X1: 19 | Y1: 20 | Z1: 21 | AA1: 22 | AB1: 23
A2: 1 ххоат чөлөөлөлт тооцохгүй | B2: тайлбар хэсэг | C2: Регистрийн дугаар | D2: Овог | E2: Нэр | F2: 7.1.1.ажил олгогчтой байгуулсан хөдөлмөрийн гэрээнд заасны дагуу авч байгаа үндсэн цалин, нэмэгдэл хөлс, нэмэгдэл, шагнал, урамшуулал, амралтын олговор, тэтгэвэр, тэтгэмж, тэдгээртэй адилтгах бусад орлого; | G2: 7.1.2.ажил олгогчоос ажилтан, түүний гэр бүлийн гишүүнд олгосон тэтгэмж болон түүнтэй адилтгах орлого; | H2: 7.1.3.ажил олгогчоос ажилтан, түүний гэр бүлийн гишүүнд өгсөн бэлэг; | I2: 7.1.4.төлөөлөн удирдах зөвлөл, хяналтын зөвлөл, орон тооны бус зөвлөл болон бусад зөвлөл, хороо, ажлын хэсгийн гишүүний цалин хөлс, шагнал, урамшуулал, тэдгээртэй адилтгах орлого; | J2: 7.1.5.гадаад, дотоодын аж ахуйн нэгж, байгууллага, иргэн болон бусад этгээдээс өгсөн бүх төрлийн шагнал, урамшуулал, тэдгээртэй адилтгах орлого; | K2: 7.1.6.үндсэн БУС ажлын газар хуулийн этгээд болон хувь хүнтэй байгуулсан гэрээний үндсэн дээр ажил, үүрэг гүйцэтгэж авсан хөдөлмөрийн хөлс, шагнал, нэмэгдэл, тэтгэмж, тэдгээртэй адилтгах бусад орлого; | L2: 7.1.7.хоол, унааны мөнгө. | M2: Цалин, хөдөлмөрийн хөлс, шагнал, урамшуулал болон тэдгээртэй адилтгах хөдөлмөр эрхлэлтийн орлого | N2: үндсэн бусаас цалингаас тооцсон ЭМ ба НДШ | O2: үндсэн цалингаас тооцсон ЭМ ба НДШ | P2: Нийт татвар ногдуулах орлого | Q2: үндсэн бус орлогоос тооцсон татвар | R2: ҮНДСЭН ОРЛОГООС ТООЦСОН ТАТВАР | S2: Орлого хүлээн авсан сарын тоо /буюу ажилласан сар/ | T2: Хөнгөлөх татвар | U2: Суутгасан албан татварын дүн (17-18)+16 | V2: Албан татвараас чөлөөлөх /2020.04.01 - 2020.10.01/(16+17) | X2: Жилийн эцсийн тохируулга | Y2: Жилийн эцсийн тохируулга | Z2: Жилийн эцсийн тохируулга | AA2: Жилийн эцсийн тохируулга | AB2: Жилийн эцсийн тохируулга
A3: 2 хөнгөлөлт тооцохгүй | B3: ТИН дугаар | C3: Регистерийн дугаар | D3: Овог | E3: Нэр | F3: хуулийн 7.1.1 | G3: хуулийн 7.1.2 | H3: хуулийн 7.1.3 | I3: хуулийн 7.1.4 | J3: хуулийн 7.1.5 | K3: хуулийн 7.1.6 | L3: хуулийн 7.1.7 | M3: Дүн (5+…+11) | N3: 7.1.6-д заасан орлогод | O3: Бусад орлогод | P3: Татвар ногдуулах орлого (12-(13+14)) | Q3: 7.1.6-рх орлогод (10-13)*10% | R3: Бусад орлогод ((12-10)-14)*10% | S3: Орлого хүлээн авсан сарын тоо /буюу ажилласан сар/ | T3: Хөнгөлөх татвар | U3: Суутгасан албан татварын дүн (17-19)+16 | V3: Албан татвараас чөлөөлөх /2020.04.01 - 2020.10.01/(16+17) | W3: Төлөх албан татвар | X3: Хөнгөлөх татвар (ХХОАТ жилийн хөнгөлөлтөөр) | Y3: Суутгасан албан татварын дүн (17-19)+16 | Z3: Албан татвараас чөлөөлөх | AA3: Төлөх албан татвар | AB3: Тохируулга хийх дүн
A4: 3 хөн/т, чөл/т тоо/гүй | D4: ЗӨРҮҮ | F4: =+F5-F6 -> 0 | G4: 0 | H4: 0 | I4: 0 | J4: 0 | K4: 0 | L4: 0 | M4: 0 | N4: 0 | O4: 0 | P4: 0 | Q4: 0 | R4: 0 | T4: =+T5-T6 -> 0 | U4: =+U5-U6 -> 0
C5: 1-12 р сарын цалингийн нэгтгэл | F5: =+'1 r sar'!E4+'2-r sar'!E4+'3-r sar'!E4+'4-r sar'!E4+'5-r sar'!E4+'6-r sar'!E4+'7-r sar'!E4+'8-r sar'!E4+'9-r sar'!E4+'10-r sar'!E4+'11-r sar'!E4+'12-r sar'!E4 -> 46582240 | G5: =+'1 r sar'!F4+'2-r sar'!F4+'3-r sar'!F4+'4-r sar'!F4+'5-r sar'!F4+'6-r sar'!F4+'7-r sar'!F4+'8-r sar'!F4+'9-r sar'!F4+'10-r sar'!F4+'11-r sar'!F4+'12-r sar'!F4 -> 0 | H5: =+'1 r sar'!G4+'2-r sar'!G4+'3-r sar'!G4+'4-r sar'!G4+'5-r sar'!G4+'6-r sar'!G4+'7-r sar'!G4+'8-r sar'!G4+'9-r sar'!G4+'10-r sar'!G4+'11-r sar'!G4+'12-r sar'!G4 -> 0 | I5: =+'1 r sar'!H4+'2-r sar'!H4+'3-r sar'!H4+'4-r sar'!H4+'5-r sar'!H4+'6-r sar'!H4+'7-r sar'!H4+'8-r sar'!H4+'9-r sar'!H4+'10-r sar'!H4+'11-r sar'!H4+'12-r sar'!H4 -> 0 | J5: =+'1 r sar'!I4+'2-r sar'!I4+'3-r sar'!I4+'4-r sar'!I4+'5-r sar'!I4+'6-r sar'!I4+'7-r sar'!I4+'8-r sar'!I4+'9-r sar'!I4+'10-r sar'!I4+'11-r sar'!I4+'12-r sar'!I4 -> 0 | K5: =+'1 r sar'!J4+'2-r sar'!J4+'3-r sar'!J4+'4-r sar'!J4+'5-r sar'!J4+'6-r sar'!J4+'7-r sar'!J4+'8-r sar'!J4+'9-r sar'!J4+'10-r sar'!J4+'11-r sar'!J4+'12-r sar'!J4 -> 12000000 | L5: =+'1 r sar'!K4+'2-r sar'!K4+'3-r sar'!K4+'4-r sar'!K4+'5-r sar'!K4+'6-r sar'!K4+'7-r sar'!K4+'8-r sar'!K4+'9-r sar'!K4+'10-r sar'!K4+'11-r sar'!K4+'12-r sar'!K4 -> 0 | M5: =+'1 r sar'!L4+'2-r sar'!L4+'3-r sar'!L4+'4-r sar'!L4+'5-r sar'!L4+'6-r sar'!L4+'7-r sar'!L4+'8-r sar'!L4+'9-r sar'!L4+'10-r sar'!L4+'11-r sar'!L4+'12-r sar'!L4 -> 58582240 | N5: =+'1 r sar'!M4+'2-r sar'!M4+'3-r sar'!M4+'4-r sar'!M4+'5-r sar'!M4+'6-r sar'!M4+'7-r sar'!M4+'8-r sar'!M4+'9-r sar'!M4+'10-r sar'!M4+'11-r sar'!M4+'12-r sar'!M4 -> 1356000 | O5: =+'1 r sar'!N4+'2-r sar'!N4+'3-r sar'!N4+'4-r sar'!N4+'5-r sar'!N4+'6-r sar'!N4+'7-r sar'!N4+'8-r sar'!N4+'9-r sar'!N4+'10-r sar'!N4+'11-r sar'!N4+'12-r sar'!N4 -> 5356957.6 | P5: =+'1 r sar'!O4+'2-r sar'!O4+'3-r sar'!O4+'4-r sar'!O4+'5-r sar'!O4+'6-r sar'!O4+'7-r sar'!O4+'8-r sar'!O4+'9-r sar'!O4+'10-r sar'!O4+'11-r sar'!O4+'12-r sar'!O4 -> 51869282.4 | Q5: =+'1 r sar'!P4+'2-r sar'!P4+'3-r sar'!P4+'4-r sar'!P4+'5-r sar'!P4+'6-r sar'!P4+'7-r sar'!P4+'8-r sar'!P4+'9-r sar'!P4+'10-r sar'!P4+'11-r sar'!P4+'12-r sar'!P4 -> 1064400 | R5: =+'1 r sar'!Q4+'2-r sar'!Q4+'3-r sar'!Q4+'4-r sar'!Q4+'5-r sar'!Q4+'6-r sar'!Q4+'7-r sar'!Q4+'8-r sar'!Q4+'9-r sar'!Q4+'10-r sar'!Q4+'11-r sar'!Q4+'12-r sar'!Q4 -> 4122528.24 | S5: =+'1 r sar'!R4+'2-r sar'!R4+'3-r sar'!R4+'4-r sar'!R4+'5-r sar'!R4+'6-r sar'!R4+'7-r sar'!R4+'8-r sar'!R4+'9-r sar'!R4+'10-r sar'!R4+'11-r sar'!R4+'12-r sar'!R4 -> 0 | T5: =+'1 r sar'!S4+'2-r sar'!S4+'3-r sar'!S4+'4-r sar'!S4+'5-r sar'!S4+'6-r sar'!S4+'7-r sar'!S4+'8-r sar'!S4+'9-r sar'!S4+'10-r sar'!S4+'11-r sar'!S4+'12-r sar'!S4 -> 336000 | U5: =+'1 r sar'!T4+'2-r sar'!T4+'3-r sar'!T4+'4-r sar'!T4+'5-r sar'!T4+'6-r sar'!T4+'7-r sar'!T4+'8-r sar'!T4+'9-r sar'!T4+'10-r sar'!T4+'11-r sar'!T4+'12-r sar'!T4 -> 4850928.24 | V5: =+'1 r sar'!U4+'2-r sar'!U4+'3-r sar'!U4+'4-r sar'!U4+'5-r sar'!U4+'6-r sar'!U4+'7-r sar'!U4+'8-r sar'!U4+'9-r sar'!U4+'10-r sar'!U4+'11-r sar'!U4+'12-r sar'!U4 -> 0 | W5: =+U6-V6 -> 4850928.24 | AB5: =+W6-AA6 -> 0
B6: =+'1 r sar'!A4 -> 0 | C6: НИЙЛБЭР ДҮН | F6: =+SUM(F7:F507) -> 46582240 | G6: 0 | H6: 0 | I6: 0 | J6: 0 | K6: 12000000 | L6: 0 | M6: 58582240 | N6: 1356000 | O6: 5356957.6 | P6: 51869282.4 | Q6: 1064400 | R6: 4122528.24 | T6: =+SUM(T7:T507) -> 336000 | U6: 4850928.24 | V6: 0 | W6: 4850928.24 | X6: 336000 | Y6: 4850928.24 | Z6: 0 | AA6: 4850928.24 | AB6: 0
A7: 0 | B7: =+Z2076 -> 1 | C7: =+AA2076 -> НТ87102816 | D7: =+AB2076 -> ЦАГААНЦООЖ | E7: =+AC2076 -> НАЦАГДОРЖ | F7: =+SUMIF($C$2076:$C$5676,$C7,F$2076:F$5676) -> 23291120 | G7: 0 | H7: 0 | I7: 0 | J7: 0 | K7: 0 | L7: 0 | M7: 23291120 | N7: 0 | O7: 2678478.8 | P7: 20612641.2 | Q7: 0 | R7: 2061264.12 | S7: =+IF(C7="","",COUNTIFS($C$2076:$C$5676,C7,$M$2076:$M$5676,">5")) -> 12 | T7: =IF(OR(A7=2,A7=3),0,SUMIF($C$2076:$C$5676,$C7,T$2076:T$5676)) -> 168000 | U7: =+R7-T7+Q7 -> 1893264.12 | V7: =IF(OR(A7=1,A7=3),0,SUMIF($C$2076:$C$5676,$C7,V$2076:V$5676)) -> 0 | W7: =+U7-V7 -> 1893264.12 | X7: =IF(AND(K7>0.5,F7>0.5),T7,IF(OR(K7>10,A7=2,A7=3),0,IF(S7="",0,IF(S7<12,T7,IF(S7=12,IF(P7<6000000,240000,IF(P7<12000000,216000,IF(P7<18000000,192000,IF(P7<24000000,168000,IF(P7<30000000,144000,IF(P7<36000000,120000,IF(P7>36000000,0)))))))))))) -> 168000 | Y7: =+R7+Q7-X7 -> 1893264.12 | Z7: =+V7 -> 0 | AA7: =+Y7-Z7 -> 1893264.12 | AB7: =IF(A7=3,0,W7-AA7) -> 0
A8: 0 | B8: =+Z2077 -> 2 | C8: =+AA2077 -> ХА73102679 | D8: БЯМБАДОРЖ | E8: БАТЗУЛ | F8: 23291120 | G8: 0 | H8: 0 | I8: 0 | J8: 0 | K8: 0 | L8: 0 | M8: 23291120 | N8: 0 | O8: 2678478.8 | P8: 20612641.2 | Q8: 0 | R8: 2061264.12 | S8: 12 | T8: 168000 | U8: =+R8-T8+Q8 -> 1893264.12 | V8: 0 | W8: =+U8-V8 -> 1893264.12 | X8: 168000 | Y8: =+R8+Q8-X8 -> 1893264.12 | Z8: =+V8 -> 0 | AA8: =+Y8-Z8 -> 1893264.12 | AB8: =IF(A8=3,0,W8-AA8) -> 0
A9: 0 | B9: 3 | C9: =+AA2078 -> УШ95060738 | D9: САНДАГДОРЖ | E9: ЛХАГВАС?РЭН | F9: 0 | G9: 0 | H9: 0 | I9: 0 | J9: 0 | K9: 12000000 | L9: 0 | M9: 12000000 | N9: 1356000 | O9: 0 | P9: 10644000 | Q9: 1064400 | R9: 0 | S9: 12 | T9: 0 | U9: 1064400 | V9: 0 | W9: 1064400 | X9: 0 | Y9: 1064400 | Z9: 0 | AA9: =+Y9-Z9 -> 1064400 | AB9: 0
A10: 0 | C10: =+AA2079 ->  | F10: 0 | G10: 0 | H10: 0 | I10: 0 | J10: 0 | K10: 0 | L10: 0 | M10: 0 | N10: 0 | O10: 0 | P10: 0 | Q10: 0 | R10: 0 | T10: 0 | U10: 0 | V10: 0 | W10: 0 | X10: 0 | Y10: 0 | Z10: 0 | AA10: 0 | AB10: 0
A11: 0 | C11: =+AA2080 ->  | F11: 0 | G11: 0 | H11: 0 | I11: 0 | J11: 0 | K11: 0 | L11: 0 | M11: 0 | N11: 0 | O11: 0 | P11: 0 | Q11: 0 | R11: 0 | T11: 0 | U11: 0 | V11: 0 | W11: 0 | X11: 0 | Y11: 0 | Z11: 0 | AA11: 0 | AB11: 0
A12: 0 | C12: =+AA2081 ->  | F12: 0 | G12: 0 | H12: 0 | I12: 0 | J12: 0 | K12: 0 | L12: 0 | M12: 0 | N12: 0 | O12: 0 | P12: 0 | Q12: 0 | R12: 0 | T12: 0 | U12: 0 | V12: 0 | W12: 0 | X12: 0 | Y12: 0 | Z12: 0 | AA12: 0 | AB12: 0
A13: 0 | C13: =+AA2082 ->  | F13: 0 | G13: 0 | H13: 0 | I13: 0 | J13: 0 | K13: 0 | L13: 0 | M13: 0 | N13: 0 | O13: 0 | P13: 0 | Q13: 0 | R13: 0 | T13: 0 | U13: 0 | V13: 0 | W13: 0 | X13: 0 | Y13: 0 | Z13: 0 | AA13: 0 | AB13: 0
A14: 0 | C14: =+AA2083 ->  | F14: 0 | G14: 0 | H14: 0 | I14: 0 | J14: 0 | K14: 0 | L14: 0 | M14: 0 | N14: 0 | O14: 0 | P14: 0 | Q14: 0 | R14: 0 | T14: 0 | U14: 0 | V14: 0 | W14: 0 | X14: 0 | Y14: 0 | Z14: 0 | AA14: 0 | AB14: 0
A15: 0 | C15: =+AA2084 ->  | F15: 0 | G15: 0 | H15: 0 | I15: 0 | J15: 0 | K15: 0 | L15: 0 | M15: 0 | N15: 0 | O15: 0 | P15: 0 | Q15: 0 | R15: 0 | T15: 0 | U15: 0 | V15: 0 | W15: 0 | X15: 0 | Y15: 0 | Z15: 0 | AA15: 0 | AB15: 0
A16: 0 | F16: 0 | G16: 0 | H16: 0 | I16: 0 | J16: 0 | K16: 0 | L16: 0 | M16: 0 | N16: 0 | O16: 0 | P16: 0 | Q16: 0 | R16: 0 | T16: 0 | U16: =+R16-T16+Q16 -> 0 | V16: 0 | W16: =+U16-V16 -> 0 | X16: 0 | Y16: 0 | Z16: 0 | AA16: 0 | AB16: 0
A17: 0 | F17: =+SUMIF($C$2076:$C$5676,$C17,F$2076:F$5676) -> 0 | G17: 0 | H17: 0 | I17: 0 | J17: 0 | K17: 0 | L17: 0 | M17: 0 | N17: 0 | O17: 0 | P17: 0 | Q17: 0 | R17: 0 | T17: 0 | U17: 0 | V17: 0 | W17: 0 | X17: 0 | Y17: 0 | Z17: 0 | AA17: 0 | AB17: 0
A18: 0 | F18: 0 | G18: 0 | H18: 0 | I18: 0 | J18: 0 | K18: 0 | L18: 0 | M18: 0 | N18: 0 | O18: 0 | P18: 0 | Q18: 0 | R18: 0 | T18: 0 | U18: 0 | V18: 0 | W18: 0 | X18: 0 | Y18: 0 | Z18: 0 | AA18: 0 | AB18: 0
A19: 0 | F19: 0 | G19: 0 | H19: 0 | I19: 0 | J19: 0 | K19: 0 | L19: 0 | M19: 0 | N19: 0 | O19: 0 | P19: 0 | Q19: 0 | R19: 0 | T19: 0 | U19: 0 | V19: 0 | W19: 0 | X19: 0 | Y19: 0 | Z19: 0 | AA19: 0 | AB19: 0
A20: 0 | F20: 0 | G20: 0 | H20: 0 | I20: 0 | J20: 0 | K20: 0 | L20: 0 | M20: 0 | N20: 0 | O20: 0 | P20: 0 | Q20: 0 | R20: 0 | T20: 0 | U20: 0 | V20: 0 | W20: 0 | X20: 0 | Y20: 0 | Z20: 0 | AA20: 0 | AB20: 0
A21: 0 | F21: 0 | G21: 0 | H21: 0 | I21: 0 | J21: 0 | K21: 0 | L21: 0 | M21: 0 | N21: 0 | O21: 0 | P21: 0 | Q21: 0 | R21: 0 | T21: 0 | U21: 0 | V21: 0 | W21: 0 | X21: 0 | Y21: 0 | Z21: 0 | AA21: 0 | AB21: 0
A22: 0 | F22: 0 | G22: 0 | H22: 0 | I22: 0 | J22: 0 | K22: 0 | L22: 0 | M22: 0 | N22: 0 | O22: 0 | P22: 0 | Q22: 0 | R22: 0 | T22: 0 | U22: 0 | V22: 0 | W22: 0 | X22: 0 | Y22: 0 | Z22: 0 | AA22: 0 | AB22: 0
A23: 0 | C23: =+AA2092 ->  | F23: 0 | G23: 0 | H23: 0 | I23: 0 | J23: 0 | K23: 0 | L23: 0 | M23: 0 | N23: 0 | O23: 0 | P23: 0 | Q23: 0 | R23: 0 | T23: 0 | U23: 0 | V23: 0 | W23: 0 | X23: 0 | Y23: 0 | Z23: 0 | AA23: 0 | AB23: 0
A24: 0 | F24: 0 | G24: 0 | H24: 0 | I24: 0 | J24: 0 | K24: 0 | L24: 0 | M24: 0 | N24: 0 | O24: 0 | P24: 0 | Q24: 0 | R24: 0 | T24: 0 | U24: 0 | V24: 0 | W24: 0 | X24: 0 | Y24: 0 | Z24: 0 | AA24: 0 | AB24: 0
A25: 0 | F25: 0 | G25: 0 | H25: 0 | I25: 0 | J25: 0 | K25: 0 | L25: 0 | M25: 0 | N25: 0 | O25: 0 | P25: 0 | Q25: 0 | R25: 0 | T25: 0 | U25: 0 | V25: 0 | W25: 0 | X25: 0 | Y25: 0 | Z25: 0 | AA25: 0 | AB25: 0
A26: 0 | F26: 0 | G26: 0 | H26: 0 | I26: 0 | J26: 0 | K26: 0 | L26: 0 | M26: 0 | N26: 0 | O26: 0 | P26: 0 | Q26: 0 | R26: 0 | T26: 0 | U26: 0 | V26: 0 | W26: 0 | X26: 0 | Y26: 0 | Z26: 0 | AA26: 0 | AB26: 0
A27: 0 | F27: =+SUMIF($C$2076:$C$5676,$C27,F$2076:F$5676) -> 0 | G27: 0 | H27: 0 | I27: 0 | J27: 0 | K27: 0 | L27: 0 | M27: 0 | N27: 0 | O27: 0 | P27: 0 | Q27: 0 | R27: 0 | T27: 0 | U27: 0 | V27: 0 | W27: 0 | X27: 0 | Y27: 0 | Z27: 0 | AA27: 0 | AB27: 0
A28: 0 | F28: 0 | G28: 0 | H28: 0 | I28: 0 | J28: 0 | K28: 0 | L28: 0 | M28: 0 | N28: 0 | O28: 0 | P28: 0 | Q28: 0 | R28: 0 | T28: 0 | U28: 0 | V28: 0 | W28: 0 | X28: 0 | Y28: 0 | Z28: 0 | AA28: 0 | AB28: 0
A29: 0 | F29: 0 | G29: 0 | H29: 0 | I29: 0 | J29: 0 | K29: 0 | L29: 0 | M29: 0 | N29: 0 | O29: 0 | P29: 0 | Q29: 0 | R29: 0 | T29: 0 | U29: 0 | V29: 0 | W29: 0 | X29: 0 | Y29: 0 | Z29: 0 | AA29: 0 | AB29: 0
A30: 0 | F30: 0 | G30: 0 | H30: 0 | I30: 0 | J30: 0 | K30: 0 | L30: 0 | M30: 0 | N30: 0 | O30: 0 | P30: 0 | Q30: 0 | R30: 0 | T30: 0 | U30: 0 | V30: 0 | W30: 0 | X30: 0 | Y30: 0 | Z30: 0 | AA30: 0 | AB30: 0
A31: 0 | C31: =+AA2100 ->  | F31: 0 | G31: 0 | H31: 0 | I31: 0 | J31: 0 | K31: 0 | L31: 0 | M31: 0 | N31: 0 | O31: 0 | P31: 0 | Q31: 0 | R31: 0 | T31: 0 | U31: 0 | V31: 0 | W31: 0 | X31: 0 | Y31: 0 | Z31: 0 | AA31: 0 | AB31: 0
A32: 0 | F32: 0 | G32: 0 | H32: 0 | I32: 0 | J32: 0 | K32: 0 | L32: 0 | M32: 0 | N32: 0 | O32: 0 | P32: 0 | Q32: 0 | R32: 0 | T32: 0 | U32: 0 | V32: 0 | W32: 0 | X32: 0 | Y32: 0 | Z32: 0 | AA32: 0 | AB32: 0
A33: 0 | F33: 0 | G33: 0 | H33: 0 | I33: 0 | J33: 0 | K33: 0 | L33: 0 | M33: 0 | N33: 0 | O33: 0 | P33: 0 | Q33: 0 | R33: 0 | T33: 0 | U33: 0 | V33: 0 | W33: 0 | X33: 0 | Y33: 0 | Z33: 0 | AA33: 0 | AB33: 0
A34: 0 | F34: 0 | G34: 0 | H34: 0 | I34: 0 | J34: 0 | K34: 0 | L34: 0 | M34: 0 | N34: 0 | O34: 0 | P34: 0 | Q34: 0 | R34: 0 | T34: 0 | U34: 0 | V34: 0 | W34: 0 | X34: 0 | Y34: 0 | Z34: 0 | AA34: 0 | AB34: 0
A35: 0 | F35: 0 | G35: 0 | H35: 0 | I35: 0 | J35: 0 | K35: 0 | L35: 0 | M35: 0 | N35: 0 | O35: 0 | P35: 0 | Q35: 0 | R35: 0 | T35: 0 | U35: 0 | V35: 0 | W35: 0 | X35: 0 | Y35: 0 | Z35: 0 | AA35: 0 | AB35: 0
A36: 0 | F36: 0 | G36: 0 | H36: 0 | I36: 0 | J36: 0 | K36: 0 | L36: 0 | M36: 0 | N36: 0 | O36: 0 | P36: 0 | Q36: 0 | R36: 0 | T36: 0 | U36: 0 | V36: 0 | W36: 0 | X36: 0 | Y36: 0 | Z36: 0 | AA36: 0 | AB36: 0
A37: 0 | F37: =+SUMIF($C$2076:$C$5676,$C37,F$2076:F$5676) -> 0 | G37: 0 | H37: 0 | I37: 0 | J37: 0 | K37: 0 | L37: 0 | M37: 0 | N37: 0 | O37: 0 | P37: 0 | Q37: 0 | R37: 0 | T37: 0 | U37: 0 | V37: 0 | W37: 0 | X37: 0 | Y37: 0 | Z37: 0 | AA37: 0 | AB37: 0
A38: 0 | F38: 0 | G38: 0 | H38: 0 | I38: 0 | J38: 0 | K38: 0 | L38: 0 | M38: 0 | N38: 0 | O38: 0 | P38: 0 | Q38: 0 | R38: 0 | T38: 0 | U38: 0 | V38: 0 | W38: 0 | X38: 0 | Y38: 0 | Z38: 0 | AA38: 0 | AB38: 0
A39: 0 | C39: =+AA2108 ->  | F39: 0 | G39: 0 | H39: 0 | I39: 0 | J39: 0 | K39: 0 | L39: 0 | M39: 0 | N39: 0 | O39: 0 | P39: 0 | Q39: 0 | R39: 0 | S39: =+IF(C39="","",COUNTIFS($C$2076:$C$5676,C39,$M$2076:$M$5676,">5")) ->  | T39: =IF(OR(A39=2,A39=3),0,SUMIF($C$2076:$C$5676,$C39,T$2076:T$5676)) -> 0 | U39: 0 | V39: =IF(OR(A39=1,A39=3),0,SUMIF($C$2076:$C$5676,$C39,V$2076:V$5676)) -> 0 | W39: 0 | X39: 0 | Y39: 0 | Z39: 0 | AA39: 0 | AB39: 0
A40: 0 | F40: 0 | G40: 0 | H40: 0 | I40: 0 | J40: 0 | K40: 0 | L40: 0 | M40: 0 | N40: 0 | O40: 0 | P40: 0 | Q40: 0 | R40: 0 | T40: 0 | U40: 0 | V40: 0 | W40: 0 | X40: 0 | Y40: 0 | Z40: 0 | AA40: 0 | AB40: 0
A41: 0 | F41: 0 | G41: 0 | H41: 0 | I41: 0 | J41: 0 | K41: 0 | L41: 0 | M41: 0 | N41: 0 | O41: 0 | P41: 0 | Q41: 0 | R41: 0 | T41: 0 | U41: 0 | V41: 0 | W41: 0 | X41: 0 | Y41: 0 | Z41: 0 | AA41: 0 | AB41: 0
A42: 0 | F42: 0 | G42: 0 | H42: 0 | I42: 0 | J42: 0 | K42: 0 | L42: 0 | M42: 0 | N42: 0 | O42: 0 | P42: 0 | Q42: 0 | R42: 0 | T42: 0 | U42: 0 | V42: 0 | W42: 0 | X42: 0 | Y42: 0 | Z42: 0 | AA42: 0 | AB42: 0
A43: 0 | F43: 0 | G43: 0 | H43: 0 | I43: 0 | J43: 0 | K43: 0 | L43: 0 | M43: 0 | N43: 0 | O43: 0 | P43: 0 | Q43: 0 | R43: 0 | T43: 0 | U43: 0 | V43: 0 | W43: 0 | X43: 0 | Y43: 0 | Z43: 0 | AA43: 0 | AB43: 0
A44: 0 | F44: 0 | G44: 0 | H44: 0 | I44: 0 | J44: 0 | K44: 0 | L44: 0 | M44: 0 | N44: 0 | O44: 0 | P44: 0 | Q44: 0 | R44: 0 | T44: 0 | U44: 0 | V44: 0 | W44: 0 | X44: 0 | Y44: 0 | Z44: 0 | AA44: 0 | AB44: 0
A45: 0 | F45: 0 | G45: 0 | H45: 0 | I45: 0 | J45: 0 | K45: 0 | L45: 0 | M45: 0 | N45: 0 | O45: 0 | P45: 0 | Q45: 0 | R45: 0 | T45: 0 | U45: 0 | V45: 0 | W45: 0 | X45: 0 | Y45: 0 | Z45: 0 | AA45: 0 | AB45: 0
A46: 0 | F46: 0 | G46: 0 | H46: 0 | I46: 0 | J46: 0 | K46: 0 | L46: 0 | M46: 0 | N46: 0 | O46: 0 | P46: 0 | Q46: 0 | R46: 0 | T46: 0 | U46: 0 | V46: 0 | W46: 0 | X46: 0 | Y46: 0 | Z46: 0 | AA46: 0 | AB46: 0
A47: 0 | C47: =+AA2116 ->  | F47: =+SUMIF($C$2076:$C$5676,$C47,F$2076:F$5676) -> 0 | G47: 0 | H47: 0 | I47: 0 | J47: 0 | K47: 0 | L47: 0 | M47: 0 | N47: 0 | O47: 0 | P47: 0 | Q47: 0 | R47: 0 | T47: 0 | U47: 0 | V47: 0 | W47: 0 | X47: 0 | Y47: 0 | Z47: 0 | AA47: 0 | AB47: 0
A48: 0 | F48: 0 | G48: 0 | H48: 0 | I48: 0 | J48: 0 | K48: 0 | L48: 0 | M48: 0 | N48: 0 | O48: 0 | P48: 0 | Q48: 0 | R48: 0 | T48: 0 | U48: 0 | V48: 0 | W48: 0 | X48: 0 | Y48: 0 | Z48: 0 | AA48: 0 | AB48: 0
A49: 0 | F49: 0 | G49: 0 | H49: 0 | I49: 0 | J49: 0 | K49: 0 | L49: 0 | M49: 0 | N49: 0 | O49: 0 | P49: 0 | Q49: 0 | R49: 0 | T49: 0 | U49: 0 | V49: 0 | W49: 0 | X49: 0 | Y49: 0 | Z49: 0 | AA49: 0 | AB49: 0
A50: 0 | F50: 0 | G50: 0 | H50: 0 | I50: 0 | J50: 0 | K50: 0 | L50: 0 | M50: 0 | N50: 0 | O50: 0 | P50: 0 | Q50: 0 | R50: 0 | T50: 0 | U50: 0 | V50: 0 | W50: 0 | X50: 0 | Y50: 0 | Z50: 0 | AA50: 0 | AB50: 0
A51: 0 | F51: 0 | G51: 0 | H51: 0 | I51: 0 | J51: 0 | K51: 0 | L51: 0 | M51: 0 | N51: 0 | O51: 0 | P51: 0 | Q51: 0 | R51: 0 | T51: 0 | U51: 0 | V51: 0 | W51: 0 | X51: 0 | Y51: 0 | Z51: 0 | AA51: 0 | AB51: 0
A52: =+A51 -> 0 | F52: 0 | G52: 0 | H52: 0 | I52: 0 | J52: 0 | K52: 0 | L52: 0 | M52: 0 | N52: 0 | O52: 0 | P52: 0 | Q52: 0 | R52: 0 | T52: 0 | U52: 0 | V52: 0 | W52: 0 | X52: 0 | Y52: 0 | Z52: 0 | AA52: 0 | AB52: 0
A53: 0 | F53: 0 | G53: 0 | H53: 0 | I53: 0 | J53: 0 | K53: 0 | L53: 0 | M53: 0 | N53: 0 | O53: 0 | P53: 0 | Q53: 0 | R53: 0 | T53: 0 | U53: 0 | V53: 0 | W53: 0 | X53: 0 | Y53: 0 | Z53: 0 | AA53: 0 | AB53: 0
A54: 0 | F54: 0 | G54: 0 | H54: 0 | I54: 0 | J54: 0 | K54: 0 | L54: 0 | M54: 0 | N54: 0 | O54: 0 | P54: 0 | Q54: 0 | R54: 0 | T54: 0 | U54: 0 | V54: 0 | W54: 0 | X54: 0 | Y54: 0 | Z54: 0 | AA54: 0 | AB54: 0
A55: 0 | C55: =+AA2124 ->  | F55: 0 | G55: 0 | H55: 0 | I55: 0 | J55: 0 | K55: 0 | L55: 0 | M55: 0 | N55: 0 | O55: 0 | P55: 0 | Q55: 0 | R55: 0 | T55: 0 | U55: 0 | V55: 0 | W55: 0 | X55: 0 | Y55: 0 | Z55: 0 | AA55: 0 | AB55: 0
A56: 0 | F56: 0 | G56: 0 | H56: 0 | I56: 0 | J56: 0 | K56: 0 | L56: 0 | M56: 0 | N56: 0 | O56: 0 | P56: 0 | Q56: 0 | R56: 0 | T56: 0 | U56: 0 | V56: 0 | W56: 0 | X56: 0 | Y56: 0 | Z56: 0 | AA56: 0 | AB56: 0
A57: 0 | B57: =+Z2126 ->  | C57: =+AA2126 ->  | D57: =+AB2126 ->  | E57: =+AC2126 ->  | F57: =+SUMIF($C$2076:$C$5676,$C57,F$2076:F$5676) -> 0 | G57: 0 | H57: 0 | I57: 0 | J57: 0 | K57: 0 | L57: 0 | M57: 0 | N57: 0 | O57: 0 | P57: 0 | Q57: 0 | R57: 0 | S57: =+IF(C57="","",COUNTIFS($C$2076:$C$5676,C57,$M$2076:$M$5676,">5")) ->  | T57: =IF(OR(A57=2,A57=3),0,SUMIF($C$2076:$C$5676,$C57,T$2076:T$5676)) -> 0 | U57: =+R57-T57+Q57 -> 0 | V57: =IF(OR(A57=1,A57=3),0,SUMIF($C$2076:$C$5676,$C57,V$2076:V$5676)) -> 0 | W57: =+U57-V57 -> 0 | X57: 0 | Y57: =+R57+Q57-X57 -> 0 | Z57: =+V57 -> 0 | AA57: =+Y57-Z57 -> 0 | AB57: =IF(A57=3,0,W57-AA57) -> 0
A58: 0 | F58: 0 | G58: 0 | H58: 0 | I58: 0 | J58: 0 | K58: 0 | L58: 0 | M58: 0 | N58: 0 | O58: 0 | P58: 0 | Q58: 0 | R58: 0 | T58: 0 | U58: 0 | V58: 0 | W58: 0 | X58: 0 | Y58: 0 | Z58: 0 | AA58: 0 | AB58: 0
A59: 0 | F59: 0 | G59: 0 | H59: 0 | I59: 0 | J59: 0 | K59: 0 | L59: 0 | M59: 0 | N59: 0 | O59: 0 | P59: 0 | Q59: 0 | R59: 0 | T59: 0 | U59: 0 | V59: 0 | W59: 0 | X59: 0 | Y59: 0 | Z59: 0 | AA59: 0 | AB59: 0
A60: 0 | F60: 0 | G60: 0 | H60: 0 | I60: 0 | J60: 0 | K60: 0 | L60: 0 | M60: 0 | N60: 0 | O60: 0 | P60: 0 | Q60: 0 | R60: 0 | T60: 0 | U60: 0 | V60: 0 | W60: 0 | X60: 0 | Y60: 0 | Z60: 0 | AA60: 0 | AB60: 0
A61: 0 | F61: 0 | G61: 0 | H61: 0 | I61: 0 | J61: 0 | K61: 0 | L61: 0 | M61: 0 | N61: 0 | O61: 0 | P61: 0 | Q61: 0 | R61: 0 | T61: 0 | U61: 0 | V61: 0 | W61: 0 | X61: 0 | Y61: 0 | Z61: 0 | AA61: 0 | AB61: 0
A62: 0 | F62: 0 | G62: 0 | H62: 0 | I62: 0 | J62: 0 | K62: 0 | L62: 0 | M62: 0 | N62: 0 | O62: 0 | P62: 0 | Q62: 0 | R62: 0 | T62: 0 | U62: 0 | V62: 0 | W62: 0 | X62: 0 | Y62: 0 | Z62: 0 | AA62: 0 | AB62: 0
A63: 0 | F63: 0 | G63: 0 | H63: 0 | I63: 0 | J63: 0 | K63: 0 | L63: 0 | M63: 0 | N63: 0 | O63: 0 | P63: 0 | Q63: 0 | R63: 0 | T63: 0 | U63: 0 | V63: 0 | W63: 0 | X63: 0 | Y63: 0 | Z63: 0 | AA63: 0 | AB63: 0
A64: 0 | F64: 0 | G64: 0 | H64: 0 | I64: 0 | J64: 0 | K64: 0 | L64: 0 | M64: 0 | N64: 0 | O64: 0 | P64: 0 | Q64: 0 | R64: 0 | T64: 0 | U64: 0 | V64: 0 | W64: 0 | X64: 0 | Y64: 0 | Z64: 0 | AA64: 0 | AB64: 0
A65: 0 | F65: 0 | G65: 0 | H65: 0 | I65: 0 | J65: 0 | K65: 0 | L65: 0 | M65: 0 | N65: 0 | O65: 0 | P65: 0 | Q65: 0 | R65: 0 | T65: 0 | U65: 0 | V65: 0 | W65: 0 | X65: 0 | Y65: 0 | Z65: 0 | AA65: 0 | AB65: 0
A66: 0 | F66: 0 | G66: 0 | H66: 0 | I66: 0 | J66: 0 | K66: 0 | L66: 0 | M66: 0 | N66: 0 | O66: 0 | P66: 0 | Q66: 0 | R66: 0 | T66: 0 | U66: 0 | V66: 0 | W66: 0 | X66: 0 | Y66: 0 | Z66: 0 | AA66: 0 | AB66: 0
A67: 0 | F67: 0 | G67: 0 | H67: 0 | I67: 0 | J67: 0 | K67: 0 | L67: 0 | M67: 0 | N67: 0 | O67: 0 | P67: 0 | Q67: 0 | R67: 0 | T67: 0 | U67: 0 | V67: 0 | W67: 0 | X67: 0 | Y67: 0 | Z67: 0 | AA67: 0 | AB67: 0
A68: 0 | F68: 0 | G68: 0 | H68: 0 | I68: 0 | J68: 0 | K68: 0 | L68: 0 | M68: 0 | N68: 0 | O68: 0 | P68: 0 | Q68: 0 | R68: 0 | T68: 0 | U68: 0 | V68: 0 | W68: 0 | X68: 0 | Y68: 0 | Z68: 0 | AA68: 0 | AB68: 0
A69: 0 | F69: 0 | G69: 0 | H69: 0 | I69: 0 | J69: 0 | K69: 0 | L69: 0 | M69: 0 | N69: 0 | O69: 0 | P69: 0 | Q69: 0 | R69: 0 | T69: 0 | U69: 0 | V69: 0 | W69: 0 | X69: 0 | Y69: 0 | Z69: 0 | AA69: 0 | AB69: 0
A70: 0 | F70: 0 | G70: 0 | H70: 0 | I70: 0 | J70: 0 | K70: 0 | L70: 0 | M70: 0 | N70: 0 | O70: 0 | P70: 0 | Q70: 0 | R70: 0 | T70: 0 | U70: 0 | V70: 0 | W70: 0 | X70: 0 | Y70: 0 | Z70: 0 | AA70: 0 | AB70: 0
A71: 0 | F71: 0 | G71: 0 | H71: 0 | I71: 0 | J71: 0 | K71: 0 | L71: 0 | M71: 0 | N71: 0 | O71: 0 | P71: 0 | Q71: 0 | R71: 0 | T71: 0 | U71: 0 | V71: 0 | W71: 0 | X71: =IF(AND(K71>0.5,F71>0.5),T71,IF(OR(K71>10,A71=2,A71=3),0,IF(S71="",0,IF(S71<12,T71,IF(S71=12,IF(P71<6000000,240000,IF(P71<12000000,216000,IF(P71<18000000,192000,IF(P71<24000000,168000,IF(P71<30000000,144000,IF(P71<36000000,120000,IF(P71>36000000,0)))))))))))) -> 0 | Y71: 0 | Z71: 0 | AA71: 0 | AB71: 0
A72: 0 | F72: 0 | G72: 0 | H72: 0 | I72: 0 | J72: 0 | K72: 0 | L72: 0 | M72: 0 | N72: 0 | O72: 0 | P72: 0 | Q72: 0 | R72: 0 | T72: 0 | U72: 0 | V72: 0 | W72: 0 | X72: 0 | Y72: 0 | Z72: 0 | AA72: 0 | AB72: 0
A73: 0 | F73: 0 | G73: 0 | H73: 0 | I73: 0 | J73: 0 | K73: 0 | L73: 0 | M73: 0 | N73: 0 | O73: 0 | P73: 0 | Q73: 0 | R73: 0 | T73: 0 | U73: 0 | V73: 0 | W73: 0 | X73: 0 | Y73: 0 | Z73: 0 | AA73: 0 | AB73: 0
A74: 0 | F74: 0 | G74: 0 | H74: 0 | I74: 0 | J74: 0 | K74: 0 | L74: 0 | M74: 0 | N74: 0 | O74: 0 | P74: 0 | Q74: 0 | R74: 0 | T74: 0 | U74: 0 | V74: 0 | W74: 0 | X74: 0 | Y74: 0 | Z74: 0 | AA74: 0 | AB74: 0
A75: 0 | F75: 0 | G75: 0 | H75: 0 | I75: 0 | J75: 0 | K75: 0 | L75: 0 | M75: 0 | N75: 0 | O75: 0 | P75: 0 | Q75: 0 | R75: 0 | T75: 0 | U75: 0 | V75: 0 | W75: 0 | X75: 0 | Y75: 0 | Z75: 0 | AA75: 0 | AB75: 0
A76: 0 | F76: 0 | G76: 0 | H76: 0 | I76: 0 | J76: 0 | K76: 0 | L76: 0 | M76: 0 | N76: =+SUMIF($C$2076:$C$5676,$C76,N$2076:N$5676) -> 0 | O76: 0 | P76: 0 | Q76: 0 | R76: 0 | T76: 0 | U76: 0 | V76: 0 | W76: 0 | X76: 0 | Y76: 0 | Z76: 0 | AA76: 0 | AB76: 0
A77: 0 | F77: =+SUMIF($C$2076:$C$5676,$C77,F$2076:F$5676) -> 0 | G77: 0 | H77: 0 | I77: 0 | J77: 0 | K77: 0 | L77: 0 | M77: 0 | N77: 0 | O77: 0 | P77: 0 | Q77: 0 | R77: 0 | T77: 0 | U77: 0 | V77: 0 | W77: 0 | X77: 0 | Y77: 0 | Z77: 0 | AA77: 0 | AB77: 0
A78: 0 | F78: 0 | G78: 0 | H78: 0 | I78: 0 | J78: 0 | K78: 0 | L78: 0 | M78: 0 | N78: 0 | O78: 0 | P78: 0 | Q78: 0 | R78: 0 | T78: 0 | U78: 0 | V78: 0 | W78: 0 | X78: 0 | Y78: 0 | Z78: 0 | AA78: 0 | AB78: 0
A79: 0 | F79: 0 | G79: 0 | H79: 0 | I79: 0 | J79: 0 | K79: 0 | L79: 0 | M79: 0 | N79: 0 | O79: 0 | P79: 0 | Q79: 0 | R79: 0 | T79: 0 | U79: 0 | V79: 0 | W79: 0 | X79: 0 | Y79: 0 | Z79: 0 | AA79: 0 | AB79: 0
A80: 0 | F80: 0 | G80: 0 | H80: 0 | I80: 0 | J80: 0 | K80: 0 | L80: 0 | M80: 0 | N80: 0 | O80: 0 | P80: 0 | Q80: 0 | R80: 0 | T80: 0 | U80: 0 | V80: 0 | W80: 0 | X80: 0 | Y80: 0 | Z80: 0 | AA80: 0 | AB80: 0
A81: 0 | F81: 0 | G81: 0 | H81: 0 | I81: 0 | J81: 0 | K81: 0 | L81: 0 | M81: 0 | N81: 0 | O81: 0 | P81: 0 | Q81: 0 | R81: 0 | T81: 0 | U81: 0 | V81: 0 | W81: 0 | X81: 0 | Y81: 0 | Z81: 0 | AA81: 0 | AB81: 0
A82: 0 | F82: 0 | G82: 0 | H82: 0 | I82: 0 | J82: 0 | K82: 0 | L82: 0 | M82: 0 | N82: 0 | O82: 0 | P82: 0 | Q82: 0 | R82: 0 | T82: 0 | U82: 0 | V82: 0 | W82: 0 | X82: 0 | Y82: 0 | Z82: 0 | AA82: 0 | AB82: 0
A83: 0 | F83: 0 | G83: 0 | H83: 0 | I83: 0 | J83: 0 | K83: 0 | L83: 0 | M83: 0 | N83: 0 | O83: 0 | P83: 0 | Q83: 0 | R83: 0 | T83: 0 | U83: 0 | V83: 0 | W83: 0 | X83: 0 | Y83: 0 | Z83: 0 | AA83: 0 | AB83: 0
A84: 0 | F84: 0 | G84: 0 | H84: 0 | I84: 0 | J84: 0 | K84: 0 | L84: 0 | M84: 0 | N84: 0 | O84: 0 | P84: 0 | Q84: 0 | R84: 0 | T84: 0 | U84: 0 | V84: 0 | W84: 0 | X84: 0 | Y84: 0 | Z84: 0 | AA84: 0 | AB84: 0
A85: 0 | F85: 0 | G85: 0 | H85: 0 | I85: 0 | J85: 0 | K85: 0 | L85: 0 | M85: 0 | N85: 0 | O85: 0 | P85: 0 | Q85: 0 | R85: 0 | T85: 0 | U85: 0 | V85: 0 | W85: 0 | X85: 0 | Y85: 0 | Z85: 0 | AA85: 0 | AB85: 0
A86: 0 | F86: 0 | G86: 0 | H86: 0 | I86: 0 | J86: 0 | K86: 0 | L86: 0 | M86: 0 | N86: 0 | O86: 0 | P86: 0 | Q86: 0 | R86: 0 | T86: 0 | U86: 0 | V86: 0 | W86: 0 | X86: 0 | Y86: 0 | Z86: 0 | AA86: 0 | AB86: 0
A87: 0 | F87: 0 | G87: 0 | H87: 0 | I87: 0 | J87: 0 | K87: 0 | L87: 0 | M87: 0 | N87: 0 | O87: 0 | P87: 0 | Q87: 0 | R87: 0 | T87: 0 | U87: 0 | V87: 0 | W87: 0 | X87: 0 | Y87: 0 | Z87: 0 | AA87: 0 | AB87: 0
A88: 0 | F88: 0 | G88: 0 | H88: 0 | I88: 0 | J88: 0 | K88: 0 | L88: 0 | M88: 0 | N88: 0 | O88: 0 | P88: 0 | Q88: 0 | R88: 0 | T88: 0 | U88: 0 | V88: 0 | W88: 0 | X88: 0 | Y88: 0 | Z88: 0 | AA88: 0 | AB88: 0
A89: 0 | F89: 0 | G89: 0 | H89: 0 | I89: 0 | J89: 0 | K89: 0 | L89: 0 | M89: 0 | N89: 0 | O89: 0 | P89: 0 | Q89: 0 | R89: 0 | T89: 0 | U89: 0 | V89: 0 | W89: 0 | X89: 0 | Y89: 0 | Z89: 0 | AA89: 0 | AB89: 0
A90: 0 | F90: 0 | G90: 0 | H90: 0 | I90: 0 | J90: 0 | K90: 0 | L90: 0 | M90: 0 | N90: 0 | O90: 0 | P90: 0 | Q90: 0 | R90: 0 | T90: 0 | U90: 0 | V90: 0 | W90: 0 | X90: 0 | Y90: 0 | Z90: 0 | AA90: 0 | AB90: 0
A91: 0 | F91: 0 | G91: 0 | H91: 0 | I91: 0 | J91: 0 | K91: 0 | L91: 0 | M91: 0 | N91: 0 | O91: 0 | P91: 0 | Q91: 0 | R91: 0 | T91: 0 | U91: 0 | V91: 0 | W91: 0 | X91: 0 | Y91: 0 | Z91: 0 | AA91: 0 | AB91: 0
A92: 0 | F92: 0 | G92: 0 | H92: 0 | I92: 0 | J92: 0 | K92: 0 | L92: 0 | M92: 0 | N92: 0 | O92: 0 | P92: 0 | Q92: 0 | R92: 0 | T92: 0 | U92: 0 | V92: 0 | W92: 0 | X92: 0 | Y92: 0 | Z92: 0 | AA92: 0 | AB92: 0
A93: 0 | F93: 0 | G93: 0 | H93: 0 | I93: 0 | J93: 0 | K93: 0 | L93: 0 | M93: 0 | N93: 0 | O93: 0 | P93: 0 | Q93: 0 | R93: 0 | T93: 0 | U93: 0 | V93: 0 | W93: 0 | X93: 0 | Y93: 0 | Z93: 0 | AA93: 0 | AB93: 0
A94: 0 | F94: 0 | G94: 0 | H94: 0 | I94: 0 | J94: 0 | K94: 0 | L94: 0 | M94: 0 | N94: 0 | O94: 0 | P94: 0 | Q94: 0 | R94: 0 | T94: 0 | U94: 0 | V94: 0 | W94: 0 | X94: 0 | Y94: 0 | Z94: 0 | AA94: 0 | AB94: 0
A95: 0 | F95: 0 | G95: 0 | H95: 0 | I95: 0 | J95: 0 | K95: 0 | L95: 0 | M95: 0 | N95: 0 | O95: 0 | P95: 0 | Q95: 0 | R95: 0 | T95: 0 | U95: 0 | V95: 0 | W95: 0 | X95: 0 | Y95: 0 | Z95: 0 | AA95: 0 | AB95: 0
A96: 0 | F96: 0 | G96: 0 | H96: 0 | I96: 0 | J96: 0 | K96: 0 | L96: 0 | M96: 0 | N96: 0 | O96: 0 | P96: 0 | Q96: 0 | R96: 0 | T96: 0 | U96: 0 | V96: 0 | W96: 0 | X96: 0 | Y96: 0 | Z96: 0 | AA96: 0 | AB96: 0
A97: 0 | F97: 0 | G97: 0 | H97: 0 | I97: 0 | J97: 0 | K97: 0 | L97: 0 | M97: 0 | N97: 0 | O97: 0 | P97: 0 | Q97: 0 | R97: 0 | T97: 0 | U97: 0 | V97: 0 | W97: 0 | X97: 0 | Y97: 0 | Z97: 0 | AA97: 0 | AB97: 0
A98: 0 | F98: 0 | G98: 0 | H98: 0 | I98: 0 | J98: 0 | K98: 0 | L98: 0 | M98: 0 | N98: 0 | O98: 0 | P98: 0 | Q98: 0 | R98: 0 | T98: 0 | U98: 0 | V98: 0 | W98: 0 | X98: 0 | Y98: 0 | Z98: 0 | AA98: 0 | AB98: 0
A99: 0 | F99: 0 | G99: 0 | H99: 0 | I99: 0 | J99: 0 | K99: 0 | L99: 0 | M99: 0 | N99: 0 | O99: 0 | P99: 0 | Q99: 0 | R99: 0 | T99: 0 | U99: 0 | V99: 0 | W99: 0 | X99: 0 | Y99: 0 | Z99: 0 | AA99: 0 | AB99: 0
A100: 0 | F100: 0 | G100: 0 | H100: 0 | I100: 0 | J100: 0 | K100: 0 | L100: 0 | M100: 0 | N100: 0 | O100: 0 | P100: 0 | Q100: 0 | R100: 0 | T100: 0 | U100: 0 | V100: 0 | W100: 0 | X100: 0 | Y100: 0 | Z100: 0 | AA100: 0 | AB100: 0
A101: 0 | F101: 0 | G101: 0 | H101: 0 | I101: 0 | J101: 0 | K101: 0 | L101: 0 | M101: 0 | N101: 0 | O101: 0 | P101: 0 | Q101: 0 | R101: 0 | T101: 0 | U101: 0 | V101: 0 | W101: 0 | X101: 0 | Y101: 0 | Z101: 0 | AA101: 0 | AB101: 0
A102: 0 | F102: 0 | G102: 0 | H102: 0 | I102: 0 | J102: 0 | K102: 0 | L102: 0 | M102: 0 | N102: 0 | O102: 0 | P102: 0 | Q102: 0 | R102: 0 | T102: 0 | U102: 0 | V102: 0 | W102: 0 | X102: 0 | Y102: 0 | Z102: 0 | AA102: 0 | AB102: 0
A103: 0 | F103: 0 | G103: 0 | H103: 0 | I103: 0 | J103: 0 | K103: 0 | L103: 0 | M103: 0 | N103: 0 | O103: 0 | P103: 0 | Q103: 0 | R103: 0 | T103: 0 | U103: 0 | V103: 0 | W103: 0 | X103: 0 | Y103: 0 | Z103: 0 | AA103: 0 | AB103: 0
F104: 0 | G104: 0 | H104: 0 | I104: 0 | J104: 0 | K104: 0 | L104: 0 | M104: 0 | N104: 0 | O104: 0 | P104: 0 | Q104: 0 | R104: 0 | T104: 0 | U104: 0 | V104: 0 | W104: 0 | X104: 0 | Y104: 0 | Z104: 0 | AA104: 0 | AB104: 0
F105: 0 | G105: 0 | H105: 0 | I105: 0 | J105: 0 | K105: 0 | L105: 0 | M105: 0 | N105: 0 | O105: 0 | P105: 0 | Q105: 0 | R105: 0 | T105: 0 | U105: 0 | V105: 0 | W105: 0 | X105: 0 | Y105: 0 | Z105: 0 | AA105: 0 | AB105: 0
F106: 0 | G106: 0 | H106: 0 | I106: 0 | J106: 0 | K106: 0 | L106: 0 | M106: 0 | N106: 0 | O106: 0 | P106: 0 | Q106: 0 | R106: 0 | T106: 0 | U106: 0 | V106: 0 | W106: 0 | X106: 0 | Y106: 0 | Z106: 0 | AA106: 0 | AB106: 0
F107: 0 | G107: 0 | H107: 0 | I107: 0 | J107: 0 | K107: 0 | L107: 0 | M107: 0 | N107: 0 | O107: 0 | P107: 0 | Q107: 0 | R107: 0 | T107: 0 | U107: 0 | V107: 0 | W107: 0 | X107: 0 | Y107: 0 | Z107: 0 | AA107: 0 | AB107: 0
F108: 0 | G108: 0 | H108: 0 | I108: 0 | J108: 0 | K108: 0 | L108: 0 | M108: =+SUMIF($C$2076:$C$5676,$C108,M$2076:M$5676) -> 0 | N108: 0 | O108: 0 | P108: 0 | Q108: 0 | R108: 0 | T108: 0 | U108: 0 | V108: 0 | W108: 0 | X108: 0 | Y108: 0 | Z108: 0 | AA108: 0 | AB108: 0
F109: =+SUMIF($C$2076:$C$5676,$C109,F$2076:F$5676) -> 0 | G109: 0 | H109: 0 | I109: 0 | J109: 0 | K109: 0 | L109: 0 | M109: 0 | N109: 0 | O109: 0 | P109: 0 | Q109: 0 | R109: 0 | T109: 0 | U109: 0 | V109: 0 | W109: 0 | X109: 0 | Y109: 0 | Z109: 0 | AA109: 0 | AB109: 0
F110: 0 | G110: 0 | H110: 0 | I110: 0 | J110: 0 | K110: 0 | L110: 0 | M110: 0 | N110: 0 | O110: 0 | P110: 0 | Q110: 0 | R110: 0 | T110: 0 | U110: 0 | V110: 0 | W110: 0 | X110: 0 | Y110: 0 | Z110: 0 | AA110: 0 | AB110: 0
F111: 0 | G111: 0 | H111: 0 | I111: 0 | J111: 0 | K111: 0 | L111: 0 | M111: 0 | N111: 0 | O111: 0 | P111: 0 | Q111: 0 | R111: 0 | T111: 0 | U111: 0 | V111: 0 | W111: 0 | X111: 0 | Y111: 0 | Z111: 0 | AA111: 0 | AB111: 0
F112: 0 | G112: 0 | H112: 0 | I112: 0 | J112: 0 | K112: 0 | L112: 0 | M112: 0 | N112: 0 | O112: 0 | P112: 0 | Q112: 0 | R112: 0 | T112: 0 | U112: 0 | V112: 0 | W112: 0 | X112: 0 | Y112: 0 | Z112: 0 | AA112: 0 | AB112: 0
F113: 0 | G113: 0 | H113: 0 | I113: 0 | J113: 0 | K113: 0 | L113: 0 | M113: 0 | N113: 0 | O113: 0 | P113: 0 | Q113: 0 | R113: 0 | T113: 0 | U113: 0 | V113: 0 | W113: 0 | X113: 0 | Y113: 0 | Z113: 0 | AA113: 0 | AB113: 0
F114: 0 | G114: 0 | H114: 0 | I114: 0 | J114: 0 | K114: 0 | L114: 0 | M114: 0 | N114: 0 | O114: 0 | P114: 0 | Q114: 0 | R114: 0 | T114: 0 | U114: 0 | V114: 0 | W114: 0 | X114: 0 | Y114: 0 | Z114: 0 | AA114: 0 | AB114: 0
F115: 0 | G115: 0 | H115: 0 | I115: 0 | J115: 0 | K115: 0 | L115: 0 | M115: 0 | N115: 0 | O115: 0 | P115: 0 | Q115: 0 | R115: 0 | T115: 0 | U115: 0 | V115: 0 | W115: 0 | X115: 0 | Y115: 0 | Z115: 0 | AA115: 0 | AB115: 0
F116: 0 | G116: 0 | H116: 0 | I116: 0 | J116: 0 | K116: 0 | L116: 0 | M116: 0 | N116: 0 | O116: 0 | P116: 0 | Q116: 0 | R116: 0 | T116: 0 | U116: 0 | V116: 0 | W116: 0 | X116: 0 | Y116: 0 | Z116: 0 | AA116: 0 | AB116: 0
F117: 0 | G117: 0 | H117: 0 | I117: 0 | J117: 0 | K117: 0 | L117: 0 | M117: 0 | N117: 0 | O117: 0 | P117: 0 | Q117: 0 | R117: 0 | T117: 0 | U117: 0 | V117: 0 | W117: 0 | X117: 0 | Y117: 0 | Z117: 0 | AA117: 0 | AB117: 0
F118: 0 | G118: 0 | H118: 0 | I118: 0 | J118: 0 | K118: 0 | L118: 0 | M118: 0 | N118: 0 | O118: 0 | P118: 0 | Q118: 0 | R118: 0 | T118: 0 | U118: 0 | V118: 0 | W118: 0 | X118: 0 | Y118: 0 | Z118: 0 | AA118: 0 | AB118: 0
F119: 0 | G119: 0 | H119: 0 | I119: 0 | J119: 0 | K119: 0 | L119: 0 | M119: 0 | N119: 0 | O119: 0 | P119: 0 | Q119: 0 | R119: 0 | T119: 0 | U119: 0 | V119: 0 | W119: 0 | X119: 0 | Y119: 0 | Z119: 0 | AA119: 0 | AB119: 0
F120: 0 | G120: 0 | H120: 0 | I120: 0 | J120: 0 | K120: 0 | L120: 0 | M120: 0 | N120: 0 | O120: 0 | P120: 0 | Q120: 0 | R120: 0 | T120: 0 | U120: 0 | V120: 0 | W120: 0 | X120: 0 | Y120: 0 | Z120: 0 | AA120: 0 | AB120: 0
B121: =+Z2190 ->  | C121: =+AA2190 ->  | D121: =+AB2190 ->  | E121: =+AC2190 ->  | F121: 0 | G121: 0 | H121: 0 | I121: 0 | J121: 0 | K121: 0 | L121: 0 | M121: 0 | N121: 0 | O121: 0 | P121: 0 | Q121: 0 | R121: 0 | S121: =+IF(C121="","",COUNTIFS($C$2076:$C$5676,C121,$M$2076:$M$5676,">5")) ->  | T121: =IF(OR(A121=2,A121=3),0,SUMIF($C$2076:$C$5676,$C121,T$2076:T$5676)) -> 0 | U121: =+R121-T121+Q121 -> 0 | V121: =IF(OR(A121=1,A121=3),0,SUMIF($C$2076:$C$5676,$C121,V$2076:V$5676)) -> 0 | W121: =+U121-V121 -> 0 | X121: 0 | Y121: =+R121+Q121-X121 -> 0 | Z121: =+V121 -> 0 | AA121: =+Y121-Z121 -> 0 | AB121: =IF(A121=3,0,W121-AA121) -> 0
F122: 0 | G122: 0 | H122: 0 | I122: 0 | J122: 0 | K122: 0 | L122: 0 | M122: 0 | N122: 0 | O122: 0 | P122: 0 | Q122: 0 | R122: 0 | T122: 0 | U122: 0 | V122: 0 | W122: 0 | X122: 0 | Y122: 0 | Z122: 0 | AA122: 0 | AB122: 0
F123: 0 | G123: 0 | H123: 0 | I123: 0 | J123: 0 | K123: 0 | L123: 0 | M123: 0 | N123: 0 | O123: 0 | P123: 0 | Q123: 0 | R123: 0 | T123: 0 | U123: 0 | V123: 0 | W123: 0 | X123: 0 | Y123: 0 | Z123: 0 | AA123: 0 | AB123: 0
F124: 0 | G124: 0 | H124: 0 | I124: 0 | J124: 0 | K124: 0 | L124: 0 | M124: 0 | N124: 0 | O124: 0 | P124: 0 | Q124: 0 | R124: 0 | T124: 0 | U124: 0 | V124: 0 | W124: 0 | X124: 0 | Y124: 0 | Z124: 0 | AA124: 0 | AB124: 0
F125: 0 | G125: 0 | H125: 0 | I125: 0 | J125: 0 | K125: 0 | L125: 0 | M125: 0 | N125: 0 | O125: 0 | P125: 0 | Q125: 0 | R125: 0 | T125: 0 | U125: 0 | V125: 0 | W125: 0 | X125: 0 | Y125: 0 | Z125: 0 | AA125: 0 | AB125: 0
F126: 0 | G126: 0 | H126: 0 | I126: 0 | J126: 0 | K126: 0 | L126: 0 | M126: 0 | N126: 0 | O126: 0 | P126: 0 | Q126: 0 | R126: 0 | T126: 0 | U126: 0 | V126: 0 | W126: 0 | X126: 0 | Y126: 0 | Z126: 0 | AA126: 0 | AB126: 0
F127: 0 | G127: 0 | H127: 0 | I127: 0 | J127: 0 | K127: 0 | L127: 0 | M127: 0 | N127: 0 | O127: 0 | P127: 0 | Q127: 0 | R127: 0 | T127: 0 | U127: 0 | V127: 0 | W127: 0 | X127: 0 | Y127: 0 | Z127: 0 | AA127: 0 | AB127: 0
F128: 0 | G128: 0 | H128: 0 | I128: 0 | J128: 0 | K128: 0 | L128: 0 | M128: 0 | N128: 0 | O128: 0 | P128: 0 | Q128: 0 | R128: 0 | T128: 0 | U128: 0 | V128: 0 | W128: 0 | X128: 0 | Y128: 0 | Z128: 0 | AA128: 0 | AB128: 0
F129: 0 | G129: 0 | H129: 0 | I129: 0 | J129: 0 | K129: 0 | L129: 0 | M129: 0 | N129: 0 | O129: 0 | P129: 0 | Q129: 0 | R129: 0 | T129: 0 | U129: 0 | V129: 0 | W129: 0 | X129: 0 | Y129: 0 | Z129: 0 | AA129: 0 | AB129: 0
F130: 0 | G130: 0 | H130: 0 | I130: 0 | J130: 0 | K130: 0 | L130: 0 | M130: 0 | N130: 0 | O130: 0 | P130: 0 | Q130: 0 | R130: 0 | T130: 0 | U130: 0 | V130: 0 | W130: 0 | X130: 0 | Y130: 0 | Z130: 0 | AA130: 0 | AB130: 0
F131: 0 | G131: 0 | H131: 0 | I131: 0 | J131: 0 | K131: 0 | L131: 0 | M131: 0 | N131: 0 | O131: 0 | P131: 0 | Q131: 0 | R131: 0 | T131: 0 | U131: 0 | V131: 0 | W131: 0 | X131: 0 | Y131: 0 | Z131: 0 | AA131: 0 | AB131: 0
F132: 0 | G132: 0 | H132: 0 | I132: 0 | J132: 0 | K132: 0 | L132: 0 | M132: 0 | N132: 0 | O132: 0 | P132: 0 | Q132: 0 | R132: 0 | T132: 0 | U132: 0 | V132: 0 | W132: 0 | X132: 0 | Y132: 0 | Z132: 0 | AA132: 0 | AB132: 0
F133: 0 | G133: 0 | H133: 0 | I133: 0 | J133: 0 | K133: 0 | L133: 0 | M133: 0 | N133: 0 | O133: 0 | P133: 0 | Q133: 0 | R133: 0 | T133: 0 | U133: 0 | V133: 0 | W133: 0 | X133: 0 | Y133: 0 | Z133: 0 | AA133: 0 | AB133: 0
F134: 0 | G134: 0 | H134: 0 | I134: 0 | J134: 0 | K134: 0 | L134: 0 | M134: 0 | N134: 0 | O134: 0 | P134: 0 | Q134: 0 | R134: 0 | T134: 0 | U134: 0 | V134: 0 | W134: 0 | X134: 0 | Y134: 0 | Z134: 0 | AA134: 0 | AB134: 0
F135: 0 | G135: 0 | H135: 0 | I135: 0 | J135: 0 | K135: 0 | L135: 0 | M135: 0 | N135: 0 | O135: 0 | P135: 0 | Q135: 0 | R135: 0 | T135: 0 | U135: 0 | V135: 0 | W135: 0 | X135: =IF(AND(K135>0.5,F135>0.5),T135,IF(OR(K135>10,A135=2,A135=3),0,IF(S135="",0,IF(S135<12,T135,IF(S135=12,IF(P135<6000000,240000,IF(P135<12000000,216000,IF(P135<18000000,192000,IF(P135<24000000,168000,IF(P135<30000000,144000,IF(P135<36000000,120000,IF(P135>36000000,0)))))))))))) -> 0 | Y135: 0 | Z135: 0 | AA135: 0 | AB135: 0
F136: 0 | G136: 0 | H136: 0 | I136: 0 | J136: 0 | K136: 0 | L136: 0 | M136: 0 | N136: 0 | O136: 0 | P136: 0 | Q136: 0 | R136: 0 | T136: 0 | U136: 0 | V136: 0 | W136: 0 | X136: 0 | Y136: 0 | Z136: 0 | AA136: 0 | AB136: 0
F137: 0 | G137: 0 | H137: 0 | I137: 0 | J137: 0 | K137: 0 | L137: 0 | M137: 0 | N137: 0 | O137: 0 | P137: 0 | Q137: 0 | R137: 0 | T137: 0 | U137: 0 | V137: 0 | W137: 0 | X137: 0 | Y137: 0 | Z137: 0 | AA137: 0 | AB137: 0
F138: 0 | G138: 0 | H138: 0 | I138: 0 | J138: 0 | K138: 0 | L138: 0 | M138: 0 | N138: 0 | O138: 0 | P138: 0 | Q138: 0 | R138: 0 | T138: 0 | U138: 0 | V138: 0 | W138: 0 | X138: 0 | Y138: 0 | Z138: 0 | AA138: 0 | AB138: 0
F139: 0 | G139: 0 | H139: 0 | I139: 0 | J139: 0 | K139: 0 | L139: 0 | M139: 0 | N139: 0 | O139: 0 | P139: 0 | Q139: 0 | R139: 0 | T139: 0 | U139: 0 | V139: 0 | W139: 0 | X139: 0 | Y139: 0 | Z139: 0 | AA139: 0 | AB139: 0
F140: 0 | G140: 0 | H140: 0 | I140: 0 | J140: 0 | K140: 0 | L140: 0 | M140: 0 | N140: 0 | O140: 0 | P140: 0 | Q140: 0 | R140: 0 | T140: 0 | U140: 0 | V140: 0 | W140: 0 | X140: 0 | Y140: 0 | Z140: 0 | AA140: 0 | AB140: 0
F141: 0 | G141: 0 | H141: 0 | I141: 0 | J141: 0 | K141: 0 | L141: 0 | M141: 0 | N141: 0 | O141: 0 | P141: 0 | Q141: 0 | R141: 0 | T141: 0 | U141: 0 | V141: 0 | W141: 0 | X141: 0 | Y141: 0 | Z141: 0 | AA141: 0 | AB141: 0
F142: 0 | G142: 0 | H142: 0 | I142: 0 | J142: 0 | K142: 0 | L142: 0 | M142: 0 | N142: 0 | O142: 0 | P142: 0 | Q142: 0 | R142: 0 | T142: 0 | U142: 0 | V142: 0 | W142: 0 | X142: 0 | Y142: 0 | Z142: 0 | AA142: 0 | AB142: 0
F143: 0 | G143: 0 | H143: 0 | I143: 0 | J143: 0 | K143: 0 | L143: 0 | M143: 0 | N143: 0 | O143: 0 | P143: 0 | Q143: 0 | R143: 0 | T143: 0 | U143: 0 | V143: 0 | W143: 0 | X143: 0 | Y143: 0 | Z143: 0 | AA143: 0 | AB143: 0
F144: 0 | G144: 0 | H144: 0 | I144: 0 | J144: 0 | K144: 0 | L144: 0 | M144: 0 | N144: 0 | O144: 0 | P144: 0 | Q144: 0 | R144: 0 | T144: 0 | U144: 0 | V144: 0 | W144: 0 | X144: 0 | Y144: 0 | Z144: 0 | AA144: 0 | AB144: 0
F145: 0 | G145: 0 | H145: 0 | I145: =+SUMIF($C$2076:$C$5676,$C145,I$2076:I$5676) -> 0 | J145: 0 | K145: 0 | L145: 0 | M145: 0 | N145: 0 | O145: 0 | P145: 0 | Q145: 0 | R145: 0 | T145: 0 | U145: 0 | V145: 0 | W145: 0 | X145: 0 | Y145: 0 | Z145: 0 | AA145: 0 | AB145: 0
F146: =+SUMIF($C$2076:$C$5676,$C146,F$2076:F$5676) -> 0 | G146: 0 | H146: 0 | I146: 0 | J146: 0 | K146: 0 | L146: 0 | M146: 0 | N146: 0 | O146: 0 | P146: 0 | Q146: 0 | R146: 0 | T146: 0 | U146: 0 | V146: 0 | W146: 0 | X146: 0 | Y146: 0 | Z146: 0 | AA146: 0 | AB146: 0
F147: 0 | G147: 0 | H147: 0 | I147: 0 | J147: 0 | K147: 0 | L147: 0 | M147: 0 | N147: 0 | O147: 0 | P147: 0 | Q147: 0 | R147: 0 | T147: 0 | U147: 0 | V147: 0 | W147: 0 | X147: 0 | Y147: 0 | Z147: 0 | AA147: 0 | AB147: 0
F148: 0 | G148: 0 | H148: 0 | I148: 0 | J148: 0 | K148: 0 | L148: 0 | M148: 0 | N148: 0 | O148: 0 | P148: 0 | Q148: 0 | R148: 0 | T148: 0 | U148: 0 | V148: 0 | W148: 0 | X148: 0 | Y148: 0 | Z148: 0 | AA148: 0 | AB148: 0
F149: 0 | G149: 0 | H149: 0 | I149: 0 | J149: 0 | K149: 0 | L149: 0 | M149: 0 | N149: 0 | O149: 0 | P149: 0 | Q149: 0 | R149: 0 | T149: 0 | U149: 0 | V149: 0 | W149: 0 | X149: 0 | Y149: 0 | Z149: 0 | AA149: 0 | AB149: 0
F150: 0 | G150: 0 | H150: 0 | I150: 0 | J150: 0 | K150: 0 | L150: 0 | M150: 0 | N150: 0 | O150: 0 | P150: 0 | Q150: 0 | R150: 0 | T150: 0 | U150: 0 | V150: 0 | W150: 0 | X150: 0 | Y150: 0 | Z150: 0 | AA150: 0 | AB150: 0
F151: 0 | G151: 0 | H151: 0 | I151: 0 | J151: 0 | K151: 0 | L151: 0 | M151: 0 | N151: 0 | O151: 0 | P151: 0 | Q151: 0 | R151: 0 | T151: 0 | U151: 0 | V151: 0 | W151: 0 | X151: 0 | Y151: 0 | Z151: 0 | AA151: 0 | AB151: 0
F152: 0 | G152: 0 | H152: 0 | I152: 0 | J152: 0 | K152: 0 | L152: 0 | M152: 0 | N152: 0 | O152: 0 | P152: 0 | Q152: 0 | R152: 0 | T152: 0 | U152: 0 | V152: 0 | W152: 0 | X152: 0 | Y152: 0 | Z152: 0 | AA152: 0 | AB152: 0
F153: 0 | G153: 0 | H153: 0 | I153: 0 | J153: 0 | K153: 0 | L153: 0 | M153: 0 | N153: 0 | O153: 0 | P153: 0 | Q153: 0 | R153: 0 | T153: 0 | U153: 0 | V153: 0 | W153: 0 | X153: 0 | Y153: 0 | Z153: 0 | AA153: 0 | AB153: 0
F154: 0 | G154: 0 | H154: 0 | I154: 0 | J154: 0 | K154: 0 | L154: 0 | M154: 0 | N154: 0 | O154: 0 | P154: 0 | Q154: 0 | R154: 0 | T154: 0 | U154: 0 | V154: 0 | W154: 0 | X154: 0 | Y154: 0 | Z154: 0 | AA154: 0 | AB154: 0
F155: 0 | G155: 0 | H155: 0 | I155: 0 | J155: 0 | K155: 0 | L155: 0 | M155: 0 | N155: 0 | O155: 0 | P155: 0 | Q155: 0 | R155: 0 | T155: 0 | U155: 0 | V155: 0 | W155: 0 | X155: 0 | Y155: 0 | Z155: 0 | AA155: 0 | AB155: 0
F156: 0 | G156: 0 | H156: 0 | I156: 0 | J156: 0 | K156: 0 | L156: 0 | M156: 0 | N156: 0 | O156: 0 | P156: 0 | Q156: 0 | R156: 0 | T156: 0 | U156: 0 | V156: 0 | W156: 0 | X156: 0 | Y156: 0 | Z156: 0 | AA156: 0 | AB156: 0
F157: 0 | G157: 0 | H157: 0 | I157: 0 | J157: 0 | K157: 0 | L157: 0 | M157: 0 | N157: 0 | O157: 0 | P157: 0 | Q157: 0 | R157: 0 | T157: 0 | U157: 0 | V157: 0 | W157: 0 | X157: 0 | Y157: 0 | Z157: 0 | AA157: 0 | AB157: 0
F158: 0 | G158: 0 | H158: 0 | I158: 0 | J158: 0 | K158: 0 | L158: 0 | M158: 0 | N158: 0 | O158: 0 | P158: 0 | Q158: 0 | R158: 0 | T158: 0 | U158: 0 | V158: 0 | W158: 0 | X158: 0 | Y158: 0 | Z158: 0 | AA158: 0 | AB158: 0
F159: 0 | G159: 0 | H159: 0 | I159: 0 | J159: 0 | K159: 0 | L159: 0 | M159: 0 | N159: 0 | O159: 0 | P159: 0 | Q159: 0 | R159: 0 | T159: 0 | U159: 0 | V159: 0 | W159: 0 | X159: 0 | Y159: 0 | Z159: 0 | AA159: 0 | AB159: 0
F160: 0 | G160: 0 | H160: 0 | I160: 0 | J160: 0 | K160: 0 | L160: 0 | M160: 0 | N160: 0 | O160: 0 | P160: 0 | Q160: 0 | R160: 0 | T160: 0 | U160: 0 | V160: 0 | W160: 0 | X160: 0 | Y160: 0 | Z160: 0 | AA160: 0 | AB160: 0
F161: 0 | G161: 0 | H161: 0 | I161: 0 | J161: 0 | K161: 0 | L161: 0 | M161: 0 | N161: 0 | O161: 0 | P161: 0 | Q161: 0 | R161: 0 | T161: 0 | U161: 0 | V161: 0 | W161: 0 | X161: 0 | Y161: 0 | Z161: 0 | AA161: 0 | AB161: 0
F162: 0 | G162: 0 | H162: 0 | I162: 0 | J162: 0 | K162: 0 | L162: 0 | M162: 0 | N162: 0 | O162: 0 | P162: 0 | Q162: 0 | R162: 0 | T162: 0 | U162: 0 | V162: 0 | W162: 0 | X162: 0 | Y162: 0 | Z162: 0 | AA162: 0 | AB162: 0
F163: 0 | G163: 0 | H163: 0 | I163: 0 | J163: 0 | K163: 0 | L163: 0 | M163: 0 | N163: 0 | O163: 0 | P163: 0 | Q163: 0 | R163: 0 | T163: 0 | U163: 0 | V163: 0 | W163: 0 | X163: 0 | Y163: 0 | Z163: 0 | AA163: 0 | AB163: 0
F164: 0 | G164: 0 | H164: 0 | I164: 0 | J164: 0 | K164: 0 | L164: 0 | M164: 0 | N164: 0 | O164: 0 | P164: 0 | Q164: 0 | R164: 0 | T164: 0 | U164: 0 | V164: 0 | W164: 0 | X164: 0 | Y164: 0 | Z164: 0 | AA164: 0 | AB164: 0
F165: 0 | G165: 0 | H165: 0 | I165: 0 | J165: 0 | K165: 0 | L165: 0 | M165: 0 | N165: 0 | O165: 0 | P165: 0 | Q165: 0 | R165: 0 | T165: 0 | U165: 0 | V165: 0 | W165: 0 | X165: 0 | Y165: 0 | Z165: 0 | AA165: 0 | AB165: 0
F166: 0 | G166: 0 | H166: 0 | I166: 0 | J166: 0 | K166: 0 | L166: 0 | M166: 0 | N166: 0 | O166: =+SUMIF($C$2076:$C$5676,$C166,O$2076:O$5676) -> 0 | P166: 0 | Q166: 0 | R166: 0 | T166: 0 | U166: 0 | V166: 0 | W166: 0 | X166: 0 | Y166: 0 | Z166: 0 | AA166: 0 | AB166: 0
F167: 0 | G167: 0 | H167: 0 | I167: 0 | J167: 0 | K167: 0 | L167: 0 | M167: 0 | N167: 0 | O167: 0 | P167: 0 | Q167: 0 | R167: 0 | T167: 0 | U167: 0 | V167: 0 | W167: 0 | X167: 0 | Y167: 0 | Z167: 0 | AA167: 0 | AB167: 0
F168: 0 | G168: 0 | H168: 0 | I168: 0 | J168: 0 | K168: 0 | L168: 0 | M168: 0 | N168: 0 | O168: 0 | P168: 0 | Q168: 0 | R168: 0 | T168: 0 | U168: 0 | V168: 0 | W168: 0 | X168: 0 | Y168: 0 | Z168: 0 | AA168: 0 | AB168: 0
F169: 0 | G169: 0 | H169: 0 | I169: 0 | J169: 0 | K169: 0 | L169: 0 | M169: 0 | N169: 0 | O169: 0 | P169: 0 | Q169: 0 | R169: 0 | T169: 0 | U169: 0 | V169: 0 | W169: 0 | X169: 0 | Y169: 0 | Z169: 0 | AA169: 0 | AB169: 0
F170: 0 | G170: 0 | H170: 0 | I170: 0 | J170: 0 | K170: 0 | L170: 0 | M170: 0 | N170: 0 | O170: 0 | P170: 0 | Q170: 0 | R170: 0 | T170: 0 | U170: 0 | V170: 0 | W170: 0 | X170: 0 | Y170: 0 | Z170: 0 | AA170: 0 | AB170: 0
F171: 0 | G171: 0 | H171: 0 | I171: 0 | J171: 0 | K171: 0 | L171: 0 | M171: 0 | N171: 0 | O171: 0 | P171: 0 | Q171: 0 | R171: 0 | T171: 0 | U171: 0 | V171: 0 | W171: 0 | X171: 0 | Y171: 0 | Z171: 0 | AA171: 0 | AB171: 0
F172: 0 | G172: 0 | H172: 0 | I172: 0 | J172: 0 | K172: 0 | L172: 0 | M172: 0 | N172: 0 | O172: 0 | P172: 0 | Q172: 0 | R172: 0 | T172: 0 | U172: 0 | V172: 0 | W172: 0 | X172: 0 | Y172: 0 | Z172: 0 | AA172: 0 | AB172: 0
F173: 0 | G173: 0 | H173: 0 | I173: 0 | J173: 0 | K173: 0 | L173: 0 | M173: 0 | N173: 0 | O173: 0 | P173: 0 | Q173: 0 | R173: 0 | T173: 0 | U173: 0 | V173: 0 | W173: 0 | X173: 0 | Y173: 0 | Z173: 0 | AA173: 0 | AB173: 0
F174: 0 | G174: 0 | H174: 0 | I174: 0 | J174: 0 | K174: 0 | L174: 0 | M174: 0 | N174: 0 | O174: 0 | P174: 0 | Q174: 0 | R174: 0 | T174: 0 | U174: 0 | V174: 0 | W174: 0 | X174: 0 | Y174: 0 | Z174: 0 | AA174: 0 | AB174: 0
F175: 0 | G175: 0 | H175: 0 | I175: 0 | J175: 0 | K175: 0 | L175: 0 | M175: 0 | N175: 0 | O175: 0 | P175: 0 | Q175: 0 | R175: 0 | T175: 0 | U175: 0 | V175: 0 | W175: 0 | X175: 0 | Y175: 0 | Z175: 0 | AA175: 0 | AB175: 0
F176: 0 | G176: 0 | H176: 0 | I176: 0 | J176: 0 | K176: 0 | L176: 0 | M176: 0 | N176: 0 | O176: 0 | P176: 0 | Q176: 0 | R176: 0 | T176: 0 | U176: 0 | V176: 0 | W176: 0 | X176: 0 | Y176: 0 | Z176: 0 | AA176: 0 | AB176: 0
F177: 0 | G177: 0 | H177: 0 | I177: 0 | J177: 0 | K177: 0 | L177: 0 | M177: 0 | N177: 0 | O177: 0 | P177: 0 | Q177: 0 | R177: 0 | T177: 0 | U177: 0 | V177: 0 | W177: 0 | X177: 0 | Y177: 0 | Z177: 0 | AA177: 0 | AB177: 0
F178: 0 | G178: 0 | H178: 0 | I178: 0 | J178: 0 | K178: 0 | L178: 0 | M178: 0 | N178: 0 | O178: 0 | P178: 0 | Q178: 0 | R178: 0 | T178: 0 | U178: 0 | V178: 0 | W178: 0 | X178: 0 | Y178: 0 | Z178: 0 | AA178: 0 | AB178: 0
F179: 0 | G179: 0 | H179: 0 | I179: 0 | J179: 0 | K179: 0 | L179: 0 | M179: 0 | N179: 0 | O179: 0 | P179: 0 | Q179: 0 | R179: 0 | T179: 0 | U179: 0 | V179: 0 | W179: 0 | X179: 0 | Y179: 0 | Z179: 0 | AA179: 0 | AB179: 0
F180: 0 | G180: 0 | H180: 0 | I180: 0 | J180: 0 | K180: 0 | L180: 0 | M180: 0 | N180: 0 | O180: 0 | P180: 0 | Q180: 0 | R180: 0 | T180: 0 | U180: 0 | V180: 0 | W180: 0 | X180: 0 | Y180: 0 | Z180: 0 | AA180: 0 | AB180: 0
F181: 0 | G181: 0 | H181: 0 | I181: 0 | J181: 0 | K181: 0 | L181: 0 | M181: 0 | N181: 0 | O181: 0 | P181: 0 | Q181: 0 | R181: 0 | T181: 0 | U181: 0 | V181: 0 | W181: 0 | X181: 0 | Y181: 0 | Z181: 0 | AA181: 0 | AB181: 0
F182: 0 | G182: 0 | H182: 0 | I182: 0 | J182: 0 | K182: 0 | L182: 0 | M182: 0 | N182: 0 | O182: 0 | P182: 0 | Q182: 0 | R182: 0 | T182: 0 | U182: 0 | V182: 0 | W182: 0 | X182: 0 | Y182: 0 | Z182: 0 | AA182: 0 | AB182: 0
F183: 0 | G183: 0 | H183: 0 | I183: 0 | J183: 0 | K183: 0 | L183: 0 | M183: 0 | N183: 0 | O183: 0 | P183: 0 | Q183: 0 | R183: 0 | T183: 0 | U183: 0 | V183: 0 | W183: 0 | X183: 0 | Y183: 0 | Z183: 0 | AA183: 0 | AB183: 0
F184: 0 | G184: 0 | H184: 0 | I184: 0 | J184: 0 | K184: 0 | L184: 0 | M184: 0 | N184: 0 | O184: 0 | P184: 0 | Q184: 0 | R184: 0 | T184: 0 | U184: 0 | V184: 0 | W184: 0 | X184: 0 | Y184: 0 | Z184: 0 | AA184: 0 | AB184: 0
B185: =+Z2254 ->  | C185: =+AA2254 ->  | D185: =+AB2254 ->  | E185: =+AC2254 ->  | F185: 0 | G185: 0 | H185: 0 | I185: 0 | J185: 0 | K185: 0 | L185: 0 | M185: 0 | N185: 0 | O185: 0 | P185: 0 | Q185: 0 | R185: 0 | S185: =+IF(C185="","",COUNTIFS($C$2076:$C$5676,C185,$M$2076:$M$5676,">5")) ->  | T185: =IF(OR(A185=2,A185=3),0,SUMIF($C$2076:$C$5676,$C185,T$2076:T$5676)) -> 0 | U185: =+R185-T185+Q185 -> 0 | V185: =IF(OR(A185=1,A185=3),0,SUMIF($C$2076:$C$5676,$C185,V$2076:V$5676)) -> 0 | W185: =+U185-V185 -> 0 | X185: 0 | Y185: =+R185+Q185-X185 -> 0 | Z185: =+V185 -> 0 | AA185: =+Y185-Z185 -> 0 | AB185: =IF(A185=3,0,W185-AA185) -> 0
F186: 0 | G186: 0 | H186: 0 | I186: 0 | J186: 0 | K186: 0 | L186: 0 | M186: 0 | N186: 0 | O186: 0 | P186: 0 | Q186: 0 | R186: 0 | T186: 0 | U186: 0 | V186: 0 | W186: 0 | X186: 0 | Y186: 0 | Z186: 0 | AA186: 0 | AB186: 0
F187: 0 | G187: 0 | H187: 0 | I187: 0 | J187: 0 | K187: 0 | L187: 0 | M187: 0 | N187: 0 | O187: 0 | P187: 0 | Q187: 0 | R187: 0 | T187: 0 | U187: 0 | V187: 0 | W187: 0 | X187: 0 | Y187: 0 | Z187: 0 | AA187: 0 | AB187: 0
F188: 0 | G188: 0 | H188: 0 | I188: 0 | J188: 0 | K188: 0 | L188: 0 | M188: 0 | N188: 0 | O188: 0 | P188: 0 | Q188: 0 | R188: 0 | T188: 0 | U188: 0 | V188: 0 | W188: 0 | X188: 0 | Y188: 0 | Z188: 0 | AA188: 0 | AB188: 0
F189: 0 | G189: 0 | H189: 0 | I189: 0 | J189: 0 | K189: 0 | L189: 0 | M189: 0 | N189: 0 | O189: 0 | P189: 0 | Q189: 0 | R189: 0 | T189: 0 | U189: 0 | V189: 0 | W189: 0 | X189: 0 | Y189: 0 | Z189: 0 | AA189: 0 | AB189: 0
F190: 0 | G190: 0 | H190: 0 | I190: 0 | J190: 0 | K190: 0 | L190: 0 | M190: 0 | N190: 0 | O190: 0 | P190: 0 | Q190: 0 | R190: 0 | T190: 0 | U190: 0 | V190: 0 | W190: 0 | X190: 0 | Y190: 0 | Z190: 0 | AA190: 0 | AB190: 0
F191: 0 | G191: 0 | H191: 0 | I191: 0 | J191: 0 | K191: 0 | L191: 0 | M191: 0 | N191: 0 | O191: 0 | P191: 0 | Q191: 0 | R191: 0 | T191: 0 | U191: 0 | V191: 0 | W191: 0 | X191: 0 | Y191: 0 | Z191: 0 | AA191: 0 | AB191: 0
F192: 0 | G192: 0 | H192: 0 | I192: 0 | J192: 0 | K192: 0 | L192: 0 | M192: 0 | N192: 0 | O192: 0 | P192: 0 | Q192: 0 | R192: 0 | T192: 0 | U192: 0 | V192: 0 | W192: 0 | X192: 0 | Y192: 0 | Z192: 0 | AA192: 0 | AB192: 0
F193: 0 | G193: 0 | H193: 0 | I193: 0 | J193: 0 | K193: 0 | L193: 0 | M193: 0 | N193: 0 | O193: 0 | P193: 0 | Q193: 0 | R193: 0 | T193: 0 | U193: 0 | V193: 0 | W193: 0 | X193: 0 | Y193: 0 | Z193: 0 | AA193: 0 | AB193: 0
F194: 0 | G194: 0 | H194: 0 | I194: 0 | J194: 0 | K194: 0 | L194: 0 | M194: 0 | N194: =+SUMIF($C$2076:$C$5676,$C194,N$2076:N$5676) -> 0 | O194: 0 | P194: 0 | Q194: 0 | R194: 0 | T194: 0 | U194: 0 | V194: 0 | W194: 0 | X194: 0 | Y194: 0 | Z194: 0 | AA194: 0 | AB194: 0
F195: 0 | G195: 0 | H195: 0 | I195: 0 | J195: 0 | K195: 0 | L195: 0 | M195: 0 | N195: 0 | O195: 0 | P195: 0 | Q195: 0 | R195: 0 | T195: 0 | U195: 0 | V195: 0 | W195: 0 | X195: 0 | Y195: 0 | Z195: 0 | AA195: 0 | AB195: 0
F196: 0 | G196: 0 | H196: 0 | I196: 0 | J196: 0 | K196: 0 | L196: 0 | M196: 0 | N196: 0 | O196: 0 | P196: 0 | Q196: 0 | R196: 0 | T196: 0 | U196: 0 | V196: 0 | W196: 0 | X196: 0 | Y196: 0 | Z196: 0 | AA196: 0 | AB196: 0
F197: 0 | G197: 0 | H197: 0 | I197: 0 | J197: 0 | K197: 0 | L197: 0 | M197: 0 | N197: 0 | O197: 0 | P197: 0 | Q197: 0 | R197: 0 | T197: 0 | U197: 0 | V197: 0 | W197: 0 | X197: 0 | Y197: 0 | Z197: 0 | AA197: 0 | AB197: 0
F198: 0 | G198: 0 | H198: 0 | I198: 0 | J198: 0 | K198: 0 | L198: 0 | M198: 0 | N198: 0 | O198: 0 | P198: 0 | Q198: 0 | R198: 0 | T198: 0 | U198: 0 | V198: 0 | W198: 0 | X198: 0 | Y198: 0 | Z198: 0 | AA198: 0 | AB198: 0
F199: 0 | G199: 0 | H199: 0 | I199: 0 | J199: 0 | K199: 0 | L199: 0 | M199: 0 | N199: 0 | O199: 0 | P199: 0 | Q199: 0 | R199: 0 | T199: 0 | U199: 0 | V199: 0 | W199: 0 | X199: =IF(AND(K199>0.5,F199>0.5),T199,IF(OR(K199>10,A199=2,A199=3),0,IF(S199="",0,IF(S199<12,T199,IF(S199=12,IF(P199<6000000,240000,IF(P199<12000000,216000,IF(P199<18000000,192000,IF(P199<24000000,168000,IF(P199<30000000,144000,IF(P199<36000000,120000,IF(P199>36000000,0)))))))))))) -> 0 | Y199: 0 | Z199: 0 | AA199: 0 | AB199: 0
F200: 0 | G200: 0 | H200: 0 | I200: 0 | J200: 0 | K200: 0 | L200: 0 | M200: 0 | N200: 0 | O200: 0 | P200: 0 | Q200: 0 | R200: 0 | T200: 0 | U200: 0 | V200: 0 | W200: 0 | X200: 0 | Y200: 0 | Z200: 0 | AA200: 0 | AB200: 0
... 3608 more rows

Sheet 202101
C1: 1с 9-р сарын дататай ХУУЛАХ ФАЙЛ БОЛОН ЭНЭ ФАЙЛ ХОЁР Л ОНГОЙЛГОНО ӨӨР ФАЙЛ ОНГОЙЛГОХГҮЙ
D2: КУРСОРОО 2 ФАЙЛЫНХАА 202101 SHEET D6 НҮД ДЭЭР БАЙРЛУУЛААД BUTTON 4 дарна
X3: НДШЧАДСДОТХ-ийг дагуу чөлөөлөгдөхөөс ӨМНӨ | AF3: ТООЦСОН НДШ | AS3: НДШЧАДСДОТХ-ийг дагуу чөлөөлөгдөх
B4: НИЙЛБЭР | J4: =+SUM(J6:J305) -> 48803200000 | K4: =+SUM(K6:K305) -> 5592368000 | L4: =+SUM(L6:L305) -> 6080400000 | M4: =+SUM(M6:M305) -> 11672768000 | O4: =+SUM(O6:O305) -> 4880320 | P4: 559236.8 | Q4: 4321083.2 | R4: 28000 | S4: 0 | T4: 3916974.88 | V4: =+SUM(V6:V305) -> 404108.32 | X4: =+SUM(X6:X305) -> 559236.8 | Y4: =+SUM(Y6:Y305) -> 608040 | Z4: =+SUM(Z6:Z305) -> 1167276.8 | AF4: =+SUM(AF6:AF305) -> 559236.8 | AG4: =+SUM(AG6:AG305) -> 608040 | AH4: =+SUM(AH6:AH305) -> 1167276.8
A5: № | B5: улсын код | C5: ОГНОО | D5: ОВОГ | E5: НЭР | F5: РЕГИСТР | G5: НДД № | H5: ЭМД № | I5: төрөл | J5: ЦАЛИН | K5: ДТ-ШИМТГЭЛ | L5: АО-ШИМТГЭЛ | M5: Нийт-ШИМТГЭЛ | O5: 1. ЦАЛИН | P5: 2. НД шимтгэл | Q5: 3.татвар тооцох орлого (1-2) | R5: 4.ХХОАТ хөнгөлөлт | S5: 5.ХХОАТ чөлөөлөлт | T5: 6.гарт олгох (3-4-5) | V5: 7.ХХОАТ / суутган | X5: ДТ-ШИМТГЭЛ | Y5: АО-ШИМТГЭЛ | Z5: Нийт-ШИМТГЭЛ | AF5: ДТ-ШИМТГЭЛ | AG5: АО-ШИМТГЭЛ | AH5: Нийт-ШИМТГЭЛ | AQ5: ххоат | AS5: НИЙТ ДҮН | AT5: ДТ-ШИМТГЭЛ | AU5: АО-ШИМТГЭЛ | AZ5: хөнгөлөлт
A6: 1 | B6: 1 | C6: 202201 | D6: ЦАГААНЦООЖ | E6: НАЦАГДОРЖ | F6: НТ87102816 | I6: 1 | J6: 19401600000 | K6: 2231184000 | L6: 2425200000 | M6: 4656384000 | O6: =IF(OR(I6=6,I6=21,I6=25,I6=17),0,IF(J6="0,0000",0,J6/10000)) -> 1940160 | P6: =+AF6 -> 223118.4 | Q6: =IF(OR(I6=6,I6=17,I6=25),0,O6-P6) -> 1717041.6 | R6: =IF(OR(I6=40,I6=6,I6=17,I6=25),0,AZ6) -> 14000 | S6: =IF(B6=2,0,IF(AND($C6>202003,$C6<202010),AQ6,0)) -> 0 | T6: =IF(OR(I6=6,I6=17,I6=25),0,Q6-(Q6*0.1-R6-S6)) -> 1559337.44 | V6: =+IF(OR(I6=6,I6=25),0,Q6*0.1-R6-S6) -> 157704.16 | X6: =+IF(K6="0,0000",0,K6/10000) -> 223118.4 | Y6: 242520 | Z6: 465638.4 | AF6: =+X6-AB6 -> 223118.4 | AG6: 242520 | AH6: =+AF6+AG6 -> 465638.4 | AQ6: =IF(I6=6,0,Q6*0.1-R6) -> 157704.16 | AS6: =+AT6+AU6 -> 126110.4 | AT6: =IF(X6=0,0,IF(OR($I6=6,$I6=17,$I6=22),X6,IF(O6>=4200000,X6-294000,$X6-$O6*0.07))) -> 87307.2 | AU6: =+IF(OR($I6=6,$I6=22,$I6=17),Y6-J6/10000*0.085,$Y6-$O6*0.105) -> 38803.2 | AZ6: =IF(Q6=0,0,IF(Q6<=200000,Q6*0.1,IF(Q6<=500000,20000,IF(Q6<=1000000,18000,IF(Q6<=1500000,16000,IF(Q6<=2000000,14000,IF(Q6<=2500000,12000,IF(Q6<=3000000,10000,0)))))))) -> 14000
A7: 2 | B7: 1 | C7: 202201 | D7: БЯМБАДОРЖ | E7: БАТЗУЛ | F7: ХА73102679 | G7: 458035 | H7: В0238240 | I7: 1 | J7: 19401600000 | K7: 2231184000 | L7: 2425200000 | M7: 4656384000 | O7: 1940160 | P7: 223118.4 | Q7: 1717041.6 | R7: 14000 | S7: 0 | T7: 1559337.44 | V7: 157704.16 | X7: 223118.4 | Y7: 242520 | Z7: 465638.4 | AF7: 223118.4 | AG7: 242520 | AH7: 465638.4 | AQ7: 157704.16 | AS7: 126110.4 | AT7: 87307.2 | AU7: =+IF(OR($I7=6,$I7=22,$I7=17),Y7-J7/10000*0.085,$Y7-$O7*0.105) -> 38803.2 | AZ7: 14000
A8: 3 | B8: 1 | C8: 202201 | D8: САНДАГДОРЖ | E8: ЛХАГВАС?РЭН | F8: УШ95060738 | I8: 40 | J8: 10000000000 | K8: 1130000000 | L8: 1230000000 | M8: 2360000000 | O8: 1000000 | P8: 113000 | Q8: 887000 | R8: 0 | S8: 0 | T8: 798300 | V8: 88700 | X8: 113000 | Y8: 123000 | Z8: 236000 | AF8: 113000 | AG8: 123000 | AH8: 236000 | AQ8: 88700 | AS8: 61000 | AT8: 43000 | AU8: 18000 | AZ8: 18000
A9: 4 | B9: 1 | C9: 202201 | O9: 0 | P9: 0 | Q9: 0 | R9: 0 | S9: 0 | T9: 0 | V9: 0 | X9: 0 | Y9: 0 | Z9: 0 | AF9: 0 | AG9: 0 | AH9: 0 | AQ9: 0 | AS9: 0 | AT9: 0 | AU9: 0 | AZ9: 0
A10: 5 | B10: 1 | C10: 202201 | O10: 0 | P10: 0 | Q10: 0 | R10: 0 | S10: 0 | T10: 0 | V10: 0 | X10: 0 | Y10: 0 | Z10: 0 | AF10: 0 | AG10: 0 | AH10: 0 | AQ10: 0 | AS10: 0 | AT10: 0 | AU10: 0 | AZ10: 0
A11: 6 | B11: 1 | C11: 202201 | O11: 0 | P11: 0 | Q11: 0 | R11: 0 | S11: 0 | T11: 0 | V11: 0 | X11: 0 | Y11: 0 | Z11: 0 | AF11: 0 | AG11: 0 | AH11: 0 | AQ11: 0 | AS11: 0 | AT11: 0 | AU11: 0 | AZ11: 0
A12: 7 | B12: 1 | C12: 202201 | O12: 0 | P12: 0 | Q12: 0 | R12: 0 | S12: 0 | T12: 0 | V12: 0 | X12: 0 | Y12: 0 | Z12: 0 | AF12: 0 | AG12: 0 | AH12: 0 | AQ12: 0 | AS12: 0 | AT12: 0 | AU12: 0 | AZ12: 0
A13: 8 | B13: 1 | C13: 202201 | O13: 0 | P13: 0 | Q13: 0 | R13: 0 | S13: 0 | T13: 0 | V13: 0 | X13: 0 | Y13: 0 | Z13: 0 | AF13: 0 | AG13: 0 | AH13: 0 | AQ13: 0 | AS13: 0 | AT13: 0 | AU13: 0 | AZ13: 0
A14: 9 | B14: 1 | C14: 202201 | O14: 0 | P14: 0 | Q14: 0 | R14: 0 | S14: 0 | T14: 0 | V14: 0 | X14: 0 | Y14: 0 | Z14: 0 | AF14: 0 | AG14: 0 | AH14: 0 | AQ14: 0 | AS14: 0 | AT14: 0 | AU14: 0 | AZ14: 0
A15: 10 | B15: 1 | C15: 202201 | O15: 0 | P15: 0 | Q15: 0 | R15: 0 | S15: 0 | T15: 0 | V15: 0 | X15: 0 | Y15: 0 | Z15: 0 | AF15: 0 | AG15: 0 | AH15: 0 | AQ15: 0 | AS15: 0 | AT15: 0 | AU15: 0 | AZ15: 0
A16: 11 | B16: 1 | C16: 202201 | O16: 0 | P16: 0 | Q16: 0 | R16: 0 | S16: 0 | T16: 0 | V16: 0 | X16: 0 | Y16: 0 | Z16: 0 | AF16: 0 | AG16: 0 | AH16: 0 | AQ16: 0 | AS16: 0 | AT16: 0 | AU16: 0 | AZ16: 0
A17: 12 | B17: 1 | C17: 202201 | O17: 0 | P17: 0 | Q17: 0 | R17: 0 | S17: 0 | T17: 0 | V17: 0 | X17: 0 | Y17: 0 | Z17: 0 | AF17: 0 | AG17: 0 | AH17: 0 | AQ17: 0 | AS17: 0 | AT17: 0 | AU17: 0 | AZ17: 0
A18: 13 | B18: 1 | C18: 202201 | O18: 0 | P18: 0 | Q18: 0 | R18: 0 | S18: 0 | T18: 0 | V18: 0 | X18: 0 | Y18: 0 | Z18: 0 | AF18: 0 | AG18: 0 | AH18: 0 | AQ18: 0 | AS18: 0 | AT18: 0 | AU18: 0 | AZ18: 0
A19: 14 | B19: 1 | C19: 202201 | O19: 0 | P19: 0 | Q19: 0 | R19: 0 | S19: 0 | T19: 0 | V19: 0 | X19: 0 | Y19: 0 | Z19: 0 | AF19: 0 | AG19: 0 | AH19: 0 | AQ19: 0 | AS19: 0 | AT19: 0 | AU19: 0 | AZ19: 0
A20: 15 | B20: 1 | C20: 202201 | O20: 0 | P20: 0 | Q20: 0 | R20: 0 | S20: 0 | T20: 0 | V20: 0 | X20: 0 | Y20: 0 | Z20: 0 | AF20: 0 | AG20: 0 | AH20: 0 | AQ20: 0 | AS20: 0 | AT20: 0 | AU20: 0 | AZ20: 0
A21: 16 | B21: 1 | C21: 202201 | O21: 0 | P21: 0 | Q21: 0 | R21: 0 | S21: 0 | T21: 0 | V21: 0 | X21: 0 | Y21: 0 | Z21: 0 | AF21: 0 | AG21: 0 | AH21: 0 | AQ21: 0 | AS21: 0 | AT21: 0 | AU21: 0 | AZ21: 0
A22: 17 | B22: 1 | C22: 202201 | O22: 0 | P22: 0 | Q22: 0 | R22: 0 | S22: 0 | T22: 0 | V22: 0 | X22: 0 | Y22: 0 | Z22: 0 | AF22: 0 | AG22: 0 | AH22: 0 | AQ22: 0 | AS22: 0 | AT22: 0 | AU22: 0 | AZ22: 0
A23: 18 | B23: 1 | C23: 202201 | O23: 0 | P23: 0 | Q23: 0 | R23: 0 | S23: 0 | T23: 0 | V23: 0 | X23: 0 | Y23: 0 | Z23: 0 | AF23: 0 | AG23: 0 | AH23: 0 | AQ23: 0 | AS23: 0 | AT23: 0 | AU23: 0 | AZ23: 0
A24: 19 | B24: 1 | C24: 202201 | O24: 0 | P24: 0 | Q24: 0 | R24: 0 | S24: 0 | T24: 0 | V24: 0 | X24: 0 | Y24: 0 | Z24: 0 | AF24: 0 | AG24: 0 | AH24: 0 | AQ24: 0 | AS24: 0 | AT24: 0 | AU24: 0 | AZ24: 0
A25: 20 | B25: 1 | C25: 202201 | O25: 0 | P25: 0 | Q25: 0 | R25: 0 | S25: 0 | T25: 0 | V25: 0 | X25: 0 | Y25: 0 | Z25: 0 | AF25: 0 | AG25: 0 | AH25: 0 | AQ25: 0 | AS25: 0 | AT25: 0 | AU25: 0 | AZ25: 0
A26: 21 | B26: 1 | C26: 202201 | O26: 0 | P26: 0 | Q26: 0 | R26: 0 | S26: 0 | T26: 0 | V26: 0 | X26: 0 | Y26: 0 | Z26: 0 | AF26: 0 | AG26: 0 | AH26: 0 | AQ26: 0 | AS26: 0 | AT26: 0 | AU26: 0 | AZ26: 0
A27: 22 | B27: 1 | C27: 202201 | O27: 0 | P27: 0 | Q27: 0 | R27: 0 | S27: 0 | T27: 0 | V27: 0 | X27: =+IF(K27="0,0000",0,K27/10000) -> 0 | Y27: 0 | Z27: 0 | AF27: =+X27-AB27 -> 0 | AG27: 0 | AH27: 0 | AQ27: 0 | AS27: 0 | AT27: 0 | AU27: 0 | AZ27: 0
A28: 23 | B28: 1 | C28: 202201 | O28: 0 | P28: 0 | Q28: 0 | R28: 0 | S28: 0 | T28: 0 | V28: 0 | X28: 0 | Y28: 0 | Z28: 0 | AF28: 0 | AG28: 0 | AH28: 0 | AQ28: 0 | AS28: 0 | AT28: 0 | AU28: 0 | AZ28: 0
A29: =+A28+1 -> 24 | B29: 1 | C29: 202201 | O29: 0 | P29: 0 | Q29: 0 | R29: 0 | S29: 0 | T29: 0 | V29: 0 | X29: 0 | Y29: 0 | Z29: 0 | AF29: 0 | AG29: 0 | AH29: 0 | AQ29: 0 | AS29: 0 | AT29: 0 | AU29: 0 | AZ29: 0
A30: =+A29+1 -> 25 | B30: 1 | C30: 202201 | O30: 0 | P30: 0 | Q30: 0 | R30: 0 | S30: 0 | T30: 0 | V30: 0 | X30: 0 | Y30: 0 | Z30: 0 | AF30: 0 | AG30: 0 | AH30: 0 | AQ30: 0 | AS30: 0 | AT30: 0 | AU30: 0 | AZ30: 0
A31: 26 | B31: 1 | C31: 202201 | O31: 0 | P31: 0 | Q31: 0 | R31: 0 | S31: 0 | T31: 0 | V31: 0 | X31: 0 | Y31: 0 | Z31: 0 | AF31: 0 | AG31: 0 | AH31: 0 | AQ31: 0 | AS31: 0 | AT31: 0 | AU31: 0 | AZ31: 0
A32: 27 | B32: 1 | C32: 202201 | O32: 0 | P32: 0 | Q32: 0 | R32: 0 | S32: 0 | T32: 0 | V32: 0 | X32: 0 | Y32: 0 | Z32: 0 | AF32: 0 | AG32: 0 | AH32: 0 | AQ32: 0 | AS32: 0 | AT32: 0 | AU32: 0 | AZ32: 0
A33: 28 | B33: 1 | C33: 202201 | O33: 0 | P33: 0 | Q33: 0 | R33: 0 | S33: 0 | T33: 0 | V33: 0 | X33: 0 | Y33: 0 | Z33: 0 | AF33: 0 | AG33: 0 | AH33: 0 | AQ33: 0 | AS33: 0 | AT33: 0 | AU33: 0 | AZ33: 0
A34: 29 | B34: 1 | C34: 202201 | O34: 0 | P34: 0 | Q34: 0 | R34: 0 | S34: 0 | T34: 0 | V34: 0 | X34: 0 | Y34: 0 | Z34: 0 | AF34: 0 | AG34: 0 | AH34: 0 | AQ34: 0 | AS34: 0 | AT34: 0 | AU34: 0 | AZ34: 0
A35: 30 | B35: 1 | C35: 202201 | O35: 0 | P35: 0 | Q35: 0 | R35: 0 | S35: 0 | T35: 0 | V35: 0 | X35: 0 | Y35: 0 | Z35: 0 | AF35: 0 | AG35: 0 | AH35: 0 | AQ35: 0 | AS35: 0 | AT35: 0 | AU35: 0 | AZ35: 0
A36: 31 | B36: 1 | C36: 202201 | O36: 0 | P36: 0 | Q36: 0 | R36: 0 | S36: 0 | T36: 0 | V36: 0 | X36: 0 | Y36: 0 | Z36: 0 | AF36: 0 | AG36: 0 | AH36: 0 | AQ36: 0 | AS36: 0 | AT36: 0 | AU36: 0 | AZ36: 0
A37: 32 | B37: 1 | C37: 202201 | O37: 0 | P37: 0 | Q37: 0 | R37: 0 | S37: 0 | T37: 0 | V37: 0 | X37: 0 | Y37: 0 | Z37: 0 | AF37: 0 | AG37: 0 | AH37: 0 | AQ37: 0 | AS37: 0 | AT37: 0 | AU37: 0 | AZ37: 0
A38: 33 | B38: 1 | C38: 202201 | O38: 0 | P38: 0 | Q38: 0 | R38: 0 | S38: 0 | T38: 0 | V38: 0 | X38: 0 | Y38: 0 | Z38: 0 | AF38: 0 | AG38: 0 | AH38: 0 | AQ38: 0 | AS38: 0 | AT38: 0 | AU38: 0 | AZ38: 0
A39: 34 | B39: 1 | C39: 202201 | O39: 0 | P39: 0 | Q39: 0 | R39: 0 | S39: 0 | T39: 0 | V39: 0 | X39: 0 | Y39: 0 | Z39: 0 | AF39: 0 | AG39: 0 | AH39: 0 | AQ39: 0 | AS39: 0 | AT39: 0 | AU39: 0 | AZ39: 0
A40: 35 | B40: 1 | C40: 202201 | O40: 0 | P40: 0 | Q40: 0 | R40: 0 | S40: 0 | T40: 0 | V40: 0 | X40: 0 | Y40: 0 | Z40: 0 | AF40: 0 | AG40: 0 | AH40: 0 | AQ40: 0 | AS40: 0 | AT40: 0 | AU40: 0 | AZ40: 0
A41: 36 | B41: 1 | C41: 202201 | O41: 0 | P41: 0 | Q41: 0 | R41: 0 | S41: 0 | T41: 0 | V41: 0 | X41: 0 | Y41: 0 | Z41: 0 | AF41: 0 | AG41: 0 | AH41: 0 | AQ41: 0 | AS41: 0 | AT41: 0 | AU41: 0 | AZ41: 0
A42: 37 | B42: 1 | C42: 202201 | O42: 0 | P42: 0 | Q42: 0 | R42: 0 | S42: 0 | T42: 0 | V42: 0 | X42: 0 | Y42: 0 | Z42: 0 | AF42: 0 | AG42: 0 | AH42: 0 | AQ42: 0 | AS42: 0 | AT42: 0 | AU42: 0 | AZ42: 0
A43: 38 | B43: 1 | C43: 202201 | O43: 0 | P43: 0 | Q43: 0 | R43: 0 | S43: 0 | T43: 0 | V43: 0 | X43: 0 | Y43: 0 | Z43: 0 | AF43: 0 | AG43: 0 | AH43: 0 | AQ43: 0 | AS43: 0 | AT43: 0 | AU43: 0 | AZ43: 0
A44: 39 | B44: 1 | C44: 202201 | O44: 0 | P44: 0 | Q44: 0 | R44: 0 | S44: 0 | T44: 0 | V44: 0 | X44: 0 | Y44: 0 | Z44: 0 | AF44: 0 | AG44: 0 | AH44: 0 | AQ44: 0 | AS44: 0 | AT44: 0 | AU44: 0 | AZ44: 0
A45: 40 | B45: 1 | C45: 202201 | O45: 0 | P45: 0 | Q45: 0 | R45: 0 | S45: 0 | T45: 0 | V45: 0 | X45: 0 | Y45: 0 | Z45: 0 | AF45: 0 | AG45: 0 | AH45: 0 | AQ45: 0 | AS45: 0 | AT45: 0 | AU45: 0 | AZ45: 0
A46: 41 | B46: 1 | C46: 202201 | O46: 0 | P46: 0 | Q46: 0 | R46: 0 | S46: 0 | T46: 0 | V46: 0 | X46: 0 | Y46: 0 | Z46: 0 | AF46: 0 | AG46: 0 | AH46: 0 | AQ46: 0 | AS46: 0 | AT46: 0 | AU46: 0 | AZ46: 0
A47: 42 | B47: 1 | C47: 202201 | O47: 0 | P47: 0 | Q47: 0 | R47: 0 | S47: 0 | T47: 0 | V47: 0 | X47: 0 | Y47: 0 | Z47: 0 | AF47: 0 | AG47: 0 | AH47: 0 | AQ47: 0 | AS47: 0 | AT47: 0 | AU47: 0 | AZ47: 0
A48: 43 | B48: 1 | C48: 202201 | O48: 0 | P48: 0 | Q48: 0 | R48: 0 | S48: 0 | T48: 0 | V48: 0 | X48: 0 | Y48: 0 | Z48: 0 | AF48: 0 | AG48: 0 | AH48: 0 | AQ48: 0 | AS48: 0 | AT48: 0 | AU48: 0 | AZ48: 0
A49: 44 | B49: 1 | C49: 202201 | O49: 0 | P49: 0 | Q49: 0 | R49: 0 | S49: 0 | T49: 0 | V49: 0 | X49: 0 | Y49: 0 | Z49: 0 | AF49: 0 | AG49: 0 | AH49: 0 | AQ49: 0 | AS49: 0 | AT49: 0 | AU49: 0 | AZ49: 0
A50: 45 | B50: 1 | C50: 202201 | O50: 0 | P50: 0 | Q50: 0 | R50: 0 | S50: 0 | T50: 0 | V50: 0 | X50: 0 | Y50: 0 | Z50: 0 | AF50: 0 | AG50: 0 | AH50: 0 | AQ50: 0 | AS50: 0 | AT50: 0 | AU50: 0 | AZ50: 0
A51: 46 | B51: 1 | C51: 202201 | O51: 0 | P51: 0 | Q51: 0 | R51: 0 | S51: 0 | T51: 0 | V51: 0 | X51: 0 | Y51: 0 | Z51: 0 | AF51: 0 | AG51: 0 | AH51: 0 | AQ51: 0 | AS51: 0 | AT51: 0 | AU51: 0 | AZ51: 0
A52: 47 | B52: 1 | C52: 202201 | O52: 0 | P52: 0 | Q52: 0 | R52: 0 | S52: 0 | T52: 0 | V52: 0 | X52: 0 | Y52: 0 | Z52: 0 | AF52: 0 | AG52: 0 | AH52: 0 | AQ52: 0 | AS52: 0 | AT52: 0 | AU52: 0 | AZ52: 0
A53: 48 | B53: 1 | C53: 202201 | O53: 0 | P53: 0 | Q53: 0 | R53: 0 | S53: 0 | T53: 0 | V53: 0 | X53: 0 | Y53: 0 | Z53: 0 | AF53: 0 | AG53: 0 | AH53: 0 | AQ53: 0 | AS53: 0 | AT53: 0 | AU53: 0 | AZ53: 0
A54: 49 | B54: 1 | C54: 202201 | O54: 0 | P54: 0 | Q54: 0 | R54: 0 | S54: 0 | T54: 0 | V54: 0 | X54: 0 | Y54: 0 | Z54: 0 | AF54: 0 | AG54: 0 | AH54: 0 | AQ54: 0 | AS54: 0 | AT54: 0 | AU54: 0 | AZ54: 0
A55: 50 | B55: 1 | C55: 202201 | O55: 0 | P55: 0 | Q55: 0 | R55: 0 | S55: 0 | T55: 0 | V55: 0 | X55: 0 | Y55: 0 | Z55: 0 | AF55: 0 | AG55: 0 | AH55: 0 | AQ55: =IF(I55=6,0,Q55*0.1-R55) -> 0 | AS55: =+AT55+AU55 -> 0 | AT55: =IF(X55=0,0,IF(OR($I55=6,$I55=17,$I55=22),X55,IF(O55>=4200000,X55-294000,$X55-$O55*0.07))) -> 0 | AU55: =+IF(OR($I55=6,$I55=22,$I55=17),Y55-J55/10000*0.085,$Y55-$O55*0.105) -> 0 | AZ55: =IF(Q55=0,0,IF(Q55<=200000,Q55*0.1,IF(Q55<=500000,20000,IF(Q55<=1000000,18000,IF(Q55<=1500000,16000,IF(Q55<=2000000,14000,IF(Q55<=2500000,12000,IF(Q55<=3000000,10000,0)))))))) -> 0
A56: 51 | B56: 1 | C56: 202201 | O56: =IF(OR(I56=6,I56=21,I56=25,I56=17),0,IF(J56="0,0000",0,J56/10000)) -> 0 | P56: =+AF56 -> 0 | Q56: =IF(OR(I56=6,I56=17,I56=25),0,O56-P56) -> 0 | R56: =IF(OR(I56=40,I56=6,I56=17,I56=25),0,AZ56) -> 0 | S56: =IF(B56=2,0,IF(AND($C56>202003,$C56<202010),AQ56,0)) -> 0 | T56: =IF(OR(I56=6,I56=17,I56=25),0,Q56-(Q56*0.1-R56-S56)) -> 0 | V56: =+IF(OR(I56=6,I56=25),0,Q56*0.1-R56-S56) -> 0 | X56: =+IF(K56="0,0000",0,K56/10000) -> 0 | Y56: =+IF(L56="0,0000",0,L56/10000) -> 0 | Z56: =+IF(M56="0,0000",0,M56/10000) -> 0 | AF56: =+X56-AB56 -> 0 | AG56: =+Y56-AC56 -> 0 | AH56: =+AF56+AG56 -> 0 | AQ56: 0 | AS56: 0 | AT56: 0 | AU56: 0 | AZ56: 0
A57: 52 | B57: 1 | C57: 202201 | O57: 0 | P57: 0 | Q57: 0 | R57: 0 | S57: 0 | T57: 0 | V57: 0 | X57: 0 | Y57: 0 | Z57: 0 | AF57: 0 | AG57: 0 | AH57: 0 | AQ57: 0 | AS57: 0 | AT57: 0 | AU57: 0 | AZ57: 0
A58: 53 | B58: 1 | C58: 202201 | O58: 0 | P58: 0 | Q58: 0 | R58: 0 | S58: 0 | T58: 0 | V58: 0 | X58: 0 | Y58: 0 | Z58: 0 | AF58: 0 | AG58: 0 | AH58: 0 | AQ58: 0 | AS58: 0 | AT58: 0 | AU58: 0 | AZ58: 0
A59: 54 | B59: 1 | C59: 202201 | O59: 0 | P59: 0 | Q59: 0 | R59: 0 | S59: 0 | T59: 0 | V59: 0 | X59: 0 | Y59: 0 | Z59: 0 | AF59: 0 | AG59: 0 | AH59: 0 | AQ59: 0 | AS59: 0 | AT59: 0 | AU59: 0 | AZ59: 0
A60: 55 | B60: 1 | C60: 202201 | O60: 0 | P60: 0 | Q60: 0 | R60: 0 | S60: 0 | T60: 0 | V60: 0 | X60: 0 | Y60: 0 | Z60: 0 | AF60: 0 | AG60: 0 | AH60: 0 | AQ60: 0 | AS60: 0 | AT60: 0 | AU60: 0 | AZ60: 0
A61: 56 | B61: 1 | C61: 202201 | O61: 0 | P61: 0 | Q61: 0 | R61: 0 | S61: 0 | T61: 0 | V61: 0 | X61: 0 | Y61: 0 | Z61: 0 | AF61: 0 | AG61: 0 | AH61: 0 | AQ61: 0 | AS61: 0 | AT61: 0 | AU61: 0 | AZ61: 0
A62: 57 | B62: 1 | C62: 202201 | O62: 0 | P62: 0 | Q62: 0 | R62: 0 | S62: 0 | T62: 0 | V62: 0 | X62: 0 | Y62: 0 | Z62: 0 | AF62: 0 | AG62: 0 | AH62: 0 | AQ62: 0 | AS62: 0 | AT62: 0 | AU62: 0 | AZ62: 0
A63: 58 | B63: 1 | C63: 202201 | O63: 0 | P63: 0 | Q63: 0 | R63: 0 | S63: 0 | T63: 0 | V63: 0 | X63: 0 | Y63: 0 | Z63: 0 | AF63: 0 | AG63: 0 | AH63: 0 | AQ63: 0 | AS63: 0 | AT63: 0 | AU63: 0 | AZ63: 0
A64: 59 | B64: 1 | C64: 202201 | O64: 0 | P64: 0 | Q64: 0 | R64: 0 | S64: 0 | T64: 0 | V64: 0 | X64: 0 | Y64: 0 | Z64: 0 | AF64: 0 | AG64: 0 | AH64: 0 | AQ64: 0 | AS64: 0 | AT64: 0 | AU64: 0 | AZ64: 0
A65: 60 | B65: 1 | C65: 202201 | O65: 0 | P65: 0 | Q65: 0 | R65: 0 | S65: 0 | T65: 0 | V65: 0 | X65: 0 | Y65: 0 | Z65: 0 | AF65: 0 | AG65: 0 | AH65: 0 | AQ65: 0 | AS65: 0 | AT65: 0 | AU65: 0 | AZ65: 0
A66: 61 | B66: 1 | C66: 202201 | O66: 0 | P66: 0 | Q66: 0 | R66: 0 | S66: 0 | T66: 0 | V66: 0 | X66: 0 | Y66: 0 | Z66: 0 | AF66: 0 | AG66: 0 | AH66: 0 | AQ66: 0 | AS66: 0 | AT66: 0 | AU66: 0 | AZ66: 0
A67: 62 | B67: 1 | C67: 202201 | O67: 0 | P67: 0 | Q67: 0 | R67: 0 | S67: 0 | T67: 0 | V67: 0 | X67: 0 | Y67: 0 | Z67: 0 | AF67: 0 | AG67: 0 | AH67: 0 | AQ67: 0 | AS67: 0 | AT67: 0 | AU67: 0 | AZ67: 0
A68: 63 | B68: 1 | C68: 202201 | O68: 0 | P68: 0 | Q68: 0 | R68: 0 | S68: 0 | T68: 0 | V68: 0 | X68: 0 | Y68: 0 | Z68: 0 | AF68: 0 | AG68: 0 | AH68: 0 | AQ68: 0 | AS68: 0 | AT68: 0 | AU68: 0 | AZ68: 0
A69: 64 | B69: 1 | C69: 202201 | O69: 0 | P69: 0 | Q69: 0 | R69: 0 | S69: 0 | T69: 0 | V69: 0 | X69: 0 | Y69: 0 | Z69: 0 | AF69: 0 | AG69: 0 | AH69: 0 | AQ69: 0 | AS69: 0 | AT69: 0 | AU69: 0 | AZ69: 0
A70: 65 | B70: 1 | C70: 202201 | O70: 0 | P70: 0 | Q70: 0 | R70: 0 | S70: 0 | T70: 0 | V70: 0 | X70: 0 | Y70: 0 | Z70: 0 | AF70: 0 | AG70: 0 | AH70: 0 | AQ70: 0 | AS70: 0 | AT70: 0 | AU70: 0 | AZ70: 0
A71: 66 | B71: 1 | C71: 202201 | O71: =IF(OR(I71=6,I71=21,I71=25,I71=17),0,IF(J71="0,0000",0,J71/10000)) -> 0 | P71: =+AF71 -> 0 | Q71: =IF(OR(I71=6,I71=17,I71=25),0,O71-P71) -> 0 | R71: =IF(OR(I71=40,I71=6,I71=17,I71=25),0,AZ71) -> 0 | S71: =IF(B71=2,0,IF(AND($C71>202003,$C71<202010),AQ71,0)) -> 0 | T71: =IF(OR(I71=6,I71=17,I71=25),0,Q71-(Q71*0.1-R71-S71)) -> 0 | V71: =+IF(OR(I71=6,I71=25),0,Q71*0.1-R71-S71) -> 0 | X71: =+IF(K71="0,0000",0,K71/10000) -> 0 | Y71: =+IF(L71="0,0000",0,L71/10000) -> 0 | Z71: =+IF(M71="0,0000",0,M71/10000) -> 0 | AF71: =+X71-AB71 -> 0 | AG71: =+Y71-AC71 -> 0 | AH71: =+AF71+AG71 -> 0 | AQ71: 0 | AS71: 0 | AT71: 0 | AU71: 0 | AZ71: 0
A72: 67 | B72: 1 | C72: 202201 | O72: 0 | P72: 0 | Q72: 0 | R72: 0 | S72: 0 | T72: 0 | V72: 0 | X72: 0 | Y72: 0 | Z72: 0 | AF72: 0 | AG72: 0 | AH72: 0 | AQ72: 0 | AS72: 0 | AT72: 0 | AU72: 0 | AZ72: 0
A73: 68 | B73: 1 | C73: 202201 | O73: 0 | P73: 0 | Q73: 0 | R73: 0 | S73: 0 | T73: 0 | V73: 0 | X73: 0 | Y73: 0 | Z73: 0 | AF73: 0 | AG73: 0 | AH73: 0 | AQ73: 0 | AS73: 0 | AT73: 0 | AU73: 0 | AZ73: 0
A74: 69 | B74: 1 | C74: 202201 | O74: 0 | P74: 0 | Q74: 0 | R74: 0 | S74: 0 | T74: 0 | V74: 0 | X74: 0 | Y74: 0 | Z74: 0 | AF74: 0 | AG74: 0 | AH74: 0 | AQ74: 0 | AS74: 0 | AT74: 0 | AU74: 0 | AZ74: 0
A75: 70 | B75: 1 | C75: 202201 | O75: 0 | P75: 0 | Q75: 0 | R75: 0 | S75: 0 | T75: 0 | V75: 0 | X75: 0 | Y75: 0 | Z75: 0 | AF75: 0 | AG75: 0 | AH75: 0 | AQ75: 0 | AS75: 0 | AT75: 0 | AU75: 0 | AZ75: 0
A76: 71 | B76: 1 | C76: 202201 | O76: 0 | P76: 0 | Q76: 0 | R76: 0 | S76: 0 | T76: 0 | V76: 0 | X76: 0 | Y76: 0 | Z76: 0 | AF76: 0 | AG76: 0 | AH76: 0 | AQ76: 0 | AS76: 0 | AT76: 0 | AU76: 0 | AZ76: 0
A77: 72 | B77: 1 | C77: 202201 | O77: 0 | P77: 0 | Q77: 0 | R77: 0 | S77: 0 | T77: 0 | V77: 0 | X77: 0 | Y77: 0 | Z77: 0 | AF77: 0 | AG77: 0 | AH77: 0 | AQ77: 0 | AS77: 0 | AT77: 0 | AU77: 0 | AZ77: 0
A78: 73 | B78: 1 | C78: 202201 | O78: 0 | P78: 0 | Q78: 0 | R78: 0 | S78: 0 | T78: 0 | V78: 0 | X78: 0 | Y78: 0 | Z78: 0 | AF78: 0 | AG78: 0 | AH78: 0 | AQ78: 0 | AS78: 0 | AT78: 0 | AU78: 0 | AZ78: 0
A79: 74 | B79: 1 | C79: 202201 | O79: 0 | P79: 0 | Q79: 0 | R79: 0 | S79: 0 | T79: 0 | V79: 0 | X79: 0 | Y79: 0 | Z79: 0 | AF79: 0 | AG79: 0 | AH79: 0 | AQ79: 0 | AS79: 0 | AT79: 0 | AU79: 0 | AZ79: 0
A80: 75 | B80: 1 | C80: 202201 | O80: 0 | P80: 0 | Q80: 0 | R80: 0 | S80: 0 | T80: 0 | V80: 0 | X80: 0 | Y80: 0 | Z80: 0 | AF80: 0 | AG80: 0 | AH80: 0 | AQ80: 0 | AS80: 0 | AT80: 0 | AU80: 0 | AZ80: 0
A81: 76 | B81: 1 | C81: 202201 | O81: 0 | P81: 0 | Q81: 0 | R81: 0 | S81: 0 | T81: 0 | V81: 0 | X81: 0 | Y81: 0 | Z81: 0 | AF81: 0 | AG81: 0 | AH81: 0 | AQ81: 0 | AS81: 0 | AT81: 0 | AU81: 0 | AZ81: 0
A82: 77 | B82: 1 | C82: 202201 | O82: 0 | P82: 0 | Q82: 0 | R82: 0 | S82: 0 | T82: 0 | V82: 0 | X82: 0 | Y82: 0 | Z82: 0 | AF82: 0 | AG82: 0 | AH82: 0 | AQ82: 0 | AS82: 0 | AT82: 0 | AU82: 0 | AZ82: 0
A83: 78 | B83: 1 | C83: 202201 | O83: 0 | P83: 0 | Q83: 0 | R83: 0 | S83: 0 | T83: 0 | V83: 0 | X83: 0 | Y83: 0 | Z83: 0 | AF83: 0 | AG83: 0 | AH83: 0 | AQ83: 0 | AS83: 0 | AT83: 0 | AU83: 0 | AZ83: 0
A84: 79 | B84: 1 | C84: 202201 | O84: 0 | P84: 0 | Q84: 0 | R84: 0 | S84: 0 | T84: 0 | V84: 0 | X84: 0 | Y84: 0 | Z84: 0 | AF84: 0 | AG84: 0 | AH84: 0 | AQ84: 0 | AS84: 0 | AT84: 0 | AU84: 0 | AZ84: 0
A85: 80 | B85: 1 | C85: 202201 | O85: 0 | P85: 0 | Q85: 0 | R85: 0 | S85: 0 | T85: 0 | V85: 0 | X85: 0 | Y85: 0 | Z85: 0 | AF85: 0 | AG85: 0 | AH85: 0 | AQ85: 0 | AS85: 0 | AT85: 0 | AU85: 0 | AZ85: 0
A86: 81 | B86: 1 | C86: 202201 | O86: 0 | P86: 0 | Q86: 0 | R86: 0 | S86: 0 | T86: 0 | V86: 0 | X86: 0 | Y86: 0 | Z86: 0 | AF86: 0 | AG86: 0 | AH86: 0 | AQ86: 0 | AS86: 0 | AT86: 0 | AU86: 0 | AZ86: 0
A87: 82 | B87: 1 | C87: 202201 | O87: 0 | P87: 0 | Q87: 0 | R87: 0 | S87: 0 | T87: 0 | V87: 0 | X87: 0 | Y87: 0 | Z87: 0 | AF87: 0 | AG87: 0 | AH87: 0 | AQ87: 0 | AS87: 0 | AT87: 0 | AU87: 0 | AZ87: 0
A88: 83 | B88: 1 | C88: 202201 | O88: 0 | P88: 0 | Q88: 0 | R88: 0 | S88: 0 | T88: 0 | V88: 0 | X88: 0 | Y88: 0 | Z88: 0 | AF88: 0 | AG88: 0 | AH88: 0 | AQ88: 0 | AS88: 0 | AT88: 0 | AU88: 0 | AZ88: 0
A89: 84 | B89: 1 | C89: 202201 | O89: 0 | P89: 0 | Q89: 0 | R89: 0 | S89: 0 | T89: 0 | V89: 0 | X89: 0 | Y89: 0 | Z89: 0 | AF89: 0 | AG89: 0 | AH89: 0 | AQ89: 0 | AS89: 0 | AT89: 0 | AU89: 0 | AZ89: 0
A90: 85 | B90: 1 | C90: 202201 | O90: 0 | P90: 0 | Q90: 0 | R90: 0 | S90: 0 | T90: 0 | V90: 0 | X90: 0 | Y90: 0 | Z90: 0 | AF90: 0 | AG90: 0 | AH90: 0 | AQ90: 0 | AS90: 0 | AT90: 0 | AU90: 0 | AZ90: 0
A91: 86 | B91: 1 | C91: 202201 | O91: 0 | P91: 0 | Q91: 0 | R91: 0 | S91: 0 | T91: 0 | V91: 0 | X91: 0 | Y91: 0 | Z91: 0 | AF91: 0 | AG91: 0 | AH91: 0 | AQ91: 0 | AS91: 0 | AT91: 0 | AU91: 0 | AZ91: 0
A92: 87 | B92: 1 | C92: 202201 | O92: 0 | P92: 0 | Q92: 0 | R92: 0 | S92: 0 | T92: 0 | V92: 0 | X92: 0 | Y92: 0 | Z92: 0 | AF92: 0 | AG92: 0 | AH92: 0 | AQ92: 0 | AS92: 0 | AT92: 0 | AU92: 0 | AZ92: 0
A93: 88 | B93: 1 | C93: 202201 | O93: 0 | P93: 0 | Q93: 0 | R93: 0 | S93: 0 | T93: 0 | V93: 0 | X93: 0 | Y93: 0 | Z93: 0 | AF93: 0 | AG93: 0 | AH93: 0 | AQ93: 0 | AS93: 0 | AT93: 0 | AU93: 0 | AZ93: 0
A94: 89 | B94: 1 | C94: 202201 | O94: 0 | P94: 0 | Q94: 0 | R94: 0 | S94: 0 | T94: 0 | V94: 0 | X94: 0 | Y94: 0 | Z94: 0 | AF94: 0 | AG94: 0 | AH94: 0 | AQ94: 0 | AS94: 0 | AT94: 0 | AU94: 0 | AZ94: 0
A95: 90 | B95: 1 | C95: 202201 | O95: 0 | P95: 0 | Q95: 0 | R95: 0 | S95: 0 | T95: 0 | V95: 0 | X95: 0 | Y95: 0 | Z95: 0 | AF95: 0 | AG95: 0 | AH95: 0 | AQ95: 0 | AS95: 0 | AT95: 0 | AU95: 0 | AZ95: 0
A96: 91 | B96: 1 | C96: 202201 | O96: 0 | P96: 0 | Q96: 0 | R96: 0 | S96: 0 | T96: 0 | V96: 0 | X96: 0 | Y96: 0 | Z96: 0 | AF96: 0 | AG96: 0 | AH96: 0 | AQ96: 0 | AS96: 0 | AT96: 0 | AU96: 0 | AZ96: 0
A97: 92 | B97: 1 | C97: 202201 | O97: 0 | P97: 0 | Q97: 0 | R97: 0 | S97: 0 | T97: 0 | V97: 0 | X97: 0 | Y97: 0 | Z97: 0 | AF97: 0 | AG97: 0 | AH97: 0 | AQ97: 0 | AS97: 0 | AT97: 0 | AU97: 0 | AZ97: 0
A98: 93 | B98: 1 | C98: 202201 | O98: 0 | P98: 0 | Q98: 0 | R98: 0 | S98: 0 | T98: 0 | V98: 0 | X98: 0 | Y98: 0 | Z98: 0 | AF98: 0 | AG98: 0 | AH98: 0 | AQ98: 0 | AS98: 0 | AT98: 0 | AU98: 0 | AZ98: 0
A99: 94 | B99: 1 | C99: 202201 | O99: 0 | P99: 0 | Q99: 0 | R99: 0 | S99: 0 | T99: 0 | V99: 0 | X99: 0 | Y99: 0 | Z99: 0 | AF99: 0 | AG99: 0 | AH99: 0 | AQ99: 0 | AS99: 0 | AT99: 0 | AU99: 0 | AZ99: 0
A100: 95 | B100: 1 | C100: 202201 | O100: 0 | P100: 0 | Q100: 0 | R100: 0 | S100: 0 | T100: 0 | V100: 0 | X100: 0 | Y100: 0 | Z100: 0 | AF100: 0 | AG100: 0 | AH100: 0 | AQ100: 0 | AS100: 0 | AT100: 0 | AU100: 0 | AZ100: 0
A101: 96 | B101: 1 | C101: 202201 | O101: 0 | P101: 0 | Q101: 0 | R101: 0 | S101: 0 | T101: 0 | V101: 0 | X101: 0 | Y101: 0 | Z101: 0 | AF101: 0 | AG101: 0 | AH101: 0 | AQ101: 0 | AS101: 0 | AT101: 0 | AU101: 0 | AZ101: 0
A102: 97 | B102: 1 | C102: 202201 | O102: 0 | P102: 0 | Q102: 0 | R102: 0 | S102: 0 | T102: 0 | V102: 0 | X102: 0 | Y102: 0 | Z102: 0 | AF102: 0 | AG102: 0 | AH102: 0 | AQ102: 0 | AS102: 0 | AT102: 0 | AU102: 0 | AZ102: 0
A103: 98 | B103: 1 | C103: 202201 | O103: 0 | P103: 0 | Q103: 0 | R103: 0 | S103: 0 | T103: 0 | V103: 0 | X103: 0 | Y103: 0 | Z103: 0 | AF103: 0 | AG103: 0 | AH103: 0 | AQ103: 0 | AS103: 0 | AT103: 0 | AU103: 0 | AZ103: 0
A104: 99 | B104: 1 | C104: 202201 | O104: 0 | P104: 0 | Q104: 0 | R104: 0 | S104: 0 | T104: 0 | V104: 0 | X104: 0 | Y104: 0 | Z104: 0 | AF104: 0 | AG104: 0 | AH104: 0 | AQ104: 0 | AS104: 0 | AT104: 0 | AU104: 0 | AZ104: 0
A105: 100 | B105: 1 | C105: 202201 | O105: 0 | P105: 0 | Q105: 0 | R105: 0 | S105: 0 | T105: 0 | V105: 0 | X105: 0 | Y105: 0 | Z105: 0 | AF105: 0 | AG105: 0 | AH105: 0 | AQ105: 0 | AS105: 0 | AT105: 0 | AU105: 0 | AZ105: 0
AQ322: =SUM(AQ6:AQ321) -> 404108.32 | AS322: =SUM(AS6:AS321) -> 313220.8 | AT322: =SUM(AT6:AT321) -> 217614.4 | AU322: =SUM(AU6:AU321) -> 95606.4 | AZ322: =SUM(AZ6:AZ321) -> 46000

Sheet 202102
E2: НИЙГМИЙН ДААТГАЛЫН САЙТААС ХУУЛЖ ТАВИНА, ХУУЛЖ ТАВЬСАНЫ ДАРАА СААРАЛ БАГАНААС ЭХЛЭЭД ТООЦООЛОЛ ХИЙГДСЭН БАЙНА
X3: НДШЧАДСДОТХ-ийг дагуу чөлөөлөгдөхөөс ӨМНӨ | AF3: ТООЦСОН НДШ | AS3: НДШЧАДСДОТХ-ийг дагуу чөлөөлөгдөх
B4: НИЙЛБЭР | J4: =+SUM(J6:J305) -> 48760000000 | K4: =+SUM(K6:K305) -> 5587400000 | L4: =+SUM(L6:L305) -> 6075000000 | M4: =+SUM(M6:M305) -> 11662400000 | O4: =+SUM(O6:O305) -> 4876000 | P4: 558740 | Q4: 4317260 | R4: 28000 | S4: 0 | T4: 3913534 | V4: =+SUM(V6:V305) -> 403726 | X4: =+SUM(X6:X305) -> 558740 | Y4: =+SUM(Y6:Y305) -> 607500 | Z4: =+SUM(Z6:Z305) -> 1166240 | AF4: =+SUM(AF6:AF305) -> 558740 | AG4: =+SUM(AG6:AG305) -> 607500 | AH4: =+SUM(AH6:AH305) -> 1166240
A5: № | B5: улсын код | C5: ОГНОО | D5: ОВОГ | E5: НЭР | F5: РЕГИСТР | G5: НДД № | H5: ЭМД № | I5: төрөл | J5: ЦАЛИН | K5: ДТ-ШИМТГЭЛ | L5: АО-ШИМТГЭЛ | M5: Нийт-ШИМТГЭЛ | O5: 1. ЦАЛИН | P5: 2. НД шимтгэл | Q5: 3.татвар тооцох орлого (1-2) | R5: 4.ХХОАТ хөнгөлөлт | S5: 5.ХХОАТ чөлөөлөлт | T5: 6.гарт олгох (3-4-5) | V5: 7.ХХОАТ / суутган | X5: ДТ-ШИМТГЭЛ | Y5: АО-ШИМТГЭЛ | Z5: Нийт-ШИМТГЭЛ | AF5: ДТ-ШИМТГЭЛ | AG5: АО-ШИМТГЭЛ | AH5: Нийт-ШИМТГЭЛ | AQ5: ххоат | AS5: НИЙТ ДҮН | AT5: ДТ-ШИМТГЭЛ | AU5: АО-ШИМТГЭЛ | AZ5: хөнгөлөлт
A6: 1 | B6: 1 | C6: 202202 | D6: САНДАГДОРЖ | E6: ЛХАГВАС?РЭН | F6: УШ95060738 | I6: 40 | J6: 10000000000 | K6: 1130000000 | L6: 1230000000 | M6: 2360000000 | O6: =IF(OR(I6=6,I6=21,I6=25,I6=17),0,IF(J6="0,0000",0,J6/10000)) -> 1000000 | P6: =+AF6 -> 113000 | Q6: =IF(OR(I6=6,I6=17,I6=25),0,O6-P6) -> 887000 | R6: =IF(OR(I6=40,I6=6,I6=17,I6=25),0,AZ6) -> 0 | S6: =IF(B6=2,0,IF(AND($C6>202003,$C6<202010),AQ6,0)) -> 0 | T6: =IF(OR(I6=6,I6=17,I6=25),0,Q6-(Q6*0.1-R6-S6)) -> 798300 | V6: =+IF(OR(I6=6,I6=25),0,Q6*0.1-R6-S6) -> 88700 | X6: =+IF(K6="0,0000",0,K6/10000) -> 113000 | Y6: 123000 | Z6: 236000 | AF6: =+X6-AB6 -> 113000 | AG6: 123000 | AH6: =+AF6+AG6 -> 236000 | AQ6: =IF(I6=6,0,Q6*0.1-R6) -> 88700 | AS6: =+AT6+AU6 -> 61000 | AT6: =IF(X6=0,0,IF(OR($I6=6,$I6=17,$I6=22),X6,IF(O6>=4200000,X6-294000,$X6-$O6*0.07))) -> 43000 | AU6: =+IF(OR($I6=6,$I6=22,$I6=17),Y6-J6/10000*0.085,$Y6-$O6*0.105) -> 18000 | AZ6: =IF(Q6=0,0,IF(Q6<=200000,Q6*0.1,IF(Q6<=500000,20000,IF(Q6<=1000000,18000,IF(Q6<=1500000,16000,IF(Q6<=2000000,14000,IF(Q6<=2500000,12000,IF(Q6<=3000000,10000,0)))))))) -> 18000
A7: 2 | B7: 1 | C7: 202202 | D7: ЦАГААНЦООЖ | E7: НАЦАГДОРЖ | F7: НТ87102816 | I7: 1 | J7: 19380000000 | K7: 2228700000 | L7: 2422500000 | M7: 4651200000 | O7: 1938000 | P7: 222870 | Q7: 1715130 | R7: 14000 | S7: 0 | T7: 1557617 | V7: 157513 | X7: 222870 | Y7: 242250 | Z7: 465120 | AF7: 222870 | AG7: 242250 | AH7: 465120 | AQ7: 157513 | AS7: 125970 | AT7: 87210 | AU7: =+IF(OR($I7=6,$I7=22,$I7=17),Y7-J7/10000*0.085,$Y7-$O7*0.105) -> 38760 | AZ7: 14000
A8: 3 | B8: 1 | C8: 202202 | D8: БЯМБАДОРЖ | E8: БАТЗУЛ | F8: ХА73102679 | G8: 458035 | H8: В0238240 | I8: 1 | J8: 19380000000 | K8: 2228700000 | L8: 2422500000 | M8: 4651200000 | O8: 1938000 | P8: 222870 | Q8: 1715130 | R8: 14000 | S8: 0 | T8: 1557617 | V8: 157513 | X8: 222870 | Y8: 242250 | Z8: 465120 | AF8: 222870 | AG8: 242250 | AH8: 465120 | AQ8: 157513 | AS8: 125970 | AT8: 87210 | AU8: 38760 | AZ8: 14000
A9: 4 | B9: 1 | C9: 202202 | O9: 0 | P9: 0 | Q9: 0 | R9: 0 | S9: 0 | T9: 0 | V9: 0 | X9: 0 | Y9: 0 | Z9: 0 | AF9: 0 | AG9: 0 | AH9: 0 | AQ9: 0 | AS9: 0 | AT9: 0 | AU9: 0 | AZ9: 0
A10: 5 | B10: 1 | C10: 202202 | O10: 0 | P10: 0 | Q10: 0 | R10: 0 | S10: 0 | T10: 0 | V10: 0 | X10: 0 | Y10: 0 | Z10: 0 | AF10: 0 | AG10: 0 | AH10: 0 | AQ10: 0 | AS10: 0 | AT10: 0 | AU10: 0 | AZ10: 0
A11: 6 | B11: 1 | C11: 202202 | O11: 0 | P11: 0 | Q11: 0 | R11: 0 | S11: 0 | T11: 0 | V11: 0 | X11: 0 | Y11: 0 | Z11: 0 | AF11: 0 | AG11: 0 | AH11: 0 | AQ11: 0 | AS11: 0 | AT11: 0 | AU11: 0 | AZ11: 0
A12: 7 | B12: 1 | C12: 202202 | O12: 0 | P12: 0 | Q12: 0 | R12: 0 | S12: 0 | T12: 0 | V12: 0 | X12: 0 | Y12: 0 | Z12: 0 | AF12: 0 | AG12: 0 | AH12: 0 | AQ12: 0 | AS12: 0 | AT12: 0 | AU12: 0 | AZ12: 0
A13: 8 | B13: 1 | C13: 202202 | O13: 0 | P13: 0 | Q13: 0 | R13: 0 | S13: 0 | T13: 0 | V13: 0 | X13: 0 | Y13: 0 | Z13: 0 | AF13: 0 | AG13: 0 | AH13: 0 | AQ13: 0 | AS13: 0 | AT13: 0 | AU13: 0 | AZ13: 0
A14: 9 | B14: 1 | C14: 202202 | O14: 0 | P14: 0 | Q14: 0 | R14: 0 | S14: 0 | T14: 0 | V14: 0 | X14: 0 | Y14: 0 | Z14: 0 | AF14: 0 | AG14: 0 | AH14: 0 | AQ14: 0 | AS14: 0 | AT14: 0 | AU14: 0 | AZ14: 0
A15: 10 | B15: 1 | C15: 202202 | O15: 0 | P15: 0 | Q15: 0 | R15: 0 | S15: 0 | T15: 0 | V15: 0 | X15: 0 | Y15: 0 | Z15: 0 | AF15: 0 | AG15: 0 | AH15: 0 | AQ15: 0 | AS15: 0 | AT15: 0 | AU15: 0 | AZ15: 0
A16: 11 | B16: 1 | C16: 202202 | O16: 0 | P16: 0 | Q16: 0 | R16: 0 | S16: 0 | T16: 0 | V16: 0 | X16: 0 | Y16: 0 | Z16: 0 | AF16: 0 | AG16: 0 | AH16: 0 | AQ16: 0 | AS16: 0 | AT16: 0 | AU16: 0 | AZ16: 0
A17: 12 | B17: 1 | C17: 202202 | O17: 0 | P17: 0 | Q17: 0 | R17: 0 | S17: 0 | T17: 0 | V17: 0 | X17: 0 | Y17: 0 | Z17: 0 | AF17: 0 | AG17: 0 | AH17: 0 | AQ17: 0 | AS17: 0 | AT17: 0 | AU17: 0 | AZ17: 0
A18: 13 | B18: 1 | C18: 202202 | O18: 0 | P18: 0 | Q18: 0 | R18: 0 | S18: 0 | T18: 0 | V18: 0 | X18: 0 | Y18: 0 | Z18: 0 | AF18: 0 | AG18: 0 | AH18: 0 | AQ18: 0 | AS18: 0 | AT18: 0 | AU18: 0 | AZ18: 0
A19: 14 | B19: 1 | C19: 202202 | O19: 0 | P19: 0 | Q19: 0 | R19: 0 | S19: 0 | T19: 0 | V19: 0 | X19: 0 | Y19: 0 | Z19: 0 | AF19: 0 | AG19: 0 | AH19: 0 | AQ19: 0 | AS19: 0 | AT19: 0 | AU19: 0 | AZ19: 0
A20: 15 | B20: 1 | C20: 202202 | O20: 0 | P20: 0 | Q20: 0 | R20: 0 | S20: 0 | T20: 0 | V20: 0 | X20: 0 | Y20: 0 | Z20: 0 | AF20: 0 | AG20: 0 | AH20: 0 | AQ20: 0 | AS20: 0 | AT20: 0 | AU20: 0 | AZ20: 0
A21: 16 | B21: 1 | C21: 202202 | O21: 0 | P21: 0 | Q21: 0 | R21: 0 | S21: 0 | T21: 0 | V21: 0 | X21: 0 | Y21: 0 | Z21: 0 | AF21: 0 | AG21: 0 | AH21: 0 | AQ21: 0 | AS21: 0 | AT21: 0 | AU21: 0 | AZ21: 0
A22: 17 | B22: 1 | C22: 202202 | O22: 0 | P22: 0 | Q22: 0 | R22: 0 | S22: 0 | T22: 0 | V22: 0 | X22: 0 | Y22: 0 | Z22: 0 | AF22: 0 | AG22: 0 | AH22: 0 | AQ22: 0 | AS22: 0 | AT22: 0 | AU22: 0 | AZ22: 0
A23: 18 | B23: 1 | C23: 202202 | O23: 0 | P23: 0 | Q23: 0 | R23: 0 | S23: 0 | T23: 0 | V23: 0 | X23: 0 | Y23: 0 | Z23: 0 | AF23: 0 | AG23: 0 | AH23: 0 | AQ23: 0 | AS23: 0 | AT23: 0 | AU23: 0 | AZ23: 0
A24: 19 | B24: 1 | C24: 202202 | O24: 0 | P24: 0 | Q24: 0 | R24: 0 | S24: 0 | T24: 0 | V24: 0 | X24: 0 | Y24: 0 | Z24: 0 | AF24: 0 | AG24: 0 | AH24: 0 | AQ24: 0 | AS24: 0 | AT24: 0 | AU24: 0 | AZ24: 0
A25: 20 | B25: 1 | C25: 202202 | O25: 0 | P25: 0 | Q25: 0 | R25: 0 | S25: 0 | T25: 0 | V25: 0 | X25: 0 | Y25: 0 | Z25: 0 | AF25: 0 | AG25: 0 | AH25: 0 | AQ25: 0 | AS25: 0 | AT25: 0 | AU25: 0 | AZ25: 0
A26: 21 | B26: 1 | C26: 202202 | O26: 0 | P26: 0 | Q26: 0 | R26: 0 | S26: 0 | T26: 0 | V26: 0 | X26: 0 | Y26: 0 | Z26: 0 | AF26: 0 | AG26: 0 | AH26: 0 | AQ26: 0 | AS26: 0 | AT26: 0 | AU26: 0 | AZ26: 0
A27: 22 | B27: 1 | C27: 202202 | O27: 0 | P27: 0 | Q27: 0 | R27: 0 | S27: 0 | T27: 0 | V27: 0 | X27: =+IF(K27="0,0000",0,K27/10000) -> 0 | Y27: 0 | Z27: 0 | AF27: =+X27-AB27 -> 0 | AG27: 0 | AH27: 0 | AQ27: 0 | AS27: 0 | AT27: 0 | AU27: 0 | AZ27: 0
A28: 23 | B28: 1 | C28: 202202 | O28: 0 | P28: 0 | Q28: 0 | R28: 0 | S28: 0 | T28: 0 | V28: 0 | X28: 0 | Y28: 0 | Z28: 0 | AF28: 0 | AG28: 0 | AH28: 0 | AQ28: 0 | AS28: 0 | AT28: 0 | AU28: 0 | AZ28: 0
A29: =+A28+1 -> 24 | B29: 1 | C29: 202202 | O29: 0 | P29: 0 | Q29: 0 | R29: 0 | S29: 0 | T29: 0 | V29: 0 | X29: 0 | Y29: 0 | Z29: 0 | AF29: 0 | AG29: 0 | AH29: 0 | AQ29: 0 | AS29: 0 | AT29: 0 | AU29: 0 | AZ29: 0
A30: =+A29+1 -> 25 | B30: 1 | C30: 202202 | O30: 0 | P30: 0 | Q30: 0 | R30: 0 | S30: 0 | T30: 0 | V30: 0 | X30: 0 | Y30: 0 | Z30: 0 | AF30: 0 | AG30: 0 | AH30: 0 | AQ30: 0 | AS30: 0 | AT30: 0 | AU30: 0 | AZ30: 0
A31: 26 | B31: 1 | C31: 202202 | O31: 0 | P31: 0 | Q31: 0 | R31: 0 | S31: 0 | T31: 0 | V31: 0 | X31: 0 | Y31: 0 | Z31: 0 | AF31: 0 | AG31: 0 | AH31: 0 | AQ31: 0 | AS31: 0 | AT31: 0 | AU31: 0 | AZ31: 0
A32: 27 | B32: 1 | C32: 202202 | O32: 0 | P32: 0 | Q32: 0 | R32: 0 | S32: 0 | T32: 0 | V32: 0 | X32: 0 | Y32: 0 | Z32: 0 | AF32: 0 | AG32: 0 | AH32: 0 | AQ32: 0 | AS32: 0 | AT32: 0 | AU32: 0 | AZ32: 0
A33: 28 | B33: 1 | C33: 202202 | O33: 0 | P33: 0 | Q33: 0 | R33: 0 | S33: 0 | T33: 0 | V33: 0 | X33: 0 | Y33: 0 | Z33: 0 | AF33: 0 | AG33: 0 | AH33: 0 | AQ33: 0 | AS33: 0 | AT33: 0 | AU33: 0 | AZ33: 0
A34: 29 | B34: 1 | C34: 202202 | O34: 0 | P34: 0 | Q34: 0 | R34: 0 | S34: 0 | T34: 0 | V34: 0 | X34: 0 | Y34: 0 | Z34: 0 | AF34: 0 | AG34: 0 | AH34: 0 | AQ34: 0 | AS34: 0 | AT34: 0 | AU34: 0 | AZ34: 0
A35: 30 | B35: 1 | C35: 202202 | O35: 0 | P35: 0 | Q35: 0 | R35: 0 | S35: 0 | T35: 0 | V35: 0 | X35: 0 | Y35: 0 | Z35: 0 | AF35: 0 | AG35: 0 | AH35: 0 | AQ35: 0 | AS35: 0 | AT35: 0 | AU35: 0 | AZ35: 0
A36: 31 | B36: 1 | C36: 202202 | O36: 0 | P36: 0 | Q36: 0 | R36: 0 | S36: 0 | T36: 0 | V36: 0 | X36: 0 | Y36: 0 | Z36: 0 | AF36: 0 | AG36: 0 | AH36: 0 | AQ36: 0 | AS36: 0 | AT36: 0 | AU36: 0 | AZ36: 0
A37: 32 | B37: 1 | C37: 202202 | O37: 0 | P37: 0 | Q37: 0 | R37: 0 | S37: 0 | T37: 0 | V37: 0 | X37: 0 | Y37: 0 | Z37: 0 | AF37: 0 | AG37: 0 | AH37: 0 | AQ37: 0 | AS37: 0 | AT37: 0 | AU37: 0 | AZ37: 0
A38: 33 | B38: 1 | C38: 202202 | O38: 0 | P38: 0 | Q38: 0 | R38: 0 | S38: 0 | T38: 0 | V38: 0 | X38: 0 | Y38: 0 | Z38: 0 | AF38: 0 | AG38: 0 | AH38: 0 | AQ38: 0 | AS38: 0 | AT38: 0 | AU38: 0 | AZ38: 0
A39: 34 | B39: 1 | C39: 202202 | O39: 0 | P39: 0 | Q39: 0 | R39: 0 | S39: 0 | T39: 0 | V39: 0 | X39: 0 | Y39: 0 | Z39: 0 | AF39: 0 | AG39: 0 | AH39: 0 | AQ39: 0 | AS39: 0 | AT39: 0 | AU39: 0 | AZ39: 0
A40: 35 | B40: 1 | C40: 202202 | O40: 0 | P40: 0 | Q40: 0 | R40: 0 | S40: 0 | T40: 0 | V40: 0 | X40: 0 | Y40: 0 | Z40: 0 | AF40: 0 | AG40: 0 | AH40: 0 | AQ40: 0 | AS40: 0 | AT40: 0 | AU40: 0 | AZ40: 0
A41: 36 | B41: 1 | C41: 202202 | O41: 0 | P41: 0 | Q41: 0 | R41: 0 | S41: 0 | T41: 0 | V41: 0 | X41: 0 | Y41: 0 | Z41: 0 | AF41: 0 | AG41: 0 | AH41: 0 | AQ41: 0 | AS41: 0 | AT41: 0 | AU41: 0 | AZ41: 0
A42: 37 | B42: 1 | C42: 202202 | O42: 0 | P42: 0 | Q42: 0 | R42: 0 | S42: 0 | T42: 0 | V42: 0 | X42: 0 | Y42: 0 | Z42: 0 | AF42: 0 | AG42: 0 | AH42: 0 | AQ42: 0 | AS42: 0 | AT42: 0 | AU42: 0 | AZ42: 0
A43: 38 | B43: 1 | C43: 202202 | O43: 0 | P43: 0 | Q43: 0 | R43: 0 | S43: 0 | T43: 0 | V43: 0 | X43: 0 | Y43: 0 | Z43: 0 | AF43: 0 | AG43: 0 | AH43: 0 | AQ43: 0 | AS43: 0 | AT43: 0 | AU43: 0 | AZ43: 0
A44: 39 | B44: 1 | C44: 202202 | O44: 0 | P44: 0 | Q44: 0 | R44: 0 | S44: 0 | T44: 0 | V44: 0 | X44: 0 | Y44: 0 | Z44: 0 | AF44: 0 | AG44: 0 | AH44: 0 | AQ44: 0 | AS44: 0 | AT44: 0 | AU44: 0 | AZ44: 0
A45: 40 | B45: 1 | C45: 202202 | O45: 0 | P45: 0 | Q45: 0 | R45: 0 | S45: 0 | T45: 0 | V45: 0 | X45: 0 | Y45: 0 | Z45: 0 | AF45: 0 | AG45: 0 | AH45: 0 | AQ45: 0 | AS45: 0 | AT45: 0 | AU45: 0 | AZ45: 0
A46: 41 | B46: 1 | C46: 202202 | O46: 0 | P46: 0 | Q46: 0 | R46: 0 | S46: 0 | T46: 0 | V46: 0 | X46: 0 | Y46: 0 | Z46: 0 | AF46: 0 | AG46: 0 | AH46: 0 | AQ46: 0 | AS46: 0 | AT46: 0 | AU46: 0 | AZ46: 0
A47: 42 | B47: 1 | C47: 202202 | O47: 0 | P47: 0 | Q47: 0 | R47: 0 | S47: 0 | T47: 0 | V47: 0 | X47: 0 | Y47: 0 | Z47: 0 | AF47: 0 | AG47: 0 | AH47: 0 | AQ47: 0 | AS47: 0 | AT47: 0 | AU47: 0 | AZ47: 0
A48: 43 | B48: 1 | C48: 202202 | O48: 0 | P48: 0 | Q48: 0 | R48: 0 | S48: 0 | T48: 0 | V48: 0 | X48: 0 | Y48: 0 | Z48: 0 | AF48: 0 | AG48: 0 | AH48: 0 | AQ48: 0 | AS48: 0 | AT48: 0 | AU48: 0 | AZ48: 0
A49: 44 | B49: 1 | C49: 202202 | O49: 0 | P49: 0 | Q49: 0 | R49: 0 | S49: 0 | T49: 0 | V49: 0 | X49: 0 | Y49: 0 | Z49: 0 | AF49: 0 | AG49: 0 | AH49: 0 | AQ49: 0 | AS49: 0 | AT49: 0 | AU49: 0 | AZ49: 0
A50: 45 | B50: 1 | C50: 202202 | O50: 0 | P50: 0 | Q50: 0 | R50: 0 | S50: 0 | T50: 0 | V50: 0 | X50: 0 | Y50: 0 | Z50: 0 | AF50: 0 | AG50: 0 | AH50: 0 | AQ50: 0 | AS50: 0 | AT50: 0 | AU50: 0 | AZ50: 0
A51: 46 | B51: 1 | C51: 202202 | O51: 0 | P51: 0 | Q51: 0 | R51: 0 | S51: 0 | T51: 0 | V51: 0 | X51: 0 | Y51: 0 | Z51: 0 | AF51: 0 | AG51: 0 | AH51: 0 | AQ51: 0 | AS51: 0 | AT51: 0 | AU51: 0 | AZ51: 0
A52: 47 | B52: 1 | C52: 202202 | O52: 0 | P52: 0 | Q52: 0 | R52: 0 | S52: 0 | T52: 0 | V52: 0 | X52: 0 | Y52: 0 | Z52: 0 | AF52: 0 | AG52: 0 | AH52: 0 | AQ52: 0 | AS52: 0 | AT52: 0 | AU52: 0 | AZ52: 0
A53: 48 | B53: 1 | C53: 202202 | O53: 0 | P53: 0 | Q53: 0 | R53: 0 | S53: 0 | T53: 0 | V53: 0 | X53: 0 | Y53: 0 | Z53: 0 | AF53: 0 | AG53: 0 | AH53: 0 | AQ53: 0 | AS53: 0 | AT53: 0 | AU53: 0 | AZ53: 0
A54: 49 | B54: 1 | C54: 202202 | O54: 0 | P54: 0 | Q54: 0 | R54: 0 | S54: 0 | T54: 0 | V54: 0 | X54: 0 | Y54: 0 | Z54: 0 | AF54: 0 | AG54: 0 | AH54: 0 | AQ54: 0 | AS54: 0 | AT54: 0 | AU54: 0 | AZ54: 0
A55: 50 | B55: 1 | C55: 202202 | O55: 0 | P55: 0 | Q55: 0 | R55: 0 | S55: 0 | T55: 0 | V55: 0 | X55: 0 | Y55: 0 | Z55: 0 | AF55: 0 | AG55: 0 | AH55: 0 | AQ55: =IF(I55=6,0,Q55*0.1-R55) -> 0 | AS55: =+AT55+AU55 -> 0 | AT55: =IF(X55=0,0,IF(OR($I55=6,$I55=17,$I55=22),X55,IF(O55>=4200000,X55-294000,$X55-$O55*0.07))) -> 0 | AU55: =+IF(OR($I55=6,$I55=22,$I55=17),Y55-J55/10000*0.085,$Y55-$O55*0.105) -> 0 | AZ55: =IF(Q55=0,0,IF(Q55<=200000,Q55*0.1,IF(Q55<=500000,20000,IF(Q55<=1000000,18000,IF(Q55<=1500000,16000,IF(Q55<=2000000,14000,IF(Q55<=2500000,12000,IF(Q55<=3000000,10000,0)))))))) -> 0
A56: 51 | B56: 1 | C56: 202202 | O56: =IF(OR(I56=6,I56=21,I56=25,I56=17),0,IF(J56="0,0000",0,J56/10000)) -> 0 | P56: =+AF56 -> 0 | Q56: =IF(OR(I56=6,I56=17,I56=25),0,O56-P56) -> 0 | R56: =IF(OR(I56=40,I56=6,I56=17,I56=25),0,AZ56) -> 0 | S56: =IF(B56=2,0,IF(AND($C56>202003,$C56<202010),AQ56,0)) -> 0 | T56: =IF(OR(I56=6,I56=17,I56=25),0,Q56-(Q56*0.1-R56-S56)) -> 0 | V56: =+IF(OR(I56=6,I56=25),0,Q56*0.1-R56-S56) -> 0 | X56: =+IF(K56="0,0000",0,K56/10000) -> 0 | Y56: =+IF(L56="0,0000",0,L56/10000) -> 0 | Z56: =+IF(M56="0,0000",0,M56/10000) -> 0 | AF56: =+X56-AB56 -> 0 | AG56: =+Y56-AC56 -> 0 | AH56: =+AF56+AG56 -> 0 | AQ56: 0 | AS56: 0 | AT56: 0 | AU56: 0 | AZ56: 0
A57: 52 | B57: 1 | C57: 202202 | O57: 0 | P57: 0 | Q57: 0 | R57: 0 | S57: 0 | T57: 0 | V57: 0 | X57: 0 | Y57: 0 | Z57: 0 | AF57: 0 | AG57: 0 | AH57: 0 | AQ57: 0 | AS57: 0 | AT57: 0 | AU57: 0 | AZ57: 0
A58: 53 | B58: 1 | C58: 202202 | O58: 0 | P58: 0 | Q58: 0 | R58: 0 | S58: 0 | T58: 0 | V58: 0 | X58: 0 | Y58: 0 | Z58: 0 | AF58: 0 | AG58: 0 | AH58: 0 | AQ58: 0 | AS58: 0 | AT58: 0 | AU58: 0 | AZ58: 0
A59: 54 | B59: 1 | C59: 202202 | O59: 0 | P59: 0 | Q59: 0 | R59: 0 | S59: 0 | T59: 0 | V59: 0 | X59: 0 | Y59: 0 | Z59: 0 | AF59: 0 | AG59: 0 | AH59: 0 | AQ59: 0 | AS59: 0 | AT59: 0 | AU59: 0 | AZ59: 0
A60: 55 | B60: 1 | C60: 202202 | O60: 0 | P60: 0 | Q60: 0 | R60: 0 | S60: 0 | T60: 0 | V60: 0 | X60: 0 | Y60: 0 | Z60: 0 | AF60: 0 | AG60: 0 | AH60: 0 | AQ60: 0 | AS60: 0 | AT60: 0 | AU60: 0 | AZ60: 0
A61: 56 | B61: 1 | C61: 202202 | O61: 0 | P61: 0 | Q61: 0 | R61: 0 | S61: 0 | T61: 0 | V61: 0 | X61: 0 | Y61: 0 | Z61: 0 | AF61: 0 | AG61: 0 | AH61: 0 | AQ61: 0 | AS61: 0 | AT61: 0 | AU61: 0 | AZ61: 0
A62: 57 | B62: 1 | C62: 202202 | O62: 0 | P62: 0 | Q62: 0 | R62: 0 | S62: 0 | T62: 0 | V62: 0 | X62: 0 | Y62: 0 | Z62: 0 | AF62: 0 | AG62: 0 | AH62: 0 | AQ62: 0 | AS62: 0 | AT62: 0 | AU62: 0 | AZ62: 0
A63: 58 | B63: 1 | C63: 202202 | O63: 0 | P63: 0 | Q63: 0 | R63: 0 | S63: 0 | T63: 0 | V63: 0 | X63: 0 | Y63: 0 | Z63: 0 | AF63: 0 | AG63: 0 | AH63: 0 | AQ63: 0 | AS63: 0 | AT63: 0 | AU63: 0 | AZ63: 0
A64: 59 | B64: 1 | C64: 202202 | O64: 0 | P64: 0 | Q64: 0 | R64: 0 | S64: 0 | T64: 0 | V64: 0 | X64: 0 | Y64: 0 | Z64: 0 | AF64: 0 | AG64: 0 | AH64: 0 | AQ64: 0 | AS64: 0 | AT64: 0 | AU64: 0 | AZ64: 0
A65: 60 | B65: 1 | C65: 202202 | O65: 0 | P65: 0 | Q65: 0 | R65: 0 | S65: 0 | T65: 0 | V65: 0 | X65: 0 | Y65: 0 | Z65: 0 | AF65: 0 | AG65: 0 | AH65: 0 | AQ65: 0 | AS65: 0 | AT65: 0 | AU65: 0 | AZ65: 0
A66: 61 | B66: 1 | C66: 202202 | O66: 0 | P66: 0 | Q66: 0 | R66: 0 | S66: 0 | T66: 0 | V66: 0 | X66: 0 | Y66: 0 | Z66: 0 | AF66: 0 | AG66: 0 | AH66: 0 | AQ66: 0 | AS66: 0 | AT66: 0 | AU66: 0 | AZ66: 0
A67: 62 | B67: 1 | C67: 202202 | O67: 0 | P67: 0 | Q67: 0 | R67: 0 | S67: 0 | T67: 0 | V67: 0 | X67: 0 | Y67: 0 | Z67: 0 | AF67: 0 | AG67: 0 | AH67: 0 | AQ67: 0 | AS67: 0 | AT67: 0 | AU67: 0 | AZ67: 0
A68: 63 | B68: 1 | C68: 202202 | O68: 0 | P68: 0 | Q68: 0 | R68: 0 | S68: 0 | T68: 0 | V68: 0 | X68: 0 | Y68: 0 | Z68: 0 | AF68: 0 | AG68: 0 | AH68: 0 | AQ68: 0 | AS68: 0 | AT68: 0 | AU68: 0 | AZ68: 0
A69: 64 | B69: 1 | C69: 202202 | O69: 0 | P69: 0 | Q69: 0 | R69: 0 | S69: 0 | T69: 0 | V69: 0 | X69: 0 | Y69: 0 | Z69: 0 | AF69: 0 | AG69: 0 | AH69: 0 | AQ69: 0 | AS69: 0 | AT69: 0 | AU69: 0 | AZ69: 0
A70: 65 | B70: 1 | C70: 202202 | O70: 0 | P70: 0 | Q70: 0 | R70: 0 | S70: 0 | T70: 0 | V70: 0 | X70: 0 | Y70: 0 | Z70: 0 | AF70: 0 | AG70: 0 | AH70: 0 | AQ70: 0 | AS70: 0 | AT70: 0 | AU70: 0 | AZ70: 0
A71: 66 | B71: 1 | C71: 202202 | O71: =IF(OR(I71=6,I71=21,I71=25,I71=17),0,IF(J71="0,0000",0,J71/10000)) -> 0 | P71: =+AF71 -> 0 | Q71: =IF(OR(I71=6,I71=17,I71=25),0,O71-P71) -> 0 | R71: =IF(OR(I71=40,I71=6,I71=17,I71=25),0,AZ71) -> 0 | S71: =IF(B71=2,0,IF(AND($C71>202003,$C71<202010),AQ71,0)) -> 0 | T71: =IF(OR(I71=6,I71=17,I71=25),0,Q71-(Q71*0.1-R71-S71)) -> 0 | V71: =+IF(OR(I71=6,I71=25),0,Q71*0.1-R71-S71) -> 0 | X71: =+IF(K71="0,0000",0,K71/10000) -> 0 | Y71: =+IF(L71="0,0000",0,L71/10000) -> 0 | Z71: =+IF(M71="0,0000",0,M71/10000) -> 0 | AF71: =+X71-AB71 -> 0 | AG71: =+Y71-AC71 -> 0 | AH71: =+AF71+AG71 -> 0 | AQ71: 0 | AS71: 0 | AT71: 0 | AU71: 0 | AZ71: 0
A72: 67 | B72: 1 | C72: 202202 | O72: 0 | P72: 0 | Q72: 0 | R72: 0 | S72: 0 | T72: 0 | V72: 0 | X72: 0 | Y72: 0 | Z72: 0 | AF72: 0 | AG72: 0 | AH72: 0 | AQ72: 0 | AS72: 0 | AT72: 0 | AU72: 0 | AZ72: 0
A73: 68 | B73: 1 | C73: 202202 | O73: 0 | P73: 0 | Q73: 0 | R73: 0 | S73: 0 | T73: 0 | V73: 0 | X73: 0 | Y73: 0 | Z73: 0 | AF73: 0 | AG73: 0 | AH73: 0 | AQ73: 0 | AS73: 0 | AT73: 0 | AU73: 0 | AZ73: 0
A74: 69 | B74: 1 | C74: 202202 | O74: 0 | P74: 0 | Q74: 0 | R74: 0 | S74: 0 | T74: 0 | V74: 0 | X74: 0 | Y74: 0 | Z74: 0 | AF74: 0 | AG74: 0 | AH74: 0 | AQ74: 0 | AS74: 0 | AT74: 0 | AU74: 0 | AZ74: 0
A75: 70 | B75: 1 | C75: 202202 | O75: 0 | P75: 0 | Q75: 0 | R75: 0 | S75: 0 | T75: 0 | V75: 0 | X75: 0 | Y75: 0 | Z75: 0 | AF75: 0 | AG75: 0 | AH75: 0 | AQ75: 0 | AS75: 0 | AT75: 0 | AU75: 0 | AZ75: 0
A76: 71 | B76: 1 | C76: 202202 | O76: 0 | P76: 0 | Q76: 0 | R76: 0 | S76: 0 | T76: 0 | V76: 0 | X76: 0 | Y76: 0 | Z76: 0 | AF76: 0 | AG76: 0 | AH76: 0 | AQ76: 0 | AS76: 0 | AT76: 0 | AU76: 0 | AZ76: 0
A77: 72 | B77: 1 | C77: 202202 | O77: 0 | P77: 0 | Q77: 0 | R77: 0 | S77: 0 | T77: 0 | V77: 0 | X77: 0 | Y77: 0 | Z77: 0 | AF77: 0 | AG77: 0 | AH77: 0 | AQ77: 0 | AS77: 0 | AT77: 0 | AU77: 0 | AZ77: 0
A78: 73 | B78: 1 | C78: 202202 | O78: 0 | P78: 0 | Q78: 0 | R78: 0 | S78: 0 | T78: 0 | V78: 0 | X78: 0 | Y78: 0 | Z78: 0 | AF78: 0 | AG78: 0 | AH78: 0 | AQ78: 0 | AS78: 0 | AT78: 0 | AU78: 0 | AZ78: 0
A79: 74 | B79: 1 | C79: 202202 | O79: 0 | P79: 0 | Q79: 0 | R79: 0 | S79: 0 | T79: 0 | V79: 0 | X79: 0 | Y79: 0 | Z79: 0 | AF79: 0 | AG79: 0 | AH79: 0 | AQ79: 0 | AS79: 0 | AT79: 0 | AU79: 0 | AZ79: 0
A80: 75 | B80: 1 | C80: 202202 | O80: 0 | P80: 0 | Q80: 0 | R80: 0 | S80: 0 | T80: 0 | V80: 0 | X80: 0 | Y80: 0 | Z80: 0 | AF80: 0 | AG80: 0 | AH80: 0 | AQ80: 0 | AS80: 0 | AT80: 0 | AU80: 0 | AZ80: 0
A81: 76 | B81: 1 | C81: 202202 | O81: 0 | P81: 0 | Q81: 0 | R81: 0 | S81: 0 | T81: 0 | V81: 0 | X81: 0 | Y81: 0 | Z81: 0 | AF81: 0 | AG81: 0 | AH81: 0 | AQ81: 0 | AS81: 0 | AT81: 0 | AU81: 0 | AZ81: 0
A82: 77 | B82: 1 | C82: 202202 | O82: 0 | P82: 0 | Q82: 0 | R82: 0 | S82: 0 | T82: 0 | V82: 0 | X82: 0 | Y82: 0 | Z82: 0 | AF82: 0 | AG82: 0 | AH82: 0 | AQ82: 0 | AS82: 0 | AT82: 0 | AU82: 0 | AZ82: 0
A83: 78 | B83: 1 | C83: 202202 | O83: 0 | P83: 0 | Q83: 0 | R83: 0 | S83: 0 | T83: 0 | V83: 0 | X83: 0 | Y83: 0 | Z83: 0 | AF83: 0 | AG83: 0 | AH83: 0 | AQ83: 0 | AS83: 0 | AT83: 0 | AU83: 0 | AZ83: 0
A84: 79 | B84: 1 | C84: 202202 | O84: 0 | P84: 0 | Q84: 0 | R84: 0 | S84: 0 | T84: 0 | V84: 0 | X84: 0 | Y84: 0 | Z84: 0 | AF84: 0 | AG84: 0 | AH84: 0 | AQ84: 0 | AS84: 0 | AT84: 0 | AU84: 0 | AZ84: 0
A85: 80 | B85: 1 | C85: 202202 | O85: 0 | P85: 0 | Q85: 0 | R85: 0 | S85: 0 | T85: 0 | V85: 0 | X85: 0 | Y85: 0 | Z85: 0 | AF85: 0 | AG85: 0 | AH85: 0 | AQ85: 0 | AS85: 0 | AT85: 0 | AU85: 0 | AZ85: 0
A86: 81 | B86: 1 | C86: 202202 | O86: 0 | P86: 0 | Q86: 0 | R86: 0 | S86: 0 | T86: 0 | V86: 0 | X86: 0 | Y86: 0 | Z86: 0 | AF86: 0 | AG86: 0 | AH86: 0 | AQ86: 0 | AS86: 0 | AT86: 0 | AU86: 0 | AZ86: 0
A87: 82 | B87: 1 | C87: 202202 | O87: 0 | P87: 0 | Q87: 0 | R87: 0 | S87: 0 | T87: 0 | V87: 0 | X87: 0 | Y87: 0 | Z87: 0 | AF87: 0 | AG87: 0 | AH87: 0 | AQ87: 0 | AS87: 0 | AT87: 0 | AU87: 0 | AZ87: 0
A88: 83 | B88: 1 | C88: 202202 | O88: 0 | P88: 0 | Q88: 0 | R88: 0 | S88: 0 | T88: 0 | V88: 0 | X88: 0 | Y88: 0 | Z88: 0 | AF88: 0 | AG88: 0 | AH88: 0 | AQ88: 0 | AS88: 0 | AT88: 0 | AU88: 0 | AZ88: 0
A89: 84 | B89: 1 | C89: 202202 | O89: 0 | P89: 0 | Q89: 0 | R89: 0 | S89: 0 | T89: 0 | V89: 0 | X89: 0 | Y89: 0 | Z89: 0 | AF89: 0 | AG89: 0 | AH89: 0 | AQ89: 0 | AS89: 0 | AT89: 0 | AU89: 0 | AZ89: 0
A90: 85 | B90: 1 | C90: 202202 | O90: 0 | P90: 0 | Q90: 0 | R90: 0 | S90: 0 | T90: 0 | V90: 0 | X90: 0 | Y90: 0 | Z90: 0 | AF90: 0 | AG90: 0 | AH90: 0 | AQ90: 0 | AS90: 0 | AT90: 0 | AU90: 0 | AZ90: 0
A91: 86 | B91: 1 | C91: 202202 | O91: 0 | P91: 0 | Q91: 0 | R91: 0 | S91: 0 | T91: 0 | V91: 0 | X91: 0 | Y91: 0 | Z91: 0 | AF91: 0 | AG91: 0 | AH91: 0 | AQ91: 0 | AS91: 0 | AT91: 0 | AU91: 0 | AZ91: 0
A92: 87 | B92: 1 | C92: 202202 | O92: 0 | P92: 0 | Q92: 0 | R92: 0 | S92: 0 | T92: 0 | V92: 0 | X92: 0 | Y92: 0 | Z92: 0 | AF92: 0 | AG92: 0 | AH92: 0 | AQ92: 0 | AS92: 0 | AT92: 0 | AU92: 0 | AZ92: 0
A93: 88 | B93: 1 | C93: 202202 | O93: 0 | P93: 0 | Q93: 0 | R93: 0 | S93: 0 | T93: 0 | V93: 0 | X93: 0 | Y93: 0 | Z93: 0 | AF93: 0 | AG93: 0 | AH93: 0 | AQ93: 0 | AS93: 0 | AT93: 0 | AU93: 0 | AZ93: 0
A94: 89 | B94: 1 | C94: 202202 | O94: 0 | P94: 0 | Q94: 0 | R94: 0 | S94: 0 | T94: 0 | V94: 0 | X94: 0 | Y94: 0 | Z94: 0 | AF94: 0 | AG94: 0 | AH94: 0 | AQ94: 0 | AS94: 0 | AT94: 0 | AU94: 0 | AZ94: 0
A95: 90 | B95: 1 | C95: 202202 | O95: 0 | P95: 0 | Q95: 0 | R95: 0 | S95: 0 | T95: 0 | V95: 0 | X95: 0 | Y95: 0 | Z95: 0 | AF95: 0 | AG95: 0 | AH95: 0 | AQ95: 0 | AS95: 0 | AT95: 0 | AU95: 0 | AZ95: 0
A96: 91 | B96: 1 | C96: 202202 | O96: 0 | P96: 0 | Q96: 0 | R96: 0 | S96: 0 | T96: 0 | V96: 0 | X96: 0 | Y96: 0 | Z96: 0 | AF96: 0 | AG96: 0 | AH96: 0 | AQ96: 0 | AS96: 0 | AT96: 0 | AU96: 0 | AZ96: 0
A97: 92 | B97: 1 | C97: 202202 | O97: 0 | P97: 0 | Q97: 0 | R97: 0 | S97: 0 | T97: 0 | V97: 0 | X97: 0 | Y97: 0 | Z97: 0 | AF97: 0 | AG97: 0 | AH97: 0 | AQ97: 0 | AS97: 0 | AT97: 0 | AU97: 0 | AZ97: 0
A98: 93 | B98: 1 | C98: 202202 | O98: 0 | P98: 0 | Q98: 0 | R98: 0 | S98: 0 | T98: 0 | V98: 0 | X98: 0 | Y98: 0 | Z98: 0 | AF98: 0 | AG98: 0 | AH98: 0 | AQ98: 0 | AS98: 0 | AT98: 0 | AU98: 0 | AZ98: 0
A99: 94 | B99: 1 | C99: 202202 | O99: 0 | P99: 0 | Q99: 0 | R99: 0 | S99: 0 | T99: 0 | V99: 0 | X99: 0 | Y99: 0 | Z99: 0 | AF99: 0 | AG99: 0 | AH99: 0 | AQ99: 0 | AS99: 0 | AT99: 0 | AU99: 0 | AZ99: 0
A100: 95 | B100: 1 | C100: 202202 | O100: 0 | P100: 0 | Q100: 0 | R100: 0 | S100: 0 | T100: 0 | V100: 0 | X100: 0 | Y100: 0 | Z100: 0 | AF100: 0 | AG100: 0 | AH100: 0 | AQ100: 0 | AS100: 0 | AT100: 0 | AU100: 0 | AZ100: 0
A101: 96 | B101: 1 | C101: 202202 | O101: 0 | P101: 0 | Q101: 0 | R101: 0 | S101: 0 | T101: 0 | V101: 0 | X101: 0 | Y101: 0 | Z101: 0 | AF101: 0 | AG101: 0 | AH101: 0 | AQ101: 0 | AS101: 0 | AT101: 0 | AU101: 0 | AZ101: 0
A102: 97 | B102: 1 | C102: 202202 | O102: 0 | P102: 0 | Q102: 0 | R102: 0 | S102: 0 | T102: 0 | V102: 0 | X102: 0 | Y102: 0 | Z102: 0 | AF102: 0 | AG102: 0 | AH102: 0 | AQ102: 0 | AS102: 0 | AT102: 0 | AU102: 0 | AZ102: 0
A103: 98 | B103: 1 | C103: 202202 | O103: 0 | P103: 0 | Q103: 0 | R103: 0 | S103: 0 | T103: 0 | V103: 0 | X103: 0 | Y103: 0 | Z103: 0 | AF103: 0 | AG103: 0 | AH103: 0 | AQ103: 0 | AS103: 0 | AT103: 0 | AU103: 0 | AZ103: 0
A104: 99 | B104: 1 | C104: 202202 | O104: 0 | P104: 0 | Q104: 0 | R104: 0 | S104: 0 | T104: 0 | V104: 0 | X104: 0 | Y104: 0 | Z104: 0 | AF104: 0 | AG104: 0 | AH104: 0 | AQ104: 0 | AS104: 0 | AT104: 0 | AU104: 0 | AZ104: 0
A105: 100 | B105: 1 | C105: 202202 | O105: 0 | P105: 0 | Q105: 0 | R105: 0 | S105: 0 | T105: 0 | V105: 0 | X105: 0 | Y105: 0 | Z105: 0 | AF105: 0 | AG105: 0 | AH105: 0 | AQ105: 0 | AS105: 0 | AT105: 0 | AU105: 0 | AZ105: 0
AQ322: =SUM(AQ6:AQ321) -> 403726 | AS322: =SUM(AS6:AS321) -> 312940 | AT322: =SUM(AT6:AT321) -> 217420 | AU322: =SUM(AU6:AU321) -> 95520 | AZ322: =SUM(AZ6:AZ321) -> 46000

Sheet 202103
E2: НИЙГМИЙН ДААТГАЛЫН САЙТААС ХУУЛЖ ТАВИНА, ХУУЛЖ ТАВЬСАНЫ ДАРАА СААРАЛ БАГАНААС ЭХЛЭЭД ТООЦООЛОЛ ХИЙГДСЭН БАЙНА
X3: НДШЧАДСДОТХ-ийг дагуу чөлөөлөгдөхөөс ӨМНӨ | AF3: ТООЦСОН НДШ | AS3: НДШЧАДСДОТХ-ийг дагуу чөлөөлөгдөх
B4: НИЙЛБЭР | J4: =+SUM(J6:J305) -> 48841600000 | K4: =+SUM(K6:K305) -> 5596784000 | L4: =+SUM(L6:L305) -> 6085200000 | M4: =+SUM(M6:M305) -> 11681984000 | O4: =+SUM(O6:O305) -> 4884160 | P4: 559678.4 | Q4: 4324481.6 | R4: 28000 | S4: 0 | T4: 3920033.44 | V4: =+SUM(V6:V305) -> 404448.16 | X4: =+SUM(X6:X305) -> 559678.4 | Y4: =+SUM(Y6:Y305) -> 608520 | Z4: =+SUM(Z6:Z305) -> 1168198.4 | AF4: =+SUM(AF6:AF305) -> 559678.4 | AG4: =+SUM(AG6:AG305) -> 608520 | AH4: =+SUM(AH6:AH305) -> 1168198.4
A5: № | B5: улсын код | C5: ОГНОО | D5: ОВОГ | E5: НЭР | F5: РЕГИСТР | G5: НДД № | H5: ЭМД № | I5: төрөл | J5: ЦАЛИН | K5: ДТ-ШИМТГЭЛ | L5: АО-ШИМТГЭЛ | M5: Нийт-ШИМТГЭЛ | O5: 1. ЦАЛИН | P5: 2. НД шимтгэл | Q5: 3.татвар тооцох орлого (1-2) | R5: 4.ХХОАТ хөнгөлөлт | S5: 5.ХХОАТ чөлөөлөлт | T5: 6.гарт олгох (3-4-5) | V5: 7.ХХОАТ / суутган | X5: ДТ-ШИМТГЭЛ | Y5: АО-ШИМТГЭЛ | Z5: Нийт-ШИМТГЭЛ | AF5: ДТ-ШИМТГЭЛ | AG5: АО-ШИМТГЭЛ | AH5: Нийт-ШИМТГЭЛ | AQ5: ххоат | AS5: НИЙТ ДҮН | AT5: ДТ-ШИМТГЭЛ | AU5: АО-ШИМТГЭЛ | AZ5: хөнгөлөлт
A6: 1 | B6: 1 | C6: 202203 | D6: ЦАГААНЦООЖ | E6: НАЦАГДОРЖ | F6: НТ87102816 | I6: 1 | J6: 19420800000 | K6: 2233392000 | L6: 2427600000 | M6: 4660992000 | O6: =IF(OR(I6=6,I6=21,I6=25,I6=17),0,IF(J6="0,0000",0,J6/10000)) -> 1942080 | P6: =+AF6 -> 223339.2 | Q6: =IF(OR(I6=6,I6=17,I6=25),0,O6-P6) -> 1718740.8 | R6: =IF(OR(I6=40,I6=6,I6=17,I6=25),0,AZ6) -> 14000 | S6: =IF(B6=2,0,IF(AND($C6>202003,$C6<202010),AQ6,0)) -> 0 | T6: =IF(OR(I6=6,I6=17,I6=25),0,Q6-(Q6*0.1-R6-S6)) -> 1560866.72 | V6: =+IF(OR(I6=6,I6=25),0,Q6*0.1-R6-S6) -> 157874.08 | X6: =+IF(K6="0,0000",0,K6/10000) -> 223339.2 | Y6: 242760 | Z6: 466099.2 | AF6: =+X6-AB6 -> 223339.2 | AG6: 242760 | AH6: =+AF6+AG6 -> 466099.2 | AQ6: =IF(I6=6,0,Q6*0.1-R6) -> 157874.08 | AS6: =+AT6+AU6 -> 126235.2 | AT6: =IF(X6=0,0,IF(OR($I6=6,$I6=17,$I6=22),X6,IF(O6>=4200000,X6-294000,$X6-$O6*0.07))) -> 87393.6 | AU6: =+IF(OR($I6=6,$I6=22,$I6=17),Y6-J6/10000*0.085,$Y6-$O6*0.105) -> 38841.6 | AZ6: =IF(Q6=0,0,IF(Q6<=200000,Q6*0.1,IF(Q6<=500000,20000,IF(Q6<=1000000,18000,IF(Q6<=1500000,16000,IF(Q6<=2000000,14000,IF(Q6<=2500000,12000,IF(Q6<=3000000,10000,0)))))))) -> 14000
A7: 2 | B7: 1 | C7: 202203 | D7: БЯМБАДОРЖ | E7: БАТЗУЛ | F7: ХА73102679 | G7: 458035 | H7: В0238240 | I7: 1 | J7: 19420800000 | K7: 2233392000 | L7: 2427600000 | M7: 4660992000 | O7: 1942080 | P7: 223339.2 | Q7: 1718740.8 | R7: 14000 | S7: 0 | T7: 1560866.72 | V7: 157874.08 | X7: 223339.2 | Y7: 242760 | Z7: 466099.2 | AF7: 223339.2 | AG7: 242760 | AH7: 466099.2 | AQ7: 157874.08 | AS7: 126235.2 | AT7: 87393.6 | AU7: =+IF(OR($I7=6,$I7=22,$I7=17),Y7-J7/10000*0.085,$Y7-$O7*0.105) -> 38841.6 | AZ7: 14000
A8: 3 | B8: 1 | C8: 202203 | D8: САНДАГДОРЖ | E8: ЛХАГВАС?РЭН | F8: УШ95060738 | I8: 40 | J8: 10000000000 | K8: 1130000000 | L8: 1230000000 | M8: 2360000000 | O8: 1000000 | P8: 113000 | Q8: 887000 | R8: 0 | S8: 0 | T8: 798300 | V8: 88700 | X8: 113000 | Y8: 123000 | Z8: 236000 | AF8: 113000 | AG8: 123000 | AH8: 236000 | AQ8: 88700 | AS8: 61000 | AT8: 43000 | AU8: 18000 | AZ8: 18000
A9: 4 | B9: 1 | C9: 202203 | O9: 0 | P9: 0 | Q9: 0 | R9: 0 | S9: 0 | T9: 0 | V9: 0 | X9: 0 | Y9: 0 | Z9: 0 | AF9: 0 | AG9: 0 | AH9: 0 | AQ9: 0 | AS9: 0 | AT9: 0 | AU9: 0 | AZ9: 0
A10: 5 | B10: 1 | C10: 202203 | O10: 0 | P10: 0 | Q10: 0 | R10: 0 | S10: 0 | T10: 0 | V10: 0 | X10: 0 | Y10: 0 | Z10: 0 | AF10: 0 | AG10: 0 | AH10: 0 | AQ10: 0 | AS10: 0 | AT10: 0 | AU10: 0 | AZ10: 0
A11: 6 | B11: 1 | C11: 202203 | O11: 0 | P11: 0 | Q11: 0 | R11: 0 | S11: 0 | T11: 0 | V11: 0 | X11: 0 | Y11: 0 | Z11: 0 | AF11: 0 | AG11: 0 | AH11: 0 | AQ11: 0 | AS11: 0 | AT11: 0 | AU11: 0 | AZ11: 0
A12: 7 | B12: 1 | C12: 202203 | O12: 0 | P12: 0 | Q12: 0 | R12: 0 | S12: 0 | T12: 0 | V12: 0 | X12: 0 | Y12: 0 | Z12: 0 | AF12: 0 | AG12: 0 | AH12: 0 | AQ12: 0 | AS12: 0 | AT12: 0 | AU12: 0 | AZ12: 0
A13: 8 | B13: 1 | C13: 202203 | O13: 0 | P13: 0 | Q13: 0 | R13: 0 | S13: 0 | T13: 0 | V13: 0 | X13: 0 | Y13: 0 | Z13: 0 | AF13: 0 | AG13: 0 | AH13: 0 | AQ13: 0 | AS13: 0 | AT13: 0 | AU13: 0 | AZ13: 0
A14: 9 | B14: 1 | C14: 202203 | O14: 0 | P14: 0 | Q14: 0 | R14: 0 | S14: 0 | T14: 0 | V14: 0 | X14: 0 | Y14: 0 | Z14: 0 | AF14: 0 | AG14: 0 | AH14: 0 | AQ14: 0 | AS14: 0 | AT14: 0 | AU14: 0 | AZ14: 0
A15: 10 | B15: 1 | C15: 202203 | O15: 0 | P15: 0 | Q15: 0 | R15: 0 | S15: 0 | T15: 0 | V15: 0 | X15: 0 | Y15: 0 | Z15: 0 | AF15: 0 | AG15: 0 | AH15: 0 | AQ15: 0 | AS15: 0 | AT15: 0 | AU15: 0 | AZ15: 0
A16: 11 | B16: 1 | C16: 202203 | O16: 0 | P16: 0 | Q16: 0 | R16: 0 | S16: 0 | T16: 0 | V16: 0 | X16: 0 | Y16: 0 | Z16: 0 | AF16: 0 | AG16: 0 | AH16: 0 | AQ16: 0 | AS16: 0 | AT16: 0 | AU16: 0 | AZ16: 0
A17: 12 | B17: 1 | C17: 202203 | O17: 0 | P17: 0 | Q17: 0 | R17: 0 | S17: 0 | T17: 0 | V17: 0 | X17: 0 | Y17: 0 | Z17: 0 | AF17: 0 | AG17: 0 | AH17: 0 | AQ17: 0 | AS17: 0 | AT17: 0 | AU17: 0 | AZ17: 0
A18: 13 | B18: 1 | C18: 202203 | O18: 0 | P18: 0 | Q18: 0 | R18: 0 | S18: 0 | T18: 0 | V18: 0 | X18: 0 | Y18: 0 | Z18: 0 | AF18: 0 | AG18: 0 | AH18: 0 | AQ18: 0 | AS18: 0 | AT18: 0 | AU18: 0 | AZ18: 0
A19: 14 | B19: 1 | C19: 202203 | O19: 0 | P19: 0 | Q19: 0 | R19: 0 | S19: 0 | T19: 0 | V19: 0 | X19: 0 | Y19: 0 | Z19: 0 | AF19: 0 | AG19: 0 | AH19: 0 | AQ19: 0 | AS19: 0 | AT19: 0 | AU19: 0 | AZ19: 0
A20: 15 | B20: 1 | C20: 202203 | O20: 0 | P20: 0 | Q20: 0 | R20: 0 | S20: 0 | T20: 0 | V20: 0 | X20: 0 | Y20: 0 | Z20: 0 | AF20: 0 | AG20: 0 | AH20: 0 | AQ20: 0 | AS20: 0 | AT20: 0 | AU20: 0 | AZ20: 0
A21: 16 | B21: 1 | C21: 202203 | O21: 0 | P21: 0 | Q21: 0 | R21: 0 | S21: 0 | T21: 0 | V21: 0 | X21: 0 | Y21: 0 | Z21: 0 | AF21: 0 | AG21: 0 | AH21: 0 | AQ21: 0 | AS21: 0 | AT21: 0 | AU21: 0 | AZ21: 0
A22: 17 | B22: 1 | C22: 202203 | O22: 0 | P22: 0 | Q22: 0 | R22: 0 | S22: 0 | T22: 0 | V22: 0 | X22: 0 | Y22: 0 | Z22: 0 | AF22: 0 | AG22: 0 | AH22: 0 | AQ22: 0 | AS22: 0 | AT22: 0 | AU22: 0 | AZ22: 0
A23: 18 | B23: 1 | C23: 202203 | O23: 0 | P23: 0 | Q23: 0 | R23: 0 | S23: 0 | T23: 0 | V23: 0 | X23: 0 | Y23: 0 | Z23: 0 | AF23: 0 | AG23: 0 | AH23: 0 | AQ23: 0 | AS23: 0 | AT23: 0 | AU23: 0 | AZ23: 0
A24: 19 | B24: 1 | C24: 202203 | O24: 0 | P24: 0 | Q24: 0 | R24: 0 | S24: 0 | T24: 0 | V24: 0 | X24: 0 | Y24: 0 | Z24: 0 | AF24: 0 | AG24: 0 | AH24: 0 | AQ24: 0 | AS24: 0 | AT24: 0 | AU24: 0 | AZ24: 0
A25: 20 | B25: 1 | C25: 202203 | O25: 0 | P25: 0 | Q25: 0 | R25: 0 | S25: 0 | T25: 0 | V25: 0 | X25: 0 | Y25: 0 | Z25: 0 | AF25: 0 | AG25: 0 | AH25: 0 | AQ25: 0 | AS25: 0 | AT25: 0 | AU25: 0 | AZ25: 0
A26: 21 | B26: 1 | C26: 202203 | O26: 0 | P26: 0 | Q26: 0 | R26: 0 | S26: 0 | T26: 0 | V26: 0 | X26: 0 | Y26: 0 | Z26: 0 | AF26: 0 | AG26: 0 | AH26: 0 | AQ26: 0 | AS26: 0 | AT26: 0 | AU26: 0 | AZ26: 0
A27: 22 | B27: 1 | C27: 202203 | O27: 0 | P27: 0 | Q27: 0 | R27: 0 | S27: 0 | T27: 0 | V27: 0 | X27: =+IF(K27="0,0000",0,K27/10000) -> 0 | Y27: 0 | Z27: 0 | AF27: =+X27-AB27 -> 0 | AG27: 0 | AH27: 0 | AQ27: 0 | AS27: 0 | AT27: 0 | AU27: 0 | AZ27: 0
A28: 23 | B28: 1 | C28: 202203 | O28: 0 | P28: 0 | Q28: 0 | R28: 0 | S28: 0 | T28: 0 | V28: 0 | X28: 0 | Y28: 0 | Z28: 0 | AF28: 0 | AG28: 0 | AH28: 0 | AQ28: 0 | AS28: 0 | AT28: 0 | AU28: 0 | AZ28: 0
A29: =+A28+1 -> 24 | B29: 1 | C29: 202203 | O29: 0 | P29: 0 | Q29: 0 | R29: 0 | S29: 0 | T29: 0 | V29: 0 | X29: 0 | Y29: 0 | Z29: 0 | AF29: 0 | AG29: 0 | AH29: 0 | AQ29: 0 | AS29: 0 | AT29: 0 | AU29: 0 | AZ29: 0
A30: =+A29+1 -> 25 | B30: 1 | C30: 202203 | O30: 0 | P30: 0 | Q30: 0 | R30: 0 | S30: 0 | T30: 0 | V30: 0 | X30: 0 | Y30: 0 | Z30: 0 | AF30: 0 | AG30: 0 | AH30: 0 | AQ30: 0 | AS30: 0 | AT30: 0 | AU30: 0 | AZ30: 0
A31: 26 | B31: 1 | C31: 202203 | O31: 0 | P31: 0 | Q31: 0 | R31: 0 | S31: 0 | T31: 0 | V31: 0 | X31: 0 | Y31: 0 | Z31: 0 | AF31: 0 | AG31: 0 | AH31: 0 | AQ31: 0 | AS31: 0 | AT31: 0 | AU31: 0 | AZ31: 0
A32: 27 | B32: 1 | C32: 202203 | O32: 0 | P32: 0 | Q32: 0 | R32: 0 | S32: 0 | T32: 0 | V32: 0 | X32: 0 | Y32: 0 | Z32: 0 | AF32: 0 | AG32: 0 | AH32: 0 | AQ32: 0 | AS32: 0 | AT32: 0 | AU32: 0 | AZ32: 0
A33: 28 | B33: 1 | C33: 202203 | O33: 0 | P33: 0 | Q33: 0 | R33: 0 | S33: 0 | T33: 0 | V33: 0 | X33: 0 | Y33: 0 | Z33: 0 | AF33: 0 | AG33: 0 | AH33: 0 | AQ33: 0 | AS33: 0 | AT33: 0 | AU33: 0 | AZ33: 0
A34: 29 | B34: 1 | C34: 202203 | O34: 0 | P34: 0 | Q34: 0 | R34: 0 | S34: 0 | T34: 0 | V34: 0 | X34: 0 | Y34: 0 | Z34: 0 | AF34: 0 | AG34: 0 | AH34: 0 | AQ34: 0 | AS34: 0 | AT34: 0 | AU34: 0 | AZ34: 0
A35: 30 | B35: 1 | C35: 202203 | O35: 0 | P35: 0 | Q35: 0 | R35: 0 | S35: 0 | T35: 0 | V35: 0 | X35: 0 | Y35: 0 | Z35: 0 | AF35: 0 | AG35: 0 | AH35: 0 | AQ35: 0 | AS35: 0 | AT35: 0 | AU35: 0 | AZ35: 0
A36: 31 | B36: 1 | C36: 202203 | O36: 0 | P36: 0 | Q36: 0 | R36: 0 | S36: 0 | T36: 0 | V36: 0 | X36: 0 | Y36: 0 | Z36: 0 | AF36: 0 | AG36: 0 | AH36: 0 | AQ36: 0 | AS36: 0 | AT36: 0 | AU36: 0 | AZ36: 0
A37: 32 | B37: 1 | C37: 202203 | O37: 0 | P37: 0 | Q37: 0 | R37: 0 | S37: 0 | T37: 0 | V37: 0 | X37: 0 | Y37: 0 | Z37: 0 | AF37: 0 | AG37: 0 | AH37: 0 | AQ37: 0 | AS37: 0 | AT37: 0 | AU37: 0 | AZ37: 0
A38: 33 | B38: 1 | C38: 202203 | O38: 0 | P38: 0 | Q38: 0 | R38: 0 | S38: 0 | T38: 0 | V38: 0 | X38: 0 | Y38: 0 | Z38: 0 | AF38: 0 | AG38: 0 | AH38: 0 | AQ38: 0 | AS38: 0 | AT38: 0 | AU38: 0 | AZ38: 0
A39: 34 | B39: 1 | C39: 202203 | O39: 0 | P39: 0 | Q39: 0 | R39: 0 | S39: 0 | T39: 0 | V39: 0 | X39: 0 | Y39: 0 | Z39: 0 | AF39: 0 | AG39: 0 | AH39: 0 | AQ39: 0 | AS39: 0 | AT39: 0 | AU39: 0 | AZ39: 0
A40: 35 | B40: 1 | C40: 202203 | O40: 0 | P40: 0 | Q40: 0 | R40: 0 | S40: 0 | T40: 0 | V40: 0 | X40: 0 | Y40: 0 | Z40: 0 | AF40: 0 | AG40: 0 | AH40: 0 | AQ40: 0 | AS40: 0 | AT40: 0 | AU40: 0 | AZ40: 0
A41: 36 | B41: 1 | C41: 202203 | O41: 0 | P41: 0 | Q41: 0 | R41: 0 | S41: 0 | T41: 0 | V41: 0 | X41: 0 | Y41: 0 | Z41: 0 | AF41: 0 | AG41: 0 | AH41: 0 | AQ41: 0 | AS41: 0 | AT41: 0 | AU41: 0 | AZ41: 0
A42: 37 | B42: 1 | C42: 202203 | O42: 0 | P42: 0 | Q42: 0 | R42: 0 | S42: 0 | T42: 0 | V42: 0 | X42: 0 | Y42: 0 | Z42: 0 | AF42: 0 | AG42: 0 | AH42: 0 | AQ42: 0 | AS42: 0 | AT42: 0 | AU42: 0 | AZ42: 0
A43: 38 | B43: 1 | C43: 202203 | O43: 0 | P43: 0 | Q43: 0 | R43: 0 | S43: 0 | T43: 0 | V43: 0 | X43: 0 | Y43: 0 | Z43: 0 | AF43: 0 | AG43: 0 | AH43: 0 | AQ43: 0 | AS43: 0 | AT43: 0 | AU43: 0 | AZ43: 0
A44: 39 | B44: 1 | C44: 202203 | O44: 0 | P44: 0 | Q44: 0 | R44: 0 | S44: 0 | T44: 0 | V44: 0 | X44: 0 | Y44: 0 | Z44: 0 | AF44: 0 | AG44: 0 | AH44: 0 | AQ44: 0 | AS44: 0 | AT44: 0 | AU44: 0 | AZ44: 0
A45: 40 | B45: 1 | C45: 202203 | O45: 0 | P45: 0 | Q45: 0 | R45: 0 | S45: 0 | T45: 0 | V45: 0 | X45: 0 | Y45: 0 | Z45: 0 | AF45: 0 | AG45: 0 | AH45: 0 | AQ45: 0 | AS45: 0 | AT45: 0 | AU45: 0 | AZ45: 0
A46: 41 | B46: 1 | C46: 202203 | O46: 0 | P46: 0 | Q46: 0 | R46: 0 | S46: 0 | T46: 0 | V46: 0 | X46: 0 | Y46: 0 | Z46: 0 | AF46: 0 | AG46: 0 | AH46: 0 | AQ46: 0 | AS46: 0 | AT46: 0 | AU46: 0 | AZ46: 0
A47: 42 | B47: 1 | C47: 202203 | O47: 0 | P47: 0 | Q47: 0 | R47: 0 | S47: 0 | T47: 0 | V47: 0 | X47: 0 | Y47: 0 | Z47: 0 | AF47: 0 | AG47: 0 | AH47: 0 | AQ47: 0 | AS47: 0 | AT47: 0 | AU47: 0 | AZ47: 0
A48: 43 | B48: 1 | C48: 202203 | O48: 0 | P48: 0 | Q48: 0 | R48: 0 | S48: 0 | T48: 0 | V48: 0 | X48: 0 | Y48: 0 | Z48: 0 | AF48: 0 | AG48: 0 | AH48: 0 | AQ48: 0 | AS48: 0 | AT48: 0 | AU48: 0 | AZ48: 0
A49: 44 | B49: 1 | C49: 202203 | O49: 0 | P49: 0 | Q49: 0 | R49: 0 | S49: 0 | T49: 0 | V49: 0 | X49: 0 | Y49: 0 | Z49: 0 | AF49: 0 | AG49: 0 | AH49: 0 | AQ49: 0 | AS49: 0 | AT49: 0 | AU49: 0 | AZ49: 0
A50: 45 | B50: 1 | C50: 202203 | O50: 0 | P50: 0 | Q50: 0 | R50: 0 | S50: 0 | T50: 0 | V50: 0 | X50: 0 | Y50: 0 | Z50: 0 | AF50: 0 | AG50: 0 | AH50: 0 | AQ50: 0 | AS50: 0 | AT50: 0 | AU50: 0 | AZ50: 0
A51: 46 | B51: 1 | C51: 202203 | O51: 0 | P51: 0 | Q51: 0 | R51: 0 | S51: 0 | T51: 0 | V51: 0 | X51: 0 | Y51: 0 | Z51: 0 | AF51: 0 | AG51: 0 | AH51: 0 | AQ51: 0 | AS51: 0 | AT51: 0 | AU51: 0 | AZ51: 0
A52: 47 | B52: 1 | C52: 202203 | O52: 0 | P52: 0 | Q52: 0 | R52: 0 | S52: 0 | T52: 0 | V52: 0 | X52: 0 | Y52: 0 | Z52: 0 | AF52: 0 | AG52: 0 | AH52: 0 | AQ52: 0 | AS52: 0 | AT52: 0 | AU52: 0 | AZ52: 0
A53: 48 | B53: 1 | C53: 202203 | O53: 0 | P53: 0 | Q53: 0 | R53: 0 | S53: 0 | T53: 0 | V53: 0 | X53: 0 | Y53: 0 | Z53: 0 | AF53: 0 | AG53: 0 | AH53: 0 | AQ53: 0 | AS53: 0 | AT53: 0 | AU53: 0 | AZ53: 0
A54: 49 | B54: 1 | C54: 202203 | O54: 0 | P54: 0 | Q54: 0 | R54: 0 | S54: 0 | T54: 0 | V54: 0 | X54: 0 | Y54: 0 | Z54: 0 | AF54: 0 | AG54: 0 | AH54: 0 | AQ54: 0 | AS54: 0 | AT54: 0 | AU54: 0 | AZ54: 0
A55: 50 | B55: 1 | C55: 202203 | O55: 0 | P55: 0 | Q55: 0 | R55: 0 | S55: 0 | T55: 0 | V55: 0 | X55: 0 | Y55: 0 | Z55: 0 | AF55: 0 | AG55: 0 | AH55: 0 | AQ55: =IF(I55=6,0,Q55*0.1-R55) -> 0 | AS55: =+AT55+AU55 -> 0 | AT55: =IF(X55=0,0,IF(OR($I55=6,$I55=17,$I55=22),X55,IF(O55>=4200000,X55-294000,$X55-$O55*0.07))) -> 0 | AU55: =+IF(OR($I55=6,$I55=22,$I55=17),Y55-J55/10000*0.085,$Y55-$O55*0.105) -> 0 | AZ55: =IF(Q55=0,0,IF(Q55<=200000,Q55*0.1,IF(Q55<=500000,20000,IF(Q55<=1000000,18000,IF(Q55<=1500000,16000,IF(Q55<=2000000,14000,IF(Q55<=2500000,12000,IF(Q55<=3000000,10000,0)))))))) -> 0
A56: 51 | B56: 1 | C56: 202203 | O56: =IF(OR(I56=6,I56=21,I56=25,I56=17),0,IF(J56="0,0000",0,J56/10000)) -> 0 | P56: =+AF56 -> 0 | Q56: =IF(OR(I56=6,I56=17,I56=25),0,O56-P56) -> 0 | R56: =IF(OR(I56=40,I56=6,I56=17,I56=25),0,AZ56) -> 0 | S56: =IF(B56=2,0,IF(AND($C56>202003,$C56<202010),AQ56,0)) -> 0 | T56: =IF(OR(I56=6,I56=17,I56=25),0,Q56-(Q56*0.1-R56-S56)) -> 0 | V56: =+IF(OR(I56=6,I56=25),0,Q56*0.1-R56-S56) -> 0 | X56: =+IF(K56="0,0000",0,K56/10000) -> 0 | Y56: =+IF(L56="0,0000",0,L56/10000) -> 0 | Z56: =+IF(M56="0,0000",0,M56/10000) -> 0 | AF56: =+X56-AB56 -> 0 | AG56: =+Y56-AC56 -> 0 | AH56: =+AF56+AG56 -> 0 | AQ56: 0 | AS56: 0 | AT56: 0 | AU56: 0 | AZ56: 0
A57: 52 | B57: 1 | C57: 202203 | O57: 0 | P57: 0 | Q57: 0 | R57: 0 | S57: 0 | T57: 0 | V57: 0 | X57: 0 | Y57: 0 | Z57: 0 | AF57: 0 | AG57: 0 | AH57: 0 | AQ57: 0 | AS57: 0 | AT57: 0 | AU57: 0 | AZ57: 0
A58: 53 | B58: 1 | C58: 202203 | O58: 0 | P58: 0 | Q58: 0 | R58: 0 | S58: 0 | T58: 0 | V58: 0 | X58: 0 | Y58: 0 | Z58: 0 | AF58: 0 | AG58: 0 | AH58: 0 | AQ58: 0 | AS58: 0 | AT58: 0 | AU58: 0 | AZ58: 0
A59: 54 | B59: 1 | C59: 202203 | O59: 0 | P59: 0 | Q59: 0 | R59: 0 | S59: 0 | T59: 0 | V59: 0 | X59: 0 | Y59: 0 | Z59: 0 | AF59: 0 | AG59: 0 | AH59: 0 | AQ59: 0 | AS59: 0 | AT59: 0 | AU59: 0 | AZ59: 0
A60: 55 | B60: 1 | C60: 202203 | O60: 0 | P60: 0 | Q60: 0 | R60: 0 | S60: 0 | T60: 0 | V60: 0 | X60: 0 | Y60: 0 | Z60: 0 | AF60: 0 | AG60: 0 | AH60: 0 | AQ60: 0 | AS60: 0 | AT60: 0 | AU60: 0 | AZ60: 0
A61: 56 | B61: 1 | C61: 202203 | O61: 0 | P61: 0 | Q61: 0 | R61: 0 | S61: 0 | T61: 0 | V61: 0 | X61: 0 | Y61: 0 | Z61: 0 | AF61: 0 | AG61: 0 | AH61: 0 | AQ61: 0 | AS61: 0 | AT61: 0 | AU61: 0 | AZ61: 0
A62: 57 | B62: 1 | C62: 202203 | O62: 0 | P62: 0 | Q62: 0 | R62: 0 | S62: 0 | T62: 0 | V62: 0 | X62: 0 | Y62: 0 | Z62: 0 | AF62: 0 | AG62: 0 | AH62: 0 | AQ62: 0 | AS62: 0 | AT62: 0 | AU62: 0 | AZ62: 0
A63: 58 | B63: 1 | C63: 202203 | O63: 0 | P63: 0 | Q63: 0 | R63: 0 | S63: 0 | T63: 0 | V63: 0 | X63: 0 | Y63: 0 | Z63: 0 | AF63: 0 | AG63: 0 | AH63: 0 | AQ63: 0 | AS63: 0 | AT63: 0 | AU63: 0 | AZ63: 0
A64: 59 | B64: 1 | C64: 202203 | O64: 0 | P64: 0 | Q64: 0 | R64: 0 | S64: 0 | T64: 0 | V64: 0 | X64: 0 | Y64: 0 | Z64: 0 | AF64: 0 | AG64: 0 | AH64: 0 | AQ64: 0 | AS64: 0 | AT64: 0 | AU64: 0 | AZ64: 0
A65: 60 | B65: 1 | C65: 202203 | O65: 0 | P65: 0 | Q65: 0 | R65: 0 | S65: 0 | T65: 0 | V65: 0 | X65: 0 | Y65: 0 | Z65: 0 | AF65: 0 | AG65: 0 | AH65: 0 | AQ65: 0 | AS65: 0 | AT65: 0 | AU65: 0 | AZ65: 0
A66: 61 | B66: 1 | C66: 202203 | O66: 0 | P66: 0 | Q66: 0 | R66: 0 | S66: 0 | T66: 0 | V66: 0 | X66: 0 | Y66: 0 | Z66: 0 | AF66: 0 | AG66: 0 | AH66: 0 | AQ66: 0 | AS66: 0 | AT66: 0 | AU66: 0 | AZ66: 0
A67: 62 | B67: 1 | C67: 202203 | O67: 0 | P67: 0 | Q67: 0 | R67: 0 | S67: 0 | T67: 0 | V67: 0 | X67: 0 | Y67: 0 | Z67: 0 | AF67: 0 | AG67: 0 | AH67: 0 | AQ67: 0 | AS67: 0 | AT67: 0 | AU67: 0 | AZ67: 0
A68: 63 | B68: 1 | C68: 202203 | O68: 0 | P68: 0 | Q68: 0 | R68: 0 | S68: 0 | T68: 0 | V68: 0 | X68: 0 | Y68: 0 | Z68: 0 | AF68: 0 | AG68: 0 | AH68: 0 | AQ68: 0 | AS68: 0 | AT68: 0 | AU68: 0 | AZ68: 0
A69: 64 | B69: 1 | C69: 202203 | O69: 0 | P69: 0 | Q69: 0 | R69: 0 | S69: 0 | T69: 0 | V69: 0 | X69: 0 | Y69: 0 | Z69: 0 | AF69: 0 | AG69: 0 | AH69: 0 | AQ69: 0 | AS69: 0 | AT69: 0 | AU69: 0 | AZ69: 0
A70: 65 | B70: 1 | C70: 202203 | O70: 0 | P70: 0 | Q70: 0 | R70: 0 | S70: 0 | T70: 0 | V70: 0 | X70: 0 | Y70: 0 | Z70: 0 | AF70: 0 | AG70: 0 | AH70: 0 | AQ70: 0 | AS70: 0 | AT70: 0 | AU70: 0 | AZ70: 0
A71: 66 | B71: 1 | C71: 202203 | O71: =IF(OR(I71=6,I71=21,I71=25,I71=17),0,IF(J71="0,0000",0,J71/10000)) -> 0 | P71: =+AF71 -> 0 | Q71: =IF(OR(I71=6,I71=17,I71=25),0,O71-P71) -> 0 | R71: =IF(OR(I71=40,I71=6,I71=17,I71=25),0,AZ71) -> 0 | S71: =IF(B71=2,0,IF(AND($C71>202003,$C71<202010),AQ71,0)) -> 0 | T71: =IF(OR(I71=6,I71=17,I71=25),0,Q71-(Q71*0.1-R71-S71)) -> 0 | V71: =+IF(OR(I71=6,I71=25),0,Q71*0.1-R71-S71) -> 0 | X71: =+IF(K71="0,0000",0,K71/10000) -> 0 | Y71: =+IF(L71="0,0000",0,L71/10000) -> 0 | Z71: =+IF(M71="0,0000",0,M71/10000) -> 0 | AF71: =+X71-AB71 -> 0 | AG71: =+Y71-AC71 -> 0 | AH71: =+AF71+AG71 -> 0 | AQ71: 0 | AS71: 0 | AT71: 0 | AU71: 0 | AZ71: 0
A72: 67 | B72: 1 | C72: 202203 | O72: 0 | P72: 0 | Q72: 0 | R72: 0 | S72: 0 | T72: 0 | V72: 0 | X72: 0 | Y72: 0 | Z72: 0 | AF72: 0 | AG72: 0 | AH72: 0 | AQ72: 0 | AS72: 0 | AT72: 0 | AU72: 0 | AZ72: 0
A73: 68 | B73: 1 | C73: 202203 | O73: 0 | P73: 0 | Q73: 0 | R73: 0 | S73: 0 | T73: 0 | V73: 0 | X73: 0 | Y73: 0 | Z73: 0 | AF73: 0 | AG73: 0 | AH73: 0 | AQ73: 0 | AS73: 0 | AT73: 0 | AU73: 0 | AZ73: 0
A74: 69 | B74: 1 | C74: 202203 | O74: 0 | P74: 0 | Q74: 0 | R74: 0 | S74: 0 | T74: 0 | V74: 0 | X74: 0 | Y74: 0 | Z74: 0 | AF74: 0 | AG74: 0 | AH74: 0 | AQ74: 0 | AS74: 0 | AT74: 0 | AU74: 0 | AZ74: 0
A75: 70 | B75: 1 | C75: 202203 | O75: 0 | P75: 0 | Q75: 0 | R75: 0 | S75: 0 | T75: 0 | V75: 0 | X75: 0 | Y75: 0 | Z75: 0 | AF75: 0 | AG75: 0 | AH75: 0 | AQ75: 0 | AS75: 0 | AT75: 0 | AU75: 0 | AZ75: 0
A76: 71 | B76: 1 | C76: 202203 | O76: 0 | P76: 0 | Q76: 0 | R76: 0 | S76: 0 | T76: 0 | V76: 0 | X76: 0 | Y76: 0 | Z76: 0 | AF76: 0 | AG76: 0 | AH76: 0 | AQ76: 0 | AS76: 0 | AT76: 0 | AU76: 0 | AZ76: 0
A77: 72 | B77: 1 | C77: 202203 | O77: 0 | P77: 0 | Q77: 0 | R77: 0 | S77: 0 | T77: 0 | V77: 0 | X77: 0 | Y77: 0 | Z77: 0 | AF77: 0 | AG77: 0 | AH77: 0 | AQ77: 0 | AS77: 0 | AT77: 0 | AU77: 0 | AZ77: 0
A78: 73 | B78: 1 | C78: 202203 | O78: 0 | P78: 0 | Q78: 0 | R78: 0 | S78: 0 | T78: 0 | V78: 0 | X78: 0 | Y78: 0 | Z78: 0 | AF78: 0 | AG78: 0 | AH78: 0 | AQ78: 0 | AS78: 0 | AT78: 0 | AU78: 0 | AZ78: 0
A79: 74 | B79: 1 | C79: 202203 | O79: 0 | P79: 0 | Q79: 0 | R79: 0 | S79: 0 | T79: 0 | V79: 0 | X79: 0 | Y79: 0 | Z79: 0 | AF79: 0 | AG79: 0 | AH79: 0 | AQ79: 0 | AS79: 0 | AT79: 0 | AU79: 0 | AZ79: 0
A80: 75 | B80: 1 | C80: 202203 | O80: 0 | P80: 0 | Q80: 0 | R80: 0 | S80: 0 | T80: 0 | V80: 0 | X80: 0 | Y80: 0 | Z80: 0 | AF80: 0 | AG80: 0 | AH80: 0 | AQ80: 0 | AS80: 0 | AT80: 0 | AU80: 0 | AZ80: 0
A81: 76 | B81: 1 | C81: 202203 | O81: 0 | P81: 0 | Q81: 0 | R81: 0 | S81: 0 | T81: 0 | V81: 0 | X81: 0 | Y81: 0 | Z81: 0 | AF81: 0 | AG81: 0 | AH81: 0 | AQ81: 0 | AS81: 0 | AT81: 0 | AU81: 0 | AZ81: 0
A82: 77 | B82: 1 | C82: 202203 | O82: 0 | P82: 0 | Q82: 0 | R82: 0 | S82: 0 | T82: 0 | V82: 0 | X82: 0 | Y82: 0 | Z82: 0 | AF82: 0 | AG82: 0 | AH82: 0 | AQ82: 0 | AS82: 0 | AT82: 0 | AU82: 0 | AZ82: 0
A83: 78 | B83: 1 | C83: 202203 | O83: 0 | P83: 0 | Q83: 0 | R83: 0 | S83: 0 | T83: 0 | V83: 0 | X83: 0 | Y83: 0 | Z83: 0 | AF83: 0 | AG83: 0 | AH83: 0 | AQ83: 0 | AS83: 0 | AT83: 0 | AU83: 0 | AZ83: 0
A84: 79 | B84: 1 | C84: 202203 | O84: 0 | P84: 0 | Q84: 0 | R84: 0 | S84: 0 | T84: 0 | V84: 0 | X84: 0 | Y84: 0 | Z84: 0 | AF84: 0 | AG84: 0 | AH84: 0 | AQ84: 0 | AS84: 0 | AT84: 0 | AU84: 0 | AZ84: 0
A85: 80 | B85: 1 | C85: 202203 | O85: 0 | P85: 0 | Q85: 0 | R85: 0 | S85: 0 | T85: 0 | V85: 0 | X85: 0 | Y85: 0 | Z85: 0 | AF85: 0 | AG85: 0 | AH85: 0 | AQ85: 0 | AS85: 0 | AT85: 0 | AU85: 0 | AZ85: 0
A86: 81 | B86: 1 | C86: 202203 | O86: 0 | P86: 0 | Q86: 0 | R86: 0 | S86: 0 | T86: 0 | V86: 0 | X86: 0 | Y86: 0 | Z86: 0 | AF86: 0 | AG86: 0 | AH86: 0 | AQ86: 0 | AS86: 0 | AT86: 0 | AU86: 0 | AZ86: 0
A87: 82 | B87: 1 | C87: 202203 | O87: 0 | P87: 0 | Q87: 0 | R87: 0 | S87: 0 | T87: 0 | V87: 0 | X87: 0 | Y87: 0 | Z87: 0 | AF87: 0 | AG87: 0 | AH87: 0 | AQ87: 0 | AS87: 0 | AT87: 0 | AU87: 0 | AZ87: 0
A88: 83 | B88: 1 | C88: 202203 | O88: 0 | P88: 0 | Q88: 0 | R88: 0 | S88: 0 | T88: 0 | V88: 0 | X88: 0 | Y88: 0 | Z88: 0 | AF88: 0 | AG88: 0 | AH88: 0 | AQ88: 0 | AS88: 0 | AT88: 0 | AU88: 0 | AZ88: 0
A89: 84 | B89: 1 | C89: 202203 | O89: 0 | P89: 0 | Q89: 0 | R89: 0 | S89: 0 | T89: 0 | V89: 0 | X89: 0 | Y89: 0 | Z89: 0 | AF89: 0 | AG89: 0 | AH89: 0 | AQ89: 0 | AS89: 0 | AT89: 0 | AU89: 0 | AZ89: 0
A90: 85 | B90: 1 | C90: 202203 | O90: 0 | P90: 0 | Q90: 0 | R90: 0 | S90: 0 | T90: 0 | V90: 0 | X90: 0 | Y90: 0 | Z90: 0 | AF90: 0 | AG90: 0 | AH90: 0 | AQ90: 0 | AS90: 0 | AT90: 0 | AU90: 0 | AZ90: 0
A91: 86 | B91: 1 | C91: 202203 | O91: 0 | P91: 0 | Q91: 0 | R91: 0 | S91: 0 | T91: 0 | V91: 0 | X91: 0 | Y91: 0 | Z91: 0 | AF91: 0 | AG91: 0 | AH91: 0 | AQ91: 0 | AS91: 0 | AT91: 0 | AU91: 0 | AZ91: 0
A92: 87 | B92: 1 | C92: 202203 | O92: 0 | P92: 0 | Q92: 0 | R92: 0 | S92: 0 | T92: 0 | V92: 0 | X92: 0 | Y92: 0 | Z92: 0 | AF92: 0 | AG92: 0 | AH92: 0 | AQ92: 0 | AS92: 0 | AT92: 0 | AU92: 0 | AZ92: 0
A93: 88 | B93: 1 | C93: 202203 | O93: 0 | P93: 0 | Q93: 0 | R93: 0 | S93: 0 | T93: 0 | V93: 0 | X93: 0 | Y93: 0 | Z93: 0 | AF93: 0 | AG93: 0 | AH93: 0 | AQ93: 0 | AS93: 0 | AT93: 0 | AU93: 0 | AZ93: 0
A94: 89 | B94: 1 | C94: 202203 | O94: 0 | P94: 0 | Q94: 0 | R94: 0 | S94: 0 | T94: 0 | V94: 0 | X94: 0 | Y94: 0 | Z94: 0 | AF94: 0 | AG94: 0 | AH94: 0 | AQ94: 0 | AS94: 0 | AT94: 0 | AU94: 0 | AZ94: 0
A95: 90 | B95: 1 | C95: 202203 | O95: 0 | P95: 0 | Q95: 0 | R95: 0 | S95: 0 | T95: 0 | V95: 0 | X95: 0 | Y95: 0 | Z95: 0 | AF95: 0 | AG95: 0 | AH95: 0 | AQ95: 0 | AS95: 0 | AT95: 0 | AU95: 0 | AZ95: 0
A96: 91 | B96: 1 | C96: 202203 | O96: 0 | P96: 0 | Q96: 0 | R96: 0 | S96: 0 | T96: 0 | V96: 0 | X96: 0 | Y96: 0 | Z96: 0 | AF96: 0 | AG96: 0 | AH96: 0 | AQ96: 0 | AS96: 0 | AT96: 0 | AU96: 0 | AZ96: 0
A97: 92 | B97: 1 | C97: 202203 | O97: 0 | P97: 0 | Q97: 0 | R97: 0 | S97: 0 | T97: 0 | V97: 0 | X97: 0 | Y97: 0 | Z97: 0 | AF97: 0 | AG97: 0 | AH97: 0 | AQ97: 0 | AS97: 0 | AT97: 0 | AU97: 0 | AZ97: 0
A98: 93 | B98: 1 | C98: 202203 | O98: 0 | P98: 0 | Q98: 0 | R98: 0 | S98: 0 | T98: 0 | V98: 0 | X98: 0 | Y98: 0 | Z98: 0 | AF98: 0 | AG98: 0 | AH98: 0 | AQ98: 0 | AS98: 0 | AT98: 0 | AU98: 0 | AZ98: 0
A99: 94 | B99: 1 | C99: 202203 | O99: 0 | P99: 0 | Q99: 0 | R99: 0 | S99: 0 | T99: 0 | V99: 0 | X99: 0 | Y99: 0 | Z99: 0 | AF99: 0 | AG99: 0 | AH99: 0 | AQ99: 0 | AS99: 0 | AT99: 0 | AU99: 0 | AZ99: 0
A100: 95 | B100: 1 | C100: 202203 | O100: 0 | P100: 0 | Q100: 0 | R100: 0 | S100: 0 | T100: 0 | V100: 0 | X100: 0 | Y100: 0 | Z100: 0 | AF100: 0 | AG100: 0 | AH100: 0 | AQ100: 0 | AS100: 0 | AT100: 0 | AU100: 0 | AZ100: 0
A101: 96 | B101: 1 | C101: 202203 | O101: 0 | P101: 0 | Q101: 0 | R101: 0 | S101: 0 | T101: 0 | V101: 0 | X101: 0 | Y101: 0 | Z101: 0 | AF101: 0 | AG101: 0 | AH101: 0 | AQ101: 0 | AS101: 0 | AT101: 0 | AU101: 0 | AZ101: 0
A102: 97 | B102: 1 | C102: 202203 | O102: 0 | P102: 0 | Q102: 0 | R102: 0 | S102: 0 | T102: 0 | V102: 0 | X102: 0 | Y102: 0 | Z102: 0 | AF102: 0 | AG102: 0 | AH102: 0 | AQ102: 0 | AS102: 0 | AT102: 0 | AU102: 0 | AZ102: 0
A103: 98 | B103: 1 | C103: 202203 | O103: 0 | P103: 0 | Q103: 0 | R103: 0 | S103: 0 | T103: 0 | V103: 0 | X103: 0 | Y103: 0 | Z103: 0 | AF103: 0 | AG103: 0 | AH103: 0 | AQ103: 0 | AS103: 0 | AT103: 0 | AU103: 0 | AZ103: 0
A104: 99 | B104: 1 | C104: 202203 | O104: 0 | P104: 0 | Q104: 0 | R104: 0 | S104: 0 | T104: 0 | V104: 0 | X104: 0 | Y104: 0 | Z104: 0 | AF104: 0 | AG104: 0 | AH104: 0 | AQ104: 0 | AS104: 0 | AT104: 0 | AU104: 0 | AZ104: 0
A105: 100 | B105: 1 | C105: 202203 | O105: 0 | P105: 0 | Q105: 0 | R105: 0 | S105: 0 | T105: 0 | V105: 0 | X105: 0 | Y105: 0 | Z105: 0 | AF105: 0 | AG105: 0 | AH105: 0 | AQ105: 0 | AS105: 0 | AT105: 0 | AU105: 0 | AZ105: 0
AQ322: =SUM(AQ6:AQ321) -> 404448.16 | AS322: =SUM(AS6:AS321) -> 313470.4 | AT322: =SUM(AT6:AT321) -> 217787.2 | AU322: =SUM(AU6:AU321) -> 95683.2 | AZ322: =SUM(AZ6:AZ321) -> 46000

Sheet 202104
E2: НИЙГМИЙН ДААТГАЛЫН САЙТААС ХУУЛЖ ТАВИНА, ХУУЛЖ ТАВЬСАНЫ ДАРАА СААРАЛ БАГАНААС ЭХЛЭЭД ТООЦООЛОЛ ХИЙГДСЭН БАЙНА
X3: НДШЧАДСДОТХ-ийг дагуу чөлөөлөгдөхөөс ӨМНӨ | AF3: ТООЦСОН НДШ | AS3: НДШЧАДСДОТХ-ийг дагуу чөлөөлөгдөх
B4: НИЙЛБЭР | J4: =+SUM(J6:J305) -> 48841600000 | K4: =+SUM(K6:K305) -> 5596784000 | L4: =+SUM(L6:L305) -> 6085200000 | M4: =+SUM(M6:M305) -> 11681984000 | O4: =+SUM(O6:O305) -> 4884160 | P4: 559678.4 | Q4: 4324481.6 | R4: 28000 | S4: 0 | T4: 3920033.44 | V4: =+SUM(V6:V305) -> 404448.16 | X4: =+SUM(X6:X305) -> 559678.4 | Y4: =+SUM(Y6:Y305) -> 608520 | Z4: =+SUM(Z6:Z305) -> 1168198.4 | AF4: =+SUM(AF6:AF305) -> 559678.4 | AG4: =+SUM(AG6:AG305) -> 608520 | AH4: =+SUM(AH6:AH305) -> 1168198.4
A5: № | B5: улсын код | C5: ОГНОО | D5: ОВОГ | E5: НЭР | F5: РЕГИСТР | G5: НДД № | H5: ЭМД № | I5: төрөл | J5: ЦАЛИН | K5: ДТ-ШИМТГЭЛ | L5: АО-ШИМТГЭЛ | M5: Нийт-ШИМТГЭЛ | O5: 1. ЦАЛИН | P5: 2. НД шимтгэл | Q5: 3.татвар тооцох орлого (1-2) | R5: 4.ХХОАТ хөнгөлөлт | S5: 5.ХХОАТ чөлөөлөлт | T5: 6.гарт олгох (3-4-5) | V5: 7.ХХОАТ / суутган | X5: ДТ-ШИМТГЭЛ | Y5: АО-ШИМТГЭЛ | Z5: Нийт-ШИМТГЭЛ | AF5: ДТ-ШИМТГЭЛ | AG5: АО-ШИМТГЭЛ | AH5: Нийт-ШИМТГЭЛ | AQ5: ххоат | AS5: НИЙТ ДҮН | AT5: ДТ-ШИМТГЭЛ | AU5: АО-ШИМТГЭЛ | AZ5: хөнгөлөлт
A6: 1 | B6: 1 | C6: 202204 | D6: САНДАГДОРЖ | E6: ЛХАГВАС?РЭН | F6: УШ95060738 | I6: 40 | J6: 10000000000 | K6: 1130000000 | L6: 1230000000 | M6: 2360000000 | O6: =IF(OR(I6=6,I6=21,I6=25,I6=17),0,IF(J6="0,0000",0,J6/10000)) -> 1000000 | P6: =+AF6 -> 113000 | Q6: =IF(OR(I6=6,I6=17,I6=25),0,O6-P6) -> 887000 | R6: =IF(OR(I6=40,I6=6,I6=17,I6=25),0,AZ6) -> 0 | S6: =IF(B6=2,0,IF(AND($C6>202003,$C6<202010),AQ6,0)) -> 0 | T6: =IF(OR(I6=6,I6=17,I6=25),0,Q6-(Q6*0.1-R6-S6)) -> 798300 | V6: =+IF(OR(I6=6,I6=25),0,Q6*0.1-R6-S6) -> 88700 | X6: =+IF(K6="0,0000",0,K6/10000) -> 113000 | Y6: 123000 | Z6: 236000 | AF6: =+X6-AB6 -> 113000 | AG6: 123000 | AH6: =+AF6+AG6 -> 236000 | AQ6: =IF(I6=6,0,Q6*0.1-R6) -> 88700 | AS6: =+AT6+AU6 -> 61000 | AT6: =IF(X6=0,0,IF(OR($I6=6,$I6=17,$I6=22),X6,IF(O6>=4200000,X6-294000,$X6-$O6*0.07))) -> 43000 | AU6: =+IF(OR($I6=6,$I6=22,$I6=17),Y6-J6/10000*0.085,$Y6-$O6*0.105) -> 18000 | AZ6: =IF(Q6=0,0,IF(Q6<=200000,Q6*0.1,IF(Q6<=500000,20000,IF(Q6<=1000000,18000,IF(Q6<=1500000,16000,IF(Q6<=2000000,14000,IF(Q6<=2500000,12000,IF(Q6<=3000000,10000,0)))))))) -> 18000
A7: 2 | B7: 1 | C7: 202204 | D7: БЯМБАДОРЖ | E7: БАТЗУЛ | F7: ХА73102679 | G7: 458035 | H7: В0238240 | I7: 1 | J7: 19420800000 | K7: 2233392000 | L7: 2427600000 | M7: 4660992000 | O7: 1942080 | P7: 223339.2 | Q7: 1718740.8 | R7: 14000 | S7: 0 | T7: 1560866.72 | V7: 157874.08 | X7: 223339.2 | Y7: 242760 | Z7: 466099.2 | AF7: 223339.2 | AG7: 242760 | AH7: 466099.2 | AQ7: 157874.08 | AS7: 126235.2 | AT7: 87393.6 | AU7: =+IF(OR($I7=6,$I7=22,$I7=17),Y7-J7/10000*0.085,$Y7-$O7*0.105) -> 38841.6 | AZ7: 14000
A8: 3 | B8: 1 | C8: 202204 | D8: ЦАГААНЦООЖ | E8: НАЦАГДОРЖ | F8: НТ87102816 | I8: 1 | J8: 19420800000 | K8: 2233392000 | L8: 2427600000 | M8: 4660992000 | O8: 1942080 | P8: 223339.2 | Q8: 1718740.8 | R8: 14000 | S8: 0 | T8: 1560866.72 | V8: 157874.08 | X8: 223339.2 | Y8: 242760 | Z8: 466099.2 | AF8: 223339.2 | AG8: 242760 | AH8: 466099.2 | AQ8: 157874.08 | AS8: 126235.2 | AT8: 87393.6 | AU8: 38841.6 | AZ8: 14000
A9: 4 | B9: 1 | C9: 202204 | O9: 0 | P9: 0 | Q9: 0 | R9: 0 | S9: 0 | T9: 0 | V9: 0 | X9: 0 | Y9: 0 | Z9: 0 | AF9: 0 | AG9: 0 | AH9: 0 | AQ9: 0 | AS9: 0 | AT9: 0 | AU9: 0 | AZ9: 0
A10: 5 | B10: 1 | C10: 202204 | O10: 0 | P10: 0 | Q10: 0 | R10: 0 | S10: 0 | T10: 0 | V10: 0 | X10: 0 | Y10: 0 | Z10: 0 | AF10: 0 | AG10: 0 | AH10: 0 | AQ10: 0 | AS10: 0 | AT10: 0 | AU10: 0 | AZ10: 0
A11: 6 | B11: 1 | C11: 202204 | O11: 0 | P11: 0 | Q11: 0 | R11: 0 | S11: 0 | T11: 0 | V11: 0 | X11: 0 | Y11: 0 | Z11: 0 | AF11: 0 | AG11: 0 | AH11: 0 | AQ11: 0 | AS11: 0 | AT11: 0 | AU11: 0 | AZ11: 0
A12: 7 | B12: 1 | C12: 202204 | O12: 0 | P12: 0 | Q12: 0 | R12: 0 | S12: 0 | T12: 0 | V12: 0 | X12: 0 | Y12: 0 | Z12: 0 | AF12: 0 | AG12: 0 | AH12: 0 | AQ12: 0 | AS12: 0 | AT12: 0 | AU12: 0 | AZ12: 0
A13: 8 | B13: 1 | C13: 202204 | O13: 0 | P13: 0 | Q13: 0 | R13: 0 | S13: 0 | T13: 0 | V13: 0 | X13: 0 | Y13: 0 | Z13: 0 | AF13: 0 | AG13: 0 | AH13: 0 | AQ13: 0 | AS13: 0 | AT13: 0 | AU13: 0 | AZ13: 0
A14: 9 | B14: 1 | C14: 202204 | O14: 0 | P14: 0 | Q14: 0 | R14: 0 | S14: 0 | T14: 0 | V14: 0 | X14: 0 | Y14: 0 | Z14: 0 | AF14: 0 | AG14: 0 | AH14: 0 | AQ14: 0 | AS14: 0 | AT14: 0 | AU14: 0 | AZ14: 0
A15: 10 | B15: 1 | C15: 202204 | O15: 0 | P15: 0 | Q15: 0 | R15: 0 | S15: 0 | T15: 0 | V15: 0 | X15: 0 | Y15: 0 | Z15: 0 | AF15: 0 | AG15: 0 | AH15: 0 | AQ15: 0 | AS15: 0 | AT15: 0 | AU15: 0 | AZ15: 0
A16: 11 | B16: 1 | C16: 202204 | O16: 0 | P16: 0 | Q16: 0 | R16: 0 | S16: 0 | T16: 0 | V16: 0 | X16: 0 | Y16: 0 | Z16: 0 | AF16: 0 | AG16: 0 | AH16: 0 | AQ16: 0 | AS16: 0 | AT16: 0 | AU16: 0 | AZ16: 0
A17: 12 | B17: 1 | C17: 202204 | O17: 0 | P17: 0 | Q17: 0 | R17: 0 | S17: 0 | T17: 0 | V17: 0 | X17: 0 | Y17: 0 | Z17: 0 | AF17: 0 | AG17: 0 | AH17: 0 | AQ17: 0 | AS17: 0 | AT17: 0 | AU17: 0 | AZ17: 0
A18: 13 | B18: 1 | C18: 202204 | O18: 0 | P18: 0 | Q18: 0 | R18: 0 | S18: 0 | T18: 0 | V18: 0 | X18: 0 | Y18: 0 | Z18: 0 | AF18: 0 | AG18: 0 | AH18: 0 | AQ18: 0 | AS18: 0 | AT18: 0 | AU18: 0 | AZ18: 0
A19: 14 | B19: 1 | C19: 202204 | O19: 0 | P19: 0 | Q19: 0 | R19: 0 | S19: 0 | T19: 0 | V19: 0 | X19: 0 | Y19: 0 | Z19: 0 | AF19: 0 | AG19: 0 | AH19: 0 | AQ19: 0 | AS19: 0 | AT19: 0 | AU19: 0 | AZ19: 0
A20: 15 | B20: 1 | C20: 202204 | O20: 0 | P20: 0 | Q20: 0 | R20: 0 | S20: 0 | T20: 0 | V20: 0 | X20: 0 | Y20: 0 | Z20: 0 | AF20: 0 | AG20: 0 | AH20: 0 | AQ20: 0 | AS20: 0 | AT20: 0 | AU20: 0 | AZ20: 0
A21: 16 | B21: 1 | C21: 202204 | O21: 0 | P21: 0 | Q21: 0 | R21: 0 | S21: 0 | T21: 0 | V21: 0 | X21: 0 | Y21: 0 | Z21: 0 | AF21: 0 | AG21: 0 | AH21: 0 | AQ21: 0 | AS21: 0 | AT21: 0 | AU21: 0 | AZ21: 0
A22: 17 | B22: 1 | C22: 202204 | O22: 0 | P22: 0 | Q22: 0 | R22: 0 | S22: 0 | T22: 0 | V22: 0 | X22: 0 | Y22: 0 | Z22: 0 | AF22: 0 | AG22: 0 | AH22: 0 | AQ22: 0 | AS22: 0 | AT22: 0 | AU22: 0 | AZ22: 0
A23: 18 | B23: 1 | C23: 202204 | O23: 0 | P23: 0 | Q23: 0 | R23: 0 | S23: 0 | T23: 0 | V23: 0 | X23: 0 | Y23: 0 | Z23: 0 | AF23: 0 | AG23: 0 | AH23: 0 | AQ23: 0 | AS23: 0 | AT23: 0 | AU23: 0 | AZ23: 0
A24: 19 | B24: 1 | C24: 202204 | O24: 0 | P24: 0 | Q24: 0 | R24: 0 | S24: 0 | T24: 0 | V24: 0 | X24: 0 | Y24: 0 | Z24: 0 | AF24: 0 | AG24: 0 | AH24: 0 | AQ24: 0 | AS24: 0 | AT24: 0 | AU24: 0 | AZ24: 0
A25: 20 | B25: 1 | C25: 202204 | O25: 0 | P25: 0 | Q25: 0 | R25: 0 | S25: 0 | T25: 0 | V25: 0 | X25: 0 | Y25: 0 | Z25: 0 | AF25: 0 | AG25: 0 | AH25: 0 | AQ25: 0 | AS25: 0 | AT25: 0 | AU25: 0 | AZ25: 0
A26: 21 | B26: 1 | C26: 202204 | O26: 0 | P26: 0 | Q26: 0 | R26: 0 | S26: 0 | T26: 0 | V26: 0 | X26: 0 | Y26: 0 | Z26: 0 | AF26: 0 | AG26: 0 | AH26: 0 | AQ26: 0 | AS26: 0 | AT26: 0 | AU26: 0 | AZ26: 0
A27: 22 | B27: 1 | C27: 202204 | O27: 0 | P27: 0 | Q27: 0 | R27: 0 | S27: 0 | T27: 0 | V27: 0 | X27: =+IF(K27="0,0000",0,K27/10000) -> 0 | Y27: 0 | Z27: 0 | AF27: =+X27-AB27 -> 0 | AG27: 0 | AH27: 0 | AQ27: 0 | AS27: 0 | AT27: 0 | AU27: 0 | AZ27: 0
A28: 23 | B28: 1 | C28: 202204 | O28: 0 | P28: 0 | Q28: 0 | R28: 0 | S28: 0 | T28: 0 | V28: 0 | X28: 0 | Y28: 0 | Z28: 0 | AF28: 0 | AG28: 0 | AH28: 0 | AQ28: 0 | AS28: 0 | AT28: 0 | AU28: 0 | AZ28: 0
A29: =+A28+1 -> 24 | B29: 1 | C29: 202204 | O29: 0 | P29: 0 | Q29: 0 | R29: 0 | S29: 0 | T29: 0 | V29: 0 | X29: 0 | Y29: 0 | Z29: 0 | AF29: 0 | AG29: 0 | AH29: 0 | AQ29: 0 | AS29: 0 | AT29: 0 | AU29: 0 | AZ29: 0
A30: =+A29+1 -> 25 | B30: 1 | C30: 202204 | O30: 0 | P30: 0 | Q30: 0 | R30: 0 | S30: 0 | T30: 0 | V30: 0 | X30: 0 | Y30: 0 | Z30: 0 | AF30: 0 | AG30: 0 | AH30: 0 | AQ30: 0 | AS30: 0 | AT30: 0 | AU30: 0 | AZ30: 0
A31: 26 | B31: 1 | C31: 202204 | O31: 0 | P31: 0 | Q31: 0 | R31: 0 | S31: 0 | T31: 0 | V31: 0 | X31: 0 | Y31: 0 | Z31: 0 | AF31: 0 | AG31: 0 | AH31: 0 | AQ31: 0 | AS31: 0 | AT31: 0 | AU31: 0 | AZ31: 0
A32: 27 | B32: 1 | C32: 202204 | O32: 0 | P32: 0 | Q32: 0 | R32: 0 | S32: 0 | T32: 0 | V32: 0 | X32: 0 | Y32: 0 | Z32: 0 | AF32: 0 | AG32: 0 | AH32: 0 | AQ32: 0 | AS32: 0 | AT32: 0 | AU32: 0 | AZ32: 0
A33: 28 | B33: 1 | C33: 202204 | O33: 0 | P33: 0 | Q33: 0 | R33: 0 | S33: 0 | T33: 0 | V33: 0 | X33: 0 | Y33: 0 | Z33: 0 | AF33: 0 | AG33: 0 | AH33: 0 | AQ33: 0 | AS33: 0 | AT33: 0 | AU33: 0 | AZ33: 0
A34: 29 | B34: 1 | C34: 202204 | O34: 0 | P34: 0 | Q34: 0 | R34: 0 | S34: 0 | T34: 0 | V34: 0 | X34: 0 | Y34: 0 | Z34: 0 | AF34: 0 | AG34: 0 | AH34: 0 | AQ34: 0 | AS34: 0 | AT34: 0 | AU34: 0 | AZ34: 0
A35: 30 | B35: 1 | C35: 202204 | O35: 0 | P35: 0 | Q35: 0 | R35: 0 | S35: 0 | T35: 0 | V35: 0 | X35: 0 | Y35: 0 | Z35: 0 | AF35: 0 | AG35: 0 | AH35: 0 | AQ35: 0 | AS35: 0 | AT35: 0 | AU35: 0 | AZ35: 0
A36: 31 | B36: 1 | C36: 202204 | O36: 0 | P36: 0 | Q36: 0 | R36: 0 | S36: 0 | T36: 0 | V36: 0 | X36: 0 | Y36: 0 | Z36: 0 | AF36: 0 | AG36: 0 | AH36: 0 | AQ36: 0 | AS36: 0 | AT36: 0 | AU36: 0 | AZ36: 0
A37: 32 | B37: 1 | C37: 202204 | O37: 0 | P37: 0 | Q37: 0 | R37: 0 | S37: 0 | T37: 0 | V37: 0 | X37: 0 | Y37: 0 | Z37: 0 | AF37: 0 | AG37: 0 | AH37: 0 | AQ37: 0 | AS37: 0 | AT37: 0 | AU37: 0 | AZ37: 0
A38: 33 | B38: 1 | C38: 202204 | O38: 0 | P38: 0 | Q38: 0 | R38: 0 | S38: 0 | T38: 0 | V38: 0 | X38: 0 | Y38: 0 | Z38: 0 | AF38: 0 | AG38: 0 | AH38: 0 | AQ38: 0 | AS38: 0 | AT38: 0 | AU38: 0 | AZ38: 0
A39: 34 | B39: 1 | C39: 202204 | O39: 0 | P39: 0 | Q39: 0 | R39: 0 | S39: 0 | T39: 0 | V39: 0 | X39: 0 | Y39: 0 | Z39: 0 | AF39: 0 | AG39: 0 | AH39: 0 | AQ39: 0 | AS39: 0 | AT39: 0 | AU39: 0 | AZ39: 0
A40: 35 | B40: 1 | C40: 202204 | O40: 0 | P40: 0 | Q40: 0 | R40: 0 | S40: 0 | T40: 0 | V40: 0 | X40: 0 | Y40: 0 | Z40: 0 | AF40: 0 | AG40: 0 | AH40: 0 | AQ40: 0 | AS40: 0 | AT40: 0 | AU40: 0 | AZ40: 0
A41: 36 | B41: 1 | C41: 202204 | O41: 0 | P41: 0 | Q41: 0 | R41: 0 | S41: 0 | T41: 0 | V41: 0 | X41: 0 | Y41: 0 | Z41: 0 | AF41: 0 | AG41: 0 | AH41: 0 | AQ41: 0 | AS41: 0 | AT41: 0 | AU41: 0 | AZ41: 0
A42: 37 | B42: 1 | C42: 202204 | O42: 0 | P42: 0 | Q42: 0 | R42: 0 | S42: 0 | T42: 0 | V42: 0 | X42: 0 | Y42: 0 | Z42: 0 | AF42: 0 | AG42: 0 | AH42: 0 | AQ42: 0 | AS42: 0 | AT42: 0 | AU42: 0 | AZ42: 0
A43: 38 | B43: 1 | C43: 202204 | O43: 0 | P43: 0 | Q43: 0 | R43: 0 | S43: 0 | T43: 0 | V43: 0 | X43: 0 | Y43: 0 | Z43: 0 | AF43: 0 | AG43: 0 | AH43: 0 | AQ43: 0 | AS43: 0 | AT43: 0 | AU43: 0 | AZ43: 0
A44: 39 | B44: 1 | C44: 202204 | O44: 0 | P44: 0 | Q44: 0 | R44: 0 | S44: 0 | T44: 0 | V44: 0 | X44: 0 | Y44: 0 | Z44: 0 | AF44: 0 | AG44: 0 | AH44: 0 | AQ44: 0 | AS44: 0 | AT44: 0 | AU44: 0 | AZ44: 0
A45: 40 | B45: 1 | C45: 202204 | O45: 0 | P45: 0 | Q45: 0 | R45: 0 | S45: 0 | T45: 0 | V45: 0 | X45: 0 | Y45: 0 | Z45: 0 | AF45: 0 | AG45: 0 | AH45: 0 | AQ45: 0 | AS45: 0 | AT45: 0 | AU45: 0 | AZ45: 0
A46: 41 | B46: 1 | C46: 202204 | O46: 0 | P46: 0 | Q46: 0 | R46: 0 | S46: 0 | T46: 0 | V46: 0 | X46: 0 | Y46: 0 | Z46: 0 | AF46: 0 | AG46: 0 | AH46: 0 | AQ46: 0 | AS46: 0 | AT46: 0 | AU46: 0 | AZ46: 0
A47: 42 | B47: 1 | C47: 202204 | O47: 0 | P47: 0 | Q47: 0 | R47: 0 | S47: 0 | T47: 0 | V47: 0 | X47: 0 | Y47: 0 | Z47: 0 | AF47: 0 | AG47: 0 | AH47: 0 | AQ47: 0 | AS47: 0 | AT47: 0 | AU47: 0 | AZ47: 0
A48: 43 | B48: 1 | C48: 202204 | O48: 0 | P48: 0 | Q48: 0 | R48: 0 | S48: 0 | T48: 0 | V48: 0 | X48: 0 | Y48: 0 | Z48: 0 | AF48: 0 | AG48: 0 | AH48: 0 | AQ48: 0 | AS48: 0 | AT48: 0 | AU48: 0 | AZ48: 0
A49: 44 | B49: 1 | C49: 202204 | O49: 0 | P49: 0 | Q49: 0 | R49: 0 | S49: 0 | T49: 0 | V49: 0 | X49: 0 | Y49: 0 | Z49: 0 | AF49: 0 | AG49: 0 | AH49: 0 | AQ49: 0 | AS49: 0 | AT49: 0 | AU49: 0 | AZ49: 0
A50: 45 | B50: 1 | C50: 202204 | O50: 0 | P50: 0 | Q50: 0 | R50: 0 | S50: 0 | T50: 0 | V50: 0 | X50: 0 | Y50: 0 | Z50: 0 | AF50: 0 | AG50: 0 | AH50: 0 | AQ50: 0 | AS50: 0 | AT50: 0 | AU50: 0 | AZ50: 0
A51: 46 | B51: 1 | C51: 202204 | O51: 0 | P51: 0 | Q51: 0 | R51: 0 | S51: 0 | T51: 0 | V51: 0 | X51: 0 | Y51: 0 | Z51: 0 | AF51: 0 | AG51: 0 | AH51: 0 | AQ51: 0 | AS51: 0 | AT51: 0 | AU51: 0 | AZ51: 0
A52: 47 | B52: 1 | C52: 202204 | O52: 0 | P52: 0 | Q52: 0 | R52: 0 | S52: 0 | T52: 0 | V52: 0 | X52: 0 | Y52: 0 | Z52: 0 | AF52: 0 | AG52: 0 | AH52: 0 | AQ52: 0 | AS52: 0 | AT52: 0 | AU52: 0 | AZ52: 0
A53: 48 | B53: 1 | C53: 202204 | O53: 0 | P53: 0 | Q53: 0 | R53: 0 | S53: 0 | T53: 0 | V53: 0 | X53: 0 | Y53: 0 | Z53: 0 | AF53: 0 | AG53: 0 | AH53: 0 | AQ53: 0 | AS53: 0 | AT53: 0 | AU53: 0 | AZ53: 0
A54: 49 | B54: 1 | C54: 202204 | O54: 0 | P54: 0 | Q54: 0 | R54: 0 | S54: 0 | T54: 0 | V54: 0 | X54: 0 | Y54: 0 | Z54: 0 | AF54: 0 | AG54: 0 | AH54: 0 | AQ54: 0 | AS54: 0 | AT54: 0 | AU54: 0 | AZ54: 0
A55: 50 | B55: 1 | C55: 202204 | O55: 0 | P55: 0 | Q55: 0 | R55: 0 | S55: 0 | T55: 0 | V55: 0 | X55: 0 | Y55: 0 | Z55: 0 | AF55: 0 | AG55: 0 | AH55: 0 | AQ55: =IF(I55=6,0,Q55*0.1-R55) -> 0 | AS55: =+AT55+AU55 -> 0 | AT55: =IF(X55=0,0,IF(OR($I55=6,$I55=17,$I55=22),X55,IF(O55>=4200000,X55-294000,$X55-$O55*0.07))) -> 0 | AU55: =+IF(OR($I55=6,$I55=22,$I55=17),Y55-J55/10000*0.085,$Y55-$O55*0.105) -> 0 | AZ55: =IF(Q55=0,0,IF(Q55<=200000,Q55*0.1,IF(Q55<=500000,20000,IF(Q55<=1000000,18000,IF(Q55<=1500000,16000,IF(Q55<=2000000,14000,IF(Q55<=2500000,12000,IF(Q55<=3000000,10000,0)))))))) -> 0
A56: 51 | B56: 1 | C56: 202204 | O56: =IF(OR(I56=6,I56=21,I56=25,I56=17),0,IF(J56="0,0000",0,J56/10000)) -> 0 | P56: =+AF56 -> 0 | Q56: =IF(OR(I56=6,I56=17,I56=25),0,O56-P56) -> 0 | R56: =IF(OR(I56=40,I56=6,I56=17,I56=25),0,AZ56) -> 0 | S56: =IF(B56=2,0,IF(AND($C56>202003,$C56<202010),AQ56,0)) -> 0 | T56: =IF(OR(I56=6,I56=17,I56=25),0,Q56-(Q56*0.1-R56-S56)) -> 0 | V56: =+IF(OR(I56=6,I56=25),0,Q56*0.1-R56-S56) -> 0 | X56: =+IF(K56="0,0000",0,K56/10000) -> 0 | Y56: =+IF(L56="0,0000",0,L56/10000) -> 0 | Z56: =+IF(M56="0,0000",0,M56/10000) -> 0 | AF56: =+X56-AB56 -> 0 | AG56: =+Y56-AC56 -> 0 | AH56: =+AF56+AG56 -> 0 | AQ56: 0 | AS56: 0 | AT56: 0 | AU56: 0 | AZ56: 0
A57: 52 | B57: 1 | C57: 202204 | O57: 0 | P57: 0 | Q57: 0 | R57: 0 | S57: 0 | T57: 0 | V57: 0 | X57: 0 | Y57: 0 | Z57: 0 | AF57: 0 | AG57: 0 | AH57: 0 | AQ57: 0 | AS57: 0 | AT57: 0 | AU57: 0 | AZ57: 0
A58: 53 | B58: 1 | C58: 202204 | O58: 0 | P58: 0 | Q58: 0 | R58: 0 | S58: 0 | T58: 0 | V58: 0 | X58: 0 | Y58: 0 | Z58: 0 | AF58: 0 | AG58: 0 | AH58: 0 | AQ58: 0 | AS58: 0 | AT58: 0 | AU58: 0 | AZ58: 0
A59: 54 | B59: 1 | C59: 202204 | O59: 0 | P59: 0 | Q59: 0 | R59: 0 | S59: 0 | T59: 0 | V59: 0 | X59: 0 | Y59: 0 | Z59: 0 | AF59: 0 | AG59: 0 | AH59: 0 | AQ59: 0 | AS59: 0 | AT59: 0 | AU59: 0 | AZ59: 0
A60: 55 | B60: 1 | C60: 202204 | O60: 0 | P60: 0 | Q60: 0 | R60: 0 | S60: 0 | T60: 0 | V60: 0 | X60: 0 | Y60: 0 | Z60: 0 | AF60: 0 | AG60: 0 | AH60: 0 | AQ60: 0 | AS60: 0 | AT60: 0 | AU60: 0 | AZ60: 0
A61: 56 | B61: 1 | C61: 202204 | O61: 0 | P61: 0 | Q61: 0 | R61: 0 | S61: 0 | T61: 0 | V61: 0 | X61: 0 | Y61: 0 | Z61: 0 | AF61: 0 | AG61: 0 | AH61: 0 | AQ61: 0 | AS61: 0 | AT61: 0 | AU61: 0 | AZ61: 0
A62: 57 | B62: 1 | C62: 202204 | O62: 0 | P62: 0 | Q62: 0 | R62: 0 | S62: 0 | T62: 0 | V62: 0 | X62: 0 | Y62: 0 | Z62: 0 | AF62: 0 | AG62: 0 | AH62: 0 | AQ62: 0 | AS62: 0 | AT62: 0 | AU62: 0 | AZ62: 0
A63: 58 | B63: 1 | C63: 202204 | O63: 0 | P63: 0 | Q63: 0 | R63: 0 | S63: 0 | T63: 0 | V63: 0 | X63: 0 | Y63: 0 | Z63: 0 | AF63: 0 | AG63: 0 | AH63: 0 | AQ63: 0 | AS63: 0 | AT63: 0 | AU63: 0 | AZ63: 0
A64: 59 | B64: 1 | C64: 202204 | O64: 0 | P64: 0 | Q64: 0 | R64: 0 | S64: 0 | T64: 0 | V64: 0 | X64: 0 | Y64: 0 | Z64: 0 | AF64: 0 | AG64: 0 | AH64: 0 | AQ64: 0 | AS64: 0 | AT64: 0 | AU64: 0 | AZ64: 0
A65: 60 | B65: 1 | C65: 202204 | O65: 0 | P65: 0 | Q65: 0 | R65: 0 | S65: 0 | T65: 0 | V65: 0 | X65: 0 | Y65: 0 | Z65: 0 | AF65: 0 | AG65: 0 | AH65: 0 | AQ65: 0 | AS65: 0 | AT65: 0 | AU65: 0 | AZ65: 0
A66: 61 | B66: 1 | C66: 202204 | O66: 0 | P66: 0 | Q66: 0 | R66: 0 | S66: 0 | T66: 0 | V66: 0 | X66: 0 | Y66: 0 | Z66: 0 | AF66: 0 | AG66: 0 | AH66: 0 | AQ66: 0 | AS66: 0 | AT66: 0 | AU66: 0 | AZ66: 0
A67: 62 | B67: 1 | C67: 202204 | O67: 0 | P67: 0 | Q67: 0 | R67: 0 | S67: 0 | T67: 0 | V67: 0 | X67: 0 | Y67: 0 | Z67: 0 | AF67: 0 | AG67: 0 | AH67: 0 | AQ67: 0 | AS67: 0 | AT67: 0 | AU67: 0 | AZ67: 0
A68: 63 | B68: 1 | C68: 202204 | O68: 0 | P68: 0 | Q68: 0 | R68: 0 | S68: 0 | T68: 0 | V68: 0 | X68: 0 | Y68: 0 | Z68: 0 | AF68: 0 | AG68: 0 | AH68: 0 | AQ68: 0 | AS68: 0 | AT68: 0 | AU68: 0 | AZ68: 0
A69: 64 | B69: 1 | C69: 202204 | O69: 0 | P69: 0 | Q69: 0 | R69: 0 | S69: 0 | T69: 0 | V69: 0 | X69: 0 | Y69: 0 | Z69: 0 | AF69: 0 | AG69: 0 | AH69: 0 | AQ69: 0 | AS69: 0 | AT69: 0 | AU69: 0 | AZ69: 0
A70: 65 | B70: 1 | C70: 202204 | O70: 0 | P70: 0 | Q70: 0 | R70: 0 | S70: 0 | T70: 0 | V70: 0 | X70: 0 | Y70: 0 | Z70: 0 | AF70: 0 | AG70: 0 | AH70: 0 | AQ70: 0 | AS70: 0 | AT70: 0 | AU70: 0 | AZ70: 0
A71: 66 | B71: 1 | C71: 202204 | O71: =IF(OR(I71=6,I71=21,I71=25,I71=17),0,IF(J71="0,0000",0,J71/10000)) -> 0 | P71: =+AF71 -> 0 | Q71: =IF(OR(I71=6,I71=17,I71=25),0,O71-P71) -> 0 | R71: =IF(OR(I71=40,I71=6,I71=17,I71=25),0,AZ71) -> 0 | S71: =IF(B71=2,0,IF(AND($C71>202003,$C71<202010),AQ71,0)) -> 0 | T71: =IF(OR(I71=6,I71=17,I71=25),0,Q71-(Q71*0.1-R71-S71)) -> 0 | V71: =+IF(OR(I71=6,I71=25),0,Q71*0.1-R71-S71) -> 0 | X71: =+IF(K71="0,0000",0,K71/10000) -> 0 | Y71: =+IF(L71="0,0000",0,L71/10000) -> 0 | Z71: =+IF(M71="0,0000",0,M71/10000) -> 0 | AF71: =+X71-AB71 -> 0 | AG71: =+Y71-AC71 -> 0 | AH71: =+AF71+AG71 -> 0 | AQ71: 0 | AS71: 0 | AT71: 0 | AU71: 0 | AZ71: 0
A72: 67 | B72: 1 | C72: 202204 | O72: 0 | P72: 0 | Q72: 0 | R72: 0 | S72: 0 | T72: 0 | V72: 0 | X72: 0 | Y72: 0 | Z72: 0 | AF72: 0 | AG72: 0 | AH72: 0 | AQ72: 0 | AS72: 0 | AT72: 0 | AU72: 0 | AZ72: 0
A73: 68 | B73: 1 | C73: 202204 | O73: 0 | P73: 0 | Q73: 0 | R73: 0 | S73: 0 | T73: 0 | V73: 0 | X73: 0 | Y73: 0 | Z73: 0 | AF73: 0 | AG73: 0 | AH73: 0 | AQ73: 0 | AS73: 0 | AT73: 0 | AU73: 0 | AZ73: 0
A74: 69 | B74: 1 | C74: 202204 | O74: 0 | P74: 0 | Q74: 0 | R74: 0 | S74: 0 | T74: 0 | V74: 0 | X74: 0 | Y74: 0 | Z74: 0 | AF74: 0 | AG74: 0 | AH74: 0 | AQ74: 0 | AS74: 0 | AT74: 0 | AU74: 0 | AZ74: 0
A75: 70 | B75: 1 | C75: 202204 | O75: 0 | P75: 0 | Q75: 0 | R75: 0 | S75: 0 | T75: 0 | V75: 0 | X75: 0 | Y75: 0 | Z75: 0 | AF75: 0 | AG75: 0 | AH75: 0 | AQ75: 0 | AS75: 0 | AT75: 0 | AU75: 0 | AZ75: 0
A76: 71 | B76: 1 | C76: 202204 | O76: 0 | P76: 0 | Q76: 0 | R76: 0 | S76: 0 | T76: 0 | V76: 0 | X76: 0 | Y76: 0 | Z76: 0 | AF76: 0 | AG76: 0 | AH76: 0 | AQ76: 0 | AS76: 0 | AT76: 0 | AU76: 0 | AZ76: 0
A77: 72 | B77: 1 | C77: 202204 | O77: 0 | P77: 0 | Q77: 0 | R77: 0 | S77: 0 | T77: 0 | V77: 0 | X77: 0 | Y77: 0 | Z77: 0 | AF77: 0 | AG77: 0 | AH77: 0 | AQ77: 0 | AS77: 0 | AT77: 0 | AU77: 0 | AZ77: 0
A78: 73 | B78: 1 | C78: 202204 | O78: 0 | P78: 0 | Q78: 0 | R78: 0 | S78: 0 | T78: 0 | V78: 0 | X78: 0 | Y78: 0 | Z78: 0 | AF78: 0 | AG78: 0 | AH78: 0 | AQ78: 0 | AS78: 0 | AT78: 0 | AU78: 0 | AZ78: 0
A79: 74 | B79: 1 | C79: 202204 | O79: 0 | P79: 0 | Q79: 0 | R79: 0 | S79: 0 | T79: 0 | V79: 0 | X79: 0 | Y79: 0 | Z79: 0 | AF79: 0 | AG79: 0 | AH79: 0 | AQ79: 0 | AS79: 0 | AT79: 0 | AU79: 0 | AZ79: 0
A80: 75 | B80: 1 | C80: 202204 | O80: 0 | P80: 0 | Q80: 0 | R80: 0 | S80: 0 | T80: 0 | V80: 0 | X80: 0 | Y80: 0 | Z80: 0 | AF80: 0 | AG80: 0 | AH80: 0 | AQ80: 0 | AS80: 0 | AT80: 0 | AU80: 0 | AZ80: 0
A81: 76 | B81: 1 | C81: 202204 | O81: 0 | P81: 0 | Q81: 0 | R81: 0 | S81: 0 | T81: 0 | V81: 0 | X81: 0 | Y81: 0 | Z81: 0 | AF81: 0 | AG81: 0 | AH81: 0 | AQ81: 0 | AS81: 0 | AT81: 0 | AU81: 0 | AZ81: 0
A82: 77 | B82: 1 | C82: 202204 | O82: 0 | P82: 0 | Q82: 0 | R82: 0 | S82: 0 | T82: 0 | V82: 0 | X82: 0 | Y82: 0 | Z82: 0 | AF82: 0 | AG82: 0 | AH82: 0 | AQ82: 0 | AS82: 0 | AT82: 0 | AU82: 0 | AZ82: 0
A83: 78 | B83: 1 | C83: 202204 | O83: 0 | P83: 0 | Q83: 0 | R83: 0 | S83: 0 | T83: 0 | V83: 0 | X83: 0 | Y83: 0 | Z83: 0 | AF83: 0 | AG83: 0 | AH83: 0 | AQ83: 0 | AS83: 0 | AT83: 0 | AU83: 0 | AZ83: 0
A84: 79 | B84: 1 | C84: 202204 | O84: 0 | P84: 0 | Q84: 0 | R84: 0 | S84: 0 | T84: 0 | V84: 0 | X84: 0 | Y84: 0 | Z84: 0 | AF84: 0 | AG84: 0 | AH84: 0 | AQ84: 0 | AS84: 0 | AT84: 0 | AU84: 0 | AZ84: 0
A85: 80 | B85: 1 | C85: 202204 | O85: 0 | P85: 0 | Q85: 0 | R85: 0 | S85: 0 | T85: 0 | V85: 0 | X85: 0 | Y85: 0 | Z85: 0 | AF85: 0 | AG85: 0 | AH85: 0 | AQ85: 0 | AS85: 0 | AT85: 0 | AU85: 0 | AZ85: 0
A86: 81 | B86: 1 | C86: 202204 | O86: 0 | P86: 0 | Q86: 0 | R86: 0 | S86: 0 | T86: 0 | V86: 0 | X86: 0 | Y86: 0 | Z86: 0 | AF86: 0 | AG86: 0 | AH86: 0 | AQ86: 0 | AS86: 0 | AT86: 0 | AU86: 0 | AZ86: 0
A87: 82 | B87: 1 | C87: 202204 | O87: 0 | P87: 0 | Q87: 0 | R87: 0 | S87: 0 | T87: 0 | V87: 0 | X87: 0 | Y87: 0 | Z87: 0 | AF87: 0 | AG87: 0 | AH87: 0 | AQ87: 0 | AS87: 0 | AT87: 0 | AU87: 0 | AZ87: 0
A88: 83 | B88: 1 | C88: 202204 | O88: 0 | P88: 0 | Q88: 0 | R88: 0 | S88: 0 | T88: 0 | V88: 0 | X88: 0 | Y88: 0 | Z88: 0 | AF88: 0 | AG88: 0 | AH88: 0 | AQ88: 0 | AS88: 0 | AT88: 0 | AU88: 0 | AZ88: 0
A89: 84 | B89: 1 | C89: 202204 | O89: 0 | P89: 0 | Q89: 0 | R89: 0 | S89: 0 | T89: 0 | V89: 0 | X89: 0 | Y89: 0 | Z89: 0 | AF89: 0 | AG89: 0 | AH89: 0 | AQ89: 0 | AS89: 0 | AT89: 0 | AU89: 0 | AZ89: 0
A90: 85 | B90: 1 | C90: 202204 | O90: 0 | P90: 0 | Q90: 0 | R90: 0 | S90: 0 | T90: 0 | V90: 0 | X90: 0 | Y90: 0 | Z90: 0 | AF90: 0 | AG90: 0 | AH90: 0 | AQ90: 0 | AS90: 0 | AT90: 0 | AU90: 0 | AZ90: 0
A91: 86 | B91: 1 | C91: 202204 | O91: 0 | P91: 0 | Q91: 0 | R91: 0 | S91: 0 | T91: 0 | V91: 0 | X91: 0 | Y91: 0 | Z91: 0 | AF91: 0 | AG91: 0 | AH91: 0 | AQ91: 0 | AS91: 0 | AT91: 0 | AU91: 0 | AZ91: 0
A92: 87 | B92: 1 | C92: 202204 | O92: 0 | P92: 0 | Q92: 0 | R92: 0 | S92: 0 | T92: 0 | V92: 0 | X92: 0 | Y92: 0 | Z92: 0 | AF92: 0 | AG92: 0 | AH92: 0 | AQ92: 0 | AS92: 0 | AT92: 0 | AU92: 0 | AZ92: 0
A93: 88 | B93: 1 | C93: 202204 | O93: 0 | P93: 0 | Q93: 0 | R93: 0 | S93: 0 | T93: 0 | V93: 0 | X93: 0 | Y93: 0 | Z93: 0 | AF93: 0 | AG93: 0 | AH93: 0 | AQ93: 0 | AS93: 0 | AT93: 0 | AU93: 0 | AZ93: 0
A94: 89 | B94: 1 | C94: 202204 | O94: 0 | P94: 0 | Q94: 0 | R94: 0 | S94: 0 | T94: 0 | V94: 0 | X94: 0 | Y94: 0 | Z94: 0 | AF94: 0 | AG94: 0 | AH94: 0 | AQ94: 0 | AS94: 0 | AT94: 0 | AU94: 0 | AZ94: 0
A95: 90 | B95: 1 | C95: 202204 | O95: 0 | P95: 0 | Q95: 0 | R95: 0 | S95: 0 | T95: 0 | V95: 0 | X95: 0 | Y95: 0 | Z95: 0 | AF95: 0 | AG95: 0 | AH95: 0 | AQ95: 0 | AS95: 0 | AT95: 0 | AU95: 0 | AZ95: 0
A96: 91 | B96: 1 | C96: 202204 | O96: 0 | P96: 0 | Q96: 0 | R96: 0 | S96: 0 | T96: 0 | V96: 0 | X96: 0 | Y96: 0 | Z96: 0 | AF96: 0 | AG96: 0 | AH96: 0 | AQ96: 0 | AS96: 0 | AT96: 0 | AU96: 0 | AZ96: 0
A97: 92 | B97: 1 | C97: 202204 | O97: 0 | P97: 0 | Q97: 0 | R97: 0 | S97: 0 | T97: 0 | V97: 0 | X97: 0 | Y97: 0 | Z97: 0 | AF97: 0 | AG97: 0 | AH97: 0 | AQ97: 0 | AS97: 0 | AT97: 0 | AU97: 0 | AZ97: 0
A98: 93 | B98: 1 | C98: 202204 | O98: 0 | P98: 0 | Q98: 0 | R98: 0 | S98: 0 | T98: 0 | V98: 0 | X98: 0 | Y98: 0 | Z98: 0 | AF98: 0 | AG98: 0 | AH98: 0 | AQ98: 0 | AS98: 0 | AT98: 0 | AU98: 0 | AZ98: 0
A99: 94 | B99: 1 | C99: 202204 | O99: 0 | P99: 0 | Q99: 0 | R99: 0 | S99: 0 | T99: 0 | V99: 0 | X99: 0 | Y99: 0 | Z99: 0 | AF99: 0 | AG99: 0 | AH99: 0 | AQ99: 0 | AS99: 0 | AT99: 0 | AU99: 0 | AZ99: 0
A100: 95 | B100: 1 | C100: 202204 | O100: 0 | P100: 0 | Q100: 0 | R100: 0 | S100: 0 | T100: 0 | V100: 0 | X100: 0 | Y100: 0 | Z100: 0 | AF100: 0 | AG100: 0 | AH100: 0 | AQ100: 0 | AS100: 0 | AT100: 0 | AU100: 0 | AZ100: 0
A101: 96 | B101: 1 | C101: 202204 | O101: 0 | P101: 0 | Q101: 0 | R101: 0 | S101: 0 | T101: 0 | V101: 0 | X101: 0 | Y101: 0 | Z101: 0 | AF101: 0 | AG101: 0 | AH101: 0 | AQ101: 0 | AS101: 0 | AT101: 0 | AU101: 0 | AZ101: 0
A102: 97 | B102: 1 | C102: 202204 | O102: 0 | P102: 0 | Q102: 0 | R102: 0 | S102: 0 | T102: 0 | V102: 0 | X102: 0 | Y102: 0 | Z102: 0 | AF102: 0 | AG102: 0 | AH102: 0 | AQ102: 0 | AS102: 0 | AT102: 0 | AU102: 0 | AZ102: 0
A103: 98 | B103: 1 | C103: 202204 | O103: 0 | P103: 0 | Q103: 0 | R103: 0 | S103: 0 | T103: 0 | V103: 0 | X103: 0 | Y103: 0 | Z103: 0 | AF103: 0 | AG103: 0 | AH103: 0 | AQ103: 0 | AS103: 0 | AT103: 0 | AU103: 0 | AZ103: 0
A104: 99 | B104: 1 | C104: 202204 | O104: 0 | P104: 0 | Q104: 0 | R104: 0 | S104: 0 | T104: 0 | V104: 0 | X104: 0 | Y104: 0 | Z104: 0 | AF104: 0 | AG104: 0 | AH104: 0 | AQ104: 0 | AS104: 0 | AT104: 0 | AU104: 0 | AZ104: 0
A105: 100 | B105: 1 | C105: 202204 | O105: 0 | P105: 0 | Q105: 0 | R105: 0 | S105: 0 | T105: 0 | V105: 0 | X105: 0 | Y105: 0 | Z105: 0 | AF105: 0 | AG105: 0 | AH105: 0 | AQ105: 0 | AS105: 0 | AT105: 0 | AU105: 0 | AZ105: 0
AQ322: =SUM(AQ6:AQ321) -> 404448.16 | AS322: =SUM(AS6:AS321) -> 313470.4 | AT322: =SUM(AT6:AT321) -> 217787.2 | AU322: =SUM(AU6:AU321) -> 95683.2 | AZ322: =SUM(AZ6:AZ321) -> 46000

Sheet 202105
E2: НИЙГМИЙН ДААТГАЛЫН САЙТААС ХУУЛЖ ТАВИНА, ХУУЛЖ ТАВЬСАНЫ ДАРАА СААРАЛ БАГАНААС ЭХЛЭЭД ТООЦООЛОЛ ХИЙГДСЭН БАЙНА
X3: НДШЧАДСДОТХ-ийг дагуу чөлөөлөгдөхөөс ӨМНӨ | AF3: ТООЦСОН НДШ | AS3: НДШЧАДСДОТХ-ийг дагуу чөлөөлөгдөх
B4: НИЙЛБЭР | J4: =+SUM(J6:J305) -> 48841600000 | K4: =+SUM(K6:K305) -> 5596784000 | L4: =+SUM(L6:L305) -> 6085200000 | M4: =+SUM(M6:M305) -> 11681984000 | O4: =+SUM(O6:O305) -> 4884160 | P4: 559678.4 | Q4: 4324481.6 | R4: 28000 | S4: 0 | T4: 3920033.44 | V4: =+SUM(V6:V305) -> 404448.16 | X4: =+SUM(X6:X305) -> 559678.4 | Y4: =+SUM(Y6:Y305) -> 608520 | Z4: =+SUM(Z6:Z305) -> 1168198.4 | AF4: =+SUM(AF6:AF305) -> 559678.4 | AG4: =+SUM(AG6:AG305) -> 608520 | AH4: =+SUM(AH6:AH305) -> 1168198.4
A5: № | B5: улсын код | C5: ОГНОО | D5: ОВОГ | E5: НЭР | F5: РЕГИСТР | G5: НДД № | H5: ЭМД № | I5: төрөл | J5: ЦАЛИН | K5: ДТ-ШИМТГЭЛ | L5: АО-ШИМТГЭЛ | M5: Нийт-ШИМТГЭЛ | O5: 1. ЦАЛИН | P5: 2. НД шимтгэл | Q5: 3.татвар тооцох орлого (1-2) | R5: 4.ХХОАТ хөнгөлөлт | S5: 5.ХХОАТ чөлөөлөлт | T5: 6.гарт олгох (3-4-5) | V5: 7.ХХОАТ / суутган | X5: ДТ-ШИМТГЭЛ | Y5: АО-ШИМТГЭЛ | Z5: Нийт-ШИМТГЭЛ | AF5: ДТ-ШИМТГЭЛ | AG5: АО-ШИМТГЭЛ | AH5: Нийт-ШИМТГЭЛ | AQ5: ххоат | AS5: НИЙТ ДҮН | AT5: ДТ-ШИМТГЭЛ | AU5: АО-ШИМТГЭЛ | AZ5: хөнгөлөлт
A6: 1 | B6: 1 | C6: 202205 | D6: ЦАГААНЦООЖ | E6: НАЦАГДОРЖ | F6: НТ87102816 | I6: 1 | J6: 19420800000 | K6: 2233392000 | L6: 2427600000 | M6: 4660992000 | O6: =IF(OR(I6=6,I6=21,I6=25,I6=17),0,IF(J6="0,0000",0,J6/10000)) -> 1942080 | P6: =+AF6 -> 223339.2 | Q6: =IF(OR(I6=6,I6=17,I6=25),0,O6-P6) -> 1718740.8 | R6: =IF(OR(I6=40,I6=6,I6=17,I6=25),0,AZ6) -> 14000 | S6: =IF(B6=2,0,IF(AND($C6>202003,$C6<202010),AQ6,0)) -> 0 | T6: =IF(OR(I6=6,I6=17,I6=25),0,Q6-(Q6*0.1-R6-S6)) -> 1560866.72 | V6: =+IF(OR(I6=6,I6=25),0,Q6*0.1-R6-S6) -> 157874.08 | X6: =+IF(K6="0,0000",0,K6/10000) -> 223339.2 | Y6: 242760 | Z6: 466099.2 | AF6: =+X6-AB6 -> 223339.2 | AG6: 242760 | AH6: =+AF6+AG6 -> 466099.2 | AQ6: =IF(I6=6,0,Q6*0.1-R6) -> 157874.08 | AS6: =+AT6+AU6 -> 126235.2 | AT6: =IF(X6=0,0,IF(OR($I6=6,$I6=17,$I6=22),X6,IF(O6>=4200000,X6-294000,$X6-$O6*0.07))) -> 87393.6 | AU6: =+IF(OR($I6=6,$I6=22,$I6=17),Y6-J6/10000*0.085,$Y6-$O6*0.105) -> 38841.6 | AZ6: =IF(Q6=0,0,IF(Q6<=200000,Q6*0.1,IF(Q6<=500000,20000,IF(Q6<=1000000,18000,IF(Q6<=1500000,16000,IF(Q6<=2000000,14000,IF(Q6<=2500000,12000,IF(Q6<=3000000,10000,0)))))))) -> 14000
A7: 2 | B7: 1 | C7: 202205 | D7: БЯМБАДОРЖ | E7: БАТЗУЛ | F7: ХА73102679 | G7: 458035 | H7: В0238240 | I7: 1 | J7: 19420800000 | K7: 2233392000 | L7: 2427600000 | M7: 4660992000 | O7: 1942080 | P7: 223339.2 | Q7: 1718740.8 | R7: 14000 | S7: 0 | T7: 1560866.72 | V7: 157874.08 | X7: 223339.2 | Y7: 242760 | Z7: 466099.2 | AF7: 223339.2 | AG7: 242760 | AH7: 466099.2 | AQ7: 157874.08 | AS7: 126235.2 | AT7: 87393.6 | AU7: =+IF(OR($I7=6,$I7=22,$I7=17),Y7-J7/10000*0.085,$Y7-$O7*0.105) -> 38841.6 | AZ7: 14000
A8: 3 | B8: 1 | C8: 202205 | D8: САНДАГДОРЖ | E8: ЛХАГВАС?РЭН | F8: УШ95060738 | I8: 40 | J8: 10000000000 | K8: 1130000000 | L8: 1230000000 | M8: 2360000000 | O8: 1000000 | P8: 113000 | Q8: 887000 | R8: 0 | S8: 0 | T8: 798300 | V8: 88700 | X8: 113000 | Y8: 123000 | Z8: 236000 | AF8: 113000 | AG8: 123000 | AH8: 236000 | AQ8: 88700 | AS8: 61000 | AT8: 43000 | AU8: 18000 | AZ8: 18000
A9: 4 | B9: 1 | C9: 202205 | O9: 0 | P9: 0 | Q9: 0 | R9: 0 | S9: 0 | T9: 0 | V9: 0 | X9: 0 | Y9: 0 | Z9: 0 | AF9: 0 | AG9: 0 | AH9: 0 | AQ9: 0 | AS9: 0 | AT9: 0 | AU9: 0 | AZ9: 0
A10: 5 | B10: 1 | C10: 202205 | O10: 0 | P10: 0 | Q10: 0 | R10: 0 | S10: 0 | T10: 0 | V10: 0 | X10: 0 | Y10: 0 | Z10: 0 | AF10: 0 | AG10: 0 | AH10: 0 | AQ10: 0 | AS10: 0 | AT10: 0 | AU10: 0 | AZ10: 0
A11: 6 | B11: 1 | C11: 202205 | O11: 0 | P11: 0 | Q11: 0 | R11: 0 | S11: 0 | T11: 0 | V11: 0 | X11: 0 | Y11: 0 | Z11: 0 | AF11: 0 | AG11: 0 | AH11: 0 | AQ11: 0 | AS11: 0 | AT11: 0 | AU11: 0 | AZ11: 0
A12: 7 | B12: 1 | C12: 202205 | O12: 0 | P12: 0 | Q12: 0 | R12: 0 | S12: 0 | T12: 0 | V12: 0 | X12: 0 | Y12: 0 | Z12: 0 | AF12: 0 | AG12: 0 | AH12: 0 | AQ12: 0 | AS12: 0 | AT12: 0 | AU12: 0 | AZ12: 0
A13: 8 | B13: 1 | C13: 202205 | O13: 0 | P13: 0 | Q13: 0 | R13: 0 | S13: 0 | T13: 0 | V13: 0 | X13: 0 | Y13: 0 | Z13: 0 | AF13: 0 | AG13: 0 | AH13: 0 | AQ13: 0 | AS13: 0 | AT13: 0 | AU13: 0 | AZ13: 0
A14: 9 | B14: 1 | C14: 202205 | O14: 0 | P14: 0 | Q14: 0 | R14: 0 | S14: 0 | T14: 0 | V14: 0 | X14: 0 | Y14: 0 | Z14: 0 | AF14: 0 | AG14: 0 | AH14: 0 | AQ14: 0 | AS14: 0 | AT14: 0 | AU14: 0 | AZ14: 0
A15: 10 | B15: 1 | C15: 202205 | O15: 0 | P15: 0 | Q15: 0 | R15: 0 | S15: 0 | T15: 0 | V15: 0 | X15: 0 | Y15: 0 | Z15: 0 | AF15: 0 | AG15: 0 | AH15: 0 | AQ15: 0 | AS15: 0 | AT15: 0 | AU15: 0 | AZ15: 0
A16: 11 | B16: 1 | C16: 202205 | O16: 0 | P16: 0 | Q16: 0 | R16: 0 | S16: 0 | T16: 0 | V16: 0 | X16: 0 | Y16: 0 | Z16: 0 | AF16: 0 | AG16: 0 | AH16: 0 | AQ16: 0 | AS16: 0 | AT16: 0 | AU16: 0 | AZ16: 0
A17: 12 | B17: 1 | C17: 202205 | O17: 0 | P17: 0 | Q17: 0 | R17: 0 | S17: 0 | T17: 0 | V17: 0 | X17: 0 | Y17: 0 | Z17: 0 | AF17: 0 | AG17: 0 | AH17: 0 | AQ17: 0 | AS17: 0 | AT17: 0 | AU17: 0 | AZ17: 0
A18: 13 | B18: 1 | C18: 202205 | O18: 0 | P18: 0 | Q18: 0 | R18: 0 | S18: 0 | T18: 0 | V18: 0 | X18: 0 | Y18: 0 | Z18: 0 | AF18: 0 | AG18: 0 | AH18: 0 | AQ18: 0 | AS18: 0 | AT18: 0 | AU18: 0 | AZ18: 0
A19: 14 | B19: 1 | C19: 202205 | O19: 0 | P19: 0 | Q19: 0 | R19: 0 | S19: 0 | T19: 0 | V19: 0 | X19: 0 | Y19: 0 | Z19: 0 | AF19: 0 | AG19: 0 | AH19: 0 | AQ19: 0 | AS19: 0 | AT19: 0 | AU19: 0 | AZ19: 0
A20: 15 | B20: 1 | C20: 202205 | O20: 0 | P20: 0 | Q20: 0 | R20: 0 | S20: 0 | T20: 0 | V20: 0 | X20: 0 | Y20: 0 | Z20: 0 | AF20: 0 | AG20: 0 | AH20: 0 | AQ20: 0 | AS20: 0 | AT20: 0 | AU20: 0 | AZ20: 0
A21: 16 | B21: 1 | C21: 202205 | O21: 0 | P21: 0 | Q21: 0 | R21: 0 | S21: 0 | T21: 0 | V21: 0 | X21: 0 | Y21: 0 | Z21: 0 | AF21: 0 | AG21: 0 | AH21: 0 | AQ21: 0 | AS21: 0 | AT21: 0 | AU21: 0 | AZ21: 0
A22: 17 | B22: 1 | C22: 202205 | O22: 0 | P22: 0 | Q22: 0 | R22: 0 | S22: 0 | T22: 0 | V22: 0 | X22: 0 | Y22: 0 | Z22: 0 | AF22: 0 | AG22: 0 | AH22: 0 | AQ22: 0 | AS22: 0 | AT22: 0 | AU22: 0 | AZ22: 0
A23: 18 | B23: 1 | C23: 202205 | O23: 0 | P23: 0 | Q23: 0 | R23: 0 | S23: 0 | T23: 0 | V23: 0 | X23: 0 | Y23: 0 | Z23: 0 | AF23: 0 | AG23: 0 | AH23: 0 | AQ23: 0 | AS23: 0 | AT23: 0 | AU23: 0 | AZ23: 0
A24: 19 | B24: 1 | C24: 202205 | O24: 0 | P24: 0 | Q24: 0 | R24: 0 | S24: 0 | T24: 0 | V24: 0 | X24: 0 | Y24: 0 | Z24: 0 | AF24: 0 | AG24: 0 | AH24: 0 | AQ24: 0 | AS24: 0 | AT24: 0 | AU24: 0 | AZ24: 0
A25: 20 | B25: 1 | C25: 202205 | O25: 0 | P25: 0 | Q25: 0 | R25: 0 | S25: 0 | T25: 0 | V25: 0 | X25: 0 | Y25: 0 | Z25: 0 | AF25: 0 | AG25: 0 | AH25: 0 | AQ25: 0 | AS25: 0 | AT25: 0 | AU25: 0 | AZ25: 0
A26: 21 | B26: 1 | C26: 202205 | O26: 0 | P26: 0 | Q26: 0 | R26: 0 | S26: 0 | T26: 0 | V26: 0 | X26: 0 | Y26: 0 | Z26: 0 | AF26: 0 | AG26: 0 | AH26: 0 | AQ26: 0 | AS26: 0 | AT26: 0 | AU26: 0 | AZ26: 0
A27: 22 | B27: 1 | C27: 202205 | O27: 0 | P27: 0 | Q27: 0 | R27: 0 | S27: 0 | T27: 0 | V27: 0 | X27: =+IF(K27="0,0000",0,K27/10000) -> 0 | Y27: 0 | Z27: 0 | AF27: =+X27-AB27 -> 0 | AG27: 0 | AH27: 0 | AQ27: 0 | AS27: 0 | AT27: 0 | AU27: 0 | AZ27: 0
A28: 23 | B28: 1 | C28: 202205 | O28: 0 | P28: 0 | Q28: 0 | R28: 0 | S28: 0 | T28: 0 | V28: 0 | X28: 0 | Y28: 0 | Z28: 0 | AF28: 0 | AG28: 0 | AH28: 0 | AQ28: 0 | AS28: 0 | AT28: 0 | AU28: 0 | AZ28: 0
A29: =+A28+1 -> 24 | B29: 1 | C29: 202205 | O29: 0 | P29: 0 | Q29: 0 | R29: 0 | S29: 0 | T29: 0 | V29: 0 | X29: 0 | Y29: 0 | Z29: 0 | AF29: 0 | AG29: 0 | AH29: 0 | AQ29: 0 | AS29: 0 | AT29: 0 | AU29: 0 | AZ29: 0
A30: =+A29+1 -> 25 | B30: 1 | C30: 202205 | O30: 0 | P30: 0 | Q30: 0 | R30: 0 | S30: 0 | T30: 0 | V30: 0 | X30: 0 | Y30: 0 | Z30: 0 | AF30: 0 | AG30: 0 | AH30: 0 | AQ30: 0 | AS30: 0 | AT30: 0 | AU30: 0 | AZ30: 0
A31: 26 | B31: 1 | C31: 202205 | O31: 0 | P31: 0 | Q31: 0 | R31: 0 | S31: 0 | T31: 0 | V31: 0 | X31: 0 | Y31: 0 | Z31: 0 | AF31: 0 | AG31: 0 | AH31: 0 | AQ31: 0 | AS31: 0 | AT31: 0 | AU31: 0 | AZ31: 0
A32: 27 | B32: 1 | C32: 202205 | O32: 0 | P32: 0 | Q32: 0 | R32: 0 | S32: 0 | T32: 0 | V32: 0 | X32: 0 | Y32: 0 | Z32: 0 | AF32: 0 | AG32: 0 | AH32: 0 | AQ32: 0 | AS32: 0 | AT32: 0 | AU32: 0 | AZ32: 0
A33: 28 | B33: 1 | C33: 202205 | O33: 0 | P33: 0 | Q33: 0 | R33: 0 | S33: 0 | T33: 0 | V33: 0 | X33: 0 | Y33: 0 | Z33: 0 | AF33: 0 | AG33: 0 | AH33: 0 | AQ33: 0 | AS33: 0 | AT33: 0 | AU33: 0 | AZ33: 0
A34: 29 | B34: 1 | C34: 202205 | O34: 0 | P34: 0 | Q34: 0 | R34: 0 | S34: 0 | T34: 0 | V34: 0 | X34: 0 | Y34: 0 | Z34: 0 | AF34: 0 | AG34: 0 | AH34: 0 | AQ34: 0 | AS34: 0 | AT34: 0 | AU34: 0 | AZ34: 0
A35: 30 | B35: 1 | C35: 202205 | O35: 0 | P35: 0 | Q35: 0 | R35: 0 | S35: 0 | T35: 0 | V35: 0 | X35: 0 | Y35: 0 | Z35: 0 | AF35: 0 | AG35: 0 | AH35: 0 | AQ35: 0 | AS35: 0 | AT35: 0 | AU35: 0 | AZ35: 0
A36: 31 | B36: 1 | C36: 202205 | O36: 0 | P36: 0 | Q36: 0 | R36: 0 | S36: 0 | T36: 0 | V36: 0 | X36: 0 | Y36: 0 | Z36: 0 | AF36: 0 | AG36: 0 | AH36: 0 | AQ36: 0 | AS36: 0 | AT36: 0 | AU36: 0 | AZ36: 0
A37: 32 | B37: 1 | C37: 202205 | O37: 0 | P37: 0 | Q37: 0 | R37: 0 | S37: 0 | T37: 0 | V37: 0 | X37: 0 | Y37: 0 | Z37: 0 | AF37: 0 | AG37: 0 | AH37: 0 | AQ37: 0 | AS37: 0 | AT37: 0 | AU37: 0 | AZ37: 0
A38: 33 | B38: 1 | C38: 202205 | O38: 0 | P38: 0 | Q38: 0 | R38: 0 | S38: 0 | T38: 0 | V38: 0 | X38: 0 | Y38: 0 | Z38: 0 | AF38: 0 | AG38: 0 | AH38: 0 | AQ38: 0 | AS38: 0 | AT38: 0 | AU38: 0 | AZ38: 0
A39: 34 | B39: 1 | C39: 202205 | O39: 0 | P39: 0 | Q39: 0 | R39: 0 | S39: 0 | T39: 0 | V39: 0 | X39: 0 | Y39: 0 | Z39: 0 | AF39: 0 | AG39: 0 | AH39: 0 | AQ39: 0 | AS39: 0 | AT39: 0 | AU39: 0 | AZ39: 0
A40: 35 | B40: 1 | C40: 202205 | O40: 0 | P40: 0 | Q40: 0 | R40: 0 | S40: 0 | T40: 0 | V40: 0 | X40: 0 | Y40: 0 | Z40: 0 | AF40: 0 | AG40: 0 | AH40: 0 | AQ40: 0 | AS40: 0 | AT40: 0 | AU40: 0 | AZ40: 0
A41: 36 | B41: 1 | C41: 202205 | O41: 0 | P41: 0 | Q41: 0 | R41: 0 | S41: 0 | T41: 0 | V41: 0 | X41: 0 | Y41: 0 | Z41: 0 | AF41: 0 | AG41: 0 | AH41: 0 | AQ41: 0 | AS41: 0 | AT41: 0 | AU41: 0 | AZ41: 0
A42: 37 | B42: 1 | C42: 202205 | O42: 0 | P42: 0 | Q42: 0 | R42: 0 | S42: 0 | T42: 0 | V42: 0 | X42: 0 | Y42: 0 | Z42: 0 | AF42: 0 | AG42: 0 | AH42: 0 | AQ42: 0 | AS42: 0 | AT42: 0 | AU42: 0 | AZ42: 0
A43: 38 | B43: 1 | C43: 202205 | O43: 0 | P43: 0 | Q43: 0 | R43: 0 | S43: 0 | T43: 0 | V43: 0 | X43: 0 | Y43: 0 | Z43: 0 | AF43: 0 | AG43: 0 | AH43: 0 | AQ43: 0 | AS43: 0 | AT43: 0 | AU43: 0 | AZ43: 0
A44: 39 | B44: 1 | C44: 202205 | O44: 0 | P44: 0 | Q44: 0 | R44: 0 | S44: 0 | T44: 0 | V44: 0 | X44: 0 | Y44: 0 | Z44: 0 | AF44: 0 | AG44: 0 | AH44: 0 | AQ44: 0 | AS44: 0 | AT44: 0 | AU44: 0 | AZ44: 0
A45: 40 | B45: 1 | C45: 202205 | O45: 0 | P45: 0 | Q45: 0 | R45: 0 | S45: 0 | T45: 0 | V45: 0 | X45: 0 | Y45: 0 | Z45: 0 | AF45: 0 | AG45: 0 | AH45: 0 | AQ45: 0 | AS45: 0 | AT45: 0 | AU45: 0 | AZ45: 0
A46: 41 | B46: 1 | C46: 202205 | O46: 0 | P46: 0 | Q46: 0 | R46: 0 | S46: 0 | T46: 0 | V46: 0 | X46: 0 | Y46: 0 | Z46: 0 | AF46: 0 | AG46: 0 | AH46: 0 | AQ46: 0 | AS46: 0 | AT46: 0 | AU46: 0 | AZ46: 0
A47: 42 | B47: 1 | C47: 202205 | O47: 0 | P47: 0 | Q47: 0 | R47: 0 | S47: 0 | T47: 0 | V47: 0 | X47: 0 | Y47: 0 | Z47: 0 | AF47: 0 | AG47: 0 | AH47: 0 | AQ47: 0 | AS47: 0 | AT47: 0 | AU47: 0 | AZ47: 0
A48: 43 | B48: 1 | C48: 202205 | O48: 0 | P48: 0 | Q48: 0 | R48: 0 | S48: 0 | T48: 0 | V48: 0 | X48: 0 | Y48: 0 | Z48: 0 | AF48: 0 | AG48: 0 | AH48: 0 | AQ48: 0 | AS48: 0 | AT48: 0 | AU48: 0 | AZ48: 0
A49: 44 | B49: 1 | C49: 202205 | O49: 0 | P49: 0 | Q49: 0 | R49: 0 | S49: 0 | T49: 0 | V49: 0 | X49: 0 | Y49: 0 | Z49: 0 | AF49: 0 | AG49: 0 | AH49: 0 | AQ49: 0 | AS49: 0 | AT49: 0 | AU49: 0 | AZ49: 0
A50: 45 | B50: 1 | C50: 202205 | O50: 0 | P50: 0 | Q50: 0 | R50: 0 | S50: 0 | T50: 0 | V50: 0 | X50: 0 | Y50: 0 | Z50: 0 | AF50: 0 | AG50: 0 | AH50: 0 | AQ50: 0 | AS50: 0 | AT50: 0 | AU50: 0 | AZ50: 0
A51: 46 | B51: 1 | C51: 202205 | O51: 0 | P51: 0 | Q51: 0 | R51: 0 | S51: 0 | T51: 0 | V51: 0 | X51: 0 | Y51: 0 | Z51: 0 | AF51: 0 | AG51: 0 | AH51: 0 | AQ51: 0 | AS51: 0 | AT51: 0 | AU51: 0 | AZ51: 0
A52: 47 | B52: 1 | C52: 202205 | O52: 0 | P52: 0 | Q52: 0 | R52: 0 | S52: 0 | T52: 0 | V52: 0 | X52: 0 | Y52: 0 | Z52: 0 | AF52: 0 | AG52: 0 | AH52: 0 | AQ52: 0 | AS52: 0 | AT52: 0 | AU52: 0 | AZ52: 0
A53: 48 | B53: 1 | C53: 202205 | O53: 0 | P53: 0 | Q53: 0 | R53: 0 | S53: 0 | T53: 0 | V53: 0 | X53: 0 | Y53: 0 | Z53: 0 | AF53: 0 | AG53: 0 | AH53: 0 | AQ53: 0 | AS53: 0 | AT53: 0 | AU53: 0 | AZ53: 0
A54: 49 | B54: 1 | C54: 202205 | O54: 0 | P54: 0 | Q54: 0 | R54: 0 | S54: 0 | T54: 0 | V54: 0 | X54: 0 | Y54: 0 | Z54: 0 | AF54: 0 | AG54: 0 | AH54: 0 | AQ54: 0 | AS54: 0 | AT54: 0 | AU54: 0 | AZ54: 0
A55: 50 | B55: 1 | C55: 202205 | O55: 0 | P55: 0 | Q55: 0 | R55: 0 | S55: 0 | T55: 0 | V55: 0 | X55: 0 | Y55: 0 | Z55: 0 | AF55: 0 | AG55: 0 | AH55: 0 | AQ55: =IF(I55=6,0,Q55*0.1-R55) -> 0 | AS55: =+AT55+AU55 -> 0 | AT55: =IF(X55=0,0,IF(OR($I55=6,$I55=17,$I55=22),X55,IF(O55>=4200000,X55-294000,$X55-$O55*0.07))) -> 0 | AU55: =+IF(OR($I55=6,$I55=22,$I55=17),Y55-J55/10000*0.085,$Y55-$O55*0.105) -> 0 | AZ55: =IF(Q55=0,0,IF(Q55<=200000,Q55*0.1,IF(Q55<=500000,20000,IF(Q55<=1000000,18000,IF(Q55<=1500000,16000,IF(Q55<=2000000,14000,IF(Q55<=2500000,12000,IF(Q55<=3000000,10000,0)))))))) -> 0
A56: 51 | B56: 1 | C56: 202205 | O56: =IF(OR(I56=6,I56=21,I56=25,I56=17),0,IF(J56="0,0000",0,J56/10000)) -> 0 | P56: =+AF56 -> 0 | Q56: =IF(OR(I56=6,I56=17,I56=25),0,O56-P56) -> 0 | R56: =IF(OR(I56=40,I56=6,I56=17,I56=25),0,AZ56) -> 0 | S56: =IF(B56=2,0,IF(AND($C56>202003,$C56<202010),AQ56,0)) -> 0 | T56: =IF(OR(I56=6,I56=17,I56=25),0,Q56-(Q56*0.1-R56-S56)) -> 0 | V56: =+IF(OR(I56=6,I56=25),0,Q56*0.1-R56-S56) -> 0 | X56: =+IF(K56="0,0000",0,K56/10000) -> 0 | Y56: =+IF(L56="0,0000",0,L56/10000) -> 0 | Z56: =+IF(M56="0,0000",0,M56/10000) -> 0 | AF56: =+X56-AB56 -> 0 | AG56: =+Y56-AC56 -> 0 | AH56: =+AF56+AG56 -> 0 | AQ56: 0 | AS56: 0 | AT56: 0 | AU56: 0 | AZ56: 0
A57: 52 | B57: 1 | C57: 202205 | O57: 0 | P57: 0 | Q57: 0 | R57: 0 | S57: 0 | T57: 0 | V57: 0 | X57: 0 | Y57: 0 | Z57: 0 | AF57: 0 | AG57: 0 | AH57: 0 | AQ57: 0 | AS57: 0 | AT57: 0 | AU57: 0 | AZ57: 0
A58: 53 | B58: 1 | C58: 202205 | O58: 0 | P58: 0 | Q58: 0 | R58: 0 | S58: 0 | T58: 0 | V58: 0 | X58: 0 | Y58: 0 | Z58: 0 | AF58: 0 | AG58: 0 | AH58: 0 | AQ58: 0 | AS58: 0 | AT58: 0 | AU58: 0 | AZ58: 0
A59: 54 | B59: 1 | C59: 202205 | O59: 0 | P59: 0 | Q59: 0 | R59: 0 | S59: 0 | T59: 0 | V59: 0 | X59: 0 | Y59: 0 | Z59: 0 | AF59: 0 | AG59: 0 | AH59: 0 | AQ59: 0 | AS59: 0 | AT59: 0 | AU59: 0 | AZ59: 0
A60: 55 | B60: 1 | C60: 202205 | O60: 0 | P60: 0 | Q60: 0 | R60: 0 | S60: 0 | T60: 0 | V60: 0 | X60: 0 | Y60: 0 | Z60: 0 | AF60: 0 | AG60: 0 | AH60: 0 | AQ60: 0 | AS60: 0 | AT60: 0 | AU60: 0 | AZ60: 0
A61: 56 | B61: 1 | C61: 202205 | O61: 0 | P61: 0 | Q61: 0 | R61: 0 | S61: 0 | T61: 0 | V61: 0 | X61: 0 | Y61: 0 | Z61: 0 | AF61: 0 | AG61: 0 | AH61: 0 | AQ61: 0 | AS61: 0 | AT61: 0 | AU61: 0 | AZ61: 0
A62: 57 | B62: 1 | C62: 202205 | O62: 0 | P62: 0 | Q62: 0 | R62: 0 | S62: 0 | T62: 0 | V62: 0 | X62: 0 | Y62: 0 | Z62: 0 | AF62: 0 | AG62: 0 | AH62: 0 | AQ62: 0 | AS62: 0 | AT62: 0 | AU62: 0 | AZ62: 0
A63: 58 | B63: 1 | C63: 202205 | O63: 0 | P63: 0 | Q63: 0 | R63: 0 | S63: 0 | T63: 0 | V63: 0 | X63: 0 | Y63: 0 | Z63: 0 | AF63: 0 | AG63: 0 | AH63: 0 | AQ63: 0 | AS63: 0 | AT63: 0 | AU63: 0 | AZ63: 0
A64: 59 | B64: 1 | C64: 202205 | O64: 0 | P64: 0 | Q64: 0 | R64: 0 | S64: 0 | T64: 0 | V64: 0 | X64: 0 | Y64: 0 | Z64: 0 | AF64: 0 | AG64: 0 | AH64: 0 | AQ64: 0 | AS64: 0 | AT64: 0 | AU64: 0 | AZ64: 0
A65: 60 | B65: 1 | C65: 202205 | O65: 0 | P65: 0 | Q65: 0 | R65: 0 | S65: 0 | T65: 0 | V65: 0 | X65: 0 | Y65: 0 | Z65: 0 | AF65: 0 | AG65: 0 | AH65: 0 | AQ65: 0 | AS65: 0 | AT65: 0 | AU65: 0 | AZ65: 0
A66: 61 | B66: 1 | C66: 202205 | O66: 0 | P66: 0 | Q66: 0 | R66: 0 | S66: 0 | T66: 0 | V66: 0 | X66: 0 | Y66: 0 | Z66: 0 | AF66: 0 | AG66: 0 | AH66: 0 | AQ66: 0 | AS66: 0 | AT66: 0 | AU66: 0 | AZ66: 0
A67: 62 | B67: 1 | C67: 202205 | O67: 0 | P67: 0 | Q67: 0 | R67: 0 | S67: 0 | T67: 0 | V67: 0 | X67: 0 | Y67: 0 | Z67: 0 | AF67: 0 | AG67: 0 | AH67: 0 | AQ67: 0 | AS67: 0 | AT67: 0 | AU67: 0 | AZ67: 0
A68: 63 | B68: 1 | C68: 202205 | O68: 0 | P68: 0 | Q68: 0 | R68: 0 | S68: 0 | T68: 0 | V68: 0 | X68: 0 | Y68: 0 | Z68: 0 | AF68: 0 | AG68: 0 | AH68: 0 | AQ68: 0 | AS68: 0 | AT68: 0 | AU68: 0 | AZ68: 0
A69: 64 | B69: 1 | C69: 202205 | O69: 0 | P69: 0 | Q69: 0 | R69: 0 | S69: 0 | T69: 0 | V69: 0 | X69: 0 | Y69: 0 | Z69: 0 | AF69: 0 | AG69: 0 | AH69: 0 | AQ69: 0 | AS69: 0 | AT69: 0 | AU69: 0 | AZ69: 0
A70: 65 | B70: 1 | C70: 202205 | O70: 0 | P70: 0 | Q70: 0 | R70: 0 | S70: 0 | T70: 0 | V70: 0 | X70: 0 | Y70: 0 | Z70: 0 | AF70: 0 | AG70: 0 | AH70: 0 | AQ70: 0 | AS70: 0 | AT70: 0 | AU70: 0 | AZ70: 0
A71: 66 | B71: 1 | C71: 202205 | O71: =IF(OR(I71=6,I71=21,I71=25,I71=17),0,IF(J71="0,0000",0,J71/10000)) -> 0 | P71: =+AF71 -> 0 | Q71: =IF(OR(I71=6,I71=17,I71=25),0,O71-P71) -> 0 | R71: =IF(OR(I71=40,I71=6,I71=17,I71=25),0,AZ71) -> 0 | S71: =IF(B71=2,0,IF(AND($C71>202003,$C71<202010),AQ71,0)) -> 0 | T71: =IF(OR(I71=6,I71=17,I71=25),0,Q71-(Q71*0.1-R71-S71)) -> 0 | V71: =+IF(OR(I71=6,I71=25),0,Q71*0.1-R71-S71) -> 0 | X71: =+IF(K71="0,0000",0,K71/10000) -> 0 | Y71: =+IF(L71="0,0000",0,L71/10000) -> 0 | Z71: =+IF(M71="0,0000",0,M71/10000) -> 0 | AF71: =+X71-AB71 -> 0 | AG71: =+Y71-AC71 -> 0 | AH71: =+AF71+AG71 -> 0 | AQ71: 0 | AS71: 0 | AT71: 0 | AU71: 0 | AZ71: 0
A72: 67 | B72: 1 | C72: 202205 | O72: 0 | P72: 0 | Q72: 0 | R72: 0 | S72: 0 | T72: 0 | V72: 0 | X72: 0 | Y72: 0 | Z72: 0 | AF72: 0 | AG72: 0 | AH72: 0 | AQ72: 0 | AS72: 0 | AT72: 0 | AU72: 0 | AZ72: 0
A73: 68 | B73: 1 | C73: 202205 | O73: 0 | P73: 0 | Q73: 0 | R73: 0 | S73: 0 | T73: 0 | V73: 0 | X73: 0 | Y73: 0 | Z73: 0 | AF73: 0 | AG73: 0 | AH73: 0 | AQ73: 0 | AS73: 0 | AT73: 0 | AU73: 0 | AZ73: 0
A74: 69 | B74: 1 | C74: 202205 | O74: 0 | P74: 0 | Q74: 0 | R74: 0 | S74: 0 | T74: 0 | V74: 0 | X74: 0 | Y74: 0 | Z74: 0 | AF74: 0 | AG74: 0 | AH74: 0 | AQ74: 0 | AS74: 0 | AT74: 0 | AU74: 0 | AZ74: 0
A75: 70 | B75: 1 | C75: 202205 | O75: 0 | P75: 0 | Q75: 0 | R75: 0 | S75: 0 | T75: 0 | V75: 0 | X75: 0 | Y75: 0 | Z75: 0 | AF75: 0 | AG75: 0 | AH75: 0 | AQ75: 0 | AS75: 0 | AT75: 0 | AU75: 0 | AZ75: 0
A76: 71 | B76: 1 | C76: 202205 | O76: 0 | P76: 0 | Q76: 0 | R76: 0 | S76: 0 | T76: 0 | V76: 0 | X76: 0 | Y76: 0 | Z76: 0 | AF76: 0 | AG76: 0 | AH76: 0 | AQ76: 0 | AS76: 0 | AT76: 0 | AU76: 0 | AZ76: 0
A77: 72 | B77: 1 | C77: 202205 | O77: 0 | P77: 0 | Q77: 0 | R77: 0 | S77: 0 | T77: 0 | V77: 0 | X77: 0 | Y77: 0 | Z77: 0 | AF77: 0 | AG77: 0 | AH77: 0 | AQ77: 0 | AS77: 0 | AT77: 0 | AU77: 0 | AZ77: 0
A78: 73 | B78: 1 | C78: 202205 | O78: 0 | P78: 0 | Q78: 0 | R78: 0 | S78: 0 | T78: 0 | V78: 0 | X78: 0 | Y78: 0 | Z78: 0 | AF78: 0 | AG78: 0 | AH78: 0 | AQ78: 0 | AS78: 0 | AT78: 0 | AU78: 0 | AZ78: 0
A79: 74 | B79: 1 | C79: 202205 | O79: 0 | P79: 0 | Q79: 0 | R79: 0 | S79: 0 | T79: 0 | V79: 0 | X79: 0 | Y79: 0 | Z79: 0 | AF79: 0 | AG79: 0 | AH79: 0 | AQ79: 0 | AS79: 0 | AT79: 0 | AU79: 0 | AZ79: 0
A80: 75 | B80: 1 | C80: 202205 | O80: 0 | P80: 0 | Q80: 0 | R80: 0 | S80: 0 | T80: 0 | V80: 0 | X80: 0 | Y80: 0 | Z80: 0 | AF80: 0 | AG80: 0 | AH80: 0 | AQ80: 0 | AS80: 0 | AT80: 0 | AU80: 0 | AZ80: 0
A81: 76 | B81: 1 | C81: 202205 | O81: 0 | P81: 0 | Q81: 0 | R81: 0 | S81: 0 | T81: 0 | V81: 0 | X81: 0 | Y81: 0 | Z81: 0 | AF81: 0 | AG81: 0 | AH81: 0 | AQ81: 0 | AS81: 0 | AT81: 0 | AU81: 0 | AZ81: 0
A82: 77 | B82: 1 | C82: 202205 | O82: 0 | P82: 0 | Q82: 0 | R82: 0 | S82: 0 | T82: 0 | V82: 0 | X82: 0 | Y82: 0 | Z82: 0 | AF82: 0 | AG82: 0 | AH82: 0 | AQ82: 0 | AS82: 0 | AT82: 0 | AU82: 0 | AZ82: 0
A83: 78 | B83: 1 | C83: 202205 | O83: 0 | P83: 0 | Q83: 0 | R83: 0 | S83: 0 | T83: 0 | V83: 0 | X83: 0 | Y83: 0 | Z83: 0 | AF83: 0 | AG83: 0 | AH83: 0 | AQ83: 0 | AS83: 0 | AT83: 0 | AU83: 0 | AZ83: 0
A84: 79 | B84: 1 | C84: 202205 | O84: 0 | P84: 0 | Q84: 0 | R84: 0 | S84: 0 | T84: 0 | V84: 0 | X84: 0 | Y84: 0 | Z84: 0 | AF84: 0 | AG84: 0 | AH84: 0 | AQ84: 0 | AS84: 0 | AT84: 0 | AU84: 0 | AZ84: 0
A85: 80 | B85: 1 | C85: 202205 | O85: 0 | P85: 0 | Q85: 0 | R85: 0 | S85: 0 | T85: 0 | V85: 0 | X85: 0 | Y85: 0 | Z85: 0 | AF85: 0 | AG85: 0 | AH85: 0 | AQ85: 0 | AS85: 0 | AT85: 0 | AU85: 0 | AZ85: 0
A86: 81 | B86: 1 | C86: 202205 | O86: 0 | P86: 0 | Q86: 0 | R86: 0 | S86: 0 | T86: 0 | V86: 0 | X86: 0 | Y86: 0 | Z86: 0 | AF86: 0 | AG86: 0 | AH86: 0 | AQ86: 0 | AS86: 0 | AT86: 0 | AU86: 0 | AZ86: 0
A87: 82 | B87: 1 | C87: 202205 | O87: 0 | P87: 0 | Q87: 0 | R87: 0 | S87: 0 | T87: 0 | V87: 0 | X87: 0 | Y87: 0 | Z87: 0 | AF87: 0 | AG87: 0 | AH87: 0 | AQ87: 0 | AS87: 0 | AT87: 0 | AU87: 0 | AZ87: 0
A88: 83 | B88: 1 | C88: 202205 | O88: 0 | P88: 0 | Q88: 0 | R88: 0 | S88: 0 | T88: 0 | V88: 0 | X88: 0 | Y88: 0 | Z88: 0 | AF88: 0 | AG88: 0 | AH88: 0 | AQ88: 0 | AS88: 0 | AT88: 0 | AU88: 0 | AZ88: 0
A89: 84 | B89: 1 | C89: 202205 | O89: 0 | P89: 0 | Q89: 0 | R89: 0 | S89: 0 | T89: 0 | V89: 0 | X89: 0 | Y89: 0 | Z89: 0 | AF89: 0 | AG89: 0 | AH89: 0 | AQ89: 0 | AS89: 0 | AT89: 0 | AU89: 0 | AZ89: 0
A90: 85 | B90: 1 | C90: 202205 | O90: 0 | P90: 0 | Q90: 0 | R90: 0 | S90: 0 | T90: 0 | V90: 0 | X90: 0 | Y90: 0 | Z90: 0 | AF90: 0 | AG90: 0 | AH90: 0 | AQ90: 0 | AS90: 0 | AT90: 0 | AU90: 0 | AZ90: 0
A91: 86 | B91: 1 | C91: 202205 | O91: 0 | P91: 0 | Q91: 0 | R91: 0 | S91: 0 | T91: 0 | V91: 0 | X91: 0 | Y91: 0 | Z91: 0 | AF91: 0 | AG91: 0 | AH91: 0 | AQ91: 0 | AS91: 0 | AT91: 0 | AU91: 0 | AZ91: 0
A92: 87 | B92: 1 | C92: 202205 | O92: 0 | P92: 0 | Q92: 0 | R92: 0 | S92: 0 | T92: 0 | V92: 0 | X92: 0 | Y92: 0 | Z92: 0 | AF92: 0 | AG92: 0 | AH92: 0 | AQ92: 0 | AS92: 0 | AT92: 0 | AU92: 0 | AZ92: 0
A93: 88 | B93: 1 | C93: 202205 | O93: 0 | P93: 0 | Q93: 0 | R93: 0 | S93: 0 | T93: 0 | V93: 0 | X93: 0 | Y93: 0 | Z93: 0 | AF93: 0 | AG93: 0 | AH93: 0 | AQ93: 0 | AS93: 0 | AT93: 0 | AU93: 0 | AZ93: 0
A94: 89 | B94: 1 | C94: 202205 | O94: 0 | P94: 0 | Q94: 0 | R94: 0 | S94: 0 | T94: 0 | V94: 0 | X94: 0 | Y94: 0 | Z94: 0 | AF94: 0 | AG94: 0 | AH94: 0 | AQ94: 0 | AS94: 0 | AT94: 0 | AU94: 0 | AZ94: 0
A95: 90 | B95: 1 | C95: 202205 | O95: 0 | P95: 0 | Q95: 0 | R95: 0 | S95: 0 | T95: 0 | V95: 0 | X95: 0 | Y95: 0 | Z95: 0 | AF95: 0 | AG95: 0 | AH95: 0 | AQ95: 0 | AS95: 0 | AT95: 0 | AU95: 0 | AZ95: 0
